Workbook

Sheet Info

Sheet MainPage
A1: PI-SEC Scenario Calculator | B1: Front Page
A2: Neighbourhood:
A3: V30.10.19
A4: Climate Zone | B4: 1. Sør-Norge, innland
A6: KEY DATA | B6: Now | C6: End of project
A7: Project timeframe
A8: Area
A9: Population | B9: 0
A10: Number of jobs | B10: 0
A11: Area of buildings (m2 BRA) | B11: 0
A12: Number of buildings | B12: 0
A14: GOALS | B14: KPI | C14: Category | D14: Sub category | E14: Sector | F14: Unit | G14: Comparison | H14: Relative to | I14: Goal at EoP
A19: Menu
A27: Scenarioes
A28: Initial

Sheet Log
A1: Date | B1: Change | C1: From | D1: To | E1: Comment

Sheet Emission factors
A1: Emission Factors
A2: Energy Sources | B2: Emissions [gCO2/kWh]
A3: Electricity | B3: 123
A4: Solar Thermal | B4: 0
A5: Firewood | B5: 14
A6: Wood Chips | B6: 14
A7: Pellets | B7: 25
A8: Bio-oil | B8: 25
A9: Bio-gas | B9: 10
A10: Waste | B10: 138
A11: Fossile oil | B11: 315
A12: LPG | B12: 304
A13: Natural Gas | B13: 255

Sheet KPIResults (hidden)
A1: Scenario | G1: Initial
A3: Key Data | C3: Category | D3: Sub-Category | E3: Sectors | F3: Unit
A4: Year | G4: 2018
A5: Population | F5: # | G5: 0
A6: Number of jobs | F6: # | G6: 0
A7: Other Users | F7: # | G7: 0
A8: Building area | E8: Total | F8: m2 | G8: 0
E9: Residential buildings | F9: m2 | G9: 0
E10: Public buildings | F10: m2 | G10: 0
E11: Private buildings | F11: m2 | G11: 0
A12: Number of buildings | E12: Total | F12: # | G12: 0
E13: Residential buildings | F13: # | G13: 0
E14: Public buildings | F14: # | G14: 0
E15: Private buildings | F15: # | G15: 0
A17: KPI | C17: Category | D17: Sub-Category | E17: Sectors | F17: Unit
A18: Energy Use | C18: Total | D18: Total stationary | E18: Total | F18: kWh | G18: 0
E19: Residential buildings | F19: kWh | G19: 0
E20: Public buildings | F20: kWh | G20: 0
E21: Private buildings | F21: kWh | G21: 0
E22: Street Utilities | F22: kWh | G22: 0
D23: Total stationary and mobility | E23: Total | G23: 0
E24: Residential buildings | G24: 0
E25: Public buildings | G25: 0
E26: Private buildings | G26: 0
E27: Street Utilities | G27: 0
E28: Transport | G28: 0
C29: Electric | D29: Total stationary | E29: Total | F29: kWh | G29: 0
E30: Residential buildings | F30: kWh | G30: 0
E31: Public buildings | F31: kWh | G31: 0
E32: Private buildings | F32: kWh | G32: 0
E33: Street Utilities | F33: kWh | G33: 0
D34: Total stationary and mobility | E34: Total | F34: kWh | G34: 0
E35: Residential buildings | F35: kWh | G35: 0
E36: Public buildings | F36: kWh | G36: 0
E37: Private buildings | F37: kWh | G37: 0
E38: Street Utilities | F38: kWh | G38: 0
E39: Transport | F39: kWh | G39: 0
D40: Buildings | E40: Total | F40: kWh | G40: 0
E41: Residential buildings | F41: kWh | G41: 0
E42: Public buildings | F42: kWh | G42: 0
E43: Private buildings | F43: kWh | G43: 0
D44: Street Utilities | E44: Total | F44: kWh | G44: 0
E45: Outdoor lighting | F45: kWh | G45: 0
E46: Other | F46: kWh | G46: 0
D47: Transport | E47: Total | F47: kWh | G47: 0
E48: Private car | F48: kWh | G48: 0
E49: Public transport | F49: kWh | G49: 0
E50: Goods | F50: kWh | G50: 0
C51: Thermal | D51: Total stationary | E51: Total | F51: kWh | G51: 0
E52: Solar | F52: kWh | G52: 0
E53: Biofuel | F53: kWh | G53: 0
E54: Oil | F54: kWh | G54: 0
E55: Gas | F55: kWh | G55: 0
E56: District heating | F56: kWh | G56: 0
D57: Total stationary and mobility | E57: Total | G57: 0
E58: Solar | G58: 0
E59: Biofuel | G59: 0
E60: Oil | G60: 0
E61: Gas | G61: 0
E62: District heating | G62: 0
E63: Fossil fuels | G63: 0
D64: Residential Buildings | E64: Total | F64: kWh | G64: 0
E65: Solar | F65: kWh | G65: 0
E66: Biofuel | F66: kWh | G66: 0
E67: Oil | F67: kWh | G67: 0
E68: Gas | F68: kWh | G68: 0
E69: District heating | F69: kWh | G69: 0
D70: Public Buildings | E70: Total | F70: kWh | G70: 0
E71: Solar | F71: kWh | G71: 0
E72: Biofuel | F72: kWh | G72: 0
E73: Oil | F73: kWh | G73: 0
E74: Gas | F74: kWh | G74: 0
E75: District heating | F75: kWh | G75: 0
D76: Private Buildings | E76: Total | F76: kWh | G76: 0
E77: Solar | F77: kWh | G77: 0
E78: Biofuel | F78: kWh | G78: 0
E79: Oil | F79: kWh | G79: 0
E80: Gas | F80: kWh | G80: 0
E81: District heating | F81: kWh | G81: 0
D82: Street Utilities | E82: Total | F82: kWh | G82: 0
E83: Solar | F83: kWh | G83: 0
E84: Biofuel | F84: kWh | G84: 0
E85: Oil | F85: kWh | G85: 0
E86: Gas | F86: kWh | G86: 0
E87: District heating | F87: kWh | G87: 0
D88: Transport | E88: Fossil fuels | F88: kWh | G88: 0
D89: Private car | E89: Fossil fuels | F89: kWh | G89: 0
D90: Public transport | E90: Fossil fuels | F90: kWh | G90: 0
D91: Goods | E91: Fossil fuels | F91: kWh | G91: 0
A92: Net energy demand in buildings | C92: Total net demand | D92: Total | E92: Total | F92: kWh | G92: 0
E93: Heating | F93: kWh | G93: 0
E94: Hot water | F94: kWh | G94: 0
E95: Cooling | F95: kWh | G95: 0
E96: Electric | F96: kWh | G96: 0
D97: Residential Buildings | E97: Total | F97: kWh | G97: 0
E98: Heating | F98: kWh | G98: 0
E99: Hot water | F99: kWh | G99: 0
E100: Cooling | F100: kWh | G100: 0
E101: Electric | F101: kWh | G101: 0
D102: Public Buildings | E102: Total | F102: kWh | G102: 0
E103: Heating | F103: kWh | G103: 0
E104: Hot water | F104: kWh | G104: 0
E105: Cooling | F105: kWh | G105: 0
E106: Electric | F106: kWh | G106: 0
D107: Private Buildings | E107: Total | F107: kWh | G107: 0
E108: Heating | F108: kWh | G108: 0
E109: Hot water | F109: kWh | G109: 0
E110: Cooling | F110: kWh | G110: 0
E111: Electric | F111: kWh | G111: 0
A112: % of energy sources delivering to district heating system | C112: Total | F112: % | G112: 30
C113: Electricity | F113: % | G113: 29
C114: Surplus and Ambient Heat | F114: % | G114: 0
C115: Solar | F115: % | G115: 0
C116: Biofuel | F116: % | G116: 30
C117: Waste | F117: % | G117: 40
C118: Oil | F118: % | G118: 1
C119: Gas | F119: % | G119: 0
A120: % of buildings with Energy Certificate at each of the grades | C120: Total registered | F120: % | G120: 0
C121: Certificate A | F121: % | G121: 0
C122: Certificate B | F122: % | G122: 0
C123: Certificate C | F123: % | G123: 0
C124: Certificate D | F124: % | G124: 0
C125: Certificate E | F125: % | G125: 0
C126: Certificate F | F126: % | G126: 0
C127: Certificate G | F127: % | G127: 0
C128: Not registered | F128: % | G128: 0
A129: % of buildings with measurement values for energy performance | E129: Total | F129: % | G129: 0
E130: Residential buildings | F130: % | G130: 0
E131: Public buildings | F131: % | G131: 0
E132: Private buildings | F132: % | G132: 0
A133: Installed capacity of RES | C133: Total | D133: Total | F133: kW | G133: 0
D134: Solar | F134: kW | G134: 0
D135: CHP Waste | F135: kW | G135: 0
D136: CHP Biomass | F136: kW | G136: 0
C137: Electric | D137: Total | F137: kW | G137: 0
D138: Solar | F138: kW | G138: 0
D139: CHP Waste | F139: kW | G139: 0
D140: CHP Biomass | F140: kW | G140: 0
C141: Thermal | D141: Total | F141: kW | G141: 0
D142: Solar | F142: kW | G142: 0
D143: CHP Waste | F143: kW | G143: 0
D144: CHP Biomass | F144: kW | G144: 0
A145: Generated energy by RES | C145: Total | D145: Total | F145: kWh | G145: 0
D146: Solar | F146: kWh | G146: 0
D147: CHP Waste | F147: kWh | G147: 0
D148: CHP Biomass | F148: kWh | G148: 0
C149: Electric | D149: Total | F149: kWh | G149: 0
D150: Solar | F150: kWh | G150: 0
D151: CHP Waste | F151: kWh | G151: 0
D152: CHP Biomass | F152: kWh | G152: 0
C153: Thermal | D153: Total | F153: kWh | G153: 0
D154: Solar | F154: kWh | G154: 0
D155: CHP Waste | F155: kWh | G155: 0
D156: CHP Biomass | F156: kWh | G156: 0
A157: # of buildings with installed solar energy system | C157: Total | E157: Total | F157: # | G157: 0
E158: Residential buildings | F158: # | G158: 0
E159: Public buildings | F159: # | G159: 0
E160: Private buildings | F160: # | G160: 0
C161: Electric | E161: Total | F161: # | G161: 0
E162: Residential buildings | F162: # | G162: 0
E163: Public buildings | F163: # | G163: 0
E164: Private buildings | F164: # | G164: 0
C165: Thermal | E165: Total | F165: # | G165: 0
E166: Residential buildings | F166: # | G166: 0
E167: Public buildings | F167: # | G167: 0
E168: Private buildings | F168: # | G168: 0
A169: # of buildings connected to a district thermal energy system | E169: Total | F169: # | G169: 0
E170: Residential buildings | F170: # | G170: 0
E171: Public buildings | F171: # | G171: 0
E172: Private buildings | F172: # | G172: 0
A173: Modal split | C173: Total | F173: % | G173: 0
C174: Bike/Walk | F174: % | G174: 0
C175: Fossil free Car | F175: % | G175: 0
C176: Fossil fuel Car | F176: % | G176: 0
C177: Fossil free Public transport | F177: % | G177: 0
C178: Fossil fuel Public transport | F178: % | G178: 0
A179: CO2 emissions | C179: Total | F179: tonnes | G179: 0
C180: Stationary Energy | D180: Total | E180: Total | F180: tonnes | G180: 0
E181: Residential buildings | F181: tonnes | G181: 0
E182: Public buildings | F182: tonnes | G182: 0
E183: Private buildings | F183: tonnes | G183: 0
E184: Street Utilities | F184: tonnes | G184: 0
E185: Local Energy Plant | F185: tonnes | G185: 0
D186: Electricity | E186: Total | F186: tonnes | G186: 0
E187: Residential buildings | F187: tonnes | G187: 0
E188: Public buildings | F188: tonnes | G188: 0
E189: Private buildings | F189: tonnes | G189: 0
E190: Street Utilities | F190: tonnes | G190: 0
E191: Local Energy Plant | F191: tonnes | G191: 0
D192: Biofuel | E192: Total | F192: tonnes | G192: 0
E193: Residential buildings | F193: tonnes | G193: 0
E194: Public buildings | F194: tonnes | G194: 0
E195: Private buildings | F195: tonnes | G195: 0
E196: Street Utilities | F196: tonnes | G196: 0
D197: Fossile fuel | E197: Total | F197: tonnes | G197: 0
E198: Residential buildings | F198: tonnes | G198: 0
E199: Public buildings | F199: tonnes | G199: 0
E200: Private buildings | F200: tonnes | G200: 0
E201: Street Utilities | F201: tonnes | G201: 0
D202: District heating | E202: Total | F202: tonnes | G202: 0
... 130 more rows

Sheet Initial
A1: =MainPage!A1 -> PI-SEC Scenario Calculator | B1: Initial Situation | C1: 2018
A2: Neighbourhood | B2: =MainPage!B2 -> 0
A3: Buildings
H4: Energy performance | O4: Thermal Energy supply system | AU4: Renewable energy production | BB4: Emission Data | BC4: Construction site data
N5: Heating | Z5: Hot Water | AM5: Cooling | AU5: Solar Thermal (surplus) | AX5: Solar PV (total) | BB5: Materials | BC5: Construction Machines | BD5: Thermal energy
A6: Building | B6: Category | C6: Year of construction | D6: Area [m2] | E6: Ownership | F6: residents/ employees [#] | G6: Res above 13y/ Other Users [#] | H6: Energy certificate | I6: Performance input | J6: Heating [kWh/m2] | K6: Hot Water [kWh/m2] | L6: Cooling [kWh/m2] | M6: Electricity [kWh/m2] | N6: Source 1 | O6: Coverage [%] | P6: Efficiency/COP [-] | Q6: Share of peak power [%] | R6: Source 2 | S6: Coverage [%] | T6: Efficiency/COP [-] | U6: Share of peak power [%] | V6: Source 3 | W6: Coverage [%] | X6: Efficiency/COP [-] | Y6: Share of peak power [%] | Z6: Source 1 | AA6: Coverage [%] | AB6: Efficiency/ COP [%] | AC6: Share of peak power [%] | AD6: Source 2 | AE6: Coverage [%] | AF6: Efficiency/ COP [%] | AG6: Share of peak power [%] | AH6: Source 3 | AI6: Coverage [%] | AJ6: Efficiency/COP [%] | AK6: Share of peak power [%] | AL6: Source 1 | AM6: Coverage [%] | AN6: Efficiency/COP [-] | AO6: Source 2 | AP6: Coverage [%] | AQ6: Efficiency/COP [%] | AR6: Source 3 | AS6: Coverage [%] | AT6: Efficiency/COP [%] | AU6: Size [m2] | AV6: Peak production [kWp] | AW6: Yearly production [kWh] | AX6: Size [m2] | AY6: Input type | AZ6: Peak production [kWp] | BA6: Yearly production [kWh] | BB6: Life cycle emission [tCO2 eqv./y] | BC6: Fuel | BD6: Fuel
J8: 0 | K8: 0 | L8: 0 | M8: 0 | O8: 0 | P8: 0 | Q8: 0 | R8: 0 | T8: 0
A10: Street Utilities
A11: General description | D11: Energy performance
A12: Outdoor lighting | B12: Year of installation | C12: # units | D12: Energy performance Category | E12: Energy consumption [kWh/unit]
A15: Snow Melt Systems | B15: Year of installation | C15: Size [m2] | D15: Energy performance Category | E15: Energy consumption [kWh/m2] | F15: Energy source | G15: Efficiency/COP [-]
A19: Local energy plant
A20: Energy Source | E20: Heating to District Heating system | G20: Cooling to District Cooling system | I20: Electricity to grid
A21: Type | B21: Energy Source | C21: CO2 Emission [g/kWh] | D21: Efficiceny [%] | E21: Capacity [kW] | F21: Production [kWh] | G21: Capacity [kW] | H21: Production [kWh] | I21: Capacity [kW] | J21: Production [kWh]
A25: District Heating
A26: Energy Source | E26: Distribution
A27: Heat Source | B27: Coverage [%] | C27: CO2 Emission [g/kWh] | D27: Production efficiency [%] | E27: Distribution losses
A28: Electricity | B28: 0.29 | C28: 123 | D28: 0.95 | E28: 0.1
A29: Heat Pump | C29: 123 | D29: 3.125
A30: Solar Collector | C30: 0 | D30: 1
A31: Waste Heat | C31: 0 | D31: 0.9
A32: Waste Incineration | B32: 0.4 | C32: 11 | D32: 0.9
A33: Wood Chips | B33: 0.3 | C33: 18 | D33: 0.9
A34: Pellets | C34: 19 | D34: 0.9
A35: Bio-oil | C35: 10 | D35: 0.9
A36: Bio-gas | C36: 10 | D36: 0.9
A37: Fossile Oil | B37: 0.01 | C37: 268 | D37: 0.9
A38: LPG | C38: 235 | D38: 0.9
A41: Transport
A42: Population | E42: Trip Generation | K42: Travel method distribution | Q42: Location: | S42: Oslo | AC42: Parking Capacity
E43: Users | J43: Other Users | K43: Work | N43: Service | Q43: Private errand | T43: Other | W43: Average distance | Y43: # passengers | AB43: Public Transport | AC43: Factor | AD43: Distribution of reduction
A44: Building Category | B44: Area [m2] | C44: residents/ employees [#] | D44: Res above 13y/ Other Users [#] | E44: Work | F44: Service | G44: Private errand | H44: Utside Service | I44: Goods transport | K44: Walk/bike | L44: Public transport | M44: Car | N44: Walk/bike | O44: Public transport | P44: Car | Q44: Walk/bike | R44: Public transport | S44: Car | T44: Walk/bike | U44: Public transport | V44: Car | W44: Public Transport | X44: Car | Y44: Buss | Z44: Rail | AA44: Car | AB44: % using track | AC44: 1-0 | AD44: Walk/ Bike | AE44: Public Transport | AF44: Car sharing
A45: Residential individual housing | B45: =SUMIF(BuildingCategoryRange,A45,BuildingAreaRange) -> 0 | C45: =SUMIF(BuildingCategoryRange,A45,BuildingResidentsRange) -> 0 | D45: =SUMIF(BuildingCategoryRange,A45,BuildingUserRange) -> 0 | E45: 0.8 | F45: 0.1 | G45: 1 | H45: 1.7 | I45: 0.1 | J45: 0 | K45: 0.19 | L45: 0.47 | M45: 0.34 | N45: 0.19 | O45: 0.29 | P45: 0.52 | Q45: 0.42 | R45: 0.21 | S45: 0.37 | T45: 0.43 | U45: 0.26 | V45: 0.31 | W45: 13.8 | X45: 16 | Y45: 19.4 | Z45: 15.7 | AA45: 1.3 | AB45: 0.6 | AC45: =NA() ->  | AD45: =NA() ->  | AE45: =NA() ->  | AF45: =NA() -> 
A46: Residential apartment building | B46: 0 | C46: 0 | D46: 0 | E46: 0.8 | F46: 0.1 | G46: 1 | H46: 1.7 | I46: 0.1 | J46: 0 | K46: 0.19 | L46: 0.47 | M46: 0.34 | N46: 0.19 | O46: 0.29 | P46: 0.52 | Q46: 0.42 | R46: 0.21 | S46: 0.37 | T46: 0.43 | U46: 0.26 | V46: 0.31 | W46: 13.8 | X46: 16 | Y46: 19.4 | Z46: 15.7 | AA46: 1.3 | AB46: 0.6 | AC46: =NA() ->  | AD46: =NA() ->  | AE46: =NA() ->  | AF46: =NA() -> 
A47: Office building | B47: 0 | C47: 0 | D47: 0 | E47: 1.6 | F47: 0.6 | G47: 0.2 | H47: 0.1 | I47: 0.2 | J47: 1.43 | K47: 0.19 | L47: 0.47 | M47: 0.34 | N47: 0.19 | O47: 0.29 | P47: 0.52 | Q47: 0.42 | R47: 0.21 | S47: 0.37 | T47: 0.43 | U47: 0.26 | V47: 0.31 | W47: 13.8 | X47: 16 | Y47: 19.4 | Z47: 15.7 | AA47: 1.3 | AB47: 0.6 | AC47: 1 | AD47: 0.15 | AE47: 0.75 | AF47: 0.1
A48: Kindergarten | B48: 0 | C48: 0 | D48: 0 | E48: 1.6 | F48: 0.6 | G48: 0.2 | H48: 0.1 | I48: 0.2 | J48: 0.79 | K48: 0.19 | L48: 0.47 | M48: 0.34 | N48: 0.19 | O48: 0.29 | P48: 0.52 | Q48: 0.42 | R48: 0.21 | S48: 0.37 | T48: 0.43 | U48: 0.26 | V48: 0.31 | W48: 13.8 | X48: 16 | Y48: 19.4 | Z48: 15.7 | AA48: 1.3 | AB48: 0.6 | AC48: 1 | AD48: 0.15 | AE48: 0.75 | AF48: 0.1
A49: School | B49: 0 | C49: 0 | D49: 0 | E49: 1.6 | F49: 0.6 | G49: 0.2 | H49: 0.1 | I49: 0.2 | J49: 0.83 | K49: 0.19 | L49: 0.47 | M49: 0.34 | N49: 0.19 | O49: 0.29 | P49: 0.52 | Q49: 0.42 | R49: 0.21 | S49: 0.37 | T49: 0.43 | U49: 0.26 | V49: 0.31 | W49: 13.8 | X49: 16 | Y49: 19.4 | Z49: 15.7 | AA49: 1.3 | AB49: 0.6 | AC49: 1 | AD49: 0.15 | AE49: 0.75 | AF49: 0.1
A50: University/Collage | B50: 0 | C50: 0 | D50: 0 | E50: 1.6 | F50: 0.6 | G50: 0.2 | H50: 0.1 | I50: 0.2 | J50: 0.83 | K50: 0.19 | L50: 0.47 | M50: 0.34 | N50: 0.19 | O50: 0.29 | P50: 0.52 | Q50: 0.42 | R50: 0.21 | S50: 0.37 | T50: 0.43 | U50: 0.26 | V50: 0.31 | W50: 13.8 | X50: 16 | Y50: 19.4 | Z50: 15.7 | AA50: 1.3 | AB50: 0.6 | AC50: 1 | AD50: 0.15 | AE50: 0.75 | AF50: 0.1
A51: Hospital | B51: 0 | C51: 0 | D51: 0 | E51: 1.6 | F51: 0.6 | G51: 0.2 | H51: 0.1 | I51: 0.2 | J51: 2 | K51: 0.19 | L51: 0.47 | M51: 0.34 | N51: 0.19 | O51: 0.29 | P51: 0.52 | Q51: 0.42 | R51: 0.21 | S51: 0.37 | T51: 0.43 | U51: 0.26 | V51: 0.31 | W51: 13.8 | X51: 16 | Y51: 19.4 | Z51: 15.7 | AA51: 1.3 | AB51: 0.6 | AC51: 1 | AD51: 0.15 | AE51: 0.75 | AF51: 0.1
A52: Nursing home | B52: 0 | C52: 0 | D52: 0 | E52: 1.6 | F52: 0.6 | G52: 0.2 | H52: 0.1 | I52: 0.2 | J52: 2 | K52: 0.19 | L52: 0.47 | M52: 0.34 | N52: 0.19 | O52: 0.29 | P52: 0.52 | Q52: 0.42 | R52: 0.21 | S52: 0.37 | T52: 0.43 | U52: 0.26 | V52: 0.31 | W52: 13.8 | X52: 16 | Y52: 19.4 | Z52: 15.7 | AA52: 1.3 | AB52: 0.6 | AC52: 1 | AD52: 0.15 | AE52: 0.75 | AF52: 0.1
A53: Hotel | B53: 0 | C53: 0 | D53: 0 | E53: 1.6 | F53: 0.6 | G53: 0.2 | H53: 0.1 | I53: 0.2 | J53: 2.45 | K53: 0.19 | L53: 0.47 | M53: 0.34 | N53: 0.19 | O53: 0.29 | P53: 0.52 | Q53: 0.42 | R53: 0.21 | S53: 0.37 | T53: 0.43 | U53: 0.26 | V53: 0.31 | W53: 13.8 | X53: 16 | Y53: 19.4 | Z53: 15.7 | AA53: 1.3 | AB53: 0.6 | AC53: 1 | AD53: 0.15 | AE53: 0.75 | AF53: 0.1
A54: Sports Facility | B54: 0 | C54: 0 | D54: 0 | E54: 1.6 | F54: 0.6 | G54: 0.2 | H54: 0.1 | I54: 0.2 | J54: 0 | K54: 0.19 | L54: 0.47 | M54: 0.34 | N54: 0.19 | O54: 0.29 | P54: 0.52 | Q54: 0.42 | R54: 0.21 | S54: 0.37 | T54: 0.43 | U54: 0.26 | V54: 0.31 | W54: 13.8 | X54: 16 | Y54: 19.4 | Z54: 15.7 | AA54: 1.3 | AB54: 0.6 | AC54: 1 | AD54: 0.15 | AE54: 0.75 | AF54: 0.1
A55: Comercial building | B55: 0 | C55: 0 | D55: 0 | E55: 1.6 | F55: 0.2 | G55: 0.1 | H55: 0.1 | I55: 1 | J55: 1.65 | K55: 0.19 | L55: 0.47 | M55: 0.34 | N55: 0.19 | O55: 0.29 | P55: 0.52 | Q55: 0.42 | R55: 0.21 | S55: 0.37 | T55: 0.43 | U55: 0.26 | V55: 0.31 | W55: 13.8 | X55: 16 | Y55: 19.4 | Z55: 15.7 | AA55: 1.3 | AB55: 0.6 | AC55: 1 | AD55: 0.15 | AE55: 0.75 | AF55: 0.1
A56: Cultural building | B56: 0 | C56: 0 | D56: 0 | E56: 1.6 | F56: 0.6 | G56: 0.2 | H56: 0.1 | I56: 0.2 | J56: 1.65 | K56: 0.19 | L56: 0.47 | M56: 0.34 | N56: 0.19 | O56: 0.29 | P56: 0.52 | Q56: 0.42 | R56: 0.21 | S56: 0.37 | T56: 0.43 | U56: 0.26 | V56: 0.31 | W56: 13.8 | X56: 16 | Y56: 19.4 | Z56: 15.7 | AA56: 1.3 | AB56: 0.6 | AC56: 1 | AD56: 0.15 | AE56: 0.75 | AF56: 0.1
A57: Industry/Workshop | B57: 0 | C57: 0 | D57: 0 | E57: 1.6 | F57: 0.2 | G57: 0.1 | H57: 0.1 | I57: 1 | J57: 0 | K57: 0.19 | L57: 0.47 | M57: 0.34 | N57: 0.19 | O57: 0.29 | P57: 0.52 | Q57: 0.42 | R57: 0.21 | S57: 0.37 | T57: 0.43 | U57: 0.26 | V57: 0.31 | W57: 13.8 | X57: 16 | Y57: 19.4 | Z57: 15.7 | AA57: 1.3 | AB57: 0.6 | AC57: 1 | AD57: 0.15 | AE57: 0.75 | AF57: 0.1
B59: Energy intensity | D59: CO2 emission factors | F59: Share of travels
A60: Means of transport | B60: Fossile [kwh/vkm] | C60: Electric [kWh/vkm] | D60: Fossile [g/vkm] | E60: Electric [g/vkm] | F60: % Electric
A61: Buss | B61: 3.691032407 | C61: 1.28 | D61: 1166.366241 | E61: 157.44 | F61: 0.01
A62: Rail | B62: 14.5 | C62: 2.2 | D62: 4582 | E62: 270.6 | F62: 1
A63: Car | B63: 0.6264861111 | C63: 0.17 | D63: 200.6153802 | E63: 20.91 | F63: 0.06
A64: Truck | B64: 0.7483194444 | C64: 0.6 | D64: 236.4689444 | E64: 73.8 | F64: 0.02
A65: Emission boundary: | B65: Direct emissions and fuel production emissions
A66: Fossil rail method: | B66: Diesel train
A67: Electric rail method in standard values: | B67: Metro (Oslo)

Sheet Transport Input Data (hidden)
A1: Transport Data
A3: BuildingCategory | B3: Trip Generation
B4: Users | G4: Other Users
B5: Work | C5: Service | D5: Private errand | E5: Utside Service | F5: Goods transport
A6: Residential individual housing | B6: 0.8 | C6: 0.1 | D6: 1 | E6: 1.7 | F6: 0.1 | G6: 0
A7: Residential apartment building | B7: 0.8 | C7: 0.1 | D7: 1 | E7: 1.7 | F7: 0.1 | G7: 0
A8: Office building | B8: 1.6 | C8: 0.6 | D8: 0.2 | E8: 0.1 | F8: 0.2 | G8: 1.43
A9: Kindergarten | B9: 1.6 | C9: 0.6 | D9: 0.2 | E9: 0.1 | F9: 0.2 | G9: 0.79
A10: School | B10: 1.6 | C10: 0.6 | D10: 0.2 | E10: 0.1 | F10: 0.2 | G10: 0.83
A11: University/Collage | B11: 1.6 | C11: 0.6 | D11: 0.2 | E11: 0.1 | F11: 0.2 | G11: 0.83
A12: Hospital | B12: 1.6 | C12: 0.6 | D12: 0.2 | E12: 0.1 | F12: 0.2 | G12: 2
A13: Nursing home | B13: 1.6 | C13: 0.6 | D13: 0.2 | E13: 0.1 | F13: 0.2 | G13: 2
A14: Hotel | B14: 1.6 | C14: 0.6 | D14: 0.2 | E14: 0.1 | F14: 0.2 | G14: 2.45
A15: Sports Facility | B15: 1.6 | C15: 0.6 | D15: 0.2 | E15: 0.1 | F15: 0.2 | G15: 0
A16: Comercial building | B16: 1.6 | C16: 0.2 | D16: 0.1 | E16: 0.1 | F16: 1 | G16: 1.65
A17: Cultural building | B17: 1.6 | C17: 0.6 | D17: 0.2 | E17: 0.1 | F17: 0.2 | G17: 1.65
A18: Industry/Workshop | B18: 1.6 | C18: 0.2 | D18: 0.1 | E18: 0.1 | F18: 1 | G18: 0
A20: Traveling Habit data
C21: Travel method distribution | O21: Other Travel Data
C22: Work | F22: Service | I22: Private errand | L22: Other | O22: Average distance | Q22: # passengers | T22: Public Transport | W22: Traveling speeds at road
A23: Oslo | C23: Walk/bike | D23: Public transport | E23: Car | F23: Walk/bike | G23: Public transport | H23: Car | I23: Walk/bike | J23: Public transport | K23: Car | L23: Walk/bike | M23: Public transport | N23: Car | O23: Public Transport | P23: Car | Q23: Public Transport | R23: Rail | S23: Car | T23: % using track | W23: % below 50 km/h | X23: % above 50 km/h
B24: Residential individual housing | C24: 0.19 | D24: 0.47 | E24: 0.34 | F24: 0.19 | G24: 0.29 | H24: 0.52 | I24: 0.42 | J24: 0.21 | K24: 0.37 | L24: 0.43 | M24: 0.26 | N24: 0.31 | O24: 13.8 | P24: 16 | Q24: 19.4 | S24: 1.3 | T24: 0.6 | W24: 0.5 | X24: 0.5
B25: Residential apartment building | C25: =C24 -> 0.19 | D25: =D24 -> 0.47 | E25: 0.34 | F25: 0.19 | G25: 0.29 | H25: 0.52 | I25: 0.42 | J25: 0.21 | K25: 0.37 | L25: 0.43 | M25: 0.26 | N25: 0.31 | O25: =O24 -> 13.8 | P25: 16 | Q25: 19.4 | S25: =S24 -> 1.3 | T25: 0.6 | W25: =W24 -> 0.5 | X25: 0.5
B26: Office building | C26: 0.19 | D26: 0.47 | E26: 0.34 | F26: 0.19 | G26: 0.29 | H26: 0.52 | I26: 0.42 | J26: 0.21 | K26: 0.37 | L26: 0.43 | M26: 0.26 | N26: 0.31 | O26: =O25 -> 13.8 | P26: 16 | Q26: 19.4 | S26: =S25 -> 1.3 | T26: 0.6 | W26: =W25 -> 0.5 | X26: 0.5
B27: Kindergarten | C27: =C26 -> 0.19 | D27: =D26 -> 0.47 | E27: 0.34 | F27: 0.19 | G27: 0.29 | H27: 0.52 | I27: 0.42 | J27: 0.21 | K27: 0.37 | L27: 0.43 | M27: 0.26 | N27: 0.31 | O27: =O26 -> 13.8 | P27: 16 | Q27: 19.4 | S27: =S26 -> 1.3 | T27: 0.6 | W27: =W26 -> 0.5 | X27: 0.5
B28: School | C28: =C27 -> 0.19 | D28: =D27 -> 0.47 | E28: =E27 -> 0.34 | F28: =F27 -> 0.19 | G28: =G27 -> 0.29 | H28: =H27 -> 0.52 | I28: =I27 -> 0.42 | J28: =J27 -> 0.21 | K28: =K27 -> 0.37 | L28: =L27 -> 0.43 | M28: =M27 -> 0.26 | N28: =N27 -> 0.31 | O28: =O27 -> 13.8 | P28: 16 | Q28: 19.4 | S28: =S27 -> 1.3 | T28: 0.6 | W28: =W27 -> 0.5 | X28: 0.5
B29: University/Collage | C29: 0.19 | D29: 0.47 | E29: 0.34 | F29: 0.19 | G29: 0.29 | H29: 0.52 | I29: 0.42 | J29: 0.21 | K29: 0.37 | L29: 0.43 | M29: 0.26 | N29: 0.31 | O29: =O28 -> 13.8 | P29: 16 | Q29: 19.4 | S29: =S28 -> 1.3 | T29: 0.6 | W29: =W28 -> 0.5 | X29: 0.5
B30: Hospital | C30: 0.19 | D30: 0.47 | E30: 0.34 | F30: 0.19 | G30: 0.29 | H30: 0.52 | I30: 0.42 | J30: 0.21 | K30: 0.37 | L30: 0.43 | M30: 0.26 | N30: 0.31 | O30: =O29 -> 13.8 | P30: 16 | Q30: 19.4 | S30: =S29 -> 1.3 | T30: 0.6 | W30: =W29 -> 0.5 | X30: 0.5
B31: Nursing home | C31: 0.19 | D31: 0.47 | E31: 0.34 | F31: 0.19 | G31: 0.29 | H31: 0.52 | I31: 0.42 | J31: 0.21 | K31: 0.37 | L31: 0.43 | M31: 0.26 | N31: 0.31 | O31: =O30 -> 13.8 | P31: 16 | Q31: 19.4 | S31: =S30 -> 1.3 | T31: 0.6 | W31: =W30 -> 0.5 | X31: 0.5
B32: Hotel | C32: 0.19 | D32: 0.47 | E32: 0.34 | F32: 0.19 | G32: 0.29 | H32: 0.52 | I32: 0.42 | J32: 0.21 | K32: 0.37 | L32: 0.43 | M32: 0.26 | N32: 0.31 | O32: =O31 -> 13.8 | P32: 16 | Q32: 19.4 | S32: =S31 -> 1.3 | T32: 0.6 | W32: =W31 -> 0.5 | X32: 0.5
B33: Sports Facility | C33: 0.19 | D33: 0.47 | E33: 0.34 | F33: 0.19 | G33: 0.29 | H33: 0.52 | I33: 0.42 | J33: 0.21 | K33: 0.37 | L33: 0.43 | M33: 0.26 | N33: 0.31 | O33: =O32 -> 13.8 | P33: 16 | Q33: 19.4 | S33: =S32 -> 1.3 | T33: 0.6 | W33: =W32 -> 0.5 | X33: 0.5
B34: Comercial building | C34: 0.19 | D34: 0.47 | E34: 0.34 | F34: 0.19 | G34: 0.29 | H34: 0.52 | I34: 0.42 | J34: 0.21 | K34: 0.37 | L34: 0.43 | M34: 0.26 | N34: 0.31 | O34: =O33 -> 13.8 | P34: 16 | Q34: 19.4 | S34: =S33 -> 1.3 | T34: 0.6 | W34: =W33 -> 0.5 | X34: 0.5
B35: Cultural building | C35: =C34 -> 0.19 | D35: =D34 -> 0.47 | E35: 0.34 | F35: 0.19 | G35: 0.29 | H35: 0.52 | I35: 0.42 | J35: 0.21 | K35: 0.37 | L35: 0.43 | M35: 0.26 | N35: 0.31 | O35: =O34 -> 13.8 | P35: 16 | Q35: 19.4 | S35: =S34 -> 1.3 | T35: 0.6 | W35: =W34 -> 0.5 | X35: 0.5
B36: Industry/Workshop | C36: =C33 -> 0.19 | D36: =D33 -> 0.47 | E36: 0.34 | F36: 0.19 | G36: 0.29 | H36: 0.52 | I36: 0.42 | J36: 0.21 | K36: 0.37 | L36: 0.43 | M36: 0.26 | N36: 0.31 | O36: =O35 -> 13.8 | P36: 16 | Q36: 19.4 | S36: =S35 -> 1.3 | T36: 0.6 | W36: =W35 -> 0.5 | X36: 0.5
A38: Oslo, Groruddalen | C38: Walk/bike | D38: Public transport | E38: Car | F38: Walk/bike | G38: Public transport | H38: Car | I38: Walk/bike | J38: Public transport | K38: Car | L38: Walk/bike | M38: Public transport | N38: Car | O38: Public Transport | P38: Car | Q38: Public Transport | S38: Car | T38: % using track | W38: % below 50 km/h | X38: % above 50 km/h
B39: Residential individual housing | C39: 0.11 | D39: 0.5 | E39: 0.39 | F39: 0.08 | G39: 0.23 | H39: 0.69 | I39: 0.33 | J39: 0.22 | K39: 0.45 | L39: 0.39 | M39: 0.28 | N39: 0.33 | O39: 13.8 | P39: 16 | Q39: 19.4 | S39: 1.3 | T39: 0.6 | W39: 0.5 | X39: 0.5
B40: Residential apartment building | C40: =C39 -> 0.11 | D40: =D39 -> 0.5 | E40: =E39 -> 0.39 | F40: =F39 -> 0.08 | G40: =G39 -> 0.23 | H40: =H39 -> 0.69 | I40: =I39 -> 0.33 | J40: =J39 -> 0.22 | K40: =K39 -> 0.45 | L40: =L39 -> 0.39 | M40: =M39 -> 0.28 | N40: =N39 -> 0.33 | O40: =O39 -> 13.8 | P40: 16 | Q40: 19.4 | S40: =S39 -> 1.3 | T40: 0.6 | W40: =W39 -> 0.5 | X40: 0.5
B41: Office building | C41: 0.09 | D41: 0.3 | E41: 0.61 | F41: 0.08 | G41: 0.23 | H41: 0.69 | I41: 0.33 | J41: 0.22 | K41: 0.45 | L41: 0.39 | M41: 0.28 | N41: 0.33 | O41: =O40 -> 13.8 | P41: 16 | Q41: 19.4 | S41: =S40 -> 1.3 | T41: 0.6 | W41: =W40 -> 0.5 | X41: 0.5
B42: Kindergarten | C42: =C41 -> 0.09 | D42: =D41 -> 0.3 | E42: =E41 -> 0.61 | F42: =F41 -> 0.08 | G42: =G41 -> 0.23 | H42: =H41 -> 0.69 | I42: =I41 -> 0.33 | J42: =J41 -> 0.22 | K42: =K41 -> 0.45 | L42: =L41 -> 0.39 | M42: =M41 -> 0.28 | N42: =N41 -> 0.33 | O42: =O41 -> 13.8 | P42: 16 | Q42: 19.4 | S42: =S41 -> 1.3 | T42: 0.6 | W42: =W41 -> 0.5 | X42: 0.5
B43: School | C43: =C42 -> 0.09 | D43: 0.3 | E43: 0.61 | F43: 0.08 | G43: 0.23 | H43: 0.69 | I43: 0.33 | J43: 0.22 | K43: 0.45 | L43: 0.39 | M43: 0.28 | N43: 0.33 | O43: =O42 -> 13.8 | P43: 16 | Q43: 19.4 | S43: =S42 -> 1.3 | T43: 0.6 | W43: =W42 -> 0.5 | X43: 0.5
B44: University/Collage | C44: 0.09 | D44: 0.3 | E44: 0.61 | F44: 0.08 | G44: 0.23 | H44: 0.69 | I44: 0.33 | J44: 0.22 | K44: 0.45 | L44: 0.39 | M44: 0.28 | N44: 0.33 | O44: =O43 -> 13.8 | P44: 16 | Q44: 19.4 | S44: =S43 -> 1.3 | T44: 0.6 | W44: =W43 -> 0.5 | X44: 0.5
B45: Hospital | C45: 0.09 | D45: 0.3 | E45: 0.61 | F45: 0.08 | G45: 0.23 | H45: 0.69 | I45: 0.33 | J45: 0.22 | K45: 0.45 | L45: 0.39 | M45: 0.28 | N45: 0.33 | O45: =O44 -> 13.8 | P45: 16 | Q45: 19.4 | S45: =S44 -> 1.3 | T45: 0.6 | W45: =W44 -> 0.5 | X45: 0.5
B46: Nursing home | C46: 0.09 | D46: 0.3 | E46: 0.61 | F46: 0.08 | G46: 0.23 | H46: 0.69 | I46: 0.33 | J46: 0.22 | K46: 0.45 | L46: 0.39 | M46: 0.28 | N46: 0.33 | O46: =O45 -> 13.8 | P46: 16 | Q46: 19.4 | S46: =S45 -> 1.3 | T46: 0.6 | W46: =W45 -> 0.5 | X46: 0.5
B47: Hotel | C47: 0.09 | D47: 0.3 | E47: 0.61 | F47: 0.08 | G47: 0.23 | H47: 0.69 | I47: 0.33 | J47: 0.22 | K47: 0.45 | L47: 0.39 | M47: 0.28 | N47: 0.33 | O47: =O46 -> 13.8 | P47: 16 | Q47: 19.4 | S47: =S46 -> 1.3 | T47: 0.6 | W47: =W46 -> 0.5 | X47: 0.5
B48: Sports Facility | C48: 0.09 | D48: 0.3 | E48: 0.61 | F48: 0.08 | G48: 0.23 | H48: 0.69 | I48: 0.33 | J48: 0.22 | K48: 0.45 | L48: 0.39 | M48: 0.28 | N48: 0.33 | O48: =O47 -> 13.8 | P48: 16 | Q48: 19.4 | S48: =S47 -> 1.3 | T48: 0.6 | W48: =W47 -> 0.5 | X48: 0.5
B49: Comercial building | C49: =C39 -> 0.11 | D49: =D39 -> 0.5 | E49: 0.39 | F49: 0.08 | G49: 0.23 | H49: 0.69 | I49: 0.33 | J49: 0.22 | K49: 0.45 | L49: 0.39 | M49: 0.28 | N49: 0.33 | O49: =O48 -> 13.8 | P49: 16 | Q49: 19.4 | S49: =S48 -> 1.3 | T49: 0.6 | W49: =W48 -> 0.5 | X49: 0.5
B50: Cultural building | C50: =C49 -> 0.11 | D50: =D49 -> 0.5 | E50: =E49 -> 0.39 | F50: =F49 -> 0.08 | G50: =G49 -> 0.23 | H50: =H49 -> 0.69 | I50: =I49 -> 0.33 | J50: =J49 -> 0.22 | K50: =K49 -> 0.45 | L50: =L49 -> 0.39 | M50: =M49 -> 0.28 | N50: =N49 -> 0.33 | O50: =O49 -> 13.8 | P50: 16 | Q50: 19.4 | S50: =S49 -> 1.3 | T50: 0.6 | W50: =W49 -> 0.5 | X50: 0.5
B51: Industry/Workshop | C51: =C48 -> 0.09 | D51: =D48 -> 0.3 | E51: 0.61 | F51: 0.08 | G51: 0.23 | H51: 0.69 | I51: 0.33 | J51: 0.22 | K51: 0.45 | L51: 0.39 | M51: 0.28 | N51: 0.33 | O51: =O50 -> 13.8 | P51: 16 | Q51: 19.4 | S51: =S50 -> 1.3 | T51: 0.6 | W51: =W50 -> 0.5 | X51: 0.5
A53: Oslo, Groruddalen knutepunkt | C53: Walk/bike | D53: Public transport | E53: Car | F53: Walk/bike | G53: Public transport | H53: Car | I53: Walk/bike | J53: Public transport | K53: Car | L53: Walk/bike | M53: Public transport | N53: Car | O53: Public Transport | P53: Car | Q53: Public Transport | S53: Car | T53: % using track | W53: % below 50 km/h | X53: % above 50 km/h
B54: Residential individual housing | C54: 0.2 | D54: 0.5 | E54: 0.3 | F54: 0.17 | G54: 0.28 | H54: 0.55 | I54: 0.46 | J54: 0.22 | K54: 0.32 | L54: 0.44 | M54: 0.28 | N54: 0.28 | O54: 13.8 | P54: 16 | Q54: 19.4 | S54: 1.3 | T54: 0.6 | W54: 0.5 | X54: 0.5
B55: Residential apartment building | C55: =C54 -> 0.2 | D55: =D54 -> 0.5 | E55: =E54 -> 0.3 | F55: =F54 -> 0.17 | G55: =G54 -> 0.28 | H55: =H54 -> 0.55 | I55: =I54 -> 0.46 | J55: =J54 -> 0.22 | K55: =K54 -> 0.32 | L55: =L54 -> 0.44 | M55: =M54 -> 0.28 | N55: =N54 -> 0.28 | O55: =O54 -> 13.8 | P55: 16 | Q55: 19.4 | S55: =S54 -> 1.3 | T55: 0.6 | W55: =W54 -> 0.5 | X55: 0.5
B56: Office building | C56: 0.15 | D56: 0.37 | E56: 0.48 | F56: 0.17 | G56: 0.28 | H56: 0.55 | I56: 0.46 | J56: 0.22 | K56: 0.32 | L56: 0.43 | M56: 0.25 | N56: 0.32 | O56: =O55 -> 13.8 | P56: 16 | Q56: 19.4 | S56: =S55 -> 1.3 | T56: 0.6 | W56: =W55 -> 0.5 | X56: 0.5
B57: Kindergarten | C57: =C56 -> 0.15 | D57: =D56 -> 0.37 | E57: =E56 -> 0.48 | F57: =F56 -> 0.17 | G57: =G56 -> 0.28 | H57: =H56 -> 0.55 | I57: =I56 -> 0.46 | J57: =J56 -> 0.22 | K57: =K56 -> 0.32 | L57: =L56 -> 0.43 | M57: =M56 -> 0.25 | N57: =N56 -> 0.32 | O57: =O56 -> 13.8 | P57: 16 | Q57: 19.4 | S57: =S56 -> 1.3 | T57: 0.6 | W57: =W56 -> 0.5 | X57: 0.5
B58: School | C58: =C57 -> 0.15 | D58: 0.37 | E58: 0.48 | F58: 0.17 | G58: 0.28 | H58: 0.55 | I58: 0.46 | J58: 0.22 | K58: 0.32 | L58: 0.43 | M58: 0.25 | N58: 0.32 | O58: =O57 -> 13.8 | P58: 16 | Q58: 19.4 | S58: =S57 -> 1.3 | T58: 0.6 | W58: =W57 -> 0.5 | X58: 0.5
B59: University/Collage | C59: 0.15 | D59: 0.37 | E59: 0.48 | F59: 0.17 | G59: 0.28 | H59: 0.55 | I59: 0.46 | J59: 0.22 | K59: 0.32 | L59: 0.43 | M59: 0.25 | N59: 0.32 | O59: =O58 -> 13.8 | P59: 16 | Q59: 19.4 | S59: =S58 -> 1.3 | T59: 0.6 | W59: =W58 -> 0.5 | X59: 0.5
B60: Hospital | C60: 0.15 | D60: 0.37 | E60: 0.48 | F60: 0.17 | G60: 0.28 | H60: 0.55 | I60: 0.46 | J60: 0.22 | K60: 0.32 | L60: 0.43 | M60: 0.25 | N60: 0.32 | O60: =O59 -> 13.8 | P60: 16 | Q60: 19.4 | S60: =S59 -> 1.3 | T60: 0.6 | W60: =W59 -> 0.5 | X60: 0.5
B61: Nursing home | C61: 0.15 | D61: 0.37 | E61: 0.48 | F61: 0.17 | G61: 0.28 | H61: 0.55 | I61: 0.46 | J61: 0.22 | K61: 0.32 | L61: 0.43 | M61: 0.25 | N61: 0.32 | O61: =O60 -> 13.8 | P61: 16 | Q61: 19.4 | S61: =S60 -> 1.3 | T61: 0.6 | W61: =W60 -> 0.5 | X61: 0.5
B62: Hotel | C62: 0.15 | D62: 0.37 | E62: 0.48 | F62: 0.17 | G62: 0.28 | H62: 0.55 | I62: 0.46 | J62: 0.22 | K62: 0.32 | L62: 0.43 | M62: 0.25 | N62: 0.32 | O62: =O61 -> 13.8 | P62: 16 | Q62: 19.4 | S62: =S61 -> 1.3 | T62: 0.6 | W62: =W61 -> 0.5 | X62: 0.5
B63: Sports Facility | C63: 0.15 | D63: 0.37 | E63: 0.48 | F63: 0.17 | G63: 0.28 | H63: 0.55 | I63: 0.46 | J63: 0.22 | K63: 0.32 | L63: 0.43 | M63: 0.25 | N63: 0.32 | O63: =O62 -> 13.8 | P63: 16 | Q63: 19.4 | S63: =S62 -> 1.3 | T63: 0.6 | W63: =W62 -> 0.5 | X63: 0.5
B64: Comercial building | C64: =C54 -> 0.2 | D64: =D54 -> 0.5 | E64: 0.3 | F64: 0.17 | G64: 0.28 | H64: 0.55 | I64: 0.46 | J64: 0.22 | K64: 0.32 | L64: 0.44 | M64: 0.28 | N64: 0.28 | O64: =O63 -> 13.8 | P64: 16 | Q64: 19.4 | S64: =S63 -> 1.3 | T64: 0.6 | W64: =W63 -> 0.5 | X64: 0.5
B65: Cultural building | C65: =C64 -> 0.2 | D65: =D64 -> 0.5 | E65: =E64 -> 0.3 | F65: =F64 -> 0.17 | G65: =G64 -> 0.28 | H65: =H64 -> 0.55 | I65: =I64 -> 0.46 | J65: =J64 -> 0.22 | K65: =K64 -> 0.32 | L65: =L64 -> 0.44 | M65: =M64 -> 0.28 | N65: =N64 -> 0.28 | O65: =O64 -> 13.8 | P65: 16 | Q65: 19.4 | S65: =S64 -> 1.3 | T65: 0.6 | W65: =W64 -> 0.5 | X65: 0.5
B66: Industry/Workshop | C66: =C63 -> 0.15 | D66: =D63 -> 0.37 | E66: 0.48 | F66: 0.17 | G66: 0.28 | H66: 0.55 | I66: 0.46 | J66: 0.22 | K66: 0.32 | L66: 0.43 | M66: 0.25 | N66: 0.32 | O66: =O65 -> 13.8 | P66: 16 | Q66: 19.4 | S66: =S65 -> 1.3 | T66: 0.6 | W66: =W65 -> 0.5 | X66: 0.5
A68: Bergen Kommune | C68: Walk/bike | D68: Public transport | E68: Car | F68: Walk/bike | G68: Public transport | H68: Car | I68: Walk/bike | J68: Public transport | K68: Car | L68: Walk/bike | M68: Public transport | N68: Car | O68: Public Transport | P68: Car | Q68: Public Transport | S68: Car | T68: % using track | W68: % below 50 km/h | X68: % above 50 km/h
B69: Residential individual housing | C69: 0.27 | D69: 0.25 | E69: 0.48 | F69: 0.09 | G69: 0.12 | H69: 0.79 | I69: 0.41 | J69: 0.11 | K69: 0.48 | L69: 0.32 | M69: 0.1 | N69: 0.58 | O69: 12.3 | P69: 12.9 | Q69: 15 | S69: 1.3 | T69: 0.2 | W69: 0.6 | X69: 0.4
B70: Residential apartment building | C70: =C69 -> 0.27 | D70: =D69 -> 0.25 | E70: 0.48 | F70: 0.09 | G70: 0.12 | H70: 0.79 | I70: 0.41 | J70: 0.11 | K70: 0.48 | L70: 0.32 | M70: 0.1 | N70: 0.58 | O70: =O69 -> 12.3 | P70: 12.9 | Q70: 15 | S70: =S69 -> 1.3 | T70: 0.2 | W70: =W69 -> 0.6 | X70: 0.4
B71: Office building | C71: =C70 -> 0.27 | D71: =D70 -> 0.25 | E71: 0.48 | F71: 0.09 | G71: 0.12 | H71: 0.79 | I71: 0.41 | J71: 0.11 | K71: 0.48 | L71: 0.32 | M71: 0.1 | N71: 0.58 | O71: 12.3 | P71: 12.9 | Q71: 15 | S71: =S70 -> 1.3 | T71: 0.2 | W71: =W70 -> 0.6 | X71: 0.4
B72: Kindergarten | C72: =C71 -> 0.27 | D72: =D71 -> 0.25 | E72: 0.48 | F72: 0.09 | G72: 0.12 | H72: 0.79 | I72: 0.41 | J72: 0.11 | K72: 0.48 | L72: 0.32 | M72: 0.1 | N72: 0.58 | O72: =O71 -> 12.3 | P72: 12.9 | Q72: 15 | S72: =S71 -> 1.3 | T72: 0.2 | W72: =W71 -> 0.6 | X72: 0.4
B73: School | C73: =C72 -> 0.27 | D73: 0.25 | E73: 0.48 | F73: 0.09 | G73: 0.12 | H73: 0.79 | I73: 0.41 | J73: 0.11 | K73: 0.48 | L73: 0.32 | M73: 0.1 | N73: 0.58 | O73: =O72 -> 12.3 | P73: 12.9 | Q73: 15 | S73: =S72 -> 1.3 | T73: 0.2 | W73: =W72 -> 0.6 | X73: 0.4
B74: University/Collage | C74: 0.27 | D74: 0.25 | E74: 0.48 | F74: 0.09 | G74: 0.12 | H74: 0.79 | I74: 0.41 | J74: 0.11 | K74: 0.48 | L74: 0.32 | M74: 0.1 | N74: 0.58 | O74: =O73 -> 12.3 | P74: 12.9 | Q74: 15 | S74: =S73 -> 1.3 | T74: 0.2 | W74: =W73 -> 0.6 | X74: 0.4
B75: Hospital | C75: 0.27 | D75: 0.25 | E75: 0.48 | F75: 0.09 | G75: 0.12 | H75: 0.79 | I75: 0.41 | J75: 0.11 | K75: 0.48 | L75: 0.32 | M75: 0.1 | N75: 0.58 | O75: =O74 -> 12.3 | P75: 12.9 | Q75: 15 | S75: =S74 -> 1.3 | T75: 0.2 | W75: =W74 -> 0.6 | X75: 0.4
B76: Nursing home | C76: 0.27 | D76: 0.25 | E76: 0.48 | F76: 0.09 | G76: 0.12 | H76: 0.79 | I76: 0.41 | J76: 0.11 | K76: 0.48 | L76: 0.32 | M76: 0.1 | N76: 0.58 | O76: =O75 -> 12.3 | P76: 12.9 | Q76: 15 | S76: =S75 -> 1.3 | T76: 0.2 | W76: =W75 -> 0.6 | X76: 0.4
B77: Hotel | C77: 0.27 | D77: 0.25 | E77: 0.48 | F77: 0.09 | G77: 0.12 | H77: 0.79 | I77: 0.41 | J77: 0.11 | K77: 0.48 | L77: 0.32 | M77: 0.1 | N77: 0.58 | O77: =O76 -> 12.3 | P77: 12.9 | Q77: 15 | S77: =S76 -> 1.3 | T77: 0.2 | W77: =W76 -> 0.6 | X77: 0.4
B78: Sports Facility | C78: 0.27 | D78: 0.25 | E78: 0.48 | F78: 0.09 | G78: 0.12 | H78: 0.79 | I78: 0.41 | J78: 0.11 | K78: 0.48 | L78: 0.32 | M78: 0.1 | N78: 0.58 | O78: =O77 -> 12.3 | P78: 12.9 | Q78: 15 | S78: =S77 -> 1.3 | T78: 0.2 | W78: =W77 -> 0.6 | X78: 0.4
B79: Comercial building | C79: =C69 -> 0.27 | D79: =D69 -> 0.25 | E79: 0.48 | F79: 0.09 | G79: 0.12 | H79: 0.79 | I79: 0.41 | J79: 0.11 | K79: 0.48 | L79: 0.32 | M79: 0.1 | N79: 0.58 | O79: =O78 -> 12.3 | P79: 12.9 | Q79: 15 | S79: =S78 -> 1.3 | T79: 0.2 | W79: =W78 -> 0.6 | X79: 0.4
B80: Cultural building | C80: =C79 -> 0.27 | D80: =D79 -> 0.25 | E80: 0.48 | F80: 0.09 | G80: 0.12 | H80: 0.79 | I80: 0.41 | J80: 0.11 | K80: 0.48 | L80: 0.32 | M80: 0.1 | N80: 0.58 | O80: =O79 -> 12.3 | P80: 12.9 | Q80: 15 | S80: =S79 -> 1.3 | T80: 0.2 | W80: =W79 -> 0.6 | X80: 0.4
B81: Industry/Workshop | C81: =C78 -> 0.27 | D81: =D78 -> 0.25 | E81: 0.48 | F81: 0.09 | G81: 0.12 | H81: 0.79 | I81: 0.41 | J81: 0.11 | K81: 0.48 | L81: 0.32 | M81: 0.1 | N81: 0.58 | O81: =O80 -> 12.3 | P81: 12.9 | Q81: 15 | S81: =S80 -> 1.3 | T81: 0.2 | W81: =W80 -> 0.6 | X81: 0.4
A83: Bergen Sentrum | C83: Walk/bike | D83: Public transport | E83: Car | F83: Walk/bike | G83: Public transport | H83: Car | I83: Walk/bike | J83: Public transport | K83: Car | L83: Walk/bike | M83: Public transport | N83: Car | O83: Public Transport | P83: Car | Q83: Public Transport | S83: Car | T83: % using track | W83: % below 50 km/h | X83: % above 50 km/h
B84: Residential individual housing | C84: 0.4 | D84: 0.21 | E84: 0.39 | F84: 0.09 | G84: 0.12 | H84: 0.79 | I84: 0.51 | J84: 0.09 | K84: 0.4 | L84: 0.32 | M84: 0.1 | N84: 0.58 | O84: 12.3 | P84: 12.3 | Q84: 15 | S84: 1.3 | T84: 0.2 | W84: 0.6 | X84: 0.4
B85: Residential apartment building | C85: =C84 -> 0.4 | D85: =D84 -> 0.21 | E85: 0.39 | F85: 0.09 | G85: 0.12 | H85: 0.79 | I85: 0.51 | J85: 0.09 | K85: 0.4 | L85: 0.32 | M85: 0.1 | N85: 0.58 | O85: =O84 -> 12.3 | P85: 12.3 | Q85: 15 | S85: =S84 -> 1.3 | T85: 0.2 | W85: =W84 -> 0.6 | X85: 0.4
B86: Office building | C86: 0.28 | D86: 0.28 | E86: 0.79 | F86: 0.09 | G86: 0.12 | H86: 0.79 | I86: 0.51 | J86: 0.09 | K86: 0.4 | L86: 0.32 | M86: 0.1 | N86: 0.58 | O86: =O85 -> 12.3 | P86: 12.3 | Q86: 15 | S86: =S85 -> 1.3 | T86: 0.2 | W86: =W85 -> 0.6 | X86: 0.4
B87: Kindergarten | C87: =C86 -> 0.28 | D87: =D86 -> 0.28 | E87: 0.79 | F87: 0.09 | G87: 0.12 | H87: 0.79 | I87: 0.51 | J87: 0.09 | K87: 0.4 | L87: 0.32 | M87: 0.1 | N87: 0.58 | O87: =O86 -> 12.3 | P87: 12.3 | Q87: 15 | S87: =S86 -> 1.3 | T87: 0.2 | W87: =W86 -> 0.6 | X87: 0.4
B88: School | C88: =C87 -> 0.28 | D88: 0.28 | E88: 0.79 | F88: 0.09 | G88: 0.12 | H88: 0.79 | I88: 0.51 | J88: 0.09 | K88: 0.4 | L88: 0.32 | M88: 0.1 | N88: 0.58 | O88: =O87 -> 12.3 | P88: 12.3 | Q88: 15 | S88: =S87 -> 1.3 | T88: 0.2 | W88: =W87 -> 0.6 | X88: 0.4
B89: University/Collage | C89: 0.28 | D89: 0.28 | E89: 0.79 | F89: 0.09 | G89: 0.12 | H89: 0.79 | I89: 0.51 | J89: 0.09 | K89: 0.4 | L89: 0.32 | M89: 0.1 | N89: 0.58 | O89: =O88 -> 12.3 | P89: 12.3 | Q89: 15 | S89: =S88 -> 1.3 | T89: 0.2 | W89: =W88 -> 0.6 | X89: 0.4
B90: Hospital | C90: 0.28 | D90: 0.28 | E90: 0.79 | F90: 0.09 | G90: 0.12 | H90: 0.79 | I90: 0.51 | J90: 0.09 | K90: 0.4 | L90: 0.32 | M90: 0.1 | N90: 0.58 | O90: =O89 -> 12.3 | P90: 12.3 | Q90: 15 | S90: =S89 -> 1.3 | T90: 0.2 | W90: =W89 -> 0.6 | X90: 0.4
B91: Nursing home | C91: 0.28 | D91: 0.28 | E91: 0.79 | F91: 0.09 | G91: 0.12 | H91: 0.79 | I91: 0.51 | J91: 0.09 | K91: 0.4 | L91: 0.32 | M91: 0.1 | N91: 0.58 | O91: =O90 -> 12.3 | P91: 12.3 | Q91: 15 | S91: =S90 -> 1.3 | T91: 0.2 | W91: =W90 -> 0.6 | X91: 0.4
B92: Hotel | C92: 0.28 | D92: 0.28 | E92: 0.79 | F92: 0.09 | G92: 0.12 | H92: 0.79 | I92: 0.51 | J92: 0.09 | K92: 0.4 | L92: 0.32 | M92: 0.1 | N92: 0.58 | O92: =O91 -> 12.3 | P92: 12.3 | Q92: 15 | S92: =S91 -> 1.3 | T92: 0.2 | W92: =W91 -> 0.6 | X92: 0.4
B93: Sports Facility | C93: 0.28 | D93: 0.28 | E93: 0.79 | F93: 0.09 | G93: 0.12 | H93: 0.79 | I93: 0.51 | J93: 0.09 | K93: 0.4 | L93: 0.32 | M93: 0.1 | N93: 0.58 | O93: =O92 -> 12.3 | P93: 12.3 | Q93: 15 | S93: =S92 -> 1.3 | T93: 0.2 | W93: =W92 -> 0.6 | X93: 0.4
B94: Comercial building | C94: =C84 -> 0.4 | D94: =D84 -> 0.21 | E94: 0.39 | F94: 0.09 | G94: 0.12 | H94: 0.79 | I94: 0.51 | J94: 0.09 | K94: 0.4 | L94: 0.32 | M94: 0.1 | N94: 0.58 | O94: =O93 -> 12.3 | P94: 12.3 | Q94: 15 | S94: =S93 -> 1.3 | T94: 0.2 | W94: =W93 -> 0.6 | X94: 0.4
B95: Cultural building | C95: =C94 -> 0.4 | D95: =D94 -> 0.21 | E95: 0.39 | F95: 0.09 | G95: 0.12 | H95: 0.79 | I95: 0.51 | J95: 0.09 | K95: 0.4 | L95: 0.32 | M95: 0.1 | N95: 0.58 | O95: =O94 -> 12.3 | P95: 12.3 | Q95: 15 | S95: =S94 -> 1.3 | T95: 0.2 | W95: =W94 -> 0.6 | X95: 0.4
B96: Industry/Workshop | C96: =C93 -> 0.28 | D96: =D93 -> 0.28 | E96: 0.79 | F96: 0.09 | G96: 0.12 | H96: 0.79 | I96: 0.51 | J96: 0.09 | K96: 0.4 | L96: 0.32 | M96: 0.1 | N96: 0.58 | O96: =O95 -> 12.3 | P96: 12.3 | Q96: 15 | S96: =S95 -> 1.3 | T96: 0.2 | W96: =W95 -> 0.6 | X96: 0.4
A98: Bergen Kommune, utenfor sentrum | C98: Walk/bike | D98: Public transport | E98: Car | F98: Walk/bike | G98: Public transport | H98: Car | I98: Walk/bike | J98: Public transport | K98: Car | L98: Walk/bike | M98: Public transport | N98: Car | O98: Public Transport | P98: Car | Q98: Public Transport | S98: Car | T98: % using track | W98: % below 50 km/h | X98: % above 50 km/h
B99: Residential individual housing | C99: 0.12 | D99: 0.16 | E99: 0.72 | F99: 0.09 | G99: 0.12 | H99: 0.79 | I99: 0.17 | J99: 0.07 | K99: 0.76 | L99: 0.32 | M99: 0.1 | N99: 0.58 | O99: 12.3 | P99: 12.3 | Q99: 15 | S99: 1.3 | T99: 0.2 | W99: 0.6 | X99: 0.4
B100: Residential apartment building | C100: =C99 -> 0.12 | D100: =D99 -> 0.16 | E100: 0.72 | F100: 0.09 | G100: 0.12 | H100: 0.79 | I100: 0.17 | J100: 0.07 | K100: 0.76 | L100: 0.32 | M100: 0.1 | N100: 0.58 | O100: =O99 -> 12.3 | P100: 12.3 | Q100: 15 | S100: =S99 -> 1.3 | T100: 0.2 | W100: =W99 -> 0.6 | X100: 0.4
B101: Office building | C101: =C100 -> 0.12 | D101: =D100 -> 0.16 | E101: 0.72 | F101: 0.09 | G101: 0.12 | H101: 0.79 | I101: 0.17 | J101: 0.07 | K101: 0.76 | L101: 0.32 | M101: 0.1 | N101: 0.58 | O101: 12.3 | P101: 12.3 | Q101: 15 | S101: =S100 -> 1.3 | T101: 0.2 | W101: =W100 -> 0.6 | X101: 0.4
B102: Kindergarten | C102: =C101 -> 0.12 | D102: =D101 -> 0.16 | E102: 0.72 | F102: 0.09 | G102: 0.12 | H102: 0.79 | I102: 0.17 | J102: 0.07 | K102: 0.76 | L102: 0.32 | M102: 0.1 | N102: 0.58 | O102: =O101 -> 12.3 | P102: 12.3 | Q102: 15 | S102: =S101 -> 1.3 | T102: 0.2 | W102: =W101 -> 0.6 | X102: 0.4
B103: School | C103: =C102 -> 0.12 | D103: 0.16 | E103: 0.72 | F103: 0.09 | G103: 0.12 | H103: 0.79 | I103: 0.17 | J103: 0.07 | K103: 0.76 | L103: 0.32 | M103: 0.1 | N103: 0.58 | O103: =O102 -> 12.3 | P103: 12.3 | Q103: 15 | S103: =S102 -> 1.3 | T103: 0.2 | W103: =W102 -> 0.6 | X103: 0.4
B104: University/Collage | C104: 0.12 | D104: 0.16 | E104: 0.72 | F104: 0.09 | G104: 0.12 | H104: 0.79 | I104: 0.17 | J104: 0.07 | K104: 0.76 | L104: 0.32 | M104: 0.1 | N104: 0.58 | O104: =O103 -> 12.3 | P104: 12.3 | Q104: 15 | S104: =S103 -> 1.3 | T104: 0.2 | W104: =W103 -> 0.6 | X104: 0.4
B105: Hospital | C105: 0.12 | D105: 0.16 | E105: 0.72 | F105: 0.09 | G105: 0.12 | H105: 0.79 | I105: 0.17 | J105: 0.07 | K105: 0.76 | L105: 0.32 | M105: 0.1 | N105: 0.58 | O105: =O104 -> 12.3 | P105: 12.3 | Q105: 15 | S105: =S104 -> 1.3 | T105: 0.2 | W105: =W104 -> 0.6 | X105: 0.4
B106: Nursing home | C106: 0.12 | D106: 0.16 | E106: 0.72 | F106: 0.09 | G106: 0.12 | H106: 0.79 | I106: 0.17 | J106: 0.07 | K106: 0.76 | L106: 0.32 | M106: 0.1 | N106: 0.58 | O106: =O105 -> 12.3 | P106: 12.3 | Q106: 15 | S106: =S105 -> 1.3 | T106: 0.2 | W106: =W105 -> 0.6 | X106: 0.4
B107: Hotel | C107: 0.12 | D107: 0.16 | E107: 0.72 | F107: 0.09 | G107: 0.12 | H107: 0.79 | I107: 0.17 | J107: 0.07 | K107: 0.76 | L107: 0.32 | M107: 0.1 | N107: 0.58 | O107: =O106 -> 12.3 | P107: 12.3 | Q107: 15 | S107: =S106 -> 1.3 | T107: 0.2 | W107: =W106 -> 0.6 | X107: 0.4
B108: Sports Facility | C108: 0.12 | D108: 0.16 | E108: 0.72 | F108: 0.09 | G108: 0.12 | H108: 0.79 | I108: 0.17 | J108: 0.07 | K108: 0.76 | L108: 0.32 | M108: 0.1 | N108: 0.58 | O108: =O107 -> 12.3 | P108: 12.3 | Q108: 15 | S108: =S107 -> 1.3 | T108: 0.2 | W108: =W107 -> 0.6 | X108: 0.4
B109: Comercial building | C109: =C99 -> 0.12 | D109: =D99 -> 0.16 | E109: 0.72 | F109: 0.09 | G109: 0.12 | H109: 0.79 | I109: 0.17 | J109: 0.07 | K109: 0.76 | L109: 0.32 | M109: 0.1 | N109: 0.58 | O109: =O108 -> 12.3 | P109: 12.3 | Q109: 15 | S109: =S108 -> 1.3 | T109: 0.2 | W109: =W108 -> 0.6 | X109: 0.4
B110: Cultural building | C110: =C109 -> 0.12 | D110: =D109 -> 0.16 | E110: 0.72 | F110: 0.09 | G110: 0.12 | H110: 0.79 | I110: 0.17 | J110: 0.07 | K110: 0.76 | L110: 0.32 | M110: 0.1 | N110: 0.58 | O110: =O109 -> 12.3 | P110: 12.3 | Q110: 15 | S110: =S109 -> 1.3 | T110: 0.2 | W110: =W109 -> 0.6 | X110: 0.4
B111: Industry/Workshop | C111: =C108 -> 0.12 | D111: =D108 -> 0.16 | E111: 0.72 | F111: 0.09 | G111: 0.12 | H111: 0.79 | I111: 0.17 | J111: 0.07 | K111: 0.76 | L111: 0.32 | M111: 0.1 | N111: 0.58 | O111: =O110 -> 12.3 | P111: 12.3 | Q111: 15 | S111: =S110 -> 1.3 | T111: 0.2 | W111: =W110 -> 0.6 | X111: 0.4
A115: Energy intensity transport
A116: Energy use | C116: Fossile [kwh/km] | D116: Electric [kWh/km]
B117: Buss | C117: =J155 -> 3.691032407 | D117: =J156 -> 1.28
B118: Rail | C118: =J157 -> 14.5 | D118: =J158 -> 2.2
B119: Car | C119: =J149 -> 0.6264861111 | D119: =J152 -> 0.17
B120: Truck | C120: =J153 -> 0.7483194444 | D120: =J154 -> 0.6
A122: Emissions transport
A123: Only direct emissions | C123: Fossile [g/km] | D123: Electric [g/km]
B124: Buss | C124: =S155 -> 981.8146204 | D124: =S152 -> 0
B125: Rail | C125: =S157 -> 3857 | D125: =S158 -> 0
B126: Car | C126: =S149 -> 165.4538472 | D126: =S152 -> 0
B127: Truck | C127: =S153 -> 199.0529722 | D127: =S154 -> 0
A129: Direct emissions and fuel production emissions | C129: Fossile [g/km] | D129: Electric [g/km]
B130: Buss | C130: =T155 -> 1166.366241 | D130: =T156 -> 157.44
B131: Rail | C131: =T157 -> 4582 | D131: =T158 -> 270.6
B132: Car | C132: =T149 -> 200.6153802 | D132: =T152 -> 20.91
B133: Truck | C133: =T153 -> 236.4689444 | D133: =T154 -> 73.8
A135: All transport related emissions | C135: Fossile [g/km] | D135: Electric [g/km]
B136: Buss | C136: =U155 -> 3166.366241 | D136: =U156 -> 2157.44
B137: Rail | C137: =U157 -> 4582 | D137: =U158 -> 270.6
B138: Car | C138: =U149 -> 293.6153802 | D138: =U152 -> 150.91
B139: Truck | C139: =U153 -> 2236.468944 | D139: =U154 -> 2073.8
A141: Self defined - unrelated to standard energy intensity | C141: Fossile [g/km] | D141: Electric [g/km]
B142: Buss
B143: Rail
B144: Car
B145: Truck
B147: Transport type | C147: Fuel | D147: Road speed | E147: Share diesel fossil car | F147: Drivstofforbruk | G147: Massetetthet | H147: Drivstofforbruk | I147: Energiinnhold drivstoff | J147: Energiintensitet | K147: Direkte utslipp | N147: Utslipp produksjon av drivstoff | Q147: Prod og vedlikehold av kjøretøy | R147: Andre indirekte utslipp | S147: Direct | T147: Direct and production of fuel | U147: All emissions related to transport
F148: g/km | G148: kg/L | H148: L/km | I148: kWh/L | J148: kWh/vkm | K148: kgCO2e/L | L148: kgCO2e/kWh | M148: kgCO2e/vkm | N148: kgCO2e/L | O148: kgCO2e/kWh | P148: kgCO2e/vkm | Q148: kgCO2e/vkm | R148: kgCO2e/vkm | S148: g/vkm | T148: g/vkm | U148: g/vkm
A149: Average road, no biofuel mix | B149: Car | C149: Fossil | E149: 0.65 | F149: =F151*$E$149+F150*(1-$E$149) -> 52.45 | G149: 0.8046511628 | H149: 0.06562725694 | I149: 9.611111111 | J149: 0.6264861111 | K149: 2.541 | L149: 0.26425 | M149: 0.1654538472 | N149: 0.535 | O149: 0.056125 | P149: =O149*$J149 -> 0.03516153299 | Q149: =Q151*$E$149+Q150*(1-$E$149) -> 0.083 | R149: =R151*$E$149+R150*(1-$E$149) -> 0.01 | S149: =M149*1000 -> 165.4538472 | T149: =(M149+P149)*1000 -> 200.6153802 | U149: =(M149+P149+Q149+R149)*1000 -> 293.6153802
C150: Gasoline | F150: 57 | G150: =$D$209 -> 0.7441860465 | H150: =F150*1/(G150*1000) -> 0.07659375 | I150: =$E$209 -> 8.888888889 | J150: =H150*I150 -> 0.6808333333 | K150: =$F$209 -> 2.32 | L150: =$K150/I150 -> 0.261 | M150: =L150*$J150 -> 0.1776975 | N150: =$G$209 -> 0.6 | O150: =$N150/I150 -> 0.0675 | P150: 0.04595625 | Q150: 0.083 | R150: 0.01 | S150: 177.6975 | T150: 223.65375 | U150: 316.65375
C151: Diesel | F151: 50 | G151: =$D$210 -> 0.8372093023 | H151: =F151*1/(G151*1000) -> 0.05972222222 | I151: =$E$210 -> 10 | J151: =H151*I151 -> 0.5972222222 | K151: =$F$210 -> 2.66 | L151: =$K151/I151 -> 0.266 | M151: =L151*$J151 -> 0.1588611111 | N151: =$G$210 -> 0.5 | O151: =$N151/I151 -> 0.05 | P151: 0.02986111111 | Q151: 0.083 | R151: 0.01 | S151: 158.8611111 | T151: 188.7222222 | U151: 281.7222222
C152: Electricity | J152: 0.17 | L152: 0 | O152: =$H$208 -> 0.123 | P152: 0.02091 | Q152: 0.12 | R152: 0.01 | S152: 0 | T152: 20.91 | U152: 150.91
B153: Truck | C153: Fossil | E153: 1 | F153: =AVERAGE(F190,F191) -> 62.65 | G153: =$D$210 -> 0.8372093023 | H153: =F153*1/(G153*1000) -> 0.07483194444 | I153: =$E$210 -> 10 | J153: =H153*I153 -> 0.7483194444 | K153: =$F$210 -> 2.66 | L153: =$K153/I153 -> 0.266 | M153: =L153*$J153 -> 0.1990529722 | N153: =$G$210 -> 0.5 | O153: =$N153/I153 -> 0.05 | P153: 0.03741597222 | Q153: 1 | R153: 1 | S153: 199.0529722 | T153: 236.4689444 | U153: 2236.468944
C154: Electricity | J154: 0.6 | L154: 0 | O154: =$H$208 -> 0.123 | P154: 0.0738 | Q154: 1 | R154: 1 | S154: 0 | T154: 73.8 | U154: 2073.8
B155: Bus | C155: Fossil | E155: 1 | F155: =AVERAGE(F196,F197) -> 309.0166667 | G155: =$D$210 -> 0.8372093023 | H155: =F155*1/(G155*1000) -> 0.3691032407 | I155: =$E$210 -> 10 | J155: =H155*I155 -> 3.691032407 | K155: =$F$210 -> 2.66 | L155: =$K155/I155 -> 0.266 | M155: =L155*$J155 -> 0.9818146204 | N155: =$G$210 -> 0.5 | O155: =$N155/I155 -> 0.05 | P155: 0.1845516204 | Q155: 1 | R155: 1 | S155: 981.8146204 | T155: 1166.366241 | U155: 3166.366241
C156: Electricity | J156: 1.28 | L156: 0 | O156: =$H$208 -> 0.123 | P156: 0.15744 | Q156: 1 | R156: 1 | S156: 0 | T156: 157.44 | U156: 2157.44
B157: Rail | C157: =C167 -> Fossil | F157: =F167 -> 0 | G157: =G167 -> 0 | H157: 1.45 | I157: 10 | J157: 14.5 | K157: 2.66 | L157: 0.266 | M157: 3.857 | N157: 0.5 | O157: 0.05 | P157: 0.725 | Q157: 0 | R157: 0 | S157: 3857 | T157: 4582 | U157: 4582
B158: Metro (Oslo) | C158: Electricity | E158: 15.7 | J158: 2.2 | L158: 0 | O158: 0.123 | P158: 0.2706 | S158: 0 | T158: 270.6 | U158: 270.6
B161: Transport type | C161: Fuel | E161: PERSONBELEGG | F161: Drivstofforbruk | G161: Massetetthet | H161: Drivstofforbruk | I161: Energiinnhold drivstoff | J161: Energiintensitet | K161: Direkte utslipp | N161: Utslipp produksjon av drivstoff | Q161: Prod og vedlikehold av kjøretøy | R161: Andre indirekte utslipp | S161: Direct | T161: Direct and production of fuel | U161: All emissions related to transport
F162: g/km | G162: kg/L | H162: L/km | I162: kWh/L | J162: kWh/vkm | K162: kgCO2e/L | L162: kgCO2e/kWh | M162: kgCO2e/vkm | N162: kgCO2e/L | O162: kgCO2e/kWh | P162: kgCO2e/vkm | Q162: kgCO2e/vkm | R162: kgCO2e/vkm | S162: g/vkm | T162: g/vkm | U162: g/vkm
C163: Fossil
B164: Metro (Oslo) | C164: Electricity | E164: 15.7 | J164: 2.2 | L164: 0 | O164: =$H$208 -> 0.123 | P164: =O164*$J164 -> 0.2706 | S164: =M164*1000 -> 0 | T164: =(M164+P164)*1000 -> 270.6 | U164: =(M164+P164+Q164+R164)*1000 -> 270.6
C165: Fossil
B166: Tram (Oslo) | C166: Electricity | E166: 37.5 | J166: 5.3 | L166: 0 | O166: =$H$208 -> 0.123 | P166: 0.6519 | S166: 0 | T166: 651.9 | U166: 651.9
C167: Fossil | E167: 47 | H167: 1.45 | I167: =$E$210 -> 10 | J167: =H167*I167 -> 14.5 | K167: =$F$210 -> 2.66 | L167: =$K167/I167 -> 0.266 | M167: =L167*$J167 -> 3.857 | N167: =$G$210 -> 0.5 | O167: =$N167/I167 -> 0.05 | P167: 0.725 | S167: =M167*1000 -> 3857 | T167: =(M167+P167)*1000 -> 4582 | U167: =(M167+P167+Q167+R167)*1000 -> 4582
B168: Train | C168: Electricity | E168: 47 | J168: 5.6 | L168: 0 | O168: =$H$208 -> 0.123 | P168: 0.6888 | S168: 0 | T168: 688.8 | U168: 688.8
B170: Car | C170: Gasoline | D170: <50 | F170: 53.3 | G170: =$D$209 -> 0.7441860465 | H170: =F170*1/(G170*1000) -> 0.071621875 | I170: =$E$209 -> 8.888888889 | J170: =H170*I170 -> 0.6366388889 | K170: =$F$209 -> 2.32 | L170: =$K170/I170 -> 0.261 | M170: =L170*$J170 -> 0.16616275 | N170: =$G$209 -> 0.6 | O170: =$N170/I170 -> 0.0675 | P170: 0.042973125
B171: Rural | D171: >=50 | F171: 45.225 | G171: =$D$209 -> 0.7441860465 | H171: =F171*1/(G171*1000) -> 0.06077109375 | I171: =$E$209 -> 8.888888889 | J171: =H171*I171 -> 0.5401875 | K171: =$F$209 -> 2.32 | L171: 0.261 | M171: 0.1409889375 | N171: =$G$209 -> 0.6 | O171: 0.0675 | P171: 0.03646265625
C172: Diesel | D172: <50 | F172: 45.6 | G172: =$D$210 -> 0.8372093023 | H172: =F172*1/(G172*1000) -> 0.05446666667 | I172: =$E$210 -> 10 | J172: =H172*I172 -> 0.5446666667 | K172: =$F$210 -> 2.66 | L172: 0.266 | M172: 0.1448813333 | N172: =$G$210 -> 0.5 | O172: 0.05 | P172: 0.02723333333
D173: >=50 | F173: 37.13125 | G173: =$D$210 -> 0.8372093023 | H173: =F173*1/(G173*1000) -> 0.04435121528 | I173: =$E$210 -> 10 | J173: =H173*I173 -> 0.4435121528 | K173: =$F$210 -> 2.66 | L173: 0.266 | M173: 0.1179742326 | N173: =$G$210 -> 0.5 | O173: 0.05 | P173: 0.02217560764
C174: Bioethanol | D174: <50 | F174: 84.88518519 | G174: =$D$212 -> 0.7777777778 | H174: =J174/I174 -> 0.1091380952 | I174: =$E$212 -> 5.833333333 | J174: =J170 -> 0.6366388889 | K174: =$F$212 -> 0 | L174: 0 | M174: 0 | N174: =$G$212 -> 1.6 | O174: 0.2742857143 | P174: 0.1746209524
D175: >=50 | F175: 72.025 | G175: =$D$212 -> 0.7777777778 | H175: =J175/I175 -> 0.09260357143 | I175: =$E$212 -> 5.833333333 | J175: =J171 -> 0.5401875 | K175: =$F$212 -> 0 | L175: 0 | M175: 0 | N175: =$G$212 -> 1.6 | O175: 0.2742857143 | P175: 0.1481657143
C176: Biodiesel | D176: <50 | F176: 52.99459459 | G176: =$D$211 -> 0.8918918919 | H176: =J$176/I$176 -> 0.05941818182 | I176: =$E$211 -> 9.166666667 | J176: =J172 -> 0.5446666667 | K176: =$F$211 -> 0 | L176: 0 | M176: 0 | N176: =$G$211 -> 2.333333333 | O176: 0.2545454545 | P176: 0.1386424242
D177: >=50 | F177: 43.15253378 | G177: =$D$211 -> 0.8918918919 | H177: =J177/I177 -> 0.04838314394 | I177: =$E$211 -> 9.166666667 | J177: =J$173 -> 0.4435121528 | K177: =$F$211 -> 0 | L177: 0 | M177: =L$177*$J177 -> 0 | N177: =$G$211 -> 2.333333333 | O177: 0.2545454545 | P177: =$O$177*$J177 -> 0.1128940025
C178: Electricity | D178: <50 | J178: 0.17 | L178: 0 | M178: =L178*$J178 -> 0 | O178: 0.123 | P178: =O178*$J178 -> 0.02091
D179: >=50 | J179: 0.17 | L179: 0 | M179: 0 | O179: 0.123 | P179: 0.02091
B180: Car | C180: Gasoline | D180: <50 | F180: 58.8 | G180: =$D$209 -> 0.7441860465 | H180: =F180*1/(G180*1000) -> 0.0790125 | I180: =$E$209 -> 8.888888889 | J180: =H180*I180 -> 0.7023333333 | K180: =$F$209 -> 2.32 | L180: =$K180/I180 -> 0.261 | M180: 0.183309 | N180: =$G$209 -> 0.6 | O180: =$N180/I180 -> 0.0675 | P180: 0.0474075
B181: Urban | D181: >=50 | F181: 45.2375 | G181: =$D$209 -> 0.7441860465 | H181: =F181*1/(G181*1000) -> 0.06078789063 | I181: =$E$209 -> 8.888888889 | J181: =H181*I181 -> 0.5403368056 | K181: =$F$209 -> 2.32 | L181: 0.261 | M181: 0.1410279063 | N181: =$G$209 -> 0.6 | O181: 0.0675 | P181: 0.03647273438
C182: Diesel | D182: <50 | F182: 55.2 | G182: =$D$210 -> 0.8372093023 | H182: =F182*1/(G182*1000) -> 0.06593333333 | I182: =$E$210 -> 10 | J182: =H182*I182 -> 0.6593333333 | K182: =$F$210 -> 2.66 | L182: 0.266 | M182: 0.1753826667 | N182: =$G$210 -> 0.5 | O182: 0.05 | P182: 0.03296666667
D183: >=50 | F183: 38.31875 | G183: =$D$210 -> 0.8372093023 | H183: =F183*1/(G183*1000) -> 0.04576961806 | I183: =$E$210 -> 10 | J183: =H183*I183 -> 0.4576961806 | K183: =$F$210 -> 2.66 | L183: 0.266 | M183: 0.121747184 | N183: =$G$210 -> 0.5 | O183: 0.05 | P183: 0.02288480903
C184: Bioethanol | D184: <50 | F184: 93.64444444 | G184: =$D$212 -> 0.7777777778 | H184: =J184/I184 -> 0.1204 | I184: =$E$212 -> 5.833333333 | J184: =J180 -> 0.7023333333 | K184: =$F$212 -> 0 | L184: 0 | M184: 0 | N184: =$G$212 -> 1.6 | O184: 0.2742857143 | P184: 0.19264
D185: >=50 | F185: 72.04490741 | G185: =$D$212 -> 0.7777777778 | H185: =J185/I185 -> 0.09262916667 | I185: =$E$212 -> 5.833333333 | J185: =J181 -> 0.5403368056 | K185: =$F$212 -> 0 | L185: 0 | M185: 0 | N185: =$G$212 -> 1.6 | O185: 0.2742857143 | P185: 0.1482066667
C186: Biodiesel | D186: <50 | F186: 64.15135135 | G186: =$D$211 -> 0.8918918919 | H186: =J186/I186 -> 0.07192727273 | I186: =$E$211 -> 9.166666667 | J186: =J182 -> 0.6593333333 | K186: =$F$211 -> 0 | L186: 0 | M186: 0 | N186: =$G$211 -> 2.333333333 | O186: 0.2545454545 | P186: 0.167830303
D187: >=50 | F187: 44.53260135 | G187: =$D$211 -> 0.8918918919 | H187: =J187/I187 -> 0.04993049242 | I187: =$E$211 -> 9.166666667 | J187: =J183 -> 0.4576961806 | K187: =$F$211 -> 0 | L187: 0 | M187: 0 | N187: =$G$211 -> 2.333333333 | O187: 0.2545454545 | P187: 0.1165044823
C188: Electricity | D188: <50 | J188: 0.17 | L188: 0 | M188: 0 | O188: 0.123 | P188: 0.02091
D189: >=50 | J189: 0.17 | L189: 0 | M189: 0 | O189: 0.123 | P189: 0.02091
B190: Light | C190: Diesel | D190: <50 | F190: 65.23333333 | G190: =$D$210 -> 0.8372093023 | H190: =F190*1/(G190*1000) -> 0.07791759259 | I190: =$E$210 -> 10 | J190: =H190*I190 -> 0.7791759259 | K190: =$F$210 -> 2.66 | L190: =$K190/I190 -> 0.266 | M190: 0.2072607963 | N190: =$G$210 -> 0.5 | O190: =$N190/I190 -> 0.05 | P190: 0.0389587963
D191: >=50 | F191: 60.06666667 | G191: =$D$210 -> 0.8372093023 | H191: =F191*1/(G191*1000) -> 0.0717462963 | I191: =$E$210 -> 10 | J191: =H191*I191 -> 0.717462963 | K191: =$F$210 -> 2.66 | L191: =$K191/I191 -> 0.266 | M191: 0.1908451481 | N191: =$G$210 -> 0.5 | O191: =$N191/I191 -> 0.05 | P191: 0.03587314815
C192: Biodiesel | D192: <50 | F192: 76.24131141 | G192: =$D$211 -> 0.8918918919 | H192: =J192/I192 -> 0.0850010101 | I192: =$E$211 -> 9.166666667 | J192: =J190 -> 0.7791759259 | K192: =$F$211 -> 0 | L192: =$K192/I192 -> 0 | M192: 0 | N192: =$G$211 -> 2.333333333 | O192: =$N192/I192 -> 0.2545454545 | P192: 0.1983356902
D193: >=50 | F193: 70.20278138 | G193: =$D$211 -> 0.8918918919 | H193: =J193/I193 -> 0.07826868687 | I193: =$E$211 -> 9.166666667 | J193: =J191 -> 0.717462963 | K193: =$F$211 -> 0 | L193: =$K193/I193 -> 0 | M193: 0 | N193: =$G$211 -> 2.333333333 | O193: =$N193/I193 -> 0.2545454545 | P193: 0.182626936
C194: Electricity | D194: <50 | J194: 0.6 | L194: 0 | M194: 0 | O194: 0.123 | P194: 0.0738
D195: >=50 | J195: 0.6 | L195: 0 | M195: 0 | O195: 0.123 | P195: 0.0738
B196: Bus | C196: Diesel | D196: <50 | F196: 319.2166667 | G196: =$D$210 -> 0.8372093023 | H196: =F196*1/(G196*1000) -> 0.3812865741 | I196: =$E$210 -> 10 | J196: =H196*I196 -> 3.812865741 | K196: =$F$210 -> 2.66 | L196: =$K196/I196 -> 0.266 | M196: 1.014222287 | N196: =$G$210 -> 0.5 | O196: =$N196/I196 -> 0.05 | P196: 0.190643287
D197: >=50 | F197: 298.8166667 | G197: =$D$210 -> 0.8372093023 | H197: =F197*1/(G197*1000) -> 0.3569199074 | I197: =$E$210 -> 10 | J197: =H197*I197 -> 3.569199074 | K197: =$F$210 -> 2.66 | L197: =$K197/I197 -> 0.266 | M197: 0.9494069537 | N197: =$G$210 -> 0.5 | O197: =$N197/I197 -> 0.05 | P197: 0.1784599537
C198: Biodiesel | D198: <50 | F198: 373.0837602 | G198: =$D$211 -> 0.8918918919 | H198: =J198/I198 -> 0.4159489899 | I198: =$E$211 -> 9.166666667 | J198: =J196 -> 3.812865741 | K198: =$F$211 -> 0 | L198: =$K198/I198 -> 0 | M198: 0 | N198: =$G$211 -> 2.333333333 | O198: =$N198/I198 -> 0.2545454545 | P198: 0.9705476431
D199: >=50 | F199: 349.2413062 | G199: =$D$211 -> 0.8918918919 | H199: =J199/I199 -> 0.3893671717 | I199: =$E$211 -> 9.166666667 | J199: =J197 -> 3.569199074 | K199: =$F$211 -> 0 | L199: =$K199/I199 -> 0 | M199: 0 | N199: =$G$211 -> 2.333333333 | O199: =$N199/I199 -> 0.2545454545 | P199: 0.9085234007
C200: Electricity | D200: <50 | J200: 1.28 | L200: 0 | M200: 0 | O200: 0.123 | P200: 0.15744
D201: >=50 | J201: 1.28 | L201: 0 | M201: 0 | O201: 0.123 | P201: 0.15744
B202: Rail | C202: Electricity | D202: <50 | J202: 3.74529154
D203: >=50 | J203: 3.74529154 | L203: 0 | M203: =L203*$J203 -> 0 | O203: 0.123 | P203: =O203*$J203 -> 0.4606708594
D204: Kilde | E204: https://www.ssb.no/natur-og-miljo/artikler-og-publikasjoner/_attachment/225115?_ts=14ce05a5658 | F204: Universell enhet | G204: Utregnet | H204: Universell enhet | I204: http://publikasjoner.nve.no/rapport/2018/rapport2018_88.pdf | J204: Universell enhet, Miljødirektoratet
B207: Energiinnhold vekt [MJ/kg] | C207: Energiinhold volum [MJ/L] | D207: Massetetthet [kg/L] | E207: Energiinhold per volum [kWh/L] | F207: Utslipp forrenning [kgCO2e/L] | G207: Utslipp produksjon av drivstoff [kgCO2e/L] | H207: Utslipp [kgCO2e/kWh]
A208: Elektrisitet | H208: =LocalEnergySupplyData!D3/1000 -> 0.123
A209: Bensin | B209: 43 | C209: 32 | D209: =C209/B209 -> 0.7441860465 | E209: =C209/3.6 -> 8.888888889 | F209: 2.32 | G209: 0.6
A210: Diesel | B210: 43 | C210: 36 | D210: =C210/B210 -> 0.8372093023 | E210: =C210/3.6 -> 10 | F210: 2.66 | G210: 0.5
A211: Biodiesel | B211: 37 | C211: 33 | D211: =C211/B211 -> 0.8918918919 | E211: =C211/3.6 -> 9.166666667 | F211: 0 | G211: =0.14/0.03*G210 -> 2.333333333
A212: Ethanol | B212: 27 | C212: 21 | D212: =C212/B212 -> 0.7777777778 | E212: =C212/3.6 -> 5.833333333 | F212: 0 | G212: =0.12/0.045*G209 -> 1.6
A213: Kilde | B213: https://eur-lex.europa.eu/legal-content/EN/TXT/PDF/?uri=CELEX:32009L0028&from=EN | C213: https://eur-lex.europa.eu/legal-content/EN/TXT/PDF/?uri=CELEX:32009L0028&from=EN | D213: Utregnet | E213: Utregnet | F213: Lenger ned. Universalverdi | G213: Beregnet utifra NS3720

Sheet PeakDayData (hidden)
A1: Net energy demand per hour/net energy demand per year for January 30th SN:TS 3031 weather profile for Oslo with "Building_profiles"
A2: Electric (only elspesific, not cooling since it is the coldest day) | C2: 00:00:00 | D2: 01:00:00 | E2: 02:00:00 | F2: 03:00:00 | G2: 04:00:00 | H2: 05:00:00 | I2: 06:00:00 | J2: 07:00:00 | K2: 08:00:00 | L2: 09:00:00 | M2: 10:00:00 | N2: 11:00:00 | O2: 12:00:00 | P2: 13:00:00 | Q2: 14:00:00 | R2: 15:00:00 | S2: 16:00:00 | T2: 17:00:00 | U2: 18:00:00 | V2: 19:00:00 | W2: 20:00:00 | X2: 21:00:00 | Y2: 22:00:00 | Z2: 23:00:00
A3: Residential individual housing | B3: Efficient | C3: 8.501375293e-05 | D3: 6.912097419e-05 | E3: 6.508471293e-05 | F3: 6.420178077e-05 | G3: 6.369724811e-05 | H3: 6.432791394e-05 | I3: 7.731962989e-05 | J3: 0.0001021678633 | K3: 0.0001173038431 | L3: 0.0001246195666 | M3: 0.0001200787727 | N3: 0.0001170515767 | O3: 0.0001146550466 | P3: 0.0001140243808 | Q3: 0.0001205833053 | R3: 0.0001456838051 | S3: 0.0001799920259 | T3: 0.0001918485433 | U3: 0.0001962632041 | V3: 0.0001995426664 | W3: 0.0002026959955 | X3: 0.0001937405408 | Y3: 0.0001695229732 | Z3: 0.000128781961 | AA3: Residential individual housing
B4: Regular | C4: 8.501375293e-05 | D4: 6.912097419e-05 | E4: 6.508471293e-05 | F4: 6.420178077e-05 | G4: 6.369724811e-05 | H4: 6.432791394e-05 | I4: 7.731962989e-05 | J4: 0.0001021678633 | K4: 0.0001173038431 | L4: 0.0001246195666 | M4: 0.0001200787727 | N4: 0.0001170515767 | O4: 0.0001146550466 | P4: 0.0001140243808 | Q4: 0.0001205833053 | R4: 0.0001456838051 | S4: 0.0001799920259 | T4: 0.0001918485433 | U4: 0.0001962632041 | V4: 0.0001995426664 | W4: 0.0002026959955 | X4: 0.0001937405408 | Y4: 0.0001695229732 | Z4: 0.000128781961 | AA4: Residential individual housing
A5: Residential apartment building | B5: Efficient | C5: 8.501375293e-05 | D5: 6.912097419e-05 | E5: 6.508471293e-05 | F5: 6.420178077e-05 | G5: 6.369724811e-05 | H5: 6.432791394e-05 | I5: 7.731962989e-05 | J5: 0.0001021678633 | K5: 0.0001173038431 | L5: 0.0001246195666 | M5: 0.0001200787727 | N5: 0.0001170515767 | O5: 0.0001146550466 | P5: 0.0001140243808 | Q5: 0.0001205833053 | R5: 0.0001456838051 | S5: 0.0001799920259 | T5: 0.0001918485433 | U5: 0.0001962632041 | V5: 0.0001995426664 | W5: 0.0002026959955 | X5: 0.0001937405408 | Y5: 0.0001695229732 | Z5: 0.000128781961 | AA5: Residential apartment building
B6: Regular | C6: 8.501375293e-05 | D6: 6.912097419e-05 | E6: 6.508471293e-05 | F6: 6.420178077e-05 | G6: 6.369724811e-05 | H6: 6.432791394e-05 | I6: 7.731962989e-05 | J6: 0.0001021678633 | K6: 0.0001173038431 | L6: 0.0001246195666 | M6: 0.0001200787727 | N6: 0.0001170515767 | O6: 0.0001146550466 | P6: 0.0001140243808 | Q6: 0.0001205833053 | R6: 0.0001456838051 | S6: 0.0001799920259 | T6: 0.0001918485433 | U6: 0.0001962632041 | V6: 0.0001995426664 | W6: 0.0002026959955 | X6: 0.0001937405408 | Y6: 0.0001695229732 | Z6: 0.000128781961 | AA6: Residential apartment building
A7: Office building | B7: Efficient | C7: 9.054349884e-05 | D7: 8.961924687e-05 | E7: 8.955691222e-05 | F7: 8.964144434e-05 | G7: 9.078267138e-05 | H7: 9.448826935e-05 | I7: 0.0001085909913 | J7: 0.0001449964452 | K7: 0.0001660135465 | L7: 0.0001722447187 | M7: 0.0001709706309 | N7: 0.0001696592215 | O7: 0.0001674746268 | P7: 0.0001652308255 | Q7: 0.0001600931588 | R7: 0.0001484583135 | S7: 0.0001302716695 | T7: 0.0001128336646 | U7: 0.0001043254018 | V7: 0.0001003256417 | W7: 9.769842283e-05 | X7: 9.48162579e-05 | Y7: 9.323067839e-05 | Z7: 9.190378327e-05 | AA7: Office building
B8: Regular | C8: 8.10242918e-05 | D8: 8.026903843e-05 | E8: 8.00847653e-05 | F8: 8.014513789e-05 | G8: 8.091139997e-05 | H8: 8.733406879e-05 | I8: 0.0001116751538 | J8: 0.0001418274756 | K8: 0.0001640971497 | L8: 0.000174506527 | M8: 0.0001775804594 | N8: 0.0001792298441 | O8: 0.0001790827762 | P8: 0.0001771961644 | Q8: 0.0001736754958 | R8: 0.0001661728028 | S8: 0.0001511508461 | T8: 0.0001330961898 | U8: 0.000117130585 | V8: 0.0001068207769 | W8: 9.779461905e-05 | X8: 9.112769016e-05 | Y8: 8.657246963e-05 | Z8: 8.318305011e-05 | AA8: Office building
A9: Kindergarten | B9: Efficient | C9: =C10 -> 6.250370027e-05 | D9: =D10 -> 6.218917118e-05 | E9: 6.186117653e-05 | F9: 6.187535557e-05 | G9: 6.234572159e-05 | H9: 6.542061831e-05 | I9: 8.767939196e-05 | J9: 0.0001581957495 | K9: 0.0002233242175 | L9: 0.0002429136102 | M9: 0.0002503298325 | N9: 0.0002459941504 | O9: 0.000246833797 | P9: 0.0002426023822 | Q9: 0.0002384019197 | R9: 0.0002341569961 | S9: 0.0001889914992 | T9: 0.0001171084667 | U9: 7.713584683e-05 | V9: 7.137688776e-05 | W9: 6.783246047e-05 | X9: 6.651784306e-05 | Y9: 6.58697243e-05 | Z9: 6.530963072e-05 | AA9: Kindergarten
B10: Regular | C10: 6.250370027e-05 | D10: 6.218917118e-05 | E10: 6.186117653e-05 | F10: 6.187535557e-05 | G10: 6.234572159e-05 | H10: 6.542061831e-05 | I10: 8.767939196e-05 | J10: 0.0001581957495 | K10: 0.0002233242175 | L10: 0.0002429136102 | M10: 0.0002503298325 | N10: 0.0002459941504 | O10: 0.000246833797 | P10: 0.0002426023822 | Q10: 0.0002384019197 | R10: 0.0002341569961 | S10: 0.0001889914992 | T10: 0.0001171084667 | U10: 7.713584683e-05 | V10: 7.137688776e-05 | W10: 6.783246047e-05 | X10: 6.651784306e-05 | Y10: 6.58697243e-05 | Z10: 6.530963072e-05 | AA10: Kindergarten
A11: School | B11: Efficient | C11: 5.788102504e-05 | D11: 5.192030506e-05 | E11: 5.19706875e-05 | F11: 5.211636307e-05 | G11: 5.269387336e-05 | H11: 5.33672191e-05 | I11: 6.923161479e-05 | J11: 0.0001399613793 | K11: 0.0001855972697 | L11: 0.0002274728541 | M11: 0.000234444009 | N11: 0.0002314682494 | O11: 0.0002294301698 | P11: 0.000232580843 | Q11: 0.0002270443011 | R11: 0.0002021634737 | S11: 0.0001777523931 | T11: 0.0001323184988 | U11: 0.0001239167554 | V11: 0.0001063437489 | W11: 0.0001032022989 | X11: 9.748113648e-05 | Y11: 8.684905877e-05 | Z11: 6.948781221e-05 | AA11: School
B12: Regular | C12: 8.9467439e-05 | D12: 9.103432745e-05 | E12: 9.122147454e-05 | F12: 9.362497072e-05 | G12: 9.590149641e-05 | H12: 0.0001061913177 | I12: 0.0001407754694 | J12: 0.0001940817166 | K12: 0.0002755447238 | L12: 0.000284298874 | M12: 0.0002851815946 | N12: 0.0002737704531 | O12: 0.0002787543361 | P12: 0.0002721287154 | Q12: 0.0002371215233 | R12: 0.0002032137119 | S12: 0.0001587740493 | T12: 0.0001312389912 | U12: 0.0001273261138 | V12: 0.000119331222 | W12: 0.0001085524443 | X12: 9.989669277e-05 | Y12: 9.129594071e-05 | Z12: 9.161186378e-05 | AA12: School
A13: University/Collage | B13: Efficient | C13: =C7 -> 9.054349884e-05 | D13: =D7 -> 8.961924687e-05 | E13: 8.955691222e-05 | F13: 8.964144434e-05 | G13: 9.078267138e-05 | H13: 9.448826935e-05 | I13: 0.0001085909913 | J13: 0.0001449964452 | K13: 0.0001660135465 | L13: 0.0001722447187 | M13: 0.0001709706309 | N13: 0.0001696592215 | O13: 0.0001674746268 | P13: 0.0001652308255 | Q13: 0.0001600931588 | R13: 0.0001484583135 | S13: 0.0001302716695 | T13: 0.0001128336646 | U13: 0.0001043254018 | V13: 0.0001003256417 | W13: 9.769842283e-05 | X13: 9.48162579e-05 | Y13: 9.323067839e-05 | Z13: 9.190378327e-05 | AA13: University/Collage
B14: Regular | C14: =C8 -> 8.10242918e-05 | D14: =D8 -> 8.026903843e-05 | E14: 8.00847653e-05 | F14: 8.014513789e-05 | G14: 8.091139997e-05 | H14: 8.733406879e-05 | I14: 0.0001116751538 | J14: 0.0001418274756 | K14: 0.0001640971497 | L14: 0.000174506527 | M14: 0.0001775804594 | N14: 0.0001792298441 | O14: 0.0001790827762 | P14: 0.0001771961644 | Q14: 0.0001736754958 | R14: 0.0001661728028 | S14: 0.0001511508461 | T14: 0.0001330961898 | U14: 0.000117130585 | V14: 0.0001068207769 | W14: 9.779461905e-05 | X14: 9.112769016e-05 | Y14: 8.657246963e-05 | Z14: 8.318305011e-05 | AA14: University/Collage
A15: Hospital | B15: Efficient | C15: =C16 -> 9.886264821e-05 | D15: =D16 -> 9.778707753e-05 | E15: 9.690482479e-05 | F15: 9.655506053e-05 | G15: 9.682860493e-05 | H15: 9.753604286e-05 | I15: 0.0001018199003 | J15: 0.0001152663207 | K15: 0.000131502954 | L15: 0.000141207311 | M15: 0.0001444039515 | N15: 0.0001451303157 | O15: 0.0001451728101 | P15: 0.0001456593844 | Q15: 0.0001444343486 | R15: 0.0001392498932 | S15: 0.000130207754 | T15: 0.0001220284011 | U15: 0.0001171913618 | V15: 0.0001136316669 | W15: 0.0001106563845 | X15: 0.0001079373092 | Y15: 0.0001047798904 | Z15: 0.0001012255191 | AA15: Hospital
B16: Regular | C16: 9.886264821e-05 | D16: 9.778707753e-05 | E16: 9.690482479e-05 | F16: 9.655506053e-05 | G16: 9.682860493e-05 | H16: 9.753604286e-05 | I16: 0.0001018199003 | J16: 0.0001152663207 | K16: 0.000131502954 | L16: 0.000141207311 | M16: 0.0001444039515 | N16: 0.0001451303157 | O16: 0.0001451728101 | P16: 0.0001456593844 | Q16: 0.0001444343486 | R16: 0.0001392498932 | S16: 0.000130207754 | T16: 0.0001220284011 | U16: 0.0001171913618 | V16: 0.0001136316669 | W16: 0.0001106563845 | X16: 0.0001079373092 | Y16: 0.0001047798904 | Z16: 0.0001012255191 | AA16: Hospital
A17: Nursing home | B17: Efficient | C17: =C18 -> 8.785924476e-05 | D17: =D18 -> 8.656734506e-05 | E17: 8.690658907e-05 | F17: 8.739801288e-05 | G17: 8.898150562e-05 | H17: 9.750460696e-05 | I17: 0.0001103142788 | J17: 0.0001228940897 | K17: 0.0001390091337 | L17: 0.0001483115487 | M17: 0.0001522531992 | N17: 0.0001532930182 | O17: 0.0001524505552 | P17: 0.0001436130941 | Q17: 0.000137823988 | R17: 0.0001308457067 | S17: 0.0001242129502 | T17: 0.000123421058 | U17: 0.0001184068002 | V17: 0.00011380097 | W17: 0.0001075244248 | X17: 0.0001002161291 | Y17: 9.536253851e-05 | Z17: 9.043692872e-05 | AA17: Nursing home
B18: Regular | C18: 8.785924476e-05 | D18: 8.656734506e-05 | E18: 8.690658907e-05 | F18: 8.739801288e-05 | G18: 8.898150562e-05 | H18: 9.750460696e-05 | I18: 0.0001103142788 | J18: 0.0001228940897 | K18: 0.0001390091337 | L18: 0.0001483115487 | M18: 0.0001522531992 | N18: 0.0001532930182 | O18: 0.0001524505552 | P18: 0.0001436130941 | Q18: 0.000137823988 | R18: 0.0001308457067 | S18: 0.0001242129502 | T18: 0.000123421058 | U18: 0.0001184068002 | V18: 0.00011380097 | W18: 0.0001075244248 | X18: 0.0001002161291 | Y18: 9.536253851e-05 | Z18: 9.043692872e-05 | AA18: Nursing home
A19: Hotel | B19: Efficient | C19: =C20 -> 9.768395371e-05 | D19: =D20 -> 9.290026215e-05 | E19: 9.057503241e-05 | F19: 8.917441862e-05 | G19: 9.322942674e-05 | H19: 9.744317965e-05 | I19: 0.0001070105797 | J19: 0.0001233666135 | K19: 0.0001318791408 | L19: 0.0001291954406 | M19: 0.0001273013165 | N19: 0.0001240427069 | O19: 0.0001225882977 | P19: 0.0001204240751 | Q19: 0.0001210597419 | R19: 0.000120026076 | S19: 0.0001191924314 | T19: 0.0001195832802 | U19: 0.0001211018412 | V19: 0.0001212958113 | W19: 0.0001211762471 | X19: 0.000116949269 | Y19: 0.0001144939929 | Z19: 0.000107375876 | AA19: Hotel
B20: Regular | C20: 9.768395371e-05 | D20: 9.290026215e-05 | E20: 9.057503241e-05 | F20: 8.917441862e-05 | G20: 9.322942674e-05 | H20: 9.744317965e-05 | I20: 0.0001070105797 | J20: 0.0001233666135 | K20: 0.0001318791408 | L20: 0.0001291954406 | M20: 0.0001273013165 | N20: 0.0001240427069 | O20: 0.0001225882977 | P20: 0.0001204240751 | Q20: 0.0001210597419 | R20: 0.000120026076 | S20: 0.0001191924314 | T20: 0.0001195832802 | U20: 0.0001211018412 | V20: 0.0001212958113 | W20: 0.0001211762471 | X20: 0.000116949269 | Y20: 0.0001144939929 | Z20: 0.000107375876 | AA20: Hotel
A21: Sports Facility | B21: Efficient | C21: =C17 -> 8.785924476e-05 | D21: =D17 -> 8.656734506e-05 | E21: 8.690658907e-05 | F21: 8.739801288e-05 | G21: 8.898150562e-05 | H21: 9.750460696e-05 | I21: 0.0001103142788 | J21: 0.0001228940897 | K21: 0.0001390091337 | L21: 0.0001483115487 | M21: 0.0001522531992 | N21: 0.0001532930182 | O21: 0.0001524505552 | P21: 0.0001436130941 | Q21: 0.000137823988 | R21: 0.0001308457067 | S21: 0.0001242129502 | T21: 0.000123421058 | U21: 0.0001184068002 | V21: 0.00011380097 | W21: 0.0001075244248 | X21: 0.0001002161291 | Y21: 9.536253851e-05 | Z21: 9.043692872e-05 | AA21: Sports Facility
B22: Regular | C22: =C18 -> 8.785924476e-05 | D22: =D18 -> 8.656734506e-05 | E22: 8.690658907e-05 | F22: 8.739801288e-05 | G22: 8.898150562e-05 | H22: 9.750460696e-05 | I22: 0.0001103142788 | J22: 0.0001228940897 | K22: 0.0001390091337 | L22: 0.0001483115487 | M22: 0.0001522531992 | N22: 0.0001532930182 | O22: 0.0001524505552 | P22: 0.0001436130941 | Q22: 0.000137823988 | R22: 0.0001308457067 | S22: 0.0001242129502 | T22: 0.000123421058 | U22: 0.0001184068002 | V22: 0.00011380097 | W22: 0.0001075244248 | X22: 0.0001002161291 | Y22: 9.536253851e-05 | Z22: 9.043692872e-05 | AA22: Sports Facility
A23: Comercial building | B23: Efficient | C23: =C24 -> 6.966188101e-05 | D23: =D24 -> 6.774204817e-05 | E23: 6.720204443e-05 | F23: 6.700269638e-05 | G23: 6.866579801e-05 | H23: 7.446715269e-05 | I23: 9.708332682e-05 | J23: 0.0001297444777 | K23: 0.0001507470498 | L23: 0.0001675571752 | M23: 0.0001803926964 | N23: 0.0001818270603 | O23: 0.0001826841522 | P23: 0.0001824040455 | Q23: 0.0001811949568 | R23: 0.0001798406541 | S23: 0.0001695665174 | T23: 0.0001539968745 | U23: 0.0001430100715 | V23: 0.000132682458 | W23: 0.0001161390431 | X23: 9.71375706e-05 | Y23: 8.346484738e-05 | Z23: 7.520319238e-05 | AA23: Comercial building
B24: Regular | C24: 6.966188101e-05 | D24: 6.774204817e-05 | E24: 6.720204443e-05 | F24: 6.700269638e-05 | G24: 6.866579801e-05 | H24: 7.446715269e-05 | I24: 9.708332682e-05 | J24: 0.0001297444777 | K24: 0.0001507470498 | L24: 0.0001675571752 | M24: 0.0001803926964 | N24: 0.0001818270603 | O24: 0.0001826841522 | P24: 0.0001824040455 | Q24: 0.0001811949568 | R24: 0.0001798406541 | S24: 0.0001695665174 | T24: 0.0001539968745 | U24: 0.0001430100715 | V24: 0.000132682458 | W24: 0.0001161390431 | X24: 9.71375706e-05 | Y24: 8.346484738e-05 | Z24: 7.520319238e-05 | AA24: Comercial building
A25: Cultural building | B25: Efficient | C25: =C7 -> 9.054349884e-05 | D25: =D7 -> 8.961924687e-05 | E25: 8.955691222e-05 | F25: 8.964144434e-05 | G25: 9.078267138e-05 | H25: 9.448826935e-05 | I25: 0.0001085909913 | J25: 0.0001449964452 | K25: 0.0001660135465 | L25: 0.0001722447187 | M25: 0.0001709706309 | N25: 0.0001696592215 | O25: 0.0001674746268 | P25: 0.0001652308255 | Q25: 0.0001600931588 | R25: 0.0001484583135 | S25: 0.0001302716695 | T25: 0.0001128336646 | U25: 0.0001043254018 | V25: 0.0001003256417 | W25: 9.769842283e-05 | X25: 9.48162579e-05 | Y25: 9.323067839e-05 | Z25: 9.190378327e-05 | AA25: Cultural building
B26: Regular | C26: =C8 -> 8.10242918e-05 | D26: =D8 -> 8.026903843e-05 | E26: 8.00847653e-05 | F26: 8.014513789e-05 | G26: 8.091139997e-05 | H26: 8.733406879e-05 | I26: 0.0001116751538 | J26: 0.0001418274756 | K26: 0.0001640971497 | L26: 0.000174506527 | M26: 0.0001775804594 | N26: 0.0001792298441 | O26: 0.0001790827762 | P26: 0.0001771961644 | Q26: 0.0001736754958 | R26: 0.0001661728028 | S26: 0.0001511508461 | T26: 0.0001330961898 | U26: 0.000117130585 | V26: 0.0001068207769 | W26: 9.779461905e-05 | X26: 9.112769016e-05 | Y26: 8.657246963e-05 | Z26: 8.318305011e-05 | AA26: Cultural building
A27: Industry/Workshop | B27: Efficient | C27: =C7 -> 9.054349884e-05 | D27: =D7 -> 8.961924687e-05 | E27: 8.955691222e-05 | F27: 8.964144434e-05 | G27: 9.078267138e-05 | H27: 9.448826935e-05 | I27: 0.0001085909913 | J27: 0.0001449964452 | K27: 0.0001660135465 | L27: 0.0001722447187 | M27: 0.0001709706309 | N27: 0.0001696592215 | O27: 0.0001674746268 | P27: 0.0001652308255 | Q27: 0.0001600931588 | R27: 0.0001484583135 | S27: 0.0001302716695 | T27: 0.0001128336646 | U27: 0.0001043254018 | V27: 0.0001003256417 | W27: 9.769842283e-05 | X27: 9.48162579e-05 | Y27: 9.323067839e-05 | Z27: 9.190378327e-05 | AA27: Industry/Workshop
B28: Regular | C28: =C8 -> 8.10242918e-05 | D28: =D8 -> 8.026903843e-05 | E28: 8.00847653e-05 | F28: 8.014513789e-05 | G28: 8.091139997e-05 | H28: 8.733406879e-05 | I28: 0.0001116751538 | J28: 0.0001418274756 | K28: 0.0001640971497 | L28: 0.000174506527 | M28: 0.0001775804594 | N28: 0.0001792298441 | O28: 0.0001790827762 | P28: 0.0001771961644 | Q28: 0.0001736754958 | R28: 0.0001661728028 | S28: 0.0001511508461 | T28: 0.0001330961898 | U28: 0.000117130585 | V28: 0.0001068207769 | W28: 9.779461905e-05 | X28: 9.112769016e-05 | Y28: 8.657246963e-05 | Z28: 8.318305011e-05 | AA28: Industry/Workshop
A30: Heating | C30: 00:00:00 | D30: 01:00:00 | E30: 02:00:00 | F30: 03:00:00 | G30: 04:00:00 | H30: 05:00:00 | I30: 06:00:00 | J30: 07:00:00 | K30: 08:00:00 | L30: 09:00:00 | M30: 10:00:00 | N30: 11:00:00 | O30: 12:00:00 | P30: 13:00:00 | Q30: 14:00:00 | R30: 15:00:00 | S30: 16:00:00 | T30: 17:00:00 | U30: 18:00:00 | V30: 19:00:00 | W30: 20:00:00 | X30: 21:00:00 | Y30: 22:00:00 | Z30: 23:00:00
A31: Residential individual housing | B31: Efficient | C31: 0.0006833158583 | D31: 0.0006725871004 | E31: 0.0004400370986 | F31: 0.0004416031501 | G31: 0.0007139748989 | H31: 0.0004648833701 | I31: 0.0008557642711 | J31: 0.0008358362311 | K31: 0.0008074781324 | L31: 0.0007185722972 | M31: 0.0006917459171 | N31: 0.0006718178771 | O31: 0.000649591138 | P31: 0.0006074374803 | Q31: 0.000433457349 | R31: 0.0004380558687 | S31: 0.0004142951683 | T31: 0.0005752455998 | U31: 0.0006603210173 | V31: 0.0007139704136 | W31: 0.0007469270319 | X31: 0.0007538253721 | Y31: 0.000654190779 | Z31: 0.0007377322352 | AA31: Residential individual housing
B32: Regular | C32: 0.0004364604099 | D32: 0.0004384054505 | E32: 0.0004275163793 | F32: 0.0004322764026 | G32: 0.0004564473791 | H32: 0.0003558477474 | I32: 0.0005081290418 | J32: 0.0004967152436 | K32: 0.0004853270899 | L32: 0.000452608587 | M32: 0.0004364347653 | N32: 0.0004250209671 | O32: 0.0004155265649 | P32: 0.0003998774703 | Q32: 0.0003329945063 | R32: 0.0003344148199 | S32: 0.0003191878741 | T32: 0.0003794170632 | U32: 0.0004188406301 | V32: 0.0004354109559 | W32: 0.0004482194233 | X32: 0.0004529794466 | Y32: 0.0004222059844 | Z32: 0.0004558970076 | AA32: Residential individual housing
A33: Residential apartment building | B33: Efficient | C33: 0.0003888835378 | D33: 0.0004132627945 | E33: 0.0004307908466 | F33: 0.0004586285747 | G33: 0.0004686060608 | H33: 0.0005367199593 | I33: 0.0005113650336 | J33: 0.0005228614363 | K33: 0.0005152836087 | L33: 0.0005286228524 | M33: 0.000463460136 | N33: 0.0004304175281 | O33: 0.0003939333458 | P33: 0.0003766313986 | Q33: 0.0003929572542 | R33: 0.0004172403014 | S33: 0.0004499156975 | T33: 0.0004631243237 | U33: 0.0004716048099 | V33: 0.0004593184285 | W33: 0.0004520805623 | X33: 0.0003945553789 | Y33: 0.0003604009607 | Z33: 0.0004130137522 | AA33: Residential apartment building
B34: Regular | C34: 0.0004364604099 | D34: 0.0004384054505 | E34: 0.0004275163793 | F34: 0.0004322764026 | G34: 0.0004564473791 | H34: 0.0003558477474 | I34: 0.0005081290418 | J34: 0.0004967152436 | K34: 0.0004853270899 | L34: 0.000452608587 | M34: 0.0004364347653 | N34: 0.0004250209671 | O34: 0.0004155265649 | P34: 0.0003998774703 | Q34: 0.0003329945063 | R34: 0.0003344148199 | S34: 0.0003191878741 | T34: 0.0003794170632 | U34: 0.0004188406301 | V34: 0.0004354109559 | W34: 0.0004482194233 | X34: 0.0004529794466 | Y34: 0.0004222059844 | Z34: 0.0004558970076 | AA34: Residential apartment building
A35: Office building | B35: Efficient | C35: 0.0003819736841 | D35: 0.0003853387827 | E35: 0.0003824641884 | F35: 0.0003849481678 | G35: 0.0003860196863 | H35: 0.0004195909439 | I35: 0.000464225736 | J35: 0.0006035978407 | K35: 0.0006980043361 | L35: 0.0006370697267 | M35: 0.0005810022334 | N35: 0.0005587069302 | O35: 0.0005384742994 | P35: 0.0005228590061 | Q35: 0.0005199312823 | R35: 0.0005122988234 | S35: 0.000494632291 | T35: 0.0004794001561 | U35: 0.0004476595906 | V35: 0.0004331109145 | W35: 0.0004177667626 | X35: 0.0004140242192 | Y35: 0.0004250109598 | Z35: 0.0004189054013 | AA35: Office building
B36: Regular | C36: 0.000281597369 | D36: 0.0002880142244 | E36: 0.0002980397025 | F36: 0.0003101670345 | G36: 0.0003509186185 | H36: 0.0004316030952 | I36: 0.0005415730558 | J36: 0.0006200370521 | K36: 0.0006642140571 | L36: 0.0006137039281 | M36: 0.0005897635249 | N36: 0.0005653804132 | O36: 0.0005425383582 | P36: 0.0005320211276 | Q36: 0.0005110175533 | R36: 0.0004968427603 | S36: 0.0004765275676 | T36: 0.0004373315359 | U36: 0.0003793572632 | V36: 0.0003261948 | W36: 0.0003171178887 | X36: 0.0003110234021 | Y36: 0.0003033546567 | Z36: 0.0003032371975 | AA36: Office building
A37: Kindergarten | B37: Efficient | C37: =C38 -> 0.0003199160213 | D37: =D38 -> 0.0003296468105 | E37: 0.0003318376419 | F37: 0.0003456344183 | G37: 0.000352357386 | H37: 0.000352291173 | I37: 0.0004552950574 | J37: 0.0005961701425 | K37: 0.0006458427905 | L37: 0.0005801397352 | M37: 0.0005126175867 | N37: 0.0005189085056 | O37: 0.0004809082504 | P37: 0.0004310173671 | Q37: 0.0004426587673 | R37: 0.0004492154966 | S37: 0.0004049610659 | T37: 0.0003097886059 | U37: 0.0003182739496 | V37: 0.0003239977654 | W37: 0.0003289859519 | X37: 0.0003410252456 | Y37: 0.000330506924 | Z37: 0.0003441940882 | AA37: Kindergarten
B38: Regular | C38: 0.0003199160213 | D38: 0.0003296468105 | E38: 0.0003318376419 | F38: 0.0003456344183 | G38: 0.000352357386 | H38: 0.000352291173 | I38: 0.0004552950574 | J38: 0.0005961701425 | K38: 0.0006458427905 | L38: 0.0005801397352 | M38: 0.0005126175867 | N38: 0.0005189085056 | O38: 0.0004809082504 | P38: 0.0004310173671 | Q38: 0.0004426587673 | R38: 0.0004492154966 | S38: 0.0004049610659 | T38: 0.0003097886059 | U38: 0.0003182739496 | V38: 0.0003239977654 | W38: 0.0003289859519 | X38: 0.0003410252456 | Y38: 0.000330506924 | Z38: 0.0003441940882 | AA38: Kindergarten
A39: School | B39: Efficient | C39: 0.0002078615379 | D39: 0.000221060325 | E39: 0.0002369797252 | F39: 0.0003204841065 | G39: 0.0003416060564 | H39: 0.0003819596028 | I39: 0.0004748981659 | J39: 0.0007488954315 | K39: 0.0009174653677 | L39: 0.0007933511984 | M39: 0.000729533502 | N39: 0.0006888514724 | O39: 0.0006408261909 | P39: 0.0005803944572 | Q39: 0.000560428588 | R39: 0.0005318661108 | S39: 0.0004865646241 | T39: 0.0003903720323 | U39: 0.0003656072308 | V39: 0.0003421143296 | W39: 0.0003187887318 | X39: 0.0003009828726 | Y39: 0.0002747940979 | Z39: 0.0002392208069 | AA39: School
B40: Regular | C40: 0.0002550031915 | D40: 0.0002630962729 | E40: 0.0002749390137 | F40: 0.000295644048 | G40: 0.0003134463236 | H40: 0.0003616162336 | I40: 0.0004824607226 | J40: 0.000584262887 | K40: 0.0006921476433 | L40: 0.0006207862791 | M40: 0.0005902065567 | N40: 0.0005528605102 | O40: 0.0005424258881 | P40: 0.0005281689081 | Q40: 0.0004916483846 | R40: 0.0004526410696 | S40: 0.0003798261595 | T40: 0.0003404827464 | U40: 0.0003262595545 | V40: 0.0003105941561 | W40: 0.0002835188971 | X40: 0.0002711486588 | Y40: 0.0002458767645 | Z40: 0.0002630088806 | AA40: School
A41: University/Collage | B41: Efficient | C41: =C35 -> 0.0003819736841 | D41: =D35 -> 0.0003853387827 | E41: 0.0003824641884 | F41: 0.0003849481678 | G41: 0.0003860196863 | H41: 0.0004195909439 | I41: 0.000464225736 | J41: 0.0006035978407 | K41: 0.0006980043361 | L41: 0.0006370697267 | M41: 0.0005810022334 | N41: 0.0005587069302 | O41: 0.0005384742994 | P41: 0.0005228590061 | Q41: 0.0005199312823 | R41: 0.0005122988234 | S41: 0.000494632291 | T41: 0.0004794001561 | U41: 0.0004476595906 | V41: 0.0004331109145 | W41: 0.0004177667626 | X41: 0.0004140242192 | Y41: 0.0004250109598 | Z41: 0.0004189054013 | AA41: University/Collage
B42: Regular | C42: =C36 -> 0.000281597369 | D42: =D36 -> 0.0002880142244 | E42: 0.0002980397025 | F42: 0.0003101670345 | G42: 0.0003509186185 | H42: 0.0004316030952 | I42: 0.0005415730558 | J42: 0.0006200370521 | K42: 0.0006642140571 | L42: 0.0006137039281 | M42: 0.0005897635249 | N42: 0.0005653804132 | O42: 0.0005425383582 | P42: 0.0005320211276 | Q42: 0.0005110175533 | R42: 0.0004968427603 | S42: 0.0004765275676 | T42: 0.0004373315359 | U42: 0.0003793572632 | V42: 0.0003261948 | W42: 0.0003171178887 | X42: 0.0003110234021 | Y42: 0.0003033546567 | Z42: 0.0003032371975 | AA42: University/Collage
A43: Hospital | B43: Efficient | C43: =C44 -> 0.0003784689874 | D43: =D44 -> 0.0003812008547 | E43: 0.000381781295 | F43: 0.0003941136892 | G43: 0.0003933116484 | H43: 0.0004093967834 | I43: 0.0004209404504 | J43: 0.0004533361068 | K43: 0.0004974442397 | L43: 0.0004575658902 | M43: 0.0004289422808 | N43: 0.000396395484 | O43: 0.0003761811976 | P43: 0.0003648364198 | Q43: 0.0003556487834 | R43: 0.000363185862 | S43: 0.0003797268132 | T43: 0.0004014494826 | U43: 0.0004085980616 | V43: 0.000421669177 | W43: 0.0004364678035 | X43: 0.0004354744707 | Y43: 0.0004150622313 | Z43: 0.0004202021469 | AA43: Hospital
B44: Regular | C44: 0.0003784689874 | D44: 0.0003812008547 | E44: 0.000381781295 | F44: 0.0003941136892 | G44: 0.0003933116484 | H44: 0.0004093967834 | I44: 0.0004209404504 | J44: 0.0004533361068 | K44: 0.0004974442397 | L44: 0.0004575658902 | M44: 0.0004289422808 | N44: 0.000396395484 | O44: 0.0003761811976 | P44: 0.0003648364198 | Q44: 0.0003556487834 | R44: 0.000363185862 | S44: 0.0003797268132 | T44: 0.0004014494826 | U44: 0.0004085980616 | V44: 0.000421669177 | W44: 0.0004364678035 | X44: 0.0004354744707 | Y44: 0.0004150622313 | Z44: 0.0004202021469 | AA44: Hospital
A45: Nursing home | B45: Efficient | C45: =C46 -> 0.000319897532 | D45: =D46 -> 0.0003240773915 | E45: 0.0003408524234 | F45: 0.0003610200811 | G45: 0.0003676357803 | H45: 0.0004277483256 | I45: 0.000445361439 | J45: 0.0004376507949 | K45: 0.0004901599934 | L45: 0.0004465742723 | M45: 0.000423170324 | N45: 0.0004131825144 | O45: 0.0003989302697 | P45: 0.000402901243 | Q45: 0.0003898036547 | R45: 0.000383342411 | S45: 0.0003886541337 | T45: 0.0003892019687 | U45: 0.0003727180974 | V45: 0.000364450154 | W45: 0.00033061845 | X45: 0.0003334264499 | Y45: 0.0003479684003 | Z45: 0.0003485742574 | AA45: Nursing home
B46: Regular | C46: 0.000319897532 | D46: 0.0003240773915 | E46: 0.0003408524234 | F46: 0.0003610200811 | G46: 0.0003676357803 | H46: 0.0004277483256 | I46: 0.000445361439 | J46: 0.0004376507949 | K46: 0.0004901599934 | L46: 0.0004465742723 | M46: 0.000423170324 | N46: 0.0004131825144 | O46: 0.0003989302697 | P46: 0.000402901243 | Q46: 0.0003898036547 | R46: 0.000383342411 | S46: 0.0003886541337 | T46: 0.0003892019687 | U46: 0.0003727180974 | V46: 0.000364450154 | W46: 0.00033061845 | X46: 0.0003334264499 | Y46: 0.0003479684003 | Z46: 0.0003485742574 | AA46: Nursing home
A47: Hotel | B47: Efficient | C47: =C48 -> 0.000397178722 | D47: =D48 -> 0.0003993807151 | E47: 0.000398568504 | F47: 0.0004052833219 | G47: 0.0004043738949 | H47: 0.000422037136 | I47: 0.000443449034 | J47: 0.000453268079 | K47: 0.0004769105339 | L47: 0.0004471172542 | M47: 0.0004309839744 | N47: 0.000421070477 | O47: 0.000407438946 | P47: 0.0004113628322 | Q47: 0.0003976740428 | R47: 0.0004056996642 | S47: 0.0004207460709 | T47: 0.0004395988605 | U47: 0.0004402190709 | V47: 0.0004353076371 | W47: 0.0004390142585 | X47: 0.000438198482 | Y47: 0.0004343144383 | Z47: 0.000436982081 | AA47: Hotel
B48: Regular | C48: 0.000397178722 | D48: 0.0003993807151 | E48: 0.000398568504 | F48: 0.0004052833219 | G48: 0.0004043738949 | H48: 0.000422037136 | I48: 0.000443449034 | J48: 0.000453268079 | K48: 0.0004769105339 | L48: 0.0004471172542 | M48: 0.0004309839744 | N48: 0.000421070477 | O48: 0.000407438946 | P48: 0.0004113628322 | Q48: 0.0003976740428 | R48: 0.0004056996642 | S48: 0.0004207460709 | T48: 0.0004395988605 | U48: 0.0004402190709 | V48: 0.0004353076371 | W48: 0.0004390142585 | X48: 0.000438198482 | Y48: 0.0004343144383 | Z48: 0.000436982081 | AA48: Hotel
A49: Sports Facility | B49: Efficient | C49: =C45 -> 0.000319897532 | D49: 0.0003240773915 | E49: 0.0003408524234 | F49: 0.0003610200811 | G49: 0.0003676357803 | H49: 0.0004277483256 | I49: 0.000445361439 | J49: 0.0004376507949 | K49: 0.0004901599934 | L49: 0.0004465742723 | M49: 0.000423170324 | N49: 0.0004131825144 | O49: 0.0003989302697 | P49: 0.000402901243 | Q49: 0.0003898036547 | R49: 0.000383342411 | S49: 0.0003886541337 | T49: 0.0003892019687 | U49: 0.0003727180974 | V49: 0.000364450154 | W49: 0.00033061845 | X49: 0.0003334264499 | Y49: 0.0003479684003 | Z49: 0.0003485742574 | AA49: Sports Facility
B50: Regular | C50: =C46 -> 0.000319897532 | D50: 0.0003240773915 | E50: 0.0003408524234 | F50: 0.0003610200811 | G50: 0.0003676357803 | H50: 0.0004277483256 | I50: 0.000445361439 | J50: 0.0004376507949 | K50: 0.0004901599934 | L50: 0.0004465742723 | M50: 0.000423170324 | N50: 0.0004131825144 | O50: 0.0003989302697 | P50: 0.000402901243 | Q50: 0.0003898036547 | R50: 0.000383342411 | S50: 0.0003886541337 | T50: 0.0003892019687 | U50: 0.0003727180974 | V50: 0.000364450154 | W50: 0.00033061845 | X50: 0.0003334264499 | Y50: 0.0003479684003 | Z50: 0.0003485742574 | AA50: Sports Facility
A51: Comercial building | B51: Efficient | C51: =C52 -> 0.0003617881372 | D51: =D52 -> 0.0003706943881 | E51: 0.0003666121448 | F51: 0.000389120709 | G51: 0.0003913805744 | H51: 0.0004451027003 | I51: 0.0005483557839 | J51: 0.0005970362055 | K51: 0.0006824544378 | L51: 0.000636383875 | M51: 0.0006268531888 | N51: 0.0005999022894 | O51: 0.0005743921878 | P51: 0.0005682280631 | Q51: 0.0005486697071 | R51: 0.0005494585472 | S51: 0.0005150976155 | T51: 0.0004870170465 | U51: 0.0004688403359 | V51: 0.0004523841886 | W51: 0.0004110054039 | X51: 0.0003714805285 | Y51: 0.0003642629856 | Z51: 0.0003869512566 | AA51: Comercial building
B52: Regular | C52: 0.0003617881372 | D52: 0.0003706943881 | E52: 0.0003666121448 | F52: 0.000389120709 | G52: 0.0003913805744 | H52: 0.0004451027003 | I52: 0.0005483557839 | J52: 0.0005970362055 | K52: 0.0006824544378 | L52: 0.000636383875 | M52: 0.0006268531888 | N52: 0.0005999022894 | O52: 0.0005743921878 | P52: 0.0005682280631 | Q52: 0.0005486697071 | R52: 0.0005494585472 | S52: 0.0005150976155 | T52: 0.0004870170465 | U52: 0.0004688403359 | V52: 0.0004523841886 | W52: 0.0004110054039 | X52: 0.0003714805285 | Y52: 0.0003642629856 | Z52: 0.0003869512566 | AA52: Comercial building
A53: Cultural building | B53: Efficient | C53: =C35 -> 0.0003819736841 | D53: 0.0003853387827 | E53: 0.0003824641884 | F53: 0.0003849481678 | G53: 0.0003860196863 | H53: 0.0004195909439 | I53: 0.000464225736 | J53: 0.0006035978407 | K53: 0.0006980043361 | L53: 0.0006370697267 | M53: 0.0005810022334 | N53: 0.0005587069302 | O53: 0.0005384742994 | P53: 0.0005228590061 | Q53: 0.0005199312823 | R53: 0.0005122988234 | S53: 0.000494632291 | T53: 0.0004794001561 | U53: 0.0004476595906 | V53: 0.0004331109145 | W53: 0.0004177667626 | X53: 0.0004140242192 | Y53: 0.0004250109598 | Z53: 0.0004189054013 | AA53: Cultural building
B54: Regular | C54: =C36 -> 0.000281597369 | D54: 0.0002880142244 | E54: 0.0002980397025 | F54: 0.0003101670345 | G54: 0.0003509186185 | H54: 0.0004316030952 | I54: 0.0005415730558 | J54: 0.0006200370521 | K54: 0.0006642140571 | L54: 0.0006137039281 | M54: 0.0005897635249 | N54: 0.0005653804132 | O54: 0.0005425383582 | P54: 0.0005320211276 | Q54: 0.0005110175533 | R54: 0.0004968427603 | S54: 0.0004765275676 | T54: 0.0004373315359 | U54: 0.0003793572632 | V54: 0.0003261948 | W54: 0.0003171178887 | X54: 0.0003110234021 | Y54: 0.0003033546567 | Z54: 0.0003032371975 | AA54: Cultural building
A55: Industry/Workshop | B55: Efficient | C55: =C35 -> 0.0003819736841 | D55: 0.0003853387827 | E55: 0.0003824641884 | F55: 0.0003849481678 | G55: 0.0003860196863 | H55: 0.0004195909439 | I55: 0.000464225736 | J55: 0.0006035978407 | K55: 0.0006980043361 | L55: 0.0006370697267 | M55: 0.0005810022334 | N55: 0.0005587069302 | O55: 0.0005384742994 | P55: 0.0005228590061 | Q55: 0.0005199312823 | R55: 0.0005122988234 | S55: 0.000494632291 | T55: 0.0004794001561 | U55: 0.0004476595906 | V55: 0.0004331109145 | W55: 0.0004177667626 | X55: 0.0004140242192 | Y55: 0.0004250109598 | Z55: 0.0004189054013 | AA55: Industry/Workshop
B56: Regular | C56: =C36 -> 0.000281597369 | D56: 0.0002880142244 | E56: 0.0002980397025 | F56: 0.0003101670345 | G56: 0.0003509186185 | H56: 0.0004316030952 | I56: 0.0005415730558 | J56: 0.0006200370521 | K56: 0.0006642140571 | L56: 0.0006137039281 | M56: 0.0005897635249 | N56: 0.0005653804132 | O56: 0.0005425383582 | P56: 0.0005320211276 | Q56: 0.0005110175533 | R56: 0.0004968427603 | S56: 0.0004765275676 | T56: 0.0004373315359 | U56: 0.0003793572632 | V56: 0.0003261948 | W56: 0.0003171178887 | X56: 0.0003110234021 | Y56: 0.0003033546567 | Z56: 0.0003032371975 | AA56: Industry/Workshop
A58: Hot water | C58: 00:00:00 | D58: 01:00:00 | E58: 02:00:00 | F58: 03:00:00 | G58: 04:00:00 | H58: 05:00:00 | I58: 06:00:00 | J58: 07:00:00 | K58: 08:00:00 | L58: 09:00:00 | M58: 10:00:00 | N58: 11:00:00 | O58: 12:00:00 | P58: 13:00:00 | Q58: 14:00:00 | R58: 15:00:00 | S58: 16:00:00 | T58: 17:00:00 | U58: 18:00:00 | V58: 19:00:00 | W58: 20:00:00 | X58: 21:00:00 | Y58: 22:00:00 | Z58: 23:00:00
A59: Residential individual housing | B59: Efficient | C59: 0.0001061376088 | D59: 5.224059419e-05 | E59: 5.476701675e-05 | F59: 6.739912954e-05 | G59: 7.076769295e-05 | H59: 0.0001608767642 | I59: 0.0001608767642 | J59: 0.0001709824545 | K59: 0.0001457182289 | L59: 0.0001617189051 | M59: 0.0001271911301 | N59: 0.0001052954679 | O59: 0.0001010847637 | P59: 9.940048195e-05 | Q59: 0.000128033271 | R59: 0.0001474025106 | S59: 0.0001364546795 | T59: 0.0001154011582 | U59: 0.000138981102 | V59: 0.000110348313 | W59: 0.0001069797496 | X59: 0.0001036111862 | Y59: 0.0001347703978 | Z59: 9.687405939e-05 | AA59: Residential individual housing
B60: Regular | C60: 0.0001093146227 | D60: 7.677445597e-05 | E60: 7.829977629e-05 | F60: 8.592637787e-05 | G60: 8.79601383e-05 | H60: 0.0001423632296 | I60: 0.0001423632296 | J60: 0.0001484645109 | K60: 0.0001332113077 | L60: 0.0001428716697 | M60: 0.0001220256254 | N60: 0.0001088061826 | O60: 0.0001062639821 | P60: 0.0001052471019 | Q60: 0.0001225340655 | R60: 0.0001342281879 | S60: 0.0001276184665 | T60: 0.0001149074639 | U60: 0.0001291437869 | V60: 0.0001118568233 | W60: 0.0001098230628 | X60: 0.0001077893024 | Y60: 0.0001266015863 | Z60: 0.0001037217816 | AA60: Residential individual housing
A61: Residential apartment building | B61: Efficient | C61: 9.141940142e-05 | D61: 9.119458678e-05 | E61: 9.399020386e-05 | F61: 9.894938526e-05 | G61: 0.000100368618 | H61: 0.0001186872415 | I61: 0.0001533501293 | J61: 0.0001516211428 | K61: 0.0001585415944 | L61: 0.0001509803027 | M61: 0.0001338293717 | N61: 0.00011813903 | O61: 0.0001051173721 | P61: 0.0001038213247 | Q61: 0.0001034012544 | R61: 0.0001112654049 | S61: 0.0001154695685 | T61: 0.0001119939875 | U61: 0.0001145575545 | V61: 0.000111727636 | W61: 0.0001091931875 | X61: 0.0001066213571 | Y61: 0.0001093145673 | Z61: 9.875576493e-05 | AA61: Residential apartment building
B62: Regular | C62: 0.0001061376088 | D62: 7.677445597e-05 | E62: 7.829977629e-05 | F62: 8.592637787e-05 | G62: 8.79601383e-05 | H62: 0.0001423632296 | I62: 0.0001423632296 | J62: 0.0001484645109 | K62: 0.0001332113077 | L62: 0.0001428716697 | M62: 0.0001220256254 | N62: 0.0001088061826 | O62: 0.0001062639821 | P62: 0.0001052471019 | Q62: 0.0001225340655 | R62: 0.0001342281879 | S62: 0.0001276184665 | T62: 0.0001149074639 | U62: 0.0001291437869 | V62: 0.0001118568233 | W62: 0.0001098230628 | X62: 0.0001077893024 | Y62: 0.0001266015863 | Z62: 0.0001037217816 | AA62: Residential apartment building
A63: Office building | B63: Efficient | C63: 7.251221265e-05 | D63: 7.000258489e-05 | E63: 7.56107609e-05 | F63: 7.889550278e-05 | G63: 9.272080417e-05 | H63: 0.0001007988187 | I63: 0.000138096692 | J63: 0.0002182224305 | K63: 0.0002275542222 | L63: 0.0002003138051 | M63: 0.0001965278221 | N63: 0.0001978563611 | O63: 0.0002069905371 | P63: 0.0002230836485 | Q63: 0.0002045485061 | R63: 0.0001615051625 | S63: 0.0001202944341 | T63: 8.607989801e-05 | U63: 6.898396491e-05 | V63: 5.828744129e-05 | W63: 5.973478828e-05 | X63: 6.866472471e-05 | Y63: 7.896547563e-05 | Z63: 7.317316104e-05 | AA63: Office building
B64: Regular | C64: 8.459570958e-05 | D64: 8.471517511e-05 | E64: 8.365257172e-05 | F64: 9.174841752e-05 | G64: 9.938854579e-05 | H64: 0.0001101950185 | I64: 0.0001429112495 | J64: 0.0001481937651 | K64: 0.0001697303328 | L64: 0.0001689554186 | M64: 0.0001643126247 | N64: 0.000171606176 | O64: 0.0001686063018 | P64: 0.0001650292714 | Q64: 0.0001588438289 | R64: 0.0001501393536 | S64: 0.0001366059995 | T64: 0.0001268441615 | U64: 0.000115933071 | V64: 0.0001092803502 | W64: 0.000101036291 | X64: 9.267006037e-05 | Y64: 8.984916958e-05 | Z64: 8.269744335e-05 | AA64: Office building
A65: Kindergarten | B65: Efficient | C65: =C66 -> 8.388099133e-05 | D65: =D66 -> 8.697880143e-05 | E65: 8.989742566e-05 | F65: 9.837527562e-05 | G65: 0.0001044000618 | H65: 0.000126554491 | I65: 0.0001517310739 | J65: 0.000165326124 | K65: 0.0001905994261 | L65: 0.0002046831331 | M65: 0.0002115188258 | N65: 0.0001770727347 | O65: 0.0001985746885 | P65: 0.0001925669045 | Q65: 0.0001627280701 | R65: 0.000171331016 | S65: 0.0001469659226 | T65: 0.0001130360326 | U65: 9.097722404e-05 | V65: 7.745071926e-05 | W65: 7.642087808e-05 | X65: 7.832828196e-05 | Y65: 7.880243916e-05 | Z65: 8.040895474e-05 | AA65: Kindergarten
B66: Regular | C66: 8.388099133e-05 | D66: 8.697880143e-05 | E66: 8.989742566e-05 | F66: 9.837527562e-05 | G66: 0.0001044000618 | H66: 0.000126554491 | I66: 0.0001517310739 | J66: 0.000165326124 | K66: 0.0001905994261 | L66: 0.0002046831331 | M66: 0.0002115188258 | N66: 0.0001770727347 | O66: 0.0001985746885 | P66: 0.0001925669045 | Q66: 0.0001627280701 | R66: 0.000171331016 | S66: 0.0001469659226 | T66: 0.0001130360326 | U66: 9.097722404e-05 | V66: 7.745071926e-05 | W66: 7.642087808e-05 | X66: 7.832828196e-05 | Y66: 7.880243916e-05 | Z66: 8.040895474e-05 | AA66: Kindergarten
A67: School | B67: Efficient | C67: 0.000102368043 | D67: 9.727809601e-05 | E67: 8.484388052e-05 | F67: 6.925435342e-05 | G67: 5.7779634e-05 | H67: 7.084796537e-05 | I67: 7.718374302e-05 | J67: 0.0001404778012 | K67: 0.0001690407176 | L67: 0.000174613122 | M67: 0.0001867556217 | N67: 0.0001800087262 | O67: 0.0001890586187 | P67: 0.0001763988835 | Q67: 0.0001824184417 | R67: 0.0001779681608 | S67: 0.0001480199008 | T67: 0.0001296828323 | U67: 0.0001141223391 | V67: 0.0001108158508 | W67: 0.0001153252446 | X67: 0.0001130099144 | Y67: 0.0001020125026 | Z67: 9.849539328e-05 | AA67: School
B68: Regular | C68: 8.57920434e-05 | D68: 8.887554234e-05 | E68: 9.359422898e-05 | F68: 9.866515148e-05 | G68: 0.0001033103245 | H68: 0.0001341625719 | I68: 0.0001802278832 | J68: 0.0001928808207 | K68: 0.0001945113791 | L68: 0.000190156372 | M68: 0.0001895284507 | N68: 0.0001816043103 | O68: 0.0001755708591 | P68: 0.0001708889478 | Q68: 0.0001607568429 | R68: 0.0001471605606 | S68: 0.0001257792027 | T68: 0.0001137606305 | U68: 0.0001075087494 | V68: 0.0001015535523 | W68: 9.677838789e-05 | X68: 9.223772647e-05 | Y68: 8.546432443e-05 | Z68: 8.474144651e-05 | AA68: School
A69: University/Collage | B69: Efficient | C69: =C63 -> 7.251221265e-05 | D69: =D63 -> 7.000258489e-05 | E69: 7.56107609e-05 | F69: 7.889550278e-05 | G69: 9.272080417e-05 | H69: 0.0001007988187 | I69: 0.000138096692 | J69: 0.0002182224305 | K69: 0.0002275542222 | L69: 0.0002003138051 | M69: 0.0001965278221 | N69: 0.0001978563611 | O69: 0.0002069905371 | P69: 0.0002230836485 | Q69: 0.0002045485061 | R69: 0.0001615051625 | S69: 0.0001202944341 | T69: 8.607989801e-05 | U69: 6.898396491e-05 | V69: 5.828744129e-05 | W69: 5.973478828e-05 | X69: 6.866472471e-05 | Y69: 7.896547563e-05 | Z69: 7.317316104e-05 | AA69: University/Collage
B70: Regular | C70: =C64 -> 8.459570958e-05 | D70: =D64 -> 8.471517511e-05 | E70: 8.365257172e-05 | F70: 9.174841752e-05 | G70: 9.938854579e-05 | H70: 0.0001101950185 | I70: 0.0001429112495 | J70: 0.0001481937651 | K70: 0.0001697303328 | L70: 0.0001689554186 | M70: 0.0001643126247 | N70: 0.000171606176 | O70: 0.0001686063018 | P70: 0.0001650292714 | Q70: 0.0001588438289 | R70: 0.0001501393536 | S70: 0.0001366059995 | T70: 0.0001268441615 | U70: 0.000115933071 | V70: 0.0001092803502 | W70: 0.000101036291 | X70: 9.267006037e-05 | Y70: 8.984916958e-05 | Z70: 8.269744335e-05 | AA70: University/Collage
A71: Hospital | B71: Efficient | C71: =C72 -> 0.0001031939073 | D71: =D72 -> 0.0001077712738 | E71: 0.0001096850457 | F71: 0.0001132413818 | G71: 0.0001169713662 | H71: 0.0001226098167 | I71: 0.000129980471 | J71: 0.0001277862325 | K71: 0.0001290670784 | L71: 0.0001410046697 | M71: 0.0001390569692 | N71: 0.0001347914231 | O71: 0.0001317843033 | P71: 0.0001281142564 | Q71: 0.000129992123 | R71: 0.0001239667776 | S71: 0.0001219139103 | T71: 0.0001157476618 | U71: 0.0001078858169 | V71: 0.0001072760389 | W71: 0.0001073550538 | X71: 0.0001117718935 | Y71: 0.000113807751 | Z71: 0.0001089045064 | AA71: Hospital
B72: Regular | C72: 0.0001031939073 | D72: 0.0001077712738 | E72: 0.0001096850457 | F72: 0.0001132413818 | G72: 0.0001169713662 | H72: 0.0001226098167 | I72: 0.000129980471 | J72: 0.0001277862325 | K72: 0.0001290670784 | L72: 0.0001410046697 | M72: 0.0001390569692 | N72: 0.0001347914231 | O72: 0.0001317843033 | P72: 0.0001281142564 | Q72: 0.000129992123 | R72: 0.0001239667776 | S72: 0.0001219139103 | T72: 0.0001157476618 | U72: 0.0001078858169 | V72: 0.0001072760389 | W72: 0.0001073550538 | X72: 0.0001117718935 | Y72: 0.000113807751 | Z72: 0.0001089045064 | AA72: Hospital
A73: Nursing home | B73: Efficient | C73: =C74 -> 9.038384616e-05 | D73: =D74 -> 9.220436428e-05 | E73: 9.461067565e-05 | F73: 0.0001050094987 | G73: 0.0001222738872 | H73: 0.0001283312745 | I73: 0.0001417666187 | J73: 0.0001457272999 | K73: 0.0001468391508 | L73: 0.0001558062156 | M73: 0.0001577590127 | N73: 0.0001547849109 | O73: 0.0001468961825 | P73: 0.0001345007623 | Q73: 0.0001296804974 | R73: 0.0001240888471 | S73: 0.0001124642987 | T73: 0.0001090999457 | U73: 0.0001051871241 | V73: 0.0001029090743 | W73: 9.438104856e-05 | X73: 8.970879995e-05 | Y73: 8.970489084e-05 | Z73: 8.921807105e-05 | AA73: Nursing home
B74: Regular | C74: 9.038384616e-05 | D74: 9.220436428e-05 | E74: 9.461067565e-05 | F74: 0.0001050094987 | G74: 0.0001222738872 | H74: 0.0001283312745 | I74: 0.0001417666187 | J74: 0.0001457272999 | K74: 0.0001468391508 | L74: 0.0001558062156 | M74: 0.0001577590127 | N74: 0.0001547849109 | O74: 0.0001468961825 | P74: 0.0001345007623 | Q74: 0.0001296804974 | R74: 0.0001240888471 | S74: 0.0001124642987 | T74: 0.0001090999457 | U74: 0.0001051871241 | V74: 0.0001029090743 | W74: 9.438104856e-05 | X74: 8.970879995e-05 | Y74: 8.970489084e-05 | Z74: 8.921807105e-05 | AA74: Nursing home
A75: Hotel | B75: Efficient | C75: =C76 -> 8.202709387e-05 | D75: =D76 -> 6.120743464e-05 | E75: 5.220726609e-05 | F75: 5.821429402e-05 | G75: 6.192784599e-05 | H75: 7.336507334e-05 | I75: 0.0001403079146 | J75: 0.0002043142993 | K75: 0.0002201954991 | L75: 0.000177957898 | M75: 0.0001535183278 | N75: 0.0001271421578 | O75: 0.0001102483035 | P75: 0.0001043882295 | Q75: 9.932019386e-05 | R75: 9.715198875e-05 | S75: 9.881767261e-05 | T75: 0.0001036286554 | U75: 0.0001162349177 | V75: 0.0001151796877 | W75: 0.0001128371231 | X75: 0.0001278485438 | Y75: 0.0001321430653 | Z75: 0.0001095425417 | AA75: Hotel
B76: Regular | C76: 8.202709387e-05 | D76: 6.120743464e-05 | E76: 5.220726609e-05 | F76: 5.821429402e-05 | G76: 6.192784599e-05 | H76: 7.336507334e-05 | I76: 0.0001403079146 | J76: 0.0002043142993 | K76: 0.0002201954991 | L76: 0.000177957898 | M76: 0.0001535183278 | N76: 0.0001271421578 | O76: 0.0001102483035 | P76: 0.0001043882295 | Q76: 9.932019386e-05 | R76: 9.715198875e-05 | S76: 9.881767261e-05 | T76: 0.0001036286554 | U76: 0.0001162349177 | V76: 0.0001151796877 | W76: 0.0001128371231 | X76: 0.0001278485438 | Y76: 0.0001321430653 | Z76: 0.0001095425417 | AA76: Hotel
A77: Sports Facility | B77: Efficient | C77: =C73 -> 9.038384616e-05 | D77: 9.220436428e-05 | E77: 9.461067565e-05 | F77: 0.0001050094987 | G77: 0.0001222738872 | H77: 0.0001283312745 | I77: 0.0001417666187 | J77: 0.0001457272999 | K77: 0.0001468391508 | L77: 0.0001558062156 | M77: 0.0001577590127 | N77: 0.0001547849109 | O77: 0.0001468961825 | P77: 0.0001345007623 | Q77: 0.0001296804974 | R77: 0.0001240888471 | S77: 0.0001124642987 | T77: 0.0001090999457 | U77: 0.0001051871241 | V77: 0.0001029090743 | W77: 9.438104856e-05 | X77: 8.970879995e-05 | Y77: 8.970489084e-05 | Z77: 8.921807105e-05 | AA77: Sports Facility
B78: Regular | C78: =C74 -> 9.038384616e-05 | D78: 9.220436428e-05 | E78: 9.461067565e-05 | F78: 0.0001050094987 | G78: 0.0001222738872 | H78: 0.0001283312745 | I78: 0.0001417666187 | J78: 0.0001457272999 | K78: 0.0001468391508 | L78: 0.0001558062156 | M78: 0.0001577590127 | N78: 0.0001547849109 | O78: 0.0001468961825 | P78: 0.0001345007623 | Q78: 0.0001296804974 | R78: 0.0001240888471 | S78: 0.0001124642987 | T78: 0.0001090999457 | U78: 0.0001051871241 | V78: 0.0001029090743 | W78: 9.438104856e-05 | X78: 8.970879995e-05 | Y78: 8.970489084e-05 | Z78: 8.921807105e-05 | AA78: Sports Facility
A79: Comercial building | B79: Efficient | C79: =C80 -> 0.0001015805489 | D79: =D80 -> 0.0001018214093 | E79: 0.0001036339358 | F79: 0.0001061076255 | G79: 0.0001076687496 | H79: 0.0001165135993 | I79: 0.0001264656509 | J79: 0.0001401850259 | K79: 0.0001459999153 | L79: 0.0001475339053 | M79: 0.0001446358109 | N79: 0.0001431855834 | O79: 0.000139146255 | P79: 0.0001395864728 | Q79: 0.0001372258111 | R79: 0.0001346452125 | S79: 0.0001330201263 | T79: 0.0001223210864 | U79: 0.0001183456513 | V79: 0.0001125123136 | W79: 0.0001088822188 | X79: 0.0001037425637 | Y79: 9.938438736e-05 | Z79: 9.845898819e-05 | AA79: Comercial building
B80: Regular | C80: 0.0001015805489 | D80: 0.0001018214093 | E80: 0.0001036339358 | F80: 0.0001061076255 | G80: 0.0001076687496 | H80: 0.0001165135993 | I80: 0.0001264656509 | J80: 0.0001401850259 | K80: 0.0001459999153 | L80: 0.0001475339053 | M80: 0.0001446358109 | N80: 0.0001431855834 | O80: 0.000139146255 | P80: 0.0001395864728 | Q80: 0.0001372258111 | R80: 0.0001346452125 | S80: 0.0001330201263 | T80: 0.0001223210864 | U80: 0.0001183456513 | V80: 0.0001125123136 | W80: 0.0001088822188 | X80: 0.0001037425637 | Y80: 9.938438736e-05 | Z80: 9.845898819e-05 | AA80: Comercial building
A81: Cultural building | B81: Efficient | C81: =C63 -> 7.251221265e-05 | D81: 7.000258489e-05 | E81: 7.56107609e-05 | F81: 7.889550278e-05 | G81: 9.272080417e-05 | H81: 0.0001007988187 | I81: 0.000138096692 | J81: 0.0002182224305 | K81: 0.0002275542222 | L81: 0.0002003138051 | M81: 0.0001965278221 | N81: 0.0001978563611 | O81: 0.0002069905371 | P81: 0.0002230836485 | Q81: 0.0002045485061 | R81: 0.0001615051625 | S81: 0.0001202944341 | T81: 8.607989801e-05 | U81: 6.898396491e-05 | V81: 5.828744129e-05 | W81: 5.973478828e-05 | X81: 6.866472471e-05 | Y81: 7.896547563e-05 | Z81: 7.317316104e-05 | AA81: Cultural building
B82: Regular | C82: =C64 -> 8.459570958e-05 | D82: 8.471517511e-05 | E82: 8.365257172e-05 | F82: 9.174841752e-05 | G82: 9.938854579e-05 | H82: 0.0001101950185 | I82: 0.0001429112495 | J82: 0.0001481937651 | K82: 0.0001697303328 | L82: 0.0001689554186 | M82: 0.0001643126247 | N82: 0.000171606176 | O82: 0.0001686063018 | P82: 0.0001650292714 | Q82: 0.0001588438289 | R82: 0.0001501393536 | S82: 0.0001366059995 | T82: 0.0001268441615 | U82: 0.000115933071 | V82: 0.0001092803502 | W82: 0.000101036291 | X82: 9.267006037e-05 | Y82: 8.984916958e-05 | Z82: 8.269744335e-05 | AA82: Cultural building
A83: Industry/Workshop | B83: Efficient | C83: =C63 -> 7.251221265e-05 | D83: 7.000258489e-05 | E83: 7.56107609e-05 | F83: 7.889550278e-05 | G83: 9.272080417e-05 | H83: 0.0001007988187 | I83: 0.000138096692 | J83: 0.0002182224305 | K83: 0.0002275542222 | L83: 0.0002003138051 | M83: 0.0001965278221 | N83: 0.0001978563611 | O83: 0.0002069905371 | P83: 0.0002230836485 | Q83: 0.0002045485061 | R83: 0.0001615051625 | S83: 0.0001202944341 | T83: 8.607989801e-05 | U83: 6.898396491e-05 | V83: 5.828744129e-05 | W83: 5.973478828e-05 | X83: 6.866472471e-05 | Y83: 7.896547563e-05 | Z83: 7.317316104e-05 | AA83: Industry/Workshop
B84: Regular | C84: =C64 -> 8.459570958e-05 | D84: 8.471517511e-05 | E84: 8.365257172e-05 | F84: 9.174841752e-05 | G84: 9.938854579e-05 | H84: 0.0001101950185 | I84: 0.0001429112495 | J84: 0.0001481937651 | K84: 0.0001697303328 | L84: 0.0001689554186 | M84: 0.0001643126247 | N84: 0.000171606176 | O84: 0.0001686063018 | P84: 0.0001650292714 | Q84: 0.0001588438289 | R84: 0.0001501393536 | S84: 0.0001366059995 | T84: 0.0001268441615 | U84: 0.000115933071 | V84: 0.0001092803502 | W84: 0.000101036291 | X84: 9.267006037e-05 | Y84: 8.984916958e-05 | Z84: 8.269744335e-05 | AA84: Industry/Workshop

Sheet Test (hidden)
B1: Work | C1: Service | D1: Private errand | E1: Utside Service | F1: Goods transport | G1: Other | I1: Walk/bike | J1: Work | K1: Service | L1: Private errand | M1: Utside Service | N1: Goods transport | O1: Other | Q1: Walk/bike | R1: Work | S1: Service | T1: Private errand | U1: Utside Service | V1: Goods transport | W1: Other | Y1: Walk/bike | Z1: Work | AA1: Service | AB1: Private errand | AC1: Utside Service | AD1: Goods transport | AE1: Other | AG1: Walk/bike | AH1: Work | AI1: Service | AJ1: Private errand | AK1: Utside Service | AL1: Goods transport | AM1: Other | AO1: Walk/bike | AP1: Work | AQ1: Service | AR1: Private errand | AS1: Utside Service | AT1: Goods transport | AU1: Other
A2: Residential individual housing | B2: 0 | C2: 0 | D2: 0 | E2: 0 | F2: 0 | G2: 0 | J2: 0 | K2: 0 | L2: 0 | M2: 0 | N2: 0 | O2: 0 | Z2: 0 | AA2: 0 | AB2: 0 | AC2: 0 | AD2: 0 | AE2: 0 | AH2: 0 | AI2: 0 | AJ2: 0 | AK2: 0 | AL2: 0 | AM2: 0 | AP2: 0 | AQ2: 0 | AR2: 0 | AS2: 0 | AT2: 0 | AU2: 0 | AX2: 0 | AY2: 0 | AZ2: 0 | BA2: 0 | BB2: 0 | BC2: 0 | BF2: 0 | BG2: 0 | BH2: 0 | BI2: 0 | BJ2: 0 | BK2: 0 | BN2: 0 | BO2: 0 | BP2: 0 | BQ2: 0 | BR2: 0 | BS2: 0 | BV2: 0 | CD2: 0
A3: Residential apartment building | B3: 2489.6 | C3: 311.2 | D3: 3112 | E3: 5290.4 | F3: 311.2 | G3: 0 | J3: 497.92 | K3: 52.904 | L3: 1431.52 | M3: 899.368 | N3: 0 | O3: 0 | Z3: 497.92 | AA3: 52.904 | AB3: 1431.52 | AC3: 899.368 | AD3: 0 | AE3: 0 | AH3: 0 | AI3: 0 | AJ3: 0 | AK3: 0 | AL3: 0 | AM3: 0 | AP3: 0 | AQ3: 0 | AR3: 0 | AS3: 0 | AT3: 0 | AU3: 0 | AX3: 0 | AY3: 0 | AZ3: 0 | BA3: 0 | BB3: 0 | BC3: 0 | BF3: 0 | BG3: 0 | BH3: 0 | BI3: 0 | BJ3: 0 | BK3: 0 | BN3: 0 | BO3: 0 | BP3: 0 | BQ3: 0 | BR3: 0 | BS3: 0 | BV3: 44419539.97 | CD3: 361134.4713
A4: Office building | B4: 816 | C4: 306 | D4: 102 | E4: 51 | F4: 102 | G4: 729.3 | J4: 122.4 | K4: 52.02 | L4: 46.92 | M4: 8.67 | N4: 0 | O4: 313.599 | Z4: 122.4 | AA4: 52.02 | AB4: 46.92 | AC4: 8.67 | AD4: 0 | AE4: 313.599 | AH4: 0 | AI4: 0 | AJ4: 0 | AK4: 0 | AL4: 0 | AM4: 0 | AP4: 0 | AQ4: 0 | AR4: 0 | AS4: 0 | AT4: 0 | AU4: 0 | AX4: 0 | AY4: 0 | AZ4: 0 | BA4: 0 | BB4: 0 | BC4: 0 | BF4: 0 | BG4: 0 | BH4: 0 | BI4: 0 | BJ4: 0 | BK4: 0 | BN4: 0 | BO4: 0 | BP4: 0 | BQ4: 0 | BR4: 0 | BS4: 0 | BV4: 3835542138 | CD4: 11977715.15
A5: Kindergarten | B5: 73.6 | C5: 27.6 | D5: 9.2 | E5: 4.6 | F5: 9.2 | G5: 237 | J5: 11.04 | K5: 4.692 | L5: 4.232 | M5: 0.782 | N5: 0 | O5: 101.91 | Z5: 11.04 | AA5: 4.692 | AB5: 4.232 | AC5: 0.782 | AD5: 0 | AE5: 101.91 | AH5: 0 | AI5: 0 | AJ5: 0 | AK5: 0 | AL5: 0 | AM5: 0 | AP5: 0 | AQ5: 0 | AR5: 0 | AS5: 0 | AT5: 0 | AU5: 0 | AX5: 0 | AY5: 0 | AZ5: 0 | BA5: 0 | BB5: 0 | BC5: 0 | BF5: 0 | BG5: 0 | BH5: 0 | BI5: 0 | BJ5: 0 | BK5: 0 | BN5: 0 | BO5: 0 | BP5: 0 | BQ5: 0 | BR5: 0 | BS5: 0 | BV5: 34507622.97 | CD5: 280549.7803
A6: School | B6: 160 | C6: 60 | D6: 20 | E6: 10 | F6: 20 | G6: 614.2 | J6: 24 | K6: 10.2 | L6: 9.2 | M6: 1.7 | N6: 0 | O6: 264.106 | Z6: 24 | AA6: 10.2 | AB6: 9.2 | AC6: 1.7 | AD6: 0 | AE6: 264.106 | AH6: 0 | AI6: 0 | AJ6: 0 | AK6: 0 | AL6: 0 | AM6: 0 | AP6: 0 | AQ6: 0 | AR6: 0 | AS6: 0 | AT6: 0 | AU6: 0 | AX6: 0 | AY6: 0 | AZ6: 0 | BA6: 0 | BB6: 0 | BC6: 0 | BF6: 0 | BG6: 0 | BH6: 0 | BI6: 0 | BJ6: 0 | BK6: 0 | BN6: 0 | BO6: 0 | BP6: 0 | BQ6: 0 | BR6: 0 | BS6: 0 | BV6: 2499359941 | CD6: 3407491.78
A7: University/Collage | B7: 0 | C7: 0 | D7: 0 | E7: 0 | F7: 0 | G7: 0 | J7: 0 | K7: 0 | L7: 0 | M7: 0 | N7: 0 | O7: 0 | Z7: 0 | AA7: 0 | AB7: 0 | AC7: 0 | AD7: 0 | AE7: 0 | AH7: 0 | AI7: 0 | AJ7: 0 | AK7: 0 | AL7: 0 | AM7: 0 | AP7: 0 | AQ7: 0 | AR7: 0 | AS7: 0 | AT7: 0 | AU7: 0 | AX7: 0 | AY7: 0 | AZ7: 0 | BA7: 0 | BB7: 0 | BC7: 0 | BF7: 0 | BG7: 0 | BH7: 0 | BI7: 0 | BJ7: 0 | BK7: 0 | BN7: 0 | BO7: 0 | BP7: 0 | BQ7: 0 | BR7: 0 | BS7: 0 | BV7: 14243833.51 | CD7: 115803.5245
A8: Hospital | B8: 0 | C8: 0 | D8: 0 | E8: 0 | F8: 0 | G8: 0 | J8: 0 | K8: 0 | L8: 0 | M8: 0 | N8: 0 | O8: 0 | Z8: 0 | AA8: 0 | AB8: 0 | AC8: 0 | AD8: 0 | AE8: 0 | AH8: 0 | AI8: 0 | AJ8: 0 | AK8: 0 | AL8: 0 | AM8: 0 | AP8: 0 | AQ8: 0 | AR8: 0 | AS8: 0 | AT8: 0 | AU8: 0 | AX8: 0 | AY8: 0 | AZ8: 0 | BA8: 0 | BB8: 0 | BC8: 0 | BF8: 0 | BG8: 0 | BH8: 0 | BI8: 0 | BJ8: 0 | BK8: 0 | BN8: 0 | BO8: 0 | BP8: 0 | BQ8: 0 | BR8: 0 | BS8: 0 | BV8: 410759057.9 | CD8: 1299870.437
A9: Nursing home | B9: 334.4 | C9: 125.4 | D9: 41.8 | E9: 20.9 | F9: 41.8 | G9: 370 | J9: 50.16 | K9: 21.318 | L9: 19.228 | M9: 3.553 | N9: 0 | O9: 159.1 | Z9: 50.16 | AA9: 21.318 | AB9: 19.228 | AC9: 3.553 | AD9: 0 | AE9: 159.1 | AH9: 0 | AI9: 0 | AJ9: 0 | AK9: 0 | AL9: 0 | AM9: 0 | AP9: 0 | AQ9: 0 | AR9: 0 | AS9: 0 | AT9: 0 | AU9: 0 | AX9: 0 | AY9: 0 | AZ9: 0 | BA9: 0 | BB9: 0 | BC9: 0 | BF9: 0 | BG9: 0 | BH9: 0 | BI9: 0 | BJ9: 0 | BK9: 0 | BN9: 0 | BO9: 0 | BP9: 0 | BQ9: 0 | BR9: 0 | BS9: 0
A10: Hotel | B10: 0 | C10: 0 | D10: 0 | E10: 0 | F10: 0 | G10: 0 | J10: 0 | K10: 0 | L10: 0 | M10: 0 | N10: 0 | O10: 0 | Z10: 0 | AA10: 0 | AB10: 0 | AC10: 0 | AD10: 0 | AE10: 0 | AH10: 0 | AI10: 0 | AJ10: 0 | AK10: 0 | AL10: 0 | AM10: 0 | AP10: 0 | AQ10: 0 | AR10: 0 | AS10: 0 | AT10: 0 | AU10: 0 | AX10: 0 | AY10: 0 | AZ10: 0 | BA10: 0 | BB10: 0 | BC10: 0 | BF10: 0 | BG10: 0 | BH10: 0 | BI10: 0 | BJ10: 0 | BK10: 0 | BN10: 0 | BO10: 0 | BP10: 0 | BQ10: 0 | BR10: 0 | BS10: 0
A11: Sports Facility | B11: 40 | C11: 15 | D11: 5 | E11: 2.5 | F11: 5 | G11: 0 | J11: 6 | K11: 2.55 | L11: 2.3 | M11: 0.425 | N11: 0 | O11: 0 | Z11: 6 | AA11: 2.55 | AB11: 2.3 | AC11: 0.425 | AD11: 0 | AE11: 0 | AH11: 0 | AI11: 0 | AJ11: 0 | AK11: 0 | AL11: 0 | AM11: 0 | AP11: 0 | AQ11: 0 | AR11: 0 | AS11: 0 | AT11: 0 | AU11: 0 | AX11: 0 | AY11: 0 | AZ11: 0 | BA11: 0 | BB11: 0 | BC11: 0 | BF11: 0 | BG11: 0 | BH11: 0 | BI11: 0 | BJ11: 0 | BK11: 0 | BN11: 0 | BO11: 0 | BP11: 0 | BQ11: 0 | BR11: 0 | BS11: 0
A12: Comercial building | B12: 432 | C12: 54 | D12: 27 | E12: 27 | F12: 270 | G12: 8250 | J12: 86.4 | K12: 9.18 | L12: 12.42 | M12: 4.59 | N12: 0 | O12: 3630 | Z12: 86.4 | AA12: 9.18 | AB12: 12.42 | AC12: 4.59 | AD12: 0 | AE12: 3630 | AH12: 0 | AI12: 0 | AJ12: 0 | AK12: 0 | AL12: 0 | AM12: 0 | AP12: 0 | AQ12: 0 | AR12: 0 | AS12: 0 | AT12: 0 | AU12: 0 | AX12: 0 | AY12: 0 | AZ12: 0 | BA12: 0 | BB12: 0 | BC12: 0 | BF12: 0 | BG12: 0 | BH12: 0 | BI12: 0 | BJ12: 0 | BK12: 0 | BN12: 0 | BO12: 0 | BP12: 0 | BQ12: 0 | BR12: 0 | BS12: 0
A13: Cultural building | B13: 48 | C13: 18 | D13: 6 | E13: 3 | F13: 6 | G13: 4207.5 | J13: 9.6 | K13: 3.06 | L13: 2.76 | M13: 0.51 | N13: 0 | O13: 1851.3 | Z13: 9.6 | AA13: 3.06 | AB13: 2.76 | AC13: 0.51 | AD13: 0 | AE13: 1851.3 | AH13: 0 | AI13: 0 | AJ13: 0 | AK13: 0 | AL13: 0 | AM13: 0 | AP13: 0 | AQ13: 0 | AR13: 0 | AS13: 0 | AT13: 0 | AU13: 0 | AX13: 0 | AY13: 0 | AZ13: 0 | BA13: 0 | BB13: 0 | BC13: 0 | BF13: 0 | BG13: 0 | BH13: 0 | BI13: 0 | BJ13: 0 | BK13: 0 | BN13: 0 | BO13: 0 | BP13: 0 | BQ13: 0 | BR13: 0 | BS13: 0
A14: Industry/Workshop | B14: 288 | C14: 36 | D14: 18 | E14: 18 | F14: 180 | G14: 0 | J14: 43.2 | K14: 6.12 | L14: 8.28 | M14: 3.06 | N14: 0 | O14: 0 | Z14: 43.2 | AA14: 6.12 | AB14: 8.28 | AC14: 3.06 | AD14: 0 | AE14: 0 | AH14: 0 | AI14: 0 | AJ14: 0 | AK14: 0 | AL14: 0 | AM14: 0 | AP14: 0 | AQ14: 0 | AR14: 0 | AS14: 0 | AT14: 0 | AU14: 0 | AX14: 0 | AY14: 0 | AZ14: 0 | BA14: 0 | BB14: 0 | BC14: 0 | BF14: 0 | BG14: 0 | BH14: 0 | BI14: 0 | BJ14: 0 | BK14: 0 | BN14: 0 | BO14: 0 | BP14: 0 | BQ14: 0 | BR14: 0 | BS14: 0
I16: Public | J16: 0 | K16: 0 | L16: 0 | M16: 0 | N16: 0 | O16: 0 | Q16: Public | Y16: Public | Z16: 0 | AA16: 0 | AB16: 0 | AC16: 0 | AD16: 0 | AE16: 0 | AG16: Bus | AH16: 0 | AI16: 0 | AJ16: 0 | AK16: 0 | AL16: 0 | AM16: 0 | AO16: Bus | AP16: 0 | AQ16: 0 | AR16: 0 | AS16: 0 | AT16: 0 | AU16: 0 | AX16: 0 | AY16: 0 | AZ16: 0 | BA16: 0 | BB16: 0 | BC16: 0 | BF16: 0 | BG16: 0 | BH16: 0 | BI16: 0 | BJ16: 0 | BK16: 0 | BN16: 0 | BO16: 0 | BP16: 0 | BQ16: 0 | BR16: 0 | BS16: 0
J17: 1244.8 | K17: 87.136 | L17: 684.64 | M17: 1481.312 | N17: 0 | O17: 0 | Z17: 1244.8 | AA17: 87.136 | AB17: 684.64 | AC17: 1481.312 | AD17: 0 | AE17: 0 | AH17: 58763.42643 | AI17: 4113.43985 | AJ17: 32319.88454 | AK17: 69928.47745 | AL17: 0 | AM17: 0 | AP17: 62610880.49 | AQ17: 4382761.634 | AR17: 34435984.27 | AS17: 74506947.78 | AT17: 0 | AU17: 0 | AX17: 7521.718583 | AY17: 526.5203008 | AZ17: 4136.945221 | BA17: 8950.845114 | BB17: 0 | BC17: 0 | BF17: 195207.9402 | BG17: 13664.55581 | BH17: 107364.3671 | BI17: 232297.4488 | BJ17: 0 | BK17: 0 | BN17: 202729.6588 | BO17: 14191.07611 | BP17: 111501.3123 | BQ17: 241248.2939 | BR17: 0 | BS17: 0
J18: 301.92 | K18: 85.68 | L18: 22.44 | M18: 14.28 | N18: 0 | O18: 182.325 | Z18: 301.92 | AA18: 85.68 | AB18: 22.44 | AC18: 14.28 | AD18: 0 | AE18: 182.325 | AH18: 14252.77451 | AI18: 4044.706279 | AJ18: 1059.327835 | AK18: 674.1177132 | AL18: 0 | AM18: 8607.03866 | AP18: 15185955.2 | AQ18: 4309527.828 | AR18: 1128685.86 | AS18: 718254.638 | AT18: 0 | AU18: 9170572.61 | AX18: 1824.355137 | AY18: 517.7224037 | AZ18: 135.5939629 | BA18: 86.28706729 | BB18: 0 | BC18: 1101.700948 | BF18: 47346.70734 | BG18: 13436.22776 | BH18: 3519.012032 | BI18: 2239.371293 | BJ18: 0 | BK18: 28591.97276 | BN18: 49171.06248 | BO18: 13953.95016 | BP18: 3654.605995 | BQ18: 2325.658361 | BR18: 0 | BS18: 29693.67371
J19: 27.232 | K19: 7.728 | L19: 2.024 | M19: 1.288 | N19: 0 | O19: 59.25 | Z19: 27.232 | AA19: 7.728 | AB19: 2.024 | AC19: 1.288 | AD19: 0 | AE19: 59.25 | AH19: 1285.544367 | AI19: 364.8166448 | AJ19: 95.54721649 | AK19: 60.80277413 | AL19: 0 | AM19: 2797.022024 | AP19: 1369713.607 | AQ19: 388702.51 | AR19: 101803.0383 | AS19: 64783.75166 | AT19: 0 | AU19: 2980153.172 | AX19: 164.549679 | AY19: 46.69653053 | AZ19: 12.23004371 | BA19: 7.782755089 | BB19: 0 | BC19: 358.0188191 | BF19: 4270.487329 | BG19: 1211.895053 | BH19: 317.4010853 | BI19: 201.9825088 | BJ19: 0 | BK19: 9291.509043 | BN19: 4435.037008 | BO19: 1258.591583 | BP19: 329.631129 | BQ19: 209.7652639 | BR19: 0 | BS19: 9649.527862
J20: 59.2 | K20: 16.8 | L20: 4.4 | M20: 2.8 | N20: 0 | O20: 153.55 | Z20: 59.2 | AA20: 16.8 | AB20: 4.4 | AC20: 2.8 | AD20: 0 | AE20: 153.55 | AH20: 2794.661668 | AI20: 793.0796626 | AJ20: 207.7113402 | AK20: 132.1799438 | AL20: 0 | AM20: 7248.653702 | AP20: 2977638.275 | AQ20: 845005.4564 | AR20: 221310.9529 | AS20: 140834.2427 | AT20: 0 | AU20: 7723249.276 | AX20: 357.7166935 | AY20: 101.5141968 | AZ20: 26.58705155 | BA20: 16.9190328 | BB20: 0 | BC20: 927.8276739 | BF20: 9283.668107 | BG20: 2634.554463 | BH20: 690.0023593 | BI20: 439.0924104 | BJ20: 0 | BK20: 24079.51415 | BN20: 9641.3848 | BO20: 2736.06866 | BP20: 716.5894108 | BQ20: 456.0114433 | BR20: 0 | BS20: 25007.34183
J21: 0 | K21: 0 | L21: 0 | M21: 0 | N21: 0 | O21: 0 | Z21: 0 | AA21: 0 | AB21: 0 | AC21: 0 | AD21: 0 | AE21: 0 | AH21: 0 | AI21: 0 | AJ21: 0 | AK21: 0 | AL21: 0 | AM21: 0 | AP21: 0 | AQ21: 0 | AR21: 0 | AS21: 0 | AT21: 0 | AU21: 0 | AX21: 0 | AY21: 0 | AZ21: 0 | BA21: 0 | BB21: 0 | BC21: 0 | BF21: 0 | BG21: 0 | BH21: 0 | BI21: 0 | BJ21: 0 | BK21: 0 | BN21: 0 | BO21: 0 | BP21: 0 | BQ21: 0 | BR21: 0 | BS21: 0
J22: 0 | K22: 0 | L22: 0 | M22: 0 | N22: 0 | O22: 0 | Z22: 0 | AA22: 0 | AB22: 0 | AC22: 0 | AD22: 0 | AE22: 0 | AH22: 0 | AI22: 0 | AJ22: 0 | AK22: 0 | AL22: 0 | AM22: 0 | AP22: 0 | AQ22: 0 | AR22: 0 | AS22: 0 | AT22: 0 | AU22: 0 | AX22: 0 | AY22: 0 | AZ22: 0 | BA22: 0 | BB22: 0 | BC22: 0 | BF22: 0 | BG22: 0 | BH22: 0 | BI22: 0 | BJ22: 0 | BK22: 0 | BN22: 0 | BO22: 0 | BP22: 0 | BQ22: 0 | BR22: 0 | BS22: 0
J23: 123.728 | K23: 35.112 | L23: 9.196 | M23: 5.852 | N23: 0 | O23: 92.5 | Z23: 123.728 | AA23: 35.112 | AB23: 9.196 | AC23: 5.852 | AD23: 0 | AE23: 92.5 | AH23: 5840.842887 | AI23: 1657.536495 | AJ23: 434.116701 | AK23: 276.2560825 | AL23: 0 | AM23: 4366.658857 | AP23: 6223263.995 | AQ23: 1766061.404 | AR23: 462539.8915 | AS23: 294343.5673 | AT23: 0 | AU23: 4652559.805 | AX23: 747.6278895 | AY23: 212.1646713 | AZ23: 55.56693773 | BA23: 35.36077856 | BB23: 0 | BC23: 558.9323336 | BF23: 19402.86634 | BG23: 5506.218827 | BH23: 1442.104931 | BI23: 917.7031378 | BJ23: 0 | BK23: 14505.73142 | BN23: 20150.49423 | BO23: 5718.383498 | BP23: 1497.671869 | BQ23: 953.0639164 | BR23: 0 | BS23: 15064.66375
J24: 0 | K24: 0 | L24: 0 | M24: 0 | N24: 0 | O24: 0 | Z24: 0 | AA24: 0 | AB24: 0 | AC24: 0 | AD24: 0 | AE24: 0 | AH24: 0 | AI24: 0 | AJ24: 0 | AK24: 0 | AL24: 0 | AM24: 0 | AP24: 0 | AQ24: 0 | AR24: 0 | AS24: 0 | AT24: 0 | AU24: 0 | AX24: 0 | AY24: 0 | AZ24: 0 | BA24: 0 | BB24: 0 | BC24: 0 | BF24: 0 | BG24: 0 | BH24: 0 | BI24: 0 | BJ24: 0 | BK24: 0 | BN24: 0 | BO24: 0 | BP24: 0 | BQ24: 0 | BR24: 0 | BS24: 0
J25: 14.8 | K25: 4.2 | L25: 1.1 | M25: 0.7 | N25: 0 | O25: 0 | Z25: 14.8 | AA25: 4.2 | AB25: 1.1 | AC25: 0.7 | AD25: 0 | AE25: 0 | AH25: 698.6654171 | AI25: 198.2699157 | AJ25: 51.92783505 | AK25: 33.04498594 | AL25: 0 | AM25: 0 | AP25: 744409.5688 | AQ25: 211251.3641 | AR25: 55327.73822 | AS25: 35208.56068 | AT25: 0 | AU25: 0 | AX25: 89.42917338 | AY25: 25.3785492 | AZ25: 6.646762887 | BA25: 4.229758201 | BB25: 0 | BC25: 0 | BF25: 2320.917027 | BG25: 658.6386157 | BH25: 172.5005898 | BI25: 109.7731026 | BJ25: 0 | BK25: 0 | BN25: 2410.3462 | BO25: 684.0171649 | BP25: 179.1473527 | BQ25: 114.0028608 | BR25: 0 | BS25: 0
J26: 216 | K26: 15.12 | L26: 5.94 | M26: 7.56 | N26: 0 | O26: 2310 | Z26: 216 | AA26: 15.12 | AB26: 5.94 | AC26: 7.56 | AD26: 0 | AE26: 2310 | AH26: 10196.73852 | AI26: 713.7716963 | AJ26: 280.4103093 | AK26: 356.8858482 | AL26: 0 | AM26: 109048.4536 | AP26: 10864355.87 | AQ26: 760504.9108 | AR26: 298769.7864 | AS26: 380252.4554 | AT26: 0 | AU26: 116188250.3 | AX26: 1305.18253 | AY26: 91.36277713 | AZ26: 35.89251959 | BA26: 45.68138857 | BB26: 0 | BC26: 13958.20206 | BF26: 33872.84309 | BG26: 2371.099016 | BH26: 931.503185 | BI26: 1185.549508 | BJ26: 0 | BK26: 362251.2386 | BN26: 35178.02562 | BO26: 2462.461794 | BP26: 967.3957046 | BQ26: 1231.230897 | BR26: 0 | BS26: 376209.4407
J27: 24 | K27: 5.04 | L27: 1.32 | M27: 0.84 | N27: 0 | O27: 1178.1 | Z27: 24 | AA27: 5.04 | AB27: 1.32 | AC27: 0.84 | AD27: 0 | AE27: 1178.1 | AH27: 1132.970947 | AI27: 237.9238988 | AJ27: 62.31340206 | AK27: 39.65398313 | AL27: 0 | AM27: 55614.71134 | AP27: 1207150.652 | AQ27: 253501.6369 | AR27: 66393.28586 | AS27: 42250.27282 | AT27: 0 | AU27: 59256007.63 | AX27: 145.0202812 | AY27: 30.45425904 | AZ27: 7.976115464 | BA27: 5.075709841 | BB27: 0 | BC27: 7118.683052 | BF27: 3763.649232 | BG27: 790.3663388 | BH27: 207.0007078 | BI27: 131.7277231 | BJ27: 0 | BK27: 184748.1317 | BN27: 3908.669514 | BO27: 820.8205979 | BP27: 214.9768232 | BQ27: 136.803433 | BR27: 0 | BS27: 191866.8147
J28: 106.56 | K28: 10.08 | L28: 3.96 | M28: 5.04 | N28: 0 | O28: 0 | Z28: 106.56 | AA28: 10.08 | AB28: 3.96 | AC28: 5.04 | AD28: 0 | AE28: 0 | AH28: 5030.391003 | AI28: 475.8477976 | AJ28: 186.9402062 | AK28: 237.9238988 | AL28: 0 | AM28: 0 | AP28: 5359748.895 | AQ28: 507003.2739 | AR28: 199179.8576 | AS28: 253501.6369 | AT28: 0 | AU28: 0 | AX28: 643.8900484 | AY28: 60.90851809 | AZ28: 23.92834639 | BA28: 30.45425904 | BB28: 0 | BC28: 0 | BF28: 16710.60259 | BG28: 1580.732678 | BH28: 621.0021234 | BI28: 790.3663388 | BJ28: 0 | BK28: 0 | BN28: 17354.49264 | BO28: 1641.641196 | BP28: 644.9304697 | BQ28: 820.8205979 | BR28: 0 | BS28: 0
I30: Car | J30: 0 | K30: 0 | L30: 0 | M30: 0 | N30: 0 | O30: 0 | Q30: Car | Y30: Car | Z30: 0 | AA30: 0 | AB30: 0 | AC30: 0 | AD30: 0 | AE30: 0 | AG30: Rail | AH30: 0 | AI30: 0 | AJ30: 0 | AK30: 0 | AL30: 0 | AM30: 0 | AO30: Rail | AP30: 0 | AQ30: 0 | AR30: 0 | AS30: 0 | AT30: 0 | AU30: 0 | AX30: 0 | AY30: 0 | AZ30: 0 | BA30: 0 | BB30: 0 | BC30: 0 | BF30: 0 | BG30: 0 | BH30: 0 | BI30: 0 | BJ30: 0 | BK30: 0 | BN30: 0 | BO30: 0 | BP30: 0 | BQ30: 0 | BR30: 0 | BS30: 0
J31: 746.88 | K31: 171.16 | L31: 995.84 | M31: 2909.72 | N31: 311.2 | O31: 0 | Z31: 746.88 | AA31: 171.16 | AB31: 995.84 | AC31: 2909.72 | AD31: 311.2 | AE31: 0 | AH31: 88145.13964 | AI31: 6170.159775 | AJ31: 48479.8268 | AK31: 104892.7162 | AL31: 0 | AM31: 0 | AP31: 303489629.1 | AQ31: 21244274.04 | AR31: 166919296 | AS31: 361152658.6 | AT31: 0 | AU31: 0 | AX31: 33012.92458 | AY31: 2310.90472 | AZ31: 18157.10852 | BA31: 39285.38025 | BB31: 0 | BC31: 0 | BF31: 297116.3212 | BG31: 20798.14248 | BH31: 163413.9767 | BI31: 353568.4222 | BJ31: 0 | BK31: 0 | BN31: 330129.2458 | BO31: 23109.0472 | BP31: 181571.0852 | BQ31: 392853.8025 | BR31: 0 | BS31: 0
J32: 391.68 | K32: 168.3 | L32: 32.64 | M32: 28.05 | N32: 102 | O32: 233.376 | R32: 391.68 | W32: 233.376 | Z32: 391.68 | AA32: 168.3 | AB32: 32.64 | AC32: 28.05 | AD32: 102 | AE32: 233.376 | AH32: 21379.16176 | AI32: 6067.059419 | AJ32: 1588.991753 | AK32: 1011.17657 | AL32: 0 | AM32: 12910.55799 | AP32: 73609888.19 | AQ32: 20889292.59 | AR32: 5471005.203 | AS32: 3481548.766 | AT32: 0 | AU32: 44451917.28 | AX32: 8007.119367 | AY32: 2272.290631 | AZ32: 595.1237368 | BA32: 378.7151052 | BB32: 0 | BC32: 4835.380361 | BF32: 72064.07431 | BG32: 20450.61568 | BH32: 5356.113631 | BI32: 3408.435947 | BJ32: 0 | BK32: 43518.42325 | BN32: 80071.19367 | BO32: 22722.90631 | BP32: 5951.237368 | BQ32: 3787.151052 | BR32: 0 | BS32: 48353.80361
J33: 35.328 | K33: 15.18 | L33: 2.944 | M33: 2.53 | N33: 9.2 | O33: 75.84 | R33: 35.328 | W33: 75.84 | Z33: 35.328 | AA33: 15.18 | AB33: 2.944 | AC33: 2.53 | AD33: 9.2 | AE33: 75.84 | AH33: 1928.316551 | AI33: 547.2249672 | AJ33: 143.3208247 | AK33: 91.2041612 | AL33: 0 | AM33: 4195.533037 | AP33: 6639323.248 | AQ33: 1884132.273 | AR33: 493463.2144 | AS33: 314022.0455 | AT33: 0 | AU33: 14445501.71 | AX33: 722.2107665 | AY33: 204.951704 | AZ33: 53.67782724 | BA33: 34.15861733 | BB33: 0 | BC33: 1571.349439 | BF33: 6499.896898 | BG33: 1844.565336 | BH33: 483.1004451 | BI33: 307.427556 | BJ33: 0 | BK33: 14142.14495 | BN33: 7222.107665 | BO33: 2049.51704 | BP33: 536.7782724 | BQ33: 341.5861733 | BR33: 0 | BS33: 15713.49439
J34: 76.8 | K34: 33 | L34: 6.4 | M34: 5.5 | N34: 20 | O34: 196.544 | R34: 76.8 | W34: 196.544 | Z34: 76.8 | AA34: 33 | AB34: 6.4 | AC34: 5.5 | AD34: 20 | AE34: 196.544 | AH34: 4191.992502 | AI34: 1189.619494 | AJ34: 311.5670103 | AK34: 198.2699157 | AL34: 0 | AM34: 10872.98055 | AP34: 14433311.41 | AQ34: 4095939.724 | AR34: 1072746.118 | AS34: 682656.6207 | AT34: 0 | AU34: 37436401.47 | AX34: 1570.023405 | AY34: 445.5471826 | AZ34: 116.6909288 | BA34: 74.25786377 | BB34: 0 | BC34: 4072.248208 | BF34: 14130.21065 | BG34: 4009.924643 | BH34: 1050.218359 | BI34: 668.3207739 | BJ34: 0 | BK34: 36650.23387 | BN34: 15700.23405 | BO34: 4455.471826 | BP34: 1166.909288 | BQ34: 742.5786377 | BR34: 0 | BS34: 40722.48208
J35: 0 | K35: 0 | L35: 0 | M35: 0 | N35: 0 | O35: 0 | R35: 0 | W35: 0 | Z35: 0 | AA35: 0 | AB35: 0 | AC35: 0 | AD35: 0 | AE35: 0 | AH35: 0 | AI35: 0 | AJ35: 0 | AK35: 0 | AL35: 0 | AM35: 0 | AP35: 0 | AQ35: 0 | AR35: 0 | AS35: 0 | AT35: 0 | AU35: 0 | AX35: 0 | AY35: 0 | AZ35: 0 | BA35: 0 | BB35: 0 | BC35: 0 | BF35: 0 | BG35: 0 | BH35: 0 | BI35: 0 | BJ35: 0 | BK35: 0 | BN35: 0 | BO35: 0 | BP35: 0 | BQ35: 0 | BR35: 0 | BS35: 0
J36: 0 | K36: 0 | L36: 0 | M36: 0 | N36: 0 | O36: 0 | R36: 0 | W36: 0 | Z36: 0 | AA36: 0 | AB36: 0 | AC36: 0 | AD36: 0 | AE36: 0 | AH36: 0 | AI36: 0 | AJ36: 0 | AK36: 0 | AL36: 0 | AM36: 0 | AP36: 0 | AQ36: 0 | AR36: 0 | AS36: 0 | AT36: 0 | AU36: 0 | AX36: 0 | AY36: 0 | AZ36: 0 | BA36: 0 | BB36: 0 | BC36: 0 | BF36: 0 | BG36: 0 | BH36: 0 | BI36: 0 | BJ36: 0 | BK36: 0 | BN36: 0 | BO36: 0 | BP36: 0 | BQ36: 0 | BR36: 0 | BS36: 0
J37: 160.512 | K37: 68.97 | L37: 13.376 | M37: 11.495 | N37: 41.8 | O37: 118.4 | R37: 160.512 | W37: 118.4 | Z37: 160.512 | AA37: 68.97 | AB37: 13.376 | AC37: 11.495 | AD37: 41.8 | AE37: 118.4 | AH37: 8761.26433 | AI37: 2486.304742 | AJ37: 651.1750515 | AK37: 414.3841237 | AL37: 0 | AM37: 6549.988285 | AP37: 30165620.85 | AQ37: 8560514.024 | AR37: 2242039.387 | AS37: 1426752.337 | AT37: 0 | AU37: 22552049.08 | AX37: 3281.348917 | AY37: 931.1936117 | AZ37: 243.8840411 | BA37: 155.1989353 | BB37: 0 | BC37: 2453.161571 | BF37: 29532.14026 | BG37: 8380.742505 | BH37: 2194.95637 | BI37: 1396.790417 | BJ37: 0 | BK37: 22078.45414 | BN37: 32813.48917 | BO37: 9311.936117 | BP37: 2438.840411 | BQ37: 1551.989353 | BR37: 0 | BS37: 24531.61571
J38: 0 | K38: 0 | L38: 0 | M38: 0 | N38: 0 | O38: 0 | R38: 0 | W38: 0 | Z38: 0 | AA38: 0 | AB38: 0 | AC38: 0 | AD38: 0 | AE38: 0 | AH38: 0 | AI38: 0 | AJ38: 0 | AK38: 0 | AL38: 0 | AM38: 0 | AP38: 0 | AQ38: 0 | AR38: 0 | AS38: 0 | AT38: 0 | AU38: 0 | AX38: 0 | AY38: 0 | AZ38: 0 | BA38: 0 | BB38: 0 | BC38: 0 | BF38: 0 | BG38: 0 | BH38: 0 | BI38: 0 | BJ38: 0 | BK38: 0 | BN38: 0 | BO38: 0 | BP38: 0 | BQ38: 0 | BR38: 0 | BS38: 0
J39: 19.2 | K39: 8.25 | L39: 1.6 | M39: 1.375 | N39: 5 | O39: 0 | R39: 19.2 | W39: 0 | Z39: 19.2 | AA39: 8.25 | AB39: 1.6 | AC39: 1.375 | AD39: 5 | AE39: 0 | AH39: 1047.998126 | AI39: 297.4048735 | AJ39: 77.89175258 | AK39: 49.56747891 | AL39: 0 | AM39: 0 | AP39: 3608327.852 | AQ39: 1023984.931 | AR39: 268186.5296 | AS39: 170664.1552 | AT39: 0 | AU39: 0 | AX39: 392.5058513 | AY39: 111.3867957 | AZ39: 29.17273219 | BA39: 18.56446594 | BB39: 0 | BC39: 0 | BF39: 3532.552662 | BG39: 1002.481161 | BH39: 262.5545898 | BI39: 167.0801935 | BJ39: 0 | BK39: 0 | BN39: 3925.058513 | BO39: 1113.867957 | BP39: 291.7273219 | BQ39: 185.6446594 | BR39: 0 | BS39: 0
J40: 129.6 | K40: 29.7 | L40: 8.64 | M40: 14.85 | N40: 270 | O40: 2310 | R40: 129.6 | W40: 2310 | Z40: 129.6 | AA40: 29.7 | AB40: 8.64 | AC40: 14.85 | AD40: 270 | AE40: 2310 | AH40: 15295.10778 | AI40: 1070.657545 | AJ40: 420.6154639 | AK40: 535.3287723 | AL40: 0 | AM40: 163572.6804 | AP40: 52662082.17 | AQ40: 3686345.752 | AR40: 1448207.26 | AS40: 1843172.876 | AT40: 0 | AU40: 563191712.1 | AX40: 5728.463776 | AY40: 400.9924643 | AZ40: 157.5327539 | BA40: 200.4962322 | BB40: 0 | BC40: 61262.73761 | BF40: 51556.17399 | BG40: 3608.932179 | BH40: 1417.794785 | BI40: 1804.46609 | BJ40: 0 | BK40: 551364.6385 | BN40: 57284.63776 | BO40: 4009.924643 | BP40: 1575.327539 | BQ40: 2004.962322 | BR40: 0 | BS40: 612627.3761
J41: 14.4 | K41: 9.9 | L41: 1.92 | M41: 1.65 | N41: 6 | O41: 1178.1 | R41: 14.4 | W41: 1178.1 | Z41: 14.4 | AA41: 9.9 | AB41: 1.92 | AC41: 1.65 | AD41: 6 | AE41: 1178.1 | AH41: 1699.45642 | AI41: 356.8858482 | AJ41: 93.47010309 | AK41: 59.4809747 | AL41: 0 | AM41: 83422.06701 | AP41: 5851342.463 | AQ41: 1228781.917 | AR41: 321823.8355 | AS41: 204796.9862 | AT41: 0 | AU41: 287227773.2 | AX41: 636.4959752 | AY41: 133.6641548 | AZ41: 35.00727863 | BA41: 22.27735913 | BB41: 0 | BC41: 31243.99618 | BF41: 5728.463776 | BG41: 1202.977393 | BH41: 315.0655077 | BI41: 200.4962322 | BJ41: 0 | BK41: 281195.9656 | BN41: 6364.959752 | BO41: 1336.641548 | BP41: 350.0727863 | BQ41: 222.7735913 | BR41: 0 | BS41: 312439.9618
J42: 138.24 | K42: 19.8 | L42: 5.76 | M42: 9.9 | N42: 180 | O42: 0 | R42: 138.24 | W42: 0 | Z42: 138.24 | AA42: 19.8 | AB42: 5.76 | AC42: 9.9 | AD42: 180 | AE42: 0 | AH42: 7545.586504 | AI42: 713.7716963 | AJ42: 280.4103093 | AK42: 356.8858482 | AL42: 0 | AM42: 0 | AP42: 25979960.54 | AQ42: 2457563.835 | AR42: 965471.5064 | AS42: 1228781.917 | AT42: 0 | AU42: 0 | AX42: 2826.04213 | AY42: 267.3283096 | AZ42: 105.0218359 | BA42: 133.6641548 | BB42: 0 | BC42: 0 | BF42: 25434.37917 | BG42: 2405.954786 | BH42: 945.1965231 | BI42: 1202.977393 | BJ42: 0 | BK42: 0 | BN42: 28260.4213 | BO42: 2673.283096 | BP42: 1050.218359 | BQ42: 1336.641548 | BR42: 0 | BS42: 0
AH44: 0 | AI44: 0 | AJ44: 0 | AK44: 0 | AL44: 0 | AM44: 0 | AP44: 0 | AQ44: 0 | AR44: 0 | AS44: 0 | AT44: 0 | AU44: 0 | AX44: 0 | AY44: 0 | AZ44: 0 | BA44: 0 | BB44: 0 | BC44: 0 | BF44: 0 | BG44: 0 | BH44: 0 | BI44: 0 | BJ44: 0 | BK44: 0 | BN44: 0 | BO44: 0 | BP44: 0 | BQ44: 0 | BR44: 0 | BS44: 0
AG45: Car | AH45: 1525097.622 | AI45: 349501.5385 | AJ45: 2033463.497 | AK45: 5941526.154 | AL45: 635457.3427 | AM45: 0 | AO45: Car | AP45: 278551214.6 | AQ45: 63834653.34 | AR45: 371401619.4 | AS45: 1085189107 | AT45: 139929009.5 | AU45: 0 | AX45: 25926.65958 | AY45: 5941.526154 | AZ45: 34568.87944 | BA45: 101005.9446 | BB45: 38127.44056 | BC45: 0 | BF45: 859907.2307 | BG45: 197062.0737 | BH45: 1146542.974 | BI45: 3350055.253 | BJ45: 427972.5771 | BK45: 0 | BN45: 885833.8902 | BO45: 203003.5998 | BP45: 1181111.854 | BQ45: 3451061.197 | BR45: 466100.0176 | BS45: 0
AH46: 799794.1259 | AI46: 343661.5385 | AJ46: 66649.51049 | AK46: 57276.92308 | AL46: 208279.7203 | AM46: 476544 | AP46: 146078271.9 | AQ46: 62768007.46 | AR46: 12173189.33 | AS46: 10461334.58 | AT46: 45863621.38 | AU46: 87038303.68 | AX46: 13596.50014 | AY46: 5842.246154 | AZ46: 1133.041678 | BA46: 973.7076923 | BB46: 12496.78322 | BC46: 8101.248 | BF46: 450953.9204 | BG46: 193769.2627 | BH46: 37579.49337 | BI46: 32294.87712 | BJ46: 140273.7881 | BK46: 268693.3776 | BN46: 464550.4206 | BO46: 199611.5088 | BP46: 38712.53505 | BQ46: 33268.58481 | BR46: 152770.5713 | BS46: 276794.6256
AH47: 72138.29371 | AI47: 30996.92308 | AJ47: 6011.524476 | AK47: 5166.153846 | AL47: 18786.01399 | AM47: 154862.0979 | AP47: 13175687.27 | AQ47: 5661428.124 | AR47: 1097973.939 | AS47: 943571.3539 | AT47: 4136718.791 | AU47: 28284763.43 | AX47: 1226.350993 | AY47: 526.9476923 | AZ47: 102.1959161 | BA47: 87.82461538 | BB47: 1127.160839 | BC47: 2632.655664 | BF47: 40674.27518 | BG47: 17477.22762 | BH47: 3389.522931 | BI47: 2912.871269 | BJ47: 12652.14559 | BK47: 87317.05813 | BN47: 41900.62617 | BO47: 18004.17531 | BP47: 3491.718848 | BQ47: 3000.695885 | BR47: 13779.30643 | BS47: 89949.71379
AH48: 156822.3776 | AI48: 67384.61538 | AJ48: 13068.53147 | AK48: 11230.76923 | AL48: 40839.16084 | AM48: 401334.6014 | AP48: 28642798.41 | AQ48: 12307452.44 | AR48: 2386899.868 | AS48: 2051242.074 | AT48: 8992866.937 | AU48: 73301694.94 | AX48: 2665.98042 | AY48: 1145.538462 | AZ48: 222.165035 | BA48: 190.9230769 | BB48: 2450.34965 | BC48: 6822.688224 | BF48: 88422.33734 | BG48: 37993.97308 | BH48: 7368.528112 | BI48: 6332.328846 | BJ48: 27504.66434 | BK48: 226287.4983 | BN48: 91088.31776 | BO48: 39139.51154 | BP48: 7590.693147 | BQ48: 6523.251923 | BR48: 29955.01399 | BS48: 233110.1865
AH49: 0 | AI49: 0 | AJ49: 0 | AK49: 0 | AL49: 0 | AM49: 0 | AP49: 0 | AQ49: 0 | AR49: 0 | AS49: 0 | AT49: 0 | AU49: 0 | AX49: 0 | AY49: 0 | AZ49: 0 | BA49: 0 | BB49: 0 | BC49: 0 | BF49: 0 | BG49: 0 | BH49: 0 | BI49: 0 | BJ49: 0 | BK49: 0 | BN49: 0 | BO49: 0 | BP49: 0 | BQ49: 0 | BR49: 0 | BS49: 0
AH50: 0 | AI50: 0 | AJ50: 0 | AK50: 0 | AL50: 0 | AM50: 0 | AP50: 0 | AQ50: 0 | AR50: 0 | AS50: 0 | AT50: 0 | AU50: 0 | AX50: 0 | AY50: 0 | AZ50: 0 | BA50: 0 | BB50: 0 | BC50: 0 | BF50: 0 | BG50: 0 | BH50: 0 | BI50: 0 | BJ50: 0 | BK50: 0 | BN50: 0 | BO50: 0 | BP50: 0 | BQ50: 0 | BR50: 0 | BS50: 0
AH51: 327758.7692 | AI51: 140833.8462 | AJ51: 27313.23077 | AK51: 23472.30769 | AL51: 85353.84615 | AM51: 241767.8322 | AP51: 59863448.68 | AQ51: 25722575.61 | AR51: 4988620.723 | AS51: 4287095.934 | AT51: 18795091.9 | AU51: 44157647.55 | AX51: 5571.899077 | AY51: 2394.175385 | AZ51: 464.3249231 | BA51: 399.0292308 | BB51: 5121.230769 | BC51: 4110.053147 | BF51: 184802.685 | BG51: 79407.40373 | BH51: 15400.22375 | BI51: 13234.56729 | BJ51: 57484.74846 | BK51: 136317.7701 | BN51: 190374.5841 | BO51: 81801.57912 | BP51: 15864.54868 | BQ51: 13633.59652 | BR51: 62605.97923 | BS51: 140427.8232
AH52: 0 | AI52: 0 | AJ52: 0 | AK52: 0 | AL52: 0 | AM52: 0 | AP52: 0 | AQ52: 0 | AR52: 0 | AS52: 0 | AT52: 0 | AU52: 0 | AX52: 0 | AY52: 0 | AZ52: 0 | BA52: 0 | BB52: 0 | BC52: 0 | BF52: 0 | BG52: 0 | BH52: 0 | BI52: 0 | BJ52: 0 | BK52: 0 | BN52: 0 | BO52: 0 | BP52: 0 | BQ52: 0 | BR52: 0 | BS52: 0
AH53: 39205.59441 | AI53: 16846.15385 | AJ53: 3267.132867 | AK53: 2807.692308 | AL53: 10209.79021 | AM53: 0 | AP53: 7160699.603 | AQ53: 3076863.111 | AR53: 596724.9669 | AS53: 512810.5184 | AT53: 2248216.734 | AU53: 0 | AX53: 666.4951049 | AY53: 286.3846154 | AZ53: 55.54125874 | BA53: 47.73076923 | BB53: 612.5874126 | BC53: 0 | BF53: 22105.58434 | BG53: 9498.493269 | BH53: 1842.132028 | BI53: 1583.082212 | BJ53: 6876.166084 | BK53: 0 | BN53: 22772.07944 | BO53: 9784.877885 | BP53: 1897.673287 | BQ53: 1630.812981 | BR53: 7488.753497 | BS53: 0
AH54: 264637.7622 | AI54: 60646.15385 | AJ54: 17642.51748 | AK54: 30323.07692 | AL54: 551328.6713 | AM54: 4716923.077 | AP54: 48334722.32 | AQ54: 11076707.2 | AR54: 3222314.821 | AS54: 5538353.599 | AT54: 121403703.7 | AU54: 861521671 | AX54: 4498.841958 | AY54: 1030.984615 | AZ54: 299.9227972 | BA54: 515.4923077 | BB54: 33079.72028 | BC54: 80187.69231 | BF54: 149212.6943 | BG54: 34194.57577 | BH54: 9947.512951 | BI54: 17097.28788 | BJ54: 371312.9685 | BK54: 2659578.115 | BN54: 153711.5362 | BO54: 35225.56038 | BP54: 10247.43575 | BQ54: 17612.78019 | BR54: 404392.6888 | BS54: 2739765.808
AH55: 29404.1958 | AI55: 20215.38462 | AJ55: 3920.559441 | AK55: 3369.230769 | AL55: 12251.74825 | AM55: 2405630.769 | AP55: 5370524.702 | AQ55: 3692235.733 | AR55: 716069.9603 | AS55: 615372.6221 | AT55: 2697860.081 | AU55: 439376052.2 | AX55: 499.8713287 | AY55: 343.6615385 | AZ55: 66.64951049 | BA55: 57.27692308 | BB55: 735.1048951 | BC55: 40895.72308 | BF55: 16579.18825 | BG55: 11398.19192 | BH55: 2210.558434 | BI55: 1899.698654 | BJ55: 8251.399301 | BK55: 1356384.839 | BN55: 17079.05958 | BO55: 11741.85346 | BP55: 2277.207944 | BQ55: 1956.975577 | BR55: 8986.504196 | BS55: 1397280.562
AH56: 282280.2797 | AI56: 40430.76923 | AJ56: 11761.67832 | AK56: 20215.38462 | AL56: 367552.4476 | AM56: 0 | AP56: 51557037.14 | AQ56: 7384471.466 | AR56: 2148209.881 | AS56: 3692235.733 | AT56: 80935802.43 | AU56: 0 | AX56: 4798.764755 | AY56: 687.3230769 | AZ56: 199.9485315 | BA56: 343.6615385 | BB56: 22053.14685 | BC56: 0 | BF56: 159160.2072 | BG56: 22796.38385 | BH56: 6631.675301 | BI56: 11398.19192 | BJ56: 247541.979 | BK56: 0 | BN56: 163958.972 | BO56: 23483.70692 | BP56: 6831.623832 | BQ56: 11741.85346 | BR56: 269595.1259 | BS56: 0

Sheet EnergyPerformanceData (hidden)
A1: Building energy perfromance data [kWh/m2] | B1: =COUNTA(A2:A144) -> 143 | G1: Street Utilities Energy performance data | J1: Klimasone
A2: Residential individual housing | B2: Heating | C2: Hot Water | D2: Cooling | E2: Electric | G2: Outdoor lighting | H2: kWh/unit | J2: Klimasone | K2: DUT | L2: Mean T | M2: Heating days | N2: degree days | O2: Rel degree days
A3: Passivhouse | B3: 19.79375 | C3: 25 | D3: 0 | E3: 31.32875 | G3: High efficicency | H3: 160 | J3: 1. Sør-Norge, innland | K3: -21.4 | L3: 5.1 | M3: 250 | N3: 4051 | O3: 1
A4: Low energy | B4: 37.1875 | C4: 25 | D4: 0 | E4: 32.86 | G4: Low efficiency | H4: 550 | J4: 2. Sør-Norge, kyst | K4: -14.2 | L4: 7.1 | M4: 237 | N4: 3179 | O4: 0.78
A5: TEK 17 | B5: 51.963729 | C5: 25 | D5: 0 | E5: 33.036271 | G5: Manual | J5: 3. Sør-Norge, høyfjell | K5: -28.3 | L5: 2.3 | M5: 277 | N5: 5101 | O5: 1.26
A6: TEK 10 | B6: 68.2797 | C6: 25 | D6: 0 | E6: 36.7203 | G6: Snow Melting | H6: kWh/m2 | J6: 4. Midt-Norge, kyst | K6: -15.6 | L6: 5.4 | M6: 265 | N6: 3763 | O6: 0.93
A7: TEK 07 | B7: 68.2797 | C7: 25 | D7: 0 | E7: 36.7203 | G7: High efficicency | H7: 100 | J7: 5. Midt-Norge, innland | K7: -23.9 | L7: 3 | M7: 274 | N7: 4772 | O7: 1.18
A8: TEK 97 | B8: 76.5125 | C8: 25 | D8: 0 | E8: 29.4875 | G8: Low efficiency | H8: 350 | J8: 6. Nord-Norge, kyst | K8: -13.9 | L8: 3.8 | M8: 286 | N8: 4329 | O8: 1.07
A9: TEK 87 | B9: 88.5125 | C9: 25 | D9: 0 | E9: 29.4875 | G9: Manual | J9: 7. Finnmark og innland Troms | K9: -24.5 | L9: 0.7 | M9: 319 | N9: 5766 | O9: 1.42
A10: TEK 69 | B10: 98.5125 | C10: 25 | D10: 0 | E10: 29.4875
A11: TEK 49 | B11: 120.5125 | C11: 25 | D11: 0 | E11: 29.4875
A12: Older | B12: 193.5125 | C12: 25 | D12: 0 | E12: 29.4875
A13: Residential apartment building | B13: Heating | C13: Hot Water | D13: Cooling | E13: Electric
A14: Passivhouse | B14: 14.69777778 | C14: 25 | D14: 0 | E14: 32.23755556
A15: Low energy | B15: 29.61666667 | C15: 25 | D15: 0 | E15: 34.19422222
A16: TEK 17 | B16: 35.80577778 | C16: 25 | D16: 0 | E16: 34.19422222
A17: TEK 10 | B17: 51.77237778 | C17: 25 | D17: 0 | E17: 38.22762222
A18: TEK 07 | B18: 62.77237778 | C18: 25 | D18: 0 | E18: 38.22762222
A19: TEK 97 | B19: 76.51430556 | C19: 25 | D19: 0 | E19: 29.48569444
A20: TEK 87 | B20: 85.51430556 | C20: 25 | D20: 0 | E20: 29.48569444
A21: TEK 69 | B21: 92.51430556 | C21: 25 | D21: 0 | E21: 29.48569444
A22: TEK 49 | B22: 125.5143056 | C22: 25 | D22: 0 | E22: 29.48569444
A23: Older | B23: 202.5143056 | C23: 25 | D23: 0 | E23: 29.48569444
A24: Office building | B24: Heating | C24: Hot Water | D24: Cooling | E24: Electric
A25: Passivhouse | B25: 20 | C25: 5.011111111 | D25: 9.693611111 | E25: 58.48361111
A26: Low energy | B26: 20.51166667 | C26: 5.011111111 | D26: 9.693611111 | E26: 65.98361111
A27: TEK 17 | B27: 28.38924912 | C27: 5.011111111 | D27: 9.8 | E27: 67
A28: TEK 10 | B28: 42.37201361 | C28: 5.011111111 | D28: 18.8 | E28: 79.7
A29: TEK 07 | B29: 59.4 | C29: 5.011111111 | D29: 18.8 | E29: 83.4
A30: TEK 97 | B30: 78.3 | C30: 5.011111111 | D30: 20.8 | E30: 99.7
A31: TEK 87 | B31: 96.4 | C31: 5.011111111 | D31: 21.4 | E31: 105.3
A32: TEK 69 | B32: 162.6 | C32: 5.011111111 | D32: 11.4 | E32: 85.3
A33: TEK 49 | B33: 173.5 | C33: 5.011111111 | D33: 0 | E33: 69.9
A34: Older | B34: 188.7 | C34: 5.011111111 | D34: 0 | E34: 60.3
A35: Kindergarten | B35: Heating | C35: Hot Water | D35: Cooling | E35: Electric
A36: Passivhouse | B36: 30.68333333 | C36: 10.02333333 | D36: 0 | E36: 29.40666667
A37: Low energy | B37: 46.77 | C37: 10.02333333 | D37: 0 | E37: 33.20666667
A38: TEK 17 | B38: 83.87666667 | C38: 10.02333333 | D38: 0 | E38: 41.1
A39: TEK 10 | B39: 84.67666667 | C39: 10.02333333 | D39: 0 | E39: 45.3
A40: TEK 07 | B40: 100.6 | C40: 10.02333333 | D40: 0 | E40: 49.1
A41: TEK 97 | B41: 129.5 | C41: 10.02333333 | D41: 0 | E41: 66.1
A42: TEK 87 | B42: 163.2 | C42: 10.02333333 | D42: 0 | E42: 71.8
A43: TEK 69 | B43: 287 | C43: 10.02333333 | D43: 0 | E43: 54.4
A44: TEK 49 | B44: 339.6 | C44: 10.02333333 | D44: 0 | E44: 27.5
A45: Older | B45: 381.1 | C45: 10.02333333 | D45: 0 | E45: 27.5
A46: School | B46: Heating | C46: Hot Water | D46: Cooling | E46: Electric
A47: Passivhouse | B47: 20 | C47: 10 | D47: 0 | E47: 34.70708333
A48: Low energy | B48: 24.9 | C48: 10 | D48: 0 | E48: 42.5
A49: TEK 17 | B49: 45.48790597 | C49: 10 | D49: 0 | E49: 54.51209403
A50: TEK 10 | B50: 50.34835667 | C50: 10 | D50: 0 | E50: 59.65164333
A51: TEK 07 | B51: 73.4 | C51: 10 | D51: 0 | E51: 60.4
A52: TEK 97 | B52: 104.1 | C52: 10 | D52: 0 | E52: 79
A53: TEK 87 | B53: 127.2 | C53: 10 | D53: 0 | E53: 85
A54: TEK 69 | B54: 196.6 | C54: 10 | D54: 0 | E54: 59.6
A55: TEK 49 | B55: 208.3 | C55: 10 | D55: 0 | E55: 36.4
A56: Older | B56: 227.3 | C56: 10 | D56: 0 | E56: 36.4
A57: University/Collage | B57: Heating | C57: Hot Water | D57: Cooling | E57: Electric
A58: Passivhouse | B58: 20 | C58: 5.011111111 | D58: 10.15916667 | E58: 61.31305556
A59: Low energy | B59: 20.58888889 | C59: 5.011111111 | D59: 10.8 | E59: 68.8
A60: TEK 17 | B60: 27.27262854 | C60: 5.011111111 | D60: 19.2249 | E60: 73.49136035
A61: TEK 10 | B61: 43.01152472 | C61: 5.011111111 | D61: 23.445 | E61: 88.53236417
A62: TEK 07 | B62: 63.1 | C62: 5.011111111 | D62: 23.4 | E62: 89.2
A63: TEK 97 | B63: 83 | C63: 5.011111111 | D63: 25.8 | E63: 109.6
A64: TEK 87 | B64: 102.5 | C64: 5.011111111 | D64: 26.6 | E64: 116.3
A65: TEK 69 | B65: 174 | C65: 5.011111111 | D65: 15.1 | E65: 92.7
A66: TEK 49 | B66: 167.1 | C66: 5.011111111 | D66: 0 | E66: 60.2
A67: Older | B67: 182.2 | C67: 5.011111111 | D67: 0 | E67: 60.3
A68: Hospital | B68: Heating | C68: Hot Water | D68: Cooling | E68: Electric
A69: Passivhouse | B69: 20 | C69: 30 | D69: 17.12083333 | E69: 102.6769444
A70: Low energy | B70: 51.24555556 | C70: 30 | D70: 20.95444444 | E70: 115.4
A71: TEK 17 | B71: 76.24393458 | C71: 30 | D71: 30.77232222 | E71: 127.9837432
A72: TEK 10 | B72: 114.8460978 | C72: 30 | D72: 37.52722222 | E72: 152.62668
A73: TEK 07 | B73: 114.8 | C73: 30 | D73: 37.5 | E73: 152.3
A74: TEK 97 | B74: 136.4 | C74: 30 | D74: 42 | E74: 193.3
A75: TEK 87 | B75: 144.3 | C75: 30 | D75: 43.6 | E75: 206.8
A76: TEK 69 | B76: 181.4 | C76: 30 | D76: 19.6 | E76: 146.5
A77: TEK 49 | B77: 134.6 | C77: 30 | D77: 0 | E77: 95.1
A78: Older | B78: 149.3 | C78: 30 | D78: 0 | E78: 95.3
A79: Nursing home | B79: Heating | C79: Hot Water | D79: Cooling | E79: Electric
A80: Passivhouse | B80: 20 | C80: 30 | D80: 0 | E80: 75.41916667
A81: Low energy | B81: 30.3 | C81: 30 | D81: 0 | E81: 84.5
A82: TEK 17 | B82: 90.95335455 | C82: 30 | D82: 0 | E82: 109.0466454
A83: TEK 10 | B83: 99 | C83: 30 | D83: 0 | E83: 121
A84: TEK 07 | B84: 99 | C84: 30 | D84: 0 | E84: 118.7
A85: TEK 97 | B85: 132.7 | C85: 30 | D85: 0 | E85: 154.7
A86: TEK 87 | B86: 149.1 | C86: 30 | D86: 0 | E86: 166.7
A87: TEK 69 | B87: 177.1 | C87: 30 | D87: 0 | E87: 106.6
A88: TEK 49 | B88: 169.9 | C88: 30 | D88: 0 | E88: 71.3
A89: Older | B89: 188.5 | C89: 30 | D89: 0 | E89: 71.4
A90: Hotel | B90: Heating | C90: Hot Water | D90: Cooling | E90: Electric
A91: Passivhouse | B91: 25 | C91: 30 | D91: 9.96875 | E91: 42.36458333
A92: Low energy | B92: 35.3 | C92: 30 | D92: 11.9 | E92: 64.8
A93: TEK 17 | B93: 47.1021875 | C93: 30 | D93: 20.92845 | E93: 71.9693625
A94: TEK 10 | B94: 73.65168333 | C94: 30 | D94: 25.5225 | E94: 90.82581667
A95: TEK 07 | B95: 100.9 | C95: 30 | D95: 25.5 | E95: 101.4
A96: TEK 97 | B96: 130.3 | C96: 30 | D96: 28.6 | E96: 118.7
A97: TEK 87 | B97: 137.3 | C97: 30 | D97: 29.7 | E97: 127.5
A98: TEK 69 | B98: 194 | C98: 30 | D98: 14.9 | E98: 91.7
A99: TEK 49 | B99: 187.5 | C99: 30 | D99: 0 | E99: 54.3
A100: Older | B100: 206.3 | C100: 30 | D100: 0 | E100: 54.4
A101: Sports Facility | B101: Heating | C101: Hot Water | D101: Cooling | E101: Electric
A102: Passivhouse | B102: 20 | C102: 50 | D102: 0 | E102: 28.8271875 | F102: 101
A103: Low energy | B103: 45.9728125 | C103: 50 | D103: 0 | E103: 31.1271875
A104: TEK 17 | B104: 57.57140169 | C104: 50 | D104: 0 | E104: 37.42859831
A105: TEK 10 | B105: 73.8256625 | C105: 50 | D105: 0 | E105: 46.1743375
A106: TEK 07 | B106: 96.7 | C106: 50 | D106: 0 | E106: 46.9
A107: TEK 97 | B107: 141.2 | C107: 50 | D107: 0 | E107: 63.8
A108: TEK 87 | B108: 170.7 | C108: 50 | D108: 0 | E108: 69.5
A109: TEK 69 | B109: 301.5 | C109: 50 | D109: 0 | E109: 61
A110: TEK 49 | B110: 295.8 | C110: 50 | D110: 0 | E110: 25.4
A111: Older | B111: 326.3 | C111: 50 | D111: 0 | E111: 25.4
A112: Comercial building | B112: Heating | C112: Hot Water | D112: Cooling | E112: Electric
A113: Passivhouse | B113: 25 | C113: 10 | D113: 15.43833333 | E113: 55.6375
A114: Low energy | B114: 27 | C114: 10 | D114: 18.7 | E114: 76.7
A115: TEK 17 | B115: 51.52527156 | C115: 10 | D115: 29.89947778 | E115: 88.57525067
A116: TEK 10 | B116: 59.82815556 | C116: 10 | D116: 36.46277778 | E116: 103.7090667
A117: TEK 07 | B117: 117.5 | C117: 10 | D117: 40.8 | E117: 112.5
A118: TEK 97 | B118: 139.1 | C118: 10 | D118: 45 | E118: 148.7
A119: TEK 87 | B119: 140.6 | C119: 10 | D119: 46.4 | E119: 160.7
A120: TEK 69 | B120: 137.8 | C120: 10 | D120: 12.7 | E120: 89.1
A121: TEK 49 | B121: 141.9 | C121: 10 | D121: 0 | E121: 61.2
A122: Older | B122: 156.8 | C122: 10 | D122: 0 | E122: 61.3
A123: Cultural building | B123: Heating | C123: Hot Water | D123: Cooling | E123: Electric
A124: Passivhouse | B124: 25 | C124: 10.0225 | D124: 7.377916667 | E124: 32.74791667
A125: Low energy | B125: 35.04541667 | C125: 10.0225 | D125: 9.384166667 | E125: 33.94791667
A126: TEK 17 | B126: 62.3483928 | C126: 10.0225 | D126: 15.93465 | E126: 41.6944572
A127: TEK 10 | B127: 83.18856208 | C127: 10.0225 | D127: 19.4325 | E127: 52.35643792
A128: TEK 07 | B128: 103.1 | C128: 10.0225 | D128: 19.4 | E128: 52.8
A129: TEK 97 | B129: 130.7 | C129: 10.0225 | D129: 21.4 | E129: 70.6
A130: TEK 87 | B130: 149.9 | C130: 10.0225 | D130: 22.1 | E130: 76.7
A131: TEK 69 | B131: 210 | C131: 10.0225 | D131: 10.4 | E131: 51.2
A132: TEK 49 | B132: 231.8 | C132: 10.0225 | D132: 0 | E132: 27.4
A133: Older | B133: 252.7 | C133: 10.0225 | D133: 0 | E133: 27.4
A134: Industry/Workshop | B134: Heating | C134: Hot Water | D134: Cooling | E134: Electric
A135: Passivhouse | B135: 25 | C135: 10.0225 | D135: 7 | E135: 44.9
A136: Low energy | B136: 45.1775 | C136: 10.0225 | D136: 7 | E136: 49.6
A137: TEK 17 | B137: 82.1775 | C137: 10.0225 | D137: 14.5 | E137: 53.3
A138: TEK 10 | B138: 95.2775 | C138: 10.0225 | D138: 17.7 | E138: 67
A139: TEK 07 | B139: 99.1 | C139: 10.0225 | D139: 17.7 | E139: 67.7
A140: TEK 97 | B140: 128.2 | C140: 10.0225 | D140: 19.5 | E140: 83.2
A141: TEK 87 | B141: 161.3 | C141: 10.0225 | D141: 20.2 | E141: 88.6
A142: TEK 69 | B142: 313.5 | C142: 10.0225 | D142: 16.1 | E142: 80.9
A143: TEK 49 | B143: 303.6 | C143: 10.0225 | D143: 0 | E143: 43.4
A144: Older | B144: 333.2 | C144: 10.0225 | D144: 0 | E144: 43.4

Sheet LocalEnergySupplyData (hidden)
A1: Emission Factors | B1: Emissions [gCO2/kWh] | F1: Tall må oppdateres og sjekkes
A2: Energy Sources | B2: Indirect | C2: upstream | D2: Total
A3: Electricity | B3: 17 | C3: 0 | D3: ='Emission factors'!B3 -> 123
A4: Solar Thermal | B4: 0 | C4: 0 | D4: ='Emission factors'!B4 -> 0
A5: Firewood | B5: 14 | C5: 0 | D5: ='Emission factors'!B5 -> 14
A6: Wood Chips | B6: 14 | C6: 0 | D6: ='Emission factors'!B6 -> 14
A7: Pellets | B7: 25 | C7: 0 | D7: ='Emission factors'!B7 -> 25
A8: Bio-oil | B8: 25 | C8: 0 | D8: ='Emission factors'!B8 -> 25
A9: Bio-gas | B9: 10 | C9: 0 | D9: ='Emission factors'!B9 -> 10
A10: Waste | B10: 138 | C10: 0 | D10: ='Emission factors'!B10 -> 138
A11: Fossile oil | B11: 50 | C11: 265 | D11: ='Emission factors'!B11 -> 315
A12: LPG | B12: 70 | C12: 234 | D12: ='Emission factors'!B12 -> 304
A13: Natural Gas | B13: 53 | C13: 202 | D13: ='Emission factors'!B13 -> 255
B15: Efficiency | F15: CO2 factor
A16: Heating | B16: Production- Efficiency | C16: Distribution- Efficiency | D16: Control- Efficiency | E16: Total Efficiency | F16: Source | G16: Efficiency | H16: Total
A17: Electric heater | B17: 0.99 | C17: 0.99 | D17: 0.9 | E17: =B17*C17*D17 -> 0.88209 | F17: Electricity | G17: 1 | H17: =OFFSET($A$3,MATCH(F17,emissionSourcesRange,0)-1,3)/G17 -> 123 | I17: =F17 -> Electricity
A18: Electric boiler | B18: 0.98 | C18: 0.95 | D18: 0.92 | E18: =B18*C18*D18 -> 0.85652 | F18: Electricity | G18: 1 | H18: =OFFSET($A$3,MATCH(F18,emissionSourcesRange,0)-1,3)/G18 -> 123 | I18: =F18 -> Electricity
A19: Solar collector | B19: 1 | C19: 0.95 | D19: 0.95 | E19: 0.9025 | F19: Solar Thermal | G19: 1 | H19: =OFFSET($A$3,MATCH(F19,emissionSourcesRange,0)-1,3)/G19 -> 0 | I19: Solar Thermal
A20: Heat pump air-source | B20: 2.2 | C20: 0.95 | D20: 0.93 | E20: 1.9437 | F20: Electricity | G20: 1 | H20: =OFFSET($A$3,MATCH(F20,emissionSourcesRange,0)-1,3)/G20 -> 123 | I20: Electricity
A21: Heat pump ground-source | B21: 2.7 | C21: =C20 -> 0.95 | D21: 0.93 | E21: =B21*C21*D21 -> 2.38545 | F21: Electricity | G21: 1 | H21: =H20 -> 123 | I21: Electricity
A22: Wood chip boiler | B22: 0.85 | C22: 0.97 | D22: 0.9 | E22: =B22*C22*D22 -> 0.74205 | F22: Wood Chips | G22: 1 | H22: =OFFSET($A$3,MATCH(F22,emissionSourcesRange,0)-1,3)/G22 -> 14 | I22: Wood Chips
A23: Pellets boiler | B23: 0.85 | C23: 0.975 | D23: 0.9 | E23: 0.745875 | F23: Pellets | G23: 1 | H23: 25 | I23: Pellets
A24: Wood-burning Stove | B24: 0.8 | C24: 1 | D24: 0.8 | E24: 0.64 | F24: Firewood | G24: 1 | H24: 14 | I24: Firewood
A25: Bio-oil boiler | B25: 0.85 | C25: 0.95 | D25: 0.94 | E25: 0.75905 | F25: Bio-oil | G25: 1 | H25: 25 | I25: Bio-oil
A26: Oil boiler | B26: 0.85 | C26: 0.95 | D26: 0.95 | E26: 0.767125 | F26: Fossile oil | G26: 1 | H26: 315 | I26: Fossile oil
A27: LPG boiler | B27: 0.95 | C27: 0.95 | D27: 0.95 | E27: 0.857375 | F27: LPG | G27: 1 | H27: 304 | I27: LPG
A28: District Heating | B28: 0.98 | C28: 0.95 | D28: 0.93 | E28: 0.86583 | I28: =A28 -> District Heating
A30: Hot Water
A31: Electric water heater | B31: 0.99 | C31: 0.6 | D31: 0.98 | E31: =B31*C31*D31 -> 0.58212 | F31: Electricity | G31: 1 | H31: =OFFSET($A$3,MATCH(F31,emissionSourcesRange,0)-1,3)/G31 -> 123 | I31: =F31 -> Electricity
A32: Electric boiler | B32: 0.98 | C32: 0.6 | D32: 0.92 | E32: =B32*C32*D32 -> 0.54096 | F32: Electricity | G32: 1 | H32: =OFFSET($A$3,MATCH(F32,emissionSourcesRange,0)-1,3)/G32 -> 123 | I32: =F32 -> Electricity
A33: Solar collector | B33: 1 | C33: 0.6 | D33: 0.95 | E33: =B33*C33*D33 -> 0.57 | F33: Solar Thermal | G33: 1 | H33: =OFFSET($A$3,MATCH(F33,emissionSourcesRange,0)-1,3)/G33 -> 0 | I33: Solar Thermal
A34: Heat pump air-source | B34: 1.9 | C34: 0.6 | D34: 0.93 | E34: 1.0602 | F34: Electricity | G34: 1 | H34: =OFFSET($A$3,MATCH(F34,emissionSourcesRange,0)-1,3)/G34 -> 123 | I34: Electricity
A35: Heat pump ground-source | B35: 2.4 | C35: =C34 -> 0.6 | D35: 0.93 | E35: 1.0602 | F35: Electricity | G35: 1 | H35: =H34 -> 123 | I35: Electricity
A36: Wood chip boiler | B36: 0.85 | C36: 0.6 | D36: 0.9 | E36: =B36*C36*D36 -> 0.459 | F36: Wood Chips | G36: 1 | H36: =OFFSET($A$3,MATCH(F36,emissionSourcesRange,0)-1,3)/G36 -> 14 | I36: Wood Chips
A37: Pellets boiler | B37: 0.85 | C37: 0.6 | D37: 0.9 | E37: 0.459 | F37: Pellets | G37: 1 | H37: =OFFSET($A$3,MATCH(F37,emissionSourcesRange,0)-1,3)/G37 -> 25 | I37: Pellets
A38: Bio-oil boiler | B38: 0.85 | C38: 0.6 | D38: 0.94 | E38: =B38*C38*D38 -> 0.4794 | F38: Bio-oil | G38: 1 | H38: =OFFSET($A$3,MATCH(F38,emissionSourcesRange,0)-1,3)/G38 -> 25 | I38: Bio-oil
A39: Oil boiler | B39: 0.85 | C39: 0.6 | D39: 0.95 | E39: 0.4845 | F39: Fossile oil | G39: 1 | H39: =OFFSET($A$3,MATCH(F39,emissionSourcesRange,0)-1,3)/G39 -> 315 | I39: Fossile oil
A40: LPG boiler | B40: 0.95 | C40: 0.6 | D40: 0.95 | E40: 0.5415 | F40: LPG | G40: 1 | H40: =OFFSET($A$3,MATCH(F40,emissionSourcesRange,0)-1,3)/G40 -> 304 | I40: LPG
A41: District Heating | B41: 0.98 | C41: 0.6 | D41: 0.93 | E41: 0.54684 | I41: =A41 -> District Heating
A43: Cooling
A44: Local Chiller | B44: 2.45 | C44: 1 | D44: 1 | E44: =B44*C44*D44 -> 2.45 | F44: Electricity | G44: 1 | H44: =OFFSET($A$3,MATCH(F44,emissionSourcesRange,0)-1,3)/G44 -> 123
A45: District cooling | B45: 2.5 | C45: 0.95 | D45: 0.93 | E45: 2.20875 | F45: Electricity | G45: 1 | H45: =OFFSET($A$3,MATCH(F45,emissionSourcesRange,0)-1,3)/G45 -> 123
A47: Electric
A48: Electric consumption | B48: 1 | C48: 1 | D48: 1 | E48: =B48*C48*D48 -> 1 | F48: Electricity | G48: 1 | H48: =OFFSET($A$3,MATCH(F48,emissionSourcesRange,0)-1,3)/G48 -> 123
A50: Local energy plant sources
A51: Electricity | F51: Electricity | G51: 1 | H51: =OFFSET($A$3,MATCH(F51,emissionSourcesRange,0)-1,3)/G51 -> 123
A52: Sun | F52: Solar Thermal | G52: 1 | H52: =OFFSET($A$3,MATCH(F52,emissionSourcesRange,0)-1,3)/G52 -> 0
A53: Surplus Heat
A54: Waste Incineration | F54: Waste | G54: 1 | H54: =OFFSET($A$3,MATCH(F54,emissionSourcesRange,0)-1,3)/G54 -> 138
A55: Wood Chips | F55: Wood Chips | G55: 1 | H55: 14
A56: Pellets | F56: Pellets | G56: 1 | H56: 25
A57: Bio-oil | F57: Bio-oil | G57: 1 | H57: 25
A58: Bio-gas | F58: Bio-gas | G58: 1 | H58: 10
A59: Fossile Oil | F59: Fossile oil | G59: 1 | H59: 315
A60: LPG | F60: LPG | G60: 1 | H60: 304
A65: Heating
A66: Residential | B66: 0.95 | C66: 0.9 | D66: 0.85 | E66: 0.8 | F66: 0.75 | G66: 0.7 | H66: 0.65 | I66: 0.6 | J66: 0.55 | K66: 0.5 | L66: 0.45 | M66: 0.4 | N66: 0.35 | O66: 0.3 | P66: 0.25 | Q66: 0.2 | R66: 0.15 | S66: 0.1 | T66: 0.05 | U66: 0
A67: Regular | B67: 0.9999579964 | C67: 0.9998501151 | D67: 0.9993831465 | E67: 0.9979236462 | F67: 0.9948981421 | G67: 0.9896357469 | H67: 0.9812437291 | I67: 0.9685041021 | J67: 0.949593027 | K67: 0.9218795607 | L67: 0.8847462361 | M67: 0.8365641916 | N67: 0.7754408359 | O67: 0.7003213465 | P67: 0.6109165283 | Q67: 0.5084972906 | R67: 0.3937472219 | S67: 0.2682319137 | T67: 0.1358462868 | U67: 2.734595569e-15
A68: Efficient | B68: 0.9999343516 | C68: 0.9997832094 | D68: 0.9993838621 | E68: 0.998346882 | F68: 0.99606292 | G68: 0.9918594655 | H68: 0.9847914573 | I68: 0.97453167 | J68: 0.9595994618 | K68: 0.9383151489 | L68: 0.9089207519 | M68: 0.868711495 | N68: 0.8163495671 | O68: 0.7497979423 | P68: 0.6682598982 | Q68: 0.5688680573 | R68: 0.4497624884 | S68: 0.3125665811 | T68: 0.1610106169 | U68: 3.275812544e-15
A69: Service
A70: Regular | B70: 0.999966532 | C70: 0.9997833619 | D70: 0.9994099343 | E70: 0.9987489047 | F70: 0.9974509606 | G70: 0.995550078 | H70: 0.9928510162 | I70: 0.9884827504 | J70: 0.9816307792 | K70: 0.9706419039 | L70: 0.9538171642 | M70: 0.9280327559 | N70: 0.8880551928 | O70: 0.8308959653 | P70: 0.7511716547 | Q70: 0.6487223768 | R70: 0.5196878847 | S70: 0.3657527143 | T70: 0.1922579628 | U70: 4.036521013e-15
A71: Efficient | B71: 0.9999650998 | C71: 0.9998922213 | D71: 0.9996394744 | E71: 0.9992413041 | F71: 0.9984299796 | G71: 0.9970781004 | H71: 0.9950437006 | I71: 0.9920713584 | J71: 0.98701493 | K71: 0.9780787125 | L71: 0.9621647758 | M71: 0.9359482472 | N71: 0.8928261114 | O71: 0.8309994981 | P71: 0.7461036267 | Q71: 0.6383059348 | R71: 0.5084209278 | S71: 0.3567640435 | T71: 0.1857338483 | U71: 3.843627313e-15
A73: Hot water
A74: Residential | B74: 0.95 | C74: 0.9 | D74: 0.85 | E74: 0.8 | F74: 0.75 | G74: 0.7 | H74: 0.65 | I74: 0.6 | J74: 0.55 | K74: 0.5 | L74: 0.45 | M74: 0.4 | N74: 0.35 | O74: 0.3 | P74: 0.25 | Q74: 0.2 | R74: 0.15 | S74: 0.1 | T74: 0.05 | U74: 0
A75: Regular | B75: 0.9985987391 | C75: 0.9968273337 | D75: 0.9940938326 | E75: 0.9844493594 | F75: 0.9676463036 | G75: 0.9410532337 | H75: 0.9072115873 | I75: 0.8579616636 | J75: 0.8001281269 | K75: 0.7398057759 | L75: 0.6713910921 | M75: 0.5968273337 | N75: 0.522223917 | O75: 0.4476205003 | P75: 0.3730170836 | Q75: 0.2984136669 | R75: 0.2238102502 | S75: 0.1492068334 | T75: 0.07460341672 | U75: 1.490875757e-15
A76: Efficient | B76: 0.9984582556 | C76: 0.9963034327 | D76: 0.9941486098 | E76: 0.9906295802 | F76: 0.981170509 | G76: 0.9644780745 | H76: 0.9412555206 | I76: 0.9086898442 | J76: 0.8699646 | K76: 0.8218475945 | L76: 0.7574151987 | M76: 0.6870941028 | N76: 0.6151715484 | O76: 0.5382089001 | P76: 0.4537143612 | Q76: 0.3630047835 | R76: 0.2722535876 | S76: 0.1815023917 | T76: 0.09075119587 | U76: 1.813573209e-15
A77: Service
A78: Regular | B78: 0.9921478353 | C78: 0.9775631232 | D78: 0.9601636153 | E78: 0.9385400034 | F78: 0.9140831405 | G78: 0.8876951961 | H78: 0.8596761252 | I78: 0.8270271205 | J78: 0.7874775236 | K78: 0.7367309905 | L78: 0.6723183544 | M78: 0.6013080407 | N78: 0.5261445356 | O78: 0.4509810305 | P78: 0.3758175254 | Q78: 0.3006540203 | R78: 0.2254905153 | S78: 0.1503270102 | T78: 0.07516350508 | U78: 1.502068571e-15
A79: Efficient | B79: 0.9946936696 | C79: 0.9852128784 | D79: 0.9666628298 | E79: 0.942906169 | F79: 0.9191495082 | G79: 0.8948141564 | H79: 0.868087913 | I79: 0.8409534242 | J79: 0.8112575982 | K79: 0.7798607509 | L79: 0.7471953423 | M79: 0.7091003808 | N79: 0.6574358223 | O79: 0.58811229 | P79: 0.4973840264 | Q79: 0.3986749974 | R79: 0.299006248 | S79: 0.1993374987 | T79: 0.09966874934 | U79: 1.991781726e-15

Sheet Testsheet (hidden)
B2: =B3/$H$3 -> 0.6597689817 | C2: =C3/$H$3 -> 0.6760107197 | D2: 0.6685662037 | E2: 0.7096135765 | F2: 0.7137347427 | G2: 0.8117042134 | H2: 1 | I2: 1.088775249 | J2: 1.244546803 | K2: 1.160530979 | L2: 1.1431505 | M2: 1.094001936 | N2: 1.047480859 | O2: 1.036239755 | P2: 1.000572481 | Q2: 1.002011036 | R2: 0.9393492884 | S2: 0.888140621 | T2: 0.8549929619 | U2: 0.8249829797 | V2: 0.7495232401 | W2: 0.6774443515 | X2: 0.6642821983 | Y2: 0.7056572903
B3: 25.43370604 | C3: 26.05981549 | D3: 25.77283378 | E3: 27.35518584 | F3: 27.51405438 | G3: 31.29071983 | H3: 38.54941161 | I3: 41.97164524 | J3: 47.97654698 | K3: 44.73778641 | L3: 44.06777917 | M3: 42.17313095 | N3: 40.3797708 | O3: 39.94643284 | P3: 38.57148041 | Q3: 38.62693587 | R3: 36.21136237 | S3: 34.23729837 | T3: 32.95947561 | U3: 31.80260846 | V3: 28.89367989 | W3: 26.11508115 | X3: 25.60768789 | Y3: 27.20267334
B4: 0.5079027444 | C4: 0.5091070467 | D4: 0.5181696792 | E4: 0.5305381273 | F4: 0.5383437478 | G4: 0.5825679966 | H4: 0.6323282546 | I4: 0.7009251295 | J4: 0.7299995763 | K4: 0.7376695267 | L4: 0.7231790545 | M4: 0.7159279172 | N4: 0.6957312751 | O4: 0.6979323638 | P4: 0.6861290555 | Q4: 0.6732260623 | R4: 0.6651006313 | S4: 0.6116054321 | T4: 0.5917282567 | U4: 0.5625615678 | V4: 0.5444110938 | W4: 0.5187128184 | X4: 0.4969219368 | Y4: 0.492294941
B5: 5.59733214 | C5: 5.443073571 | D5: 5.39968427 | E5: 5.383666654 | F5: 5.51729687 | G5: 5.983435719 | H5: 7.80064531 | I5: 10.42496878 | J5: 12.11252545 | K5: 13.46321903 | L5: 14.49455315 | M5: 14.60980429 | N5: 14.67867163 | O5: 14.65616506 | P5: 14.55901478 | Q5: 14.45019655 | R5: 13.62466968 | S5: 12.37364887 | T5: 11.49085924 | U5: 10.6610355 | V5: 9.331772113 | W5: 7.805003798 | X5: 6.706400487 | Y5: 6.042576507
B6: 14.55030766 | C6: 15.47422275 | D6: 16.58858077 | E6: 22.43388746 | F6: 23.91242394 | G6: 26.7371722 | H6: 33.24287161 | I6: 52.42268021 | J6: 64.22257574 | K6: 55.53458389 | L6: 51.06734514 | M6: 48.21960307 | N6: 44.85783336 | O6: 40.62761201 | P6: 39.23000116 | Q6: 37.23062775 | R6: 34.05952369 | S6: 27.32604226 | T6: 25.59250616 | U6: 23.94800307 | V6: 22.31521122 | W6: 21.06880109 | X6: 19.23558685 | Y6: 16.74545648
B7: 3.582881506 | C7: 3.40473336 | D7: 2.969535818 | E7: 2.42390237 | F7: 2.02228719 | G7: 2.479678788 | H7: 2.701431006 | I7: 4.916723044 | J7: 5.916425114 | K7: 6.111459271 | L7: 6.536446759 | M7: 6.300305416 | N7: 6.617051655 | O7: 6.173960922 | P7: 6.384645458 | Q7: 6.228885627 | R7: 5.18069653 | S7: 4.53889913 | T7: 3.994281869 | U7: 3.87855478 | V7: 4.03638356 | W7: 3.955347003 | X7: 3.570437592 | Y7: 3.447338765
B8: 7.031085458 | C8: 6.30700824 | D8: 6.313128437 | E8: 6.330824346 | F8: 6.400977288 | G8: 6.482771823 | H8: 8.409895984 | I8: 17.00177939 | J8: 22.54538967 | K8: 27.63221756 | L8: 28.47903715 | M8: 28.11755737 | N8: 27.86998208 | O8: 28.25270945 | P8: 27.58015917 | Q8: 24.55776585 | R8: 21.59243492 | S8: 16.07336208 | T8: 15.05276205 | U8: 12.91808474 | V8: 12.53647776 | W8: 11.84150075 | X8: 10.54997132 | Y8: 8.441017511
B9: 44.78565448 | C9: 45.37083482 | D9: 47.71933928 | E9: 50.54281135 | F9: 51.46900924 | G9: 59.88476558 | H9: 62.35060146 | I9: 61.27111128 | J9: 68.62239908 | K9: 62.52039812 | L9: 59.24384536 | M9: 57.84555202 | N9: 55.85023776 | O9: 56.40617403 | P9: 54.57251165 | Q9: 53.66793754 | R9: 54.41157872 | S9: 54.48827562 | T9: 52.18053363 | U9: 51.02302156 | V9: 46.286583 | W9: 46.67970298 | X9: 48.71557604 | Y9: 48.80039603
B10: 31.63434615 | C10: 32.2715275 | D10: 33.11373648 | E10: 36.75332455 | F10: 42.79586052 | G10: 44.91594608 | H10: 49.61831653 | I10: 51.00455496 | J10: 51.39370279 | K10: 54.53217547 | L10: 55.21565444 | M10: 54.17471882 | N10: 51.41366387 | O10: 47.0752668 | P10: 45.3881741 | Q10: 43.43109648 | R10: 39.36250456 | S10: 38.18498101 | T10: 36.81549344 | U10: 36.01817601 | V10: 33.03336699 | W10: 31.39807998 | X10: 31.39671179 | Y10: 31.22632487
B11: 17.72914446 | C11: 17.46845161 | D11: 17.53690777 | E11: 17.63607233 | F11: 17.95560583 | G11: 19.67548511 | H11: 22.2603528 | I11: 24.79883677 | J11: 28.05069654 | K11: 29.92783375 | L11: 30.72322064 | M11: 30.93304604 | N11: 30.76304517 | O11: 28.97973114 | P11: 27.81154562 | Q11: 26.40339604 | R11: 25.06497004 | S11: 24.90517386 | T11: 23.89334522 | U11: 22.9639333 | V11: 21.69738728 | W11: 20.22264401 | X11: 19.24323645 | Y11: 18.24929611
B12: 726.818971 | C12: 730.0579645 | D12: 711.9248569 | E12: 719.8515215 | F12: 760.1024214 | G12: 592.5781301 | H12: 846.1656978 | I12: 827.1587847 | J12: 808.1945763 | K12: 753.709844 | L12: 726.7762663 | M12: 707.7693531 | N12: 691.9587287 | O12: 665.8989565 | P12: 554.5215991 | Q12: 556.886787 | R12: 531.5300013 | S12: 631.8271101 | T12: 697.4775006 | U12: 725.0713599 | V12: 746.4007562 | W12: 754.3274208 | X12: 703.081682 | Y12: 759.1859111
B13: 47.76192395 | C13: 34.54850519 | D13: 35.23489933 | E13: 38.66687004 | F13: 39.58206223 | G13: 64.06345333 | H13: 64.06345333 | I13: 66.8090299 | J13: 59.94508847 | K13: 64.29225137 | L13: 54.91153142 | M13: 48.96278218 | N13: 47.81879195 | O13: 47.36119585 | P13: 55.14032947 | Q13: 60.40268456 | R13: 57.42830995 | S13: 51.70835876 | T13: 58.11470409 | U13: 50.33557047 | V13: 49.42037828 | W13: 48.50518609 | X13: 56.97071385 | Y13: 46.67480171
B14: 45.12041176 | C14: 36.68543865 | D14: 34.54322325 | E14: 34.07461363 | F14: 33.80683671 | G14: 34.14155786 | H14: 41.03681367 | I14: 54.22482719 | J14: 62.25813493 | K14: 66.14090033 | L14: 63.73090801 | M14: 62.12424646 | N14: 60.85230607 | O14: 60.51758492 | P14: 63.99868494 | Q14: 77.32058693 | R14: 95.52941779 | S14: 101.8221755 | T14: 104.1652236 | U14: 105.9057736 | V14: 107.5793794 | W14: 102.826339 | X14: 89.9730466 | Y14: 68.35005996
B15: 51.18360512 | C15: 51.85238265 | D15: 54.53638775 | E15: 57.76321297 | F15: 58.82172485 | G15: 68.43973209 | H15: 71.25783024 | I15: 70.02412718 | J15: 78.42559895 | K15: 71.45188356 | L15: 67.70725184 | M15: 66.1092023 | N15: 63.82884316 | O15: 64.46419889 | P15: 62.36858474 | Q15: 61.33478576 | R15: 62.18466139 | S15: 62.272315 | T15: 59.63489558 | U15: 58.31202464 | V15: 52.898952 | W15: 53.34823198 | X15: 55.67494404 | Y15: 55.77188118
B16: 21.69212308 | C16: 22.12904743 | D16: 22.70656216 | E16: 25.20227969 | F16: 29.34573293 | G16: 30.79950589 | H16: 34.02398848 | I16: 34.97455197 | J16: 35.2413962 | K16: 37.39349175 | L16: 37.86216304 | M16: 37.14837862 | N16: 35.25508379 | O16: 32.28018295 | P16: 31.12331938 | Q16: 29.7813233 | R16: 26.9914317 | S16: 26.18398698 | T16: 25.24490979 | U16: 24.69817783 | V16: 22.65145165 | W16: 21.53011199 | X16: 21.5291738 | Y16: 21.41233705
B17: 53.01016819 | C17: 52.2306962 | D17: 52.4353802 | E17: 52.7318824 | F17: 53.68728802 | G17: 58.82972962 | H17: 66.55848785 | I17: 74.14855869 | J17: 83.87162421 | K17: 89.48426725 | L17: 91.86247523 | M17: 92.48985349 | N17: 91.98155063 | O17: 86.64943905 | P17: 83.1565626 | Q17: 78.94619328 | R17: 74.94429756 | S17: 74.46650675 | T17: 71.44113761 | U17: 68.66219457 | V17: 64.87522011 | W17: 60.46573556 | X17: 57.53730549 | Y17: 54.5654224
B18: 23.35701393 | C18: 24.0983225 | D18: 24.58952198 | E18: 30.34283044 | F18: 31.31605357 | G18: 35.41495476 | H18: 43.33430046 | I18: 69.53731297 | J18: 84.99387736 | K18: 75.31624114 | L18: 70.93392372 | M18: 67.21306336 | N18: 63.90958019 | O18: 58.21356402 | P18: 56.98465419 | Q18: 54.3906194 | R18: 48.81130614 | S18: 39.86074928 | T18: 36.86264715 | U18: 34.75168121 | V18: 33.15448975 | W18: 31.56674386 | X18: 28.74557327 | Y18: 25.64446007
B19: 17.72914446 | C19: 17.46845161 | D19: 17.53690777 | E19: 17.63607233 | F19: 17.95560583 | G19: 19.67548511 | H19: 22.2603528 | I19: 24.79883677 | J19: 28.05069654 | K19: 29.92783375 | L19: 30.72322064 | M19: 30.93304604 | N19: 30.76304517 | O19: 28.97973114 | P19: 27.81154562 | Q19: 26.40339604 | R19: 25.06497004 | S19: 24.90517386 | T19: 23.89334522 | U19: 22.9639333 | V19: 21.69738728 | W19: 20.22264401 | X19: 19.24323645 | Y19: 18.24929611
B20: 109.5750542 | C20: 111.416121 | D20: 115.6686902 | E20: 125.5853634 | F20: 137.7050018 | G20: 151.3018493 | H20: 162.7489645 | I20: 164.0371936 | J20: 173.2392754 | K20: 171.9309902 | L20: 169.3965692 | M20: 165.8780478 | N20: 158.5244281 | O20: 151.2329362 | P20: 146.0299604 | Q20: 141.4063272 | R20: 134.8250168 | S20: 132.760275 | T20: 127.5905565 | U20: 124.7956299 | V20: 113.8669416 | W20: 111.3305494 | X20: 113.6794017 | Y20: 113.4657809
B21: 524.2530349 | C21: 493.1192733 | D21: 492.1561862 | E21: 497.5832178 | F21: 498.8876119 | G21: 541.2779077 | H21: 548.1731635 | I21: 566.0776901 | J21: 562.3197152 | K21: 573.6702929 | L21: 555.1455477 | M21: 543.3197746 | N21: 540.0826204 | O21: 538.9618138 | P21: 555.8063674 | Q21: 578.1682527 | R21: 591.2675278 | S21: 587.7342167 | T21: 601.0824618 | U21: 589.4595582 | V21: 589.560993 | W21: 583.2357816 | X21: 584.9250711 | Y21: 545.6151605
B22: 0 | C22: 0 | D22: 0 | E22: 0 | F22: 0 | G22: 0 | H22: 0 | I22: 0 | J22: 0 | K22: 0 | L22: 0 | M22: 0 | N22: 0 | O22: 0 | P22: 0 | Q22: 0 | R22: 0 | S22: 0 | T22: 0 | U22: 0 | V22: 0 | W22: 0 | X22: 0 | Y22: 0
B23: 53.01016819 | C23: 52.2306962 | D23: 52.4353802 | E23: 52.7318824 | F23: 53.68728802 | G23: 58.82972962 | H23: 66.55848785 | I23: 74.14855869 | J23: 83.87162421 | K23: 89.48426725 | L23: 91.86247523 | M23: 92.48985349 | N23: 91.98155063 | O23: 86.64943905 | P23: 83.1565626 | Q23: 78.94619328 | R23: 74.94429756 | S23: 74.46650675 | T23: 71.44113761 | U23: 68.66219457 | V23: 64.87522011 | W23: 60.46573556 | X23: 57.53730549 | Y23: 54.5654224
B24: 39.66813525 | C24: 40.46713376 | D24: 41.52322829 | E24: 46.08711816 | F24: 53.6642033 | G24: 56.32270113 | H24: 62.21927525 | I24: 63.95755975 | J24: 64.44553471 | K24: 68.38104702 | L24: 69.2381008 | M24: 67.93281145 | N24: 64.47056506 | O24: 59.0303982 | P24: 56.91485514 | Q24: 54.46076238 | R24: 49.35891979 | S24: 47.88235494 | T24: 46.16507532 | U24: 45.1652729 | V24: 41.42244835 | W24: 39.37186744 | X24: 39.37015178 | Y24: 39.15649377
B28: 967.9514218 | C28: 961.6781407 | D28: 951.084902 | E28: 981.5235339 | F28: 1036.10392 | G28: 921.7716719 | H28: 1202.60593 | I28: 1211.254134 | J28: 1220.668309 | K28: 1151.021543 | L28: 1104.111462 | M28: 1069.418954 | N28: 1038.675736 | O28: 1000.931913 | P28: 887.9867745 | Q28: 888.26429 | R28: 848.0251708 | S28: 931.3788727 | T28: 992.606029 | U28: 1005.650058 | V28: 1006.481174 | W28: 1007.446676 | X28: 966.2794358 | Y28: 1010.959415
B29: 128.488142 | C29: 118.1346683 | D29: 116.2283239 | E29: 116.1570594 | F29: 117.3680047 | G29: 125.1129801 | H29: 146.0661956 | I29: 180.5989708 | J29: 208.8383708 | K29: 226.6484379 | L29: 229.2901942 | M29: 228.2745077 | N29: 226.1455556 | O29: 219.0556296 | P29: 217.1059671 | Q29: 221.6781386 | R29: 230.75579 | S29: 229.6408671 | T29: 226.0433277 | U29: 221.1110217 | V29: 216.0202366 | W29: 203.1612231 | X29: 184.0099603 | Y29: 155.6483725
B40: 607.6207652 | C40: 574.5685029 | D40: 573.8412868 | E40: 579.6656636 | F40: 582.4487799 | G40: 632.24933 | H40: 653.2025454 | I40: 692.4518337 | J40: 708.8999511 | K40: 734.1778305 | L40: 720.7048339 | M40: 709.4700358 | N40: 705.3758699 | O40: 697.4998585 | P40: 708.9136496 | Q40: 722.5258044 | R40: 726.4939 | S40: 715.5529082 | T40: 722.960566 | U40: 704.6648063 | V40: 698.0018503 | W40: 683.5706657 | X40: 678.9619848 | Y40: 632.9134731
B41: 202.9039413 | C41: 207.0106495 | D41: 212.4956327 | E41: 234.5796775 | F41: 255.4473852 | G41: 280.2444059 | H41: 313.9819438 | I41: 347.289459 | J41: 379.4246765 | K41: 368.6476508 | L41: 361.7876352 | M41: 351.041459 | N41: 334.813915 | O41: 315.8897767 | P41: 305.7327469 | Q41: 296.1014395 | R41: 276.0342207 | S41: 261.164564 | T41: 249.767279 | U41: 242.4721106 | V41: 222.8105154 | W41: 213.3796287 | X41: 212.2797265 | Y41: 210.5850193
A45: MaxPthermD | B45: 1170.767566 | D45: 3.786216304
A46: MaxPelectricD | B46: 163.3117719 | D46: 3.786216304
A47: MaxPel | B47: 684.794974 | D47: 3.786216304
A48: MaxPdh | B48: 330.4815471
B50: 0 | C50: 0 | D50: 0 | E50: 0 | F50: 0 | G50: 0 | H50: 0 | I50: 0 | J50: 0 | K50: 0 | L50: 0 | M50: 0 | N50: 0 | O50: 0 | P50: 0 | Q50: 0 | R50: 0 | S50: 0 | T50: 0 | U50: 0 | V50: 0 | W50: 0 | X50: 0 | Y50: 0
B51: 0 | C51: 0 | D51: 0 | E51: 0 | F51: 0 | G51: 0 | H51: 0 | I51: 0 | J51: 0 | K51: 0 | L51: 0 | M51: 0 | N51: 0 | O51: 0 | P51: 0 | Q51: 0 | R51: 0 | S51: 0 | T51: 0 | U51: 0 | V51: 0 | W51: 0 | X51: 0 | Y51: 0
B52: 1 | C52: 1 | D52: 1 | E52: 1 | F52: 1 | G52: 1 | H52: 1 | I52: 1 | J52: 1 | K52: 1 | L52: 1 | M52: 1 | N52: 1 | O52: 1 | P52: 1 | Q52: 1 | R52: 1 | S52: 1 | T52: 1 | U52: 1 | V52: 1 | W52: 1 | X52: 1 | Y52: 1
B53: =SUM(B50:B52) -> 1 | C53: =SUM(C50:C52) -> 1 | D53: 1 | E53: 1 | F53: 1 | G53: 1 | H53: 1 | I53: 1 | J53: 1 | K53: 1 | L53: 1 | M53: 1 | N53: 1 | O53: 1 | P53: 1 | Q53: 1 | R53: 1 | S53: 1 | T53: 1 | U53: 1 | V53: 1 | W53: 1 | X53: 1 | Y53: 1
B55: =B$3*B50 -> 0 | C55: =C$3*C50 -> 0 | D55: 0 | E55: 0 | F55: 0 | G55: 0 | H55: 0 | I55: 0 | J55: 0 | K55: 0 | L55: 0 | M55: 0 | N55: 0 | O55: 0 | P55: 0 | Q55: 0 | R55: 0 | S55: 0 | T55: 0 | U55: 0 | V55: 0 | W55: 0 | X55: 0 | Y55: 0
B56: =B$3*B51 -> 0 | C56: 0 | D56: 0 | E56: 0 | F56: 0 | G56: 0 | H56: 0 | I56: 0 | J56: 0 | K56: 0 | L56: 0 | M56: 0 | N56: 0 | O56: 0 | P56: 0 | Q56: 0 | R56: 0 | S56: 0 | T56: 0 | U56: 0 | V56: 0 | W56: 0 | X56: 0 | Y56: 0
B57: 25.43370604 | C57: 26.05981549 | D57: 25.77283378 | E57: 27.35518584 | F57: 27.51405438 | G57: 31.29071983 | H57: 38.54941161 | I57: 41.97164524 | J57: 47.97654698 | K57: 44.73778641 | L57: 44.06777917 | M57: 42.17313095 | N57: 40.3797708 | O57: 39.94643284 | P57: 38.57148041 | Q57: 38.62693587 | R57: 36.21136237 | S57: 34.23729837 | T57: 32.95947561 | U57: 31.80260846 | V57: 28.89367989 | W57: 26.11508115 | X57: 25.60768789 | Y57: 27.20267334
B60: 47.59958189

Sheet Kontroll (hidden)
B1: PI-SEC Scenario Calculator | C1: Initial Situation
B2: Neighbourhood | C2: Grønneberg
B3: Buildings
K4: Thermal Energy supply system
J5: Heating | V5: Hot Water | AI5: Cooling
B6: Building | C6: Category | E6: Area [m2] | F6: Heating [kWh/m2] | G6: Hot Water [kWh/m2] | H6: Cooling [kWh/m2] | I6: Electricity [kWh/m2] | J6: Source 1 | K6: Coverage [%] | L6: Efficiency/COP [-] | M6: Coverage share of peak power [%] | N6: Source 2 | O6: Coverage [%] | P6: Efficiency/COP [-] | Q6: Coverage share of peak power [%] | R6: Source 3 | S6: Coverage [%] | T6: Efficiency/COP [-] | U6: Coverage share of peak power [%] | V6: Source 1 | W6: Coverage [%] | X6: Efficiency/ COP [%] | Y6: Coverage share of peak power [%] | Z6: Source 2 | AA6: Coverage [%] | AB6: Efficiency/ COP [%] | AC6: Coverage share of peak power [%] | AD6: Source 3 | AE6: Coverage [%] | AF6: Efficiency/COP [%] | AG6: Coverage share of peak power [%] | AH6: Source 1 | AI6: Coverage [%] | AJ6: Efficiency/COP [-] | AK6: Source 2
B7: d | C7: Residential apartment building | D7: =Initial!#REF! ->  | E7: 2000 | F7: =Initial!#REF! ->  | G7: =Initial!#REF! ->  | H7: =Initial!#REF! ->  | I7: =Initial!#REF! ->  | J7: =Initial!#REF! ->  | K7: =Initial!#REF! ->  | L7: =Initial!#REF! ->  | M7: =Initial!#REF! ->  | N7: =Initial!#REF! ->  | O7: =Initial!#REF! ->  | P7: =Initial!#REF! ->  | Q7: =Initial!#REF! ->  | R7: =Initial!#REF! ->  | S7: =Initial!#REF! ->  | T7: =Initial!#REF! ->  | U7: =Initial!#REF! ->  | V7: =Initial!#REF! ->  | W7: =Initial!#REF! ->  | X7: =Initial!#REF! ->  | Y7: =Initial!#REF! ->  | Z7: =Initial!#REF! ->  | AA7: =Initial!#REF! ->  | AB7: =Initial!#REF! ->  | AC7: =Initial!#REF! ->  | AD7: =Initial!#REF! ->  | AE7: =Initial!#REF! ->  | AF7: =Initial!#REF! ->  | AG7: =Initial!#REF! ->  | AH7: =Initial!#REF! ->  | AI7: =Initial!#REF! ->  | AJ7: =Initial!#REF! ->  | AK7: =Initial!#REF! -> 
B8: a | C8: Kindergarten | D8: =Initial!#REF! ->  | E8: 2000 | F8: =Initial!#REF! ->  | G8: =Initial!#REF! ->  | H8: =Initial!#REF! ->  | I8: =Initial!#REF! ->  | J8: =Initial!#REF! ->  | K8: =Initial!#REF! ->  | L8: =Initial!#REF! ->  | M8: =Initial!#REF! ->  | N8: =Initial!#REF! ->  | O8: =Initial!#REF! ->  | P8: =Initial!#REF! ->  | Q8: =Initial!#REF! ->  | R8: =Initial!#REF! ->  | S8: =Initial!#REF! ->  | T8: =Initial!#REF! ->  | U8: =Initial!#REF! ->  | V8: =Initial!#REF! ->  | W8: =Initial!#REF! ->  | X8: =Initial!#REF! ->  | Y8: =Initial!#REF! ->  | Z8: =Initial!#REF! ->  | AA8: =Initial!#REF! ->  | AB8: =Initial!#REF! ->  | AC8: =Initial!#REF! ->  | AD8: =Initial!#REF! ->  | AE8: =Initial!#REF! ->  | AF8: =Initial!#REF! ->  | AG8: =Initial!#REF! ->  | AH8: =Initial!#REF! ->  | AI8: =Initial!#REF! ->  | AJ8: =Initial!#REF! ->  | AK8: =Initial!#REF! -> 
B9: a | C9: Office building | D9: =Initial!#REF! ->  | E9: 2000 | F9: =Initial!#REF! ->  | G9: =Initial!#REF! ->  | H9: =Initial!#REF! ->  | I9: =Initial!#REF! ->  | J9: =Initial!#REF! ->  | K9: =Initial!#REF! ->  | L9: =Initial!#REF! ->  | M9: =Initial!#REF! ->  | N9: =Initial!#REF! ->  | O9: =Initial!#REF! ->  | P9: =Initial!#REF! ->  | Q9: =Initial!#REF! ->  | R9: =Initial!#REF! ->  | S9: =Initial!#REF! ->  | T9: =Initial!#REF! ->  | U9: =Initial!#REF! ->  | V9: =Initial!#REF! ->  | W9: =Initial!#REF! ->  | X9: =Initial!#REF! ->  | Y9: =Initial!#REF! ->  | Z9: =Initial!#REF! ->  | AA9: =Initial!#REF! ->  | AB9: =Initial!#REF! ->  | AC9: =Initial!#REF! ->  | AD9: =Initial!#REF! ->  | AE9: =Initial!#REF! ->  | AF9: =Initial!#REF! ->  | AG9: =Initial!#REF! ->  | AH9: =Initial!#REF! ->  | AI9: =Initial!#REF! ->  | AJ9: =Initial!#REF! ->  | AK9: =Initial!#REF! -> 
E11: Heating [kWh/m2] | F11: Hot Water [kWh/m2] | G11: Electric
B12: Årlig energibehov | C12: Residential apartment building | E12: =$E7*F7 ->  | F12: =$E7*G7 ->  | G12: =E7*I7 -> 
C13: Kindergarten | E13: =$E8*F8 ->  | G13: =E8*I8 -> 
C14: Office building
C15: Residential apartment building | D15: Kindergarten | E15: Office building
B16: Heating [kWh/m2] | C16: =E12 ->  | D16: =E13 ->  | E16: =E14 -> 
B17: Hot Water [kWh/m2] | C17: =F12 ->  | D17: =F13 ->  | E17: =F14 -> 
B18: Electric | C18: =G12 ->  | D18: =G13 ->  | E18: =G14 -> 
A39: Residential apartment building | B39: Heating [kWh/m2] | C39: =C168 -> Regular | D39: =D168 -> 0.0004364604099 | E39: 0.0004384054505 | F39: 0.0004275163793 | G39: 0.0004322764026 | H39: 0.0004564473791 | I39: 0.0003558477474 | J39: 0.0005081290418 | K39: 0.0004967152436 | L39: 0.0004853270899 | M39: 0.000452608587 | N39: 0.0004364347653 | O39: 0.0004250209671 | P39: 0.0004155265649 | Q39: 0.0003998774703 | R39: 0.0003329945063 | S39: 0.0003344148199 | T39: 0.0003191878741 | U39: 0.0003794170632 | V39: 0.0004188406301 | W39: 0.0004354109559 | X39: 0.0004482194233
B40: Hot Water [kWh/m2] | C40: =C198 -> Regular | D40: =D198 -> 0.0001061376088 | E40: 7.677445597e-05 | F40: 7.829977629e-05 | G40: 8.592637787e-05 | H40: 8.79601383e-05 | I40: 0.0001423632296 | J40: 0.0001423632296 | K40: 0.0001484645109 | L40: 0.0001332113077 | M40: 0.0001428716697 | N40: 0.0001220256254 | O40: 0.0001088061826 | P40: 0.0001062639821 | Q40: 0.0001052471019 | R40: 0.0001225340655 | S40: 0.0001342281879 | T40: 0.0001276184665 | U40: 0.0001149074639 | V40: 0.0001291437869 | W40: 0.0001118568233 | X40: 0.0001098230628
B41: Electric | C41: =C225 -> Regular | D41: =D225 -> 8.501375293e-05 | E41: 6.912097419e-05 | F41: 6.508471293e-05 | G41: 6.420178077e-05 | H41: 6.369724811e-05 | I41: 6.432791394e-05 | J41: 7.731962989e-05 | K41: 0.0001021678633 | L41: 0.0001173038431 | M41: 0.0001246195666 | N41: 0.0001200787727 | O41: 0.0001170515767 | P41: 0.0001146550466 | Q41: 0.0001140243808 | R41: 0.0001205833053 | S41: 0.0001456838051 | T41: 0.0001799920259 | U41: 0.0001918485433 | V41: 0.0001962632041 | W41: 0.0001995426664 | X41: 0.0002026959955
A43: Kindergarten | B43: Heating [kWh/m2] | C43: =C174 -> Regular | D43: =D174 -> 0.0003199160213 | E43: 0.0003296468105 | F43: 0.0003318376419 | G43: 0.0003456344183 | H43: 0.000352357386 | I43: 0.000352291173 | J43: 0.0004552950574 | K43: 0.0005961701425 | L43: 0.0006458427905 | M43: 0.0005801397352 | N43: 0.0005126175867 | O43: 0.0005189085056 | P43: 0.0004809082504 | Q43: 0.0004310173671 | R43: 0.0004426587673 | S43: 0.0004492154966 | T43: 0.0004049610659 | U43: 0.0003097886059 | V43: 0.0003182739496 | W43: 0.0003239977654 | X43: 0.0003289859519
B44: Hot Water [kWh/m2] | C44: =C202 -> Regular | D44: =D202 -> 8.388099133e-05 | E44: 8.697880143e-05 | F44: 8.989742566e-05 | G44: 9.837527562e-05 | H44: 0.0001044000618 | I44: 0.000126554491 | J44: 0.0001517310739 | K44: 0.000165326124 | L44: 0.0001905994261 | M44: 0.0002046831331 | N44: 0.0002115188258 | O44: 0.0001770727347 | P44: 0.0001985746885 | Q44: 0.0001925669045 | R44: 0.0001627280701 | S44: 0.000171331016 | T44: 0.0001469659226 | U44: 0.0001130360326 | V44: 9.097722404e-05 | W44: 7.745071926e-05 | X44: 7.642087808e-05
B45: Electric | C45: =C229 -> Regular | D45: =D229 -> 6.250370027e-05 | E45: 6.218917118e-05 | F45: 6.186117653e-05 | G45: 6.187535557e-05 | H45: 6.234572159e-05 | I45: 6.542061831e-05 | J45: 8.767939196e-05 | K45: 0.0001581957495 | L45: 0.0002233242175 | M45: 0.0002429136102 | N45: 0.0002503298325 | O45: 0.0002459941504 | P45: 0.000246833797 | Q45: 0.0002426023822 | R45: 0.0002384019197 | S45: 0.0002341569961 | T45: 0.0001889914992 | U45: 0.0001171084667 | V45: 7.713584683e-05 | W45: 7.137688776e-05 | X45: 6.783246047e-05
A47: Office building | B47: Heating [kWh/m2] | C47: =C171 -> Efficient | D47: =D171 -> 0.0003819736841 | E47: 0.0003853387827 | F47: 0.0003824641884 | G47: 0.0003849481678 | H47: 0.0003860196863 | I47: 0.0004195909439 | J47: 0.000464225736 | K47: 0.0006035978407 | L47: 0.0006980043361 | M47: 0.0006370697267 | N47: 0.0005810022334 | O47: 0.0005587069302 | P47: 0.0005384742994 | Q47: 0.0005228590061 | R47: 0.0005199312823 | S47: 0.0005122988234 | T47: 0.000494632291 | U47: 0.0004794001561 | V47: 0.0004476595906 | W47: 0.0004331109145 | X47: 0.0004177667626
B48: Hot Water [kWh/m2] | C48: =C199 -> Efficient | D48: =D199 -> 7.251221265e-05 | E48: 7.000258489e-05 | F48: 7.56107609e-05 | G48: 7.889550278e-05 | H48: 9.272080417e-05 | I48: 0.0001007988187 | J48: 0.000138096692 | K48: 0.0002182224305 | L48: 0.0002275542222 | M48: 0.0002003138051 | N48: 0.0001965278221 | O48: 0.0001978563611 | P48: 0.0002069905371 | Q48: 0.0002230836485 | R48: 0.0002045485061 | S48: 0.0001615051625 | T48: 0.0001202944341 | U48: 8.607989801e-05 | V48: 6.898396491e-05 | W48: 5.828744129e-05 | X48: 5.973478828e-05
B49: Electric | C49: =C226 -> Efficient | D49: =D226 -> 9.054349884e-05 | E49: 8.961924687e-05 | F49: 8.955691222e-05 | G49: 8.964144434e-05 | H49: 9.078267138e-05 | I49: 9.448826935e-05 | J49: 0.0001085909913 | K49: 0.0001449964452 | L49: 0.0001660135465 | M49: 0.0001722447187 | N49: 0.0001709706309 | O49: 0.0001696592215 | P49: 0.0001674746268 | Q49: 0.0001652308255 | R49: 0.0001600931588 | S49: 0.0001484583135 | T49: 0.0001302716695 | U49: 0.0001128336646 | V49: 0.0001043254018 | W49: 0.0001003256417 | X49: 9.769842283e-05
A51: Residential apartment building | B51: Heating [kWh/m2] | C51: =C16 ->  | D51: =D39*$C51 -> 
B52: Hot Water [kWh/m2] | C52: =C17 ->  | D52: =D40*$C52 -> 
B53: Electric | D53: =D41*$C53 -> 
A55: Kindergarten | B55: Heating [kWh/m2] | C55: =D16 ->  | D55: =D43*$C55 -> 
B56: Hot Water [kWh/m2] | C56: =D17 ->  | D56: =D44*$C56 -> 
B57: Electric | D57: =D45*$C57 -> 
A59: Office building | B59: Heating [kWh/m2] | C59: =E16 ->  | D59: =D47*$C59 -> 
B60: Hot Water [kWh/m2] | C60: =E17 ->  | D60: =D48*$C60 -> 
B61: Electric | D61: =D49*$C61 -> 
B63: Thermal | D63: =D51+D55+D59+D52+D56+D60 ->  | E63: =E51+E55+E59+E52+E56+E60 -> 
A64: OK | B64: Electric | D64: =D53+D57+D61 ->  | E64: =E53+E57+E61 -> 
A67: Residential apartment building | B67: Heating [kWh/m2] | C67: Share | D67: Efficiency | E67: Corrected efficiency | F67: Electricity | G67: District heating
B68: VP air | C68: =M7 ->  | D68: =L7 ->  | E68: =IFERROR(1/(D68/2),0) -> 0 | F68: 1 | G68: 0
B69: VP ground | C69: =Q7 ->  | D69: =P7 ->  | E69: =IFERROR(1/(D69),0) -> 0 | F69: 1 | G69: 0
B70: EL | E70: =IFERROR(1/(D70),0) -> 0 | F70: 1 | G70: 0
B71: DH | E71: 0 | F71: 0 | G71: 1
B72: Other | C72: =U7 ->  | D72: =T7 ->  | E72: 0 | F72: 0 | G72: 0
B73: Hot Water [kWh/m2] | E73: 0
B74: VP air | E74: 0 | F74: 1 | G74: 0
B75: VP ground | E75: 0 | F75: 1 | G75: 0
B76: EL | E76: 0 | F76: 1 | G76: 0
B77: DH | E77: 0 | F77: 0 | G77: 1
B78: Other | C78: =Y7 ->  | D78: =T7 ->  | E78: 0 | F78: 0 | G78: 0
B79: Electric | C79: 1 | D79: 1 | E79: =D79 -> 1 | F79: 1 | G79: 0
B80: Electricity | H80: =D53+D52*SUMPRODUCT(C74:C78,E74:E78,F74:F78)+D51*SUMPRODUCT(C68:C72,E68:E72,F68:F72) ->  | I80: =E53+E52*SUMPRODUCT(D74:D78,F74:F78,G74:G78)+E51*SUMPRODUCT(D68:D72,F68:F72,G68:G72) ->  | AB80: =X53+X52*SUMPRODUCT(W74:W78,Y74:Y78,Z74:Z78)+X51*SUMPRODUCT(W68:W72,Y68:Y72,Z68:Z72) -> 
B81: DH | H81: =D51*SUMPRODUCT(C68:C72,E68:E72,G68:G72)+D52*SUMPRODUCT(C74:C78,E74:E78,G74:G78) ->  | I81: =E51*SUMPRODUCT(D68:D72,F68:F72,H68:H72)+E52*SUMPRODUCT(D74:D78,F74:F78,H74:H78) ->  | AB81: =X51*SUMPRODUCT(W68:W72,Y68:Y72,AA68:AA72)+X52*SUMPRODUCT(W74:W78,Y74:Y78,AA74:AA78) -> 
A83: Kindergarten | B83: Heating [kWh/m2]
B84: VP air | E84: =IFERROR(1/(D84/2),0) -> 0 | F84: 1 | G84: 0
B85: VP ground | E85: =IFERROR(1/(D85),0) -> 0 | F85: 1 | G85: 0
B86: EL | E86: =IFERROR(1/(D86),0) -> 0 | F86: 1 | G86: 0
B87: DH | E87: 0 | F87: 0 | G87: 1
B88: Other | C88: =M8 ->  | E88: 0 | F88: 0 | G88: 0
B89: Hot Water [kWh/m2] | E89: 0
B90: VP air | E90: 0 | F90: 1 | G90: 0
B91: VP ground | E91: 0 | F91: 1 | G91: 0
B92: EL | C92: 1 | D92: 0.54096 | E92: 1.848565513 | F92: 1 | G92: 0
B93: DH | E93: 0 | F93: 0 | G93: 1
B94: Other | E94: 0 | F94: 0 | G94: 0
B95: Electric | C95: 1 | D95: 1 | E95: =D95 -> 1 | F95: 1 | G95: 0
B96: Electricity | H96: =D57+D56*SUMPRODUCT(C90:C94,E90:E94,F90:F94)+D55*SUMPRODUCT(C84:C88,E84:E88,F84:F88) ->  | I96: =E57+E56*SUMPRODUCT(D90:D94,F90:F94,G90:G94)+E55*SUMPRODUCT(D84:D88,F84:F88,G84:G88) ->  | Y96: =U57+U56*SUMPRODUCT(T90:T94,V90:V94,W90:W94)+U55*SUMPRODUCT(T84:T88,V84:V88,W84:W88) -> 
B97: DH | H97: =D55*SUMPRODUCT(C84:C88,E84:E88,G84:G88)+D56*SUMPRODUCT(C90:C94,E90:E94,G90:G94) ->  | I97: =E55*SUMPRODUCT(D84:D88,F84:F88,H84:H88)+E56*SUMPRODUCT(D90:D94,F90:F94,H90:H94) -> 
A99: Office | B99: Heating [kWh/m2]
B100: VP air | E100: =IFERROR(1/(D100/2),0) -> 0 | F100: 1 | G100: 0
B101: VP ground | E101: =IFERROR(1/(D101),0) -> 0 | F101: 1 | G101: 0
B102: EL | E102: =IFERROR(1/(D102),0) -> 0 | F102: 1 | G102: 0
B103: DH | C103: =M9 ->  | D103: =L9 ->  | E103: 0 | F103: 0 | G103: 1
B104: Other | E104: 0 | F104: 0 | G104: 0
B105: Hot Water [kWh/m2] | E105: 0
B106: VP air | E106: 0 | F106: 1 | G106: 0
B107: VP ground | E107: 0 | F107: 1 | G107: 0
B108: EL | E108: 0 | F108: 1 | G108: 0
B109: DH | C109: =W9 ->  | D109: =X9 ->  | E109: 0 | F109: 0 | G109: 1
B110: Other | E110: 0 | F110: 0 | G110: 0
B111: Electric | F111: 1 | G111: 0
B112: Electricity | H112: =D61+D60*SUMPRODUCT(C106:C110,E106:E110,F106:F110)+D59*SUMPRODUCT(C100:C104,E100:E104,F100:F104) ->  | I112: =E61+E60*SUMPRODUCT(D106:D110,F106:F110,G106:G110)+E59*SUMPRODUCT(D100:D104,F100:F104,G100:G104) ->  | Y112: =U73+U72*SUMPRODUCT(T106:T110,V106:V110,W106:W110)+U71*SUMPRODUCT(T100:T104,V100:V104,W100:W104) -> 0 | Z112: =V73+V72*SUMPRODUCT(U106:U110,W106:W110,X106:X110)+V71*SUMPRODUCT(U100:U104,W100:W104,X100:X104) -> 0 | AA112: =W73+W72*SUMPRODUCT(V106:V110,X106:X110,Y106:Y110)+W71*SUMPRODUCT(V100:V104,X100:X104,Y100:Y104) -> 0 | AB112: =X73+X72*SUMPRODUCT(W106:W110,Y106:Y110,Z106:Z110)+X71*SUMPRODUCT(W100:W104,Y100:Y104,Z100:Z104) -> 0
B113: DH | H113: =D59*E103+D60*E109 ->  | I113: =E59*SUMPRODUCT(D100:D104,F100:F104,H100:H104)+E60*SUMPRODUCT(D106:D110,F106:F110,H106:H110) ->  | Y113: =U71*SUMPRODUCT(T100:T104,V100:V104,X100:X104)+U72*SUMPRODUCT(T106:T110,V106:V110,X106:X110) -> 0 | Z113: =V71*SUMPRODUCT(U100:U104,W100:W104,Y100:Y104)+V72*SUMPRODUCT(U106:U110,W106:W110,Y106:Y110) -> 0 | AA113: =W71*SUMPRODUCT(V100:V104,X100:X104,Z100:Z104)+W72*SUMPRODUCT(V106:V110,X106:X110,Z106:Z110) -> 0 | AB113: =X71*SUMPRODUCT(W100:W104,Y100:Y104,AA100:AA104)+X72*SUMPRODUCT(W106:W110,Y106:Y110,AA106:AA110) -> 0
G115: EL | H115: =H80+H96+H112 -> 
G116: DH | H116: =H81+H97+H113 -> 
H121: 25.93269034 | I121: 23.89139797 | J121: 23.28491155 | K121: 23.69335633 | L121: 24.6757932 | M121: 22.77350016 | N121: 29.45614021 | O121: 30.7032888 | P121: 30.60469569 | Q121: 30.11608284 | R121: 28.46548095 | S121: 27.3650797 | T121: 26.76265323 | U121: 26.08080857 | V121: 24.49638462 | W121: 26.45915228 | X121: 27.65809693 | Y121: 30.23887179 | Z121: 32.54593627 | AA121: 32.75830495 | AB121: 33.36872245 | AC121: 32.9503211 | AD121: 31.00300531 | AE121: 29.07420537
H122: 0 | I122: 0 | J122: 0 | K122: 0 | L122: 0 | M122: 0 | N122: 0 | O122: 0 | P122: 0 | Q122: 0 | R122: 0 | S122: 0 | T122: 0 | U122: 0 | V122: 0 | W122: 0 | X122: 0 | Y122: 0 | Z122: 0 | AA122: 0 | AB122: 0 | AC122: 0 | AD122: 0 | AE122: 0
H123: 12.96784554 | I123: 13.2414465 | J123: 13.29844346 | K123: 13.77794641 | L123: 14.02633012 | M123: 14.57112571 | N123: 18.87040915 | O123: 26.52300024 | P123: 32.45688815 | Q123: 31.21998751 | R123: 29.71059844 | S123: 29.14360939 | T123: 28.31862066 | U123: 26.69164529 | V123: 26.13534588 | W123: 26.224171 | X123: 22.50931461 | Y123: 15.77050778 | Z123: 13.55029423 | AA123: 13.21171157 | AB123: 13.22909368 | AC123: 13.5672648 | AD123: 13.33404365 | AE123: 13.8175195
H124: 0 | I124: 0 | J124: 0 | K124: 0 | L124: 0 | M124: 0 | N124: 0 | O124: 0 | P124: 0 | Q124: 0 | R124: 0 | S124: 0 | T124: 0 | U124: 0 | V124: 0 | W124: 0 | X124: 0 | Y124: 0 | Z124: 0 | AA124: 0 | AB124: 0 | AC124: 0 | AD124: 0 | AE124: 0
H125: 11.98708255 | I125: 11.98708255 | J125: 11.97406581 | K125: 11.98174572 | L125: 12.1335219 | M125: 12.6339486 | N125: 14.5460344 | O125: 19.48557022 | P125: 22.33707857 | Q125: 23.18230692 | R125: 22.92209735 | S125: 22.74408121 | T125: 22.44411175 | U125: 22.13956995 | V125: 21.44467516 | W125: 19.86691118 | X125: 17.42055587 | Y125: 15.07539247 | Z125: 13.92305312 | AA125: 13.3937337 | AB125: 13.05054657 | AC125: 12.6729015 | AD125: 12.47166713 | AE125: 12.3062834
H126: 25.22687649 | I126: 25.63101236 | J126: 25.60601045 | K126: 25.93463006 | L126: 26.22895174 | M126: 28.81082724 | N126: 32.28450266 | O126: 42.4102997 | P126: 48.15139434 | Q126: 43.83111331 | R126: 40.21962594 | S126: 38.68642 | T126: 37.2894534 | U126: 37.00906203 | V126: 35.89135476 | W126: 34.66287619 | X126: 32.43198496 | Y126: 30.95666765 | Z126: 28.66145002 | AA126: 27.55458274 | AB126: 26.77266003 | AC126: 27.04087674 | AD126: 27.83618291 | AE126: 27.2677269
E127: OK
B166: =PeakDayData!A30 -> Heating | C166: =PeakDayData!B30 -> 0 | D166: =PeakDayData!C30 -> 3.469446952e-17 | E166: =PeakDayData!D30 -> 0.04166666667 | F166: =PeakDayData!E30 -> 0.08333333333 | G166: =PeakDayData!F30 -> 0.125 | H166: =PeakDayData!G30 -> 0.1666666667 | I166: =PeakDayData!H30 -> 0.2083333333 | J166: =PeakDayData!I30 -> 0.25 | K166: =PeakDayData!J30 -> 0.2916666667 | L166: =PeakDayData!K30 -> 0.3333333333 | M166: =PeakDayData!L30 -> 0.375 | N166: =PeakDayData!M30 -> 0.4166666667 | O166: =PeakDayData!N30 -> 0.4583333333 | P166: =PeakDayData!O30 -> 0.5 | Q166: =PeakDayData!P30 -> 0.5416666667 | R166: =PeakDayData!Q30 -> 0.5833333333 | S166: =PeakDayData!R30 -> 0.625 | T166: =PeakDayData!S30 -> 0.6666666667 | U166: =PeakDayData!T30 -> 0.7083333333 | V166: =PeakDayData!U30 -> 0.75 | W166: =PeakDayData!V30 -> 0.7916666667 | X166: =PeakDayData!W30 -> 0.8333333333 | Y166: =PeakDayData!X30 -> 0.875 | Z166: =PeakDayData!Y30 -> 0.9166666667 | AA166: =PeakDayData!Z30 -> 0.9583333333
A167: Heating | B167: =PeakDayData!A31 -> Residential individual housing | C167: =PeakDayData!B31 -> Efficient | D167: =PeakDayData!C31 -> 0.0006833158583 | E167: =PeakDayData!D31 -> 0.0006725871004 | F167: =PeakDayData!E31 -> 0.0004400370986 | G167: =PeakDayData!F31 -> 0.0004416031501 | H167: =PeakDayData!G31 -> 0.0007139748989 | I167: =PeakDayData!H31 -> 0.0004648833701 | J167: =PeakDayData!I31 -> 0.0008557642711 | K167: =PeakDayData!J31 -> 0.0008358362311 | L167: =PeakDayData!K31 -> 0.0008074781324 | M167: =PeakDayData!L31 -> 0.0007185722972 | N167: =PeakDayData!M31 -> 0.0006917459171 | O167: =PeakDayData!N31 -> 0.0006718178771 | P167: =PeakDayData!O31 -> 0.000649591138 | Q167: =PeakDayData!P31 -> 0.0006074374803 | R167: =PeakDayData!Q31 -> 0.000433457349 | S167: =PeakDayData!R31 -> 0.0004380558687 | T167: =PeakDayData!S31 -> 0.0004142951683 | U167: =PeakDayData!T31 -> 0.0005752455998 | V167: =PeakDayData!U31 -> 0.0006603210173 | W167: =PeakDayData!V31 -> 0.0007139704136 | X167: =PeakDayData!W31 -> 0.0007469270319 | Y167: =PeakDayData!X31 -> 0.0007538253721 | Z167: =PeakDayData!Y31 -> 0.000654190779 | AA167: =PeakDayData!Z31 -> 0.0007377322352
A168: Heating | B168: =PeakDayData!A32 -> 0 | C168: =PeakDayData!B32 -> Regular | D168: =PeakDayData!C32 -> 0.0004364604099 | E168: =PeakDayData!D32 -> 0.0004384054505 | F168: =PeakDayData!E32 -> 0.0004275163793 | G168: =PeakDayData!F32 -> 0.0004322764026 | H168: =PeakDayData!G32 -> 0.0004564473791 | I168: =PeakDayData!H32 -> 0.0003558477474 | J168: =PeakDayData!I32 -> 0.0005081290418 | K168: =PeakDayData!J32 -> 0.0004967152436 | L168: =PeakDayData!K32 -> 0.0004853270899 | M168: =PeakDayData!L32 -> 0.000452608587 | N168: =PeakDayData!M32 -> 0.0004364347653 | O168: =PeakDayData!N32 -> 0.0004250209671 | P168: =PeakDayData!O32 -> 0.0004155265649 | Q168: =PeakDayData!P32 -> 0.0003998774703 | R168: =PeakDayData!Q32 -> 0.0003329945063 | S168: =PeakDayData!R32 -> 0.0003344148199 | T168: =PeakDayData!S32 -> 0.0003191878741 | U168: =PeakDayData!T32 -> 0.0003794170632 | V168: =PeakDayData!U32 -> 0.0004188406301 | W168: =PeakDayData!V32 -> 0.0004354109559 | X168: =PeakDayData!W32 -> 0.0004482194233 | Y168: =PeakDayData!X32 -> 0.0004529794466 | Z168: =PeakDayData!Y32 -> 0.0004222059844 | AA168: =PeakDayData!Z32 -> 0.0004558970076
A169: Heating | B169: =PeakDayData!A33 -> Residential apartment building | C169: =PeakDayData!B33 -> Efficient | D169: =PeakDayData!C33 -> 0.0003888835378 | E169: =PeakDayData!D33 -> 0.0004132627945 | F169: =PeakDayData!E33 -> 0.0004307908466 | G169: =PeakDayData!F33 -> 0.0004586285747 | H169: =PeakDayData!G33 -> 0.0004686060608 | I169: =PeakDayData!H33 -> 0.0005367199593 | J169: =PeakDayData!I33 -> 0.0005113650336 | K169: =PeakDayData!J33 -> 0.0005228614363 | L169: =PeakDayData!K33 -> 0.0005152836087 | M169: =PeakDayData!L33 -> 0.0005286228524 | N169: =PeakDayData!M33 -> 0.000463460136 | O169: =PeakDayData!N33 -> 0.0004304175281 | P169: =PeakDayData!O33 -> 0.0003939333458 | Q169: =PeakDayData!P33 -> 0.0003766313986 | R169: =PeakDayData!Q33 -> 0.0003929572542 | S169: =PeakDayData!R33 -> 0.0004172403014 | T169: =PeakDayData!S33 -> 0.0004499156975 | U169: =PeakDayData!T33 -> 0.0004631243237 | V169: =PeakDayData!U33 -> 0.0004716048099 | W169: =PeakDayData!V33 -> 0.0004593184285 | X169: =PeakDayData!W33 -> 0.0004520805623 | Y169: =PeakDayData!X33 -> 0.0003945553789 | Z169: =PeakDayData!Y33 -> 0.0003604009607 | AA169: =PeakDayData!Z33 -> 0.0004130137522
A170: Heating | B170: =PeakDayData!A34 -> 0 | C170: =PeakDayData!B34 -> Regular | D170: =PeakDayData!C34 -> 0.0004364604099 | E170: =PeakDayData!D34 -> 0.0004384054505 | F170: =PeakDayData!E34 -> 0.0004275163793 | G170: =PeakDayData!F34 -> 0.0004322764026 | H170: =PeakDayData!G34 -> 0.0004564473791 | I170: =PeakDayData!H34 -> 0.0003558477474 | J170: =PeakDayData!I34 -> 0.0005081290418 | K170: =PeakDayData!J34 -> 0.0004967152436 | L170: =PeakDayData!K34 -> 0.0004853270899 | M170: =PeakDayData!L34 -> 0.000452608587 | N170: =PeakDayData!M34 -> 0.0004364347653 | O170: =PeakDayData!N34 -> 0.0004250209671 | P170: =PeakDayData!O34 -> 0.0004155265649 | Q170: =PeakDayData!P34 -> 0.0003998774703 | R170: =PeakDayData!Q34 -> 0.0003329945063 | S170: =PeakDayData!R34 -> 0.0003344148199 | T170: =PeakDayData!S34 -> 0.0003191878741 | U170: =PeakDayData!T34 -> 0.0003794170632 | V170: =PeakDayData!U34 -> 0.0004188406301 | W170: =PeakDayData!V34 -> 0.0004354109559 | X170: =PeakDayData!W34 -> 0.0004482194233 | Y170: =PeakDayData!X34 -> 0.0004529794466 | Z170: =PeakDayData!Y34 -> 0.0004222059844 | AA170: =PeakDayData!Z34 -> 0.0004558970076
A171: Heating | B171: =PeakDayData!A35 -> Office building | C171: =PeakDayData!B35 -> Efficient | D171: =PeakDayData!C35 -> 0.0003819736841 | E171: =PeakDayData!D35 -> 0.0003853387827 | F171: =PeakDayData!E35 -> 0.0003824641884 | G171: =PeakDayData!F35 -> 0.0003849481678 | H171: =PeakDayData!G35 -> 0.0003860196863 | I171: =PeakDayData!H35 -> 0.0004195909439 | J171: =PeakDayData!I35 -> 0.000464225736 | K171: =PeakDayData!J35 -> 0.0006035978407 | L171: =PeakDayData!K35 -> 0.0006980043361 | M171: =PeakDayData!L35 -> 0.0006370697267 | N171: =PeakDayData!M35 -> 0.0005810022334 | O171: =PeakDayData!N35 -> 0.0005587069302 | P171: =PeakDayData!O35 -> 0.0005384742994 | Q171: =PeakDayData!P35 -> 0.0005228590061 | R171: =PeakDayData!Q35 -> 0.0005199312823 | S171: =PeakDayData!R35 -> 0.0005122988234 | T171: =PeakDayData!S35 -> 0.000494632291 | U171: =PeakDayData!T35 -> 0.0004794001561 | V171: =PeakDayData!U35 -> 0.0004476595906 | W171: =PeakDayData!V35 -> 0.0004331109145 | X171: =PeakDayData!W35 -> 0.0004177667626 | Y171: =PeakDayData!X35 -> 0.0004140242192 | Z171: =PeakDayData!Y35 -> 0.0004250109598 | AA171: =PeakDayData!Z35 -> 0.0004189054013
A172: Heating | B172: =PeakDayData!A36 -> 0 | C172: =PeakDayData!B36 -> Regular | D172: =PeakDayData!C36 -> 0.000281597369 | E172: =PeakDayData!D36 -> 0.0002880142244 | F172: =PeakDayData!E36 -> 0.0002980397025 | G172: =PeakDayData!F36 -> 0.0003101670345 | H172: =PeakDayData!G36 -> 0.0003509186185 | I172: =PeakDayData!H36 -> 0.0004316030952 | J172: =PeakDayData!I36 -> 0.0005415730558 | K172: =PeakDayData!J36 -> 0.0006200370521 | L172: =PeakDayData!K36 -> 0.0006642140571 | M172: =PeakDayData!L36 -> 0.0006137039281 | N172: =PeakDayData!M36 -> 0.0005897635249 | O172: =PeakDayData!N36 -> 0.0005653804132 | P172: =PeakDayData!O36 -> 0.0005425383582 | Q172: =PeakDayData!P36 -> 0.0005320211276 | R172: =PeakDayData!Q36 -> 0.0005110175533 | S172: =PeakDayData!R36 -> 0.0004968427603 | T172: =PeakDayData!S36 -> 0.0004765275676 | U172: =PeakDayData!T36 -> 0.0004373315359 | V172: =PeakDayData!U36 -> 0.0003793572632 | W172: =PeakDayData!V36 -> 0.0003261948 | X172: =PeakDayData!W36 -> 0.0003171178887 | Y172: =PeakDayData!X36 -> 0.0003110234021 | Z172: =PeakDayData!Y36 -> 0.0003033546567 | AA172: =PeakDayData!Z36 -> 0.0003032371975
A173: Heating | B173: =PeakDayData!A37 -> Kindergarten | C173: =PeakDayData!B37 -> Efficient | D173: =PeakDayData!C37 -> 0.0003199160213 | E173: =PeakDayData!D37 -> 0.0003296468105 | F173: =PeakDayData!E37 -> 0.0003318376419 | G173: =PeakDayData!F37 -> 0.0003456344183 | H173: =PeakDayData!G37 -> 0.000352357386 | I173: =PeakDayData!H37 -> 0.000352291173 | J173: =PeakDayData!I37 -> 0.0004552950574 | K173: =PeakDayData!J37 -> 0.0005961701425 | L173: =PeakDayData!K37 -> 0.0006458427905 | M173: =PeakDayData!L37 -> 0.0005801397352 | N173: =PeakDayData!M37 -> 0.0005126175867 | O173: =PeakDayData!N37 -> 0.0005189085056 | P173: =PeakDayData!O37 -> 0.0004809082504 | Q173: =PeakDayData!P37 -> 0.0004310173671 | R173: =PeakDayData!Q37 -> 0.0004426587673 | S173: =PeakDayData!R37 -> 0.0004492154966 | T173: =PeakDayData!S37 -> 0.0004049610659 | U173: =PeakDayData!T37 -> 0.0003097886059 | V173: =PeakDayData!U37 -> 0.0003182739496 | W173: =PeakDayData!V37 -> 0.0003239977654 | X173: =PeakDayData!W37 -> 0.0003289859519 | Y173: =PeakDayData!X37 -> 0.0003410252456 | Z173: =PeakDayData!Y37 -> 0.000330506924 | AA173: =PeakDayData!Z37 -> 0.0003441940882
A174: Heating | B174: =PeakDayData!A38 -> 0 | C174: =PeakDayData!B38 -> Regular | D174: =PeakDayData!C38 -> 0.0003199160213 | E174: =PeakDayData!D38 -> 0.0003296468105 | F174: =PeakDayData!E38 -> 0.0003318376419 | G174: =PeakDayData!F38 -> 0.0003456344183 | H174: =PeakDayData!G38 -> 0.000352357386 | I174: =PeakDayData!H38 -> 0.000352291173 | J174: =PeakDayData!I38 -> 0.0004552950574 | K174: =PeakDayData!J38 -> 0.0005961701425 | L174: =PeakDayData!K38 -> 0.0006458427905 | M174: =PeakDayData!L38 -> 0.0005801397352 | N174: =PeakDayData!M38 -> 0.0005126175867 | O174: =PeakDayData!N38 -> 0.0005189085056 | P174: =PeakDayData!O38 -> 0.0004809082504 | Q174: =PeakDayData!P38 -> 0.0004310173671 | R174: =PeakDayData!Q38 -> 0.0004426587673 | S174: =PeakDayData!R38 -> 0.0004492154966 | T174: =PeakDayData!S38 -> 0.0004049610659 | U174: =PeakDayData!T38 -> 0.0003097886059 | V174: =PeakDayData!U38 -> 0.0003182739496 | W174: =PeakDayData!V38 -> 0.0003239977654 | X174: =PeakDayData!W38 -> 0.0003289859519 | Y174: =PeakDayData!X38 -> 0.0003410252456 | Z174: =PeakDayData!Y38 -> 0.000330506924 | AA174: =PeakDayData!Z38 -> 0.0003441940882
A175: Heating | B175: =PeakDayData!A39 -> School | C175: =PeakDayData!B39 -> Efficient | D175: =PeakDayData!C39 -> 0.0002078615379 | E175: =PeakDayData!D39 -> 0.000221060325 | F175: =PeakDayData!E39 -> 0.0002369797252 | G175: =PeakDayData!F39 -> 0.0003204841065 | H175: =PeakDayData!G39 -> 0.0003416060564 | I175: =PeakDayData!H39 -> 0.0003819596028 | J175: =PeakDayData!I39 -> 0.0004748981659 | K175: =PeakDayData!J39 -> 0.0007488954315 | L175: =PeakDayData!K39 -> 0.0009174653677 | M175: =PeakDayData!L39 -> 0.0007933511984 | N175: =PeakDayData!M39 -> 0.000729533502 | O175: =PeakDayData!N39 -> 0.0006888514724 | P175: =PeakDayData!O39 -> 0.0006408261909 | Q175: =PeakDayData!P39 -> 0.0005803944572 | R175: =PeakDayData!Q39 -> 0.000560428588 | S175: =PeakDayData!R39 -> 0.0005318661108 | T175: =PeakDayData!S39 -> 0.0004865646241 | U175: =PeakDayData!T39 -> 0.0003903720323 | V175: =PeakDayData!U39 -> 0.0003656072308 | W175: =PeakDayData!V39 -> 0.0003421143296 | X175: =PeakDayData!W39 -> 0.0003187887318 | Y175: =PeakDayData!X39 -> 0.0003009828726 | Z175: =PeakDayData!Y39 -> 0.0002747940979 | AA175: =PeakDayData!Z39 -> 0.0002392208069
A176: Heating | B176: =PeakDayData!A40 -> 0 | C176: =PeakDayData!B40 -> Regular | D176: =PeakDayData!C40 -> 0.0002550031915 | E176: =PeakDayData!D40 -> 0.0002630962729 | F176: =PeakDayData!E40 -> 0.0002749390137 | G176: =PeakDayData!F40 -> 0.000295644048 | H176: =PeakDayData!G40 -> 0.0003134463236 | I176: =PeakDayData!H40 -> 0.0003616162336 | J176: =PeakDayData!I40 -> 0.0004824607226 | K176: =PeakDayData!J40 -> 0.000584262887 | L176: =PeakDayData!K40 -> 0.0006921476433 | M176: =PeakDayData!L40 -> 0.0006207862791 | N176: =PeakDayData!M40 -> 0.0005902065567 | O176: =PeakDayData!N40 -> 0.0005528605102 | P176: =PeakDayData!O40 -> 0.0005424258881 | Q176: =PeakDayData!P40 -> 0.0005281689081 | R176: =PeakDayData!Q40 -> 0.0004916483846 | S176: =PeakDayData!R40 -> 0.0004526410696 | T176: =PeakDayData!S40 -> 0.0003798261595 | U176: =PeakDayData!T40 -> 0.0003404827464 | V176: =PeakDayData!U40 -> 0.0003262595545 | W176: =PeakDayData!V40 -> 0.0003105941561 | X176: =PeakDayData!W40 -> 0.0002835188971 | Y176: =PeakDayData!X40 -> 0.0002711486588 | Z176: =PeakDayData!Y40 -> 0.0002458767645 | AA176: =PeakDayData!Z40 -> 0.0002630088806
A177: Heating | B177: =PeakDayData!A41 -> University/Collage | C177: =PeakDayData!B41 -> Efficient | D177: =PeakDayData!C41 -> 0.0003819736841 | E177: =PeakDayData!D41 -> 0.0003853387827 | F177: =PeakDayData!E41 -> 0.0003824641884 | G177: =PeakDayData!F41 -> 0.0003849481678 | H177: =PeakDayData!G41 -> 0.0003860196863 | I177: =PeakDayData!H41 -> 0.0004195909439 | J177: =PeakDayData!I41 -> 0.000464225736 | K177: =PeakDayData!J41 -> 0.0006035978407 | L177: =PeakDayData!K41 -> 0.0006980043361 | M177: =PeakDayData!L41 -> 0.0006370697267 | N177: =PeakDayData!M41 -> 0.0005810022334 | O177: =PeakDayData!N41 -> 0.0005587069302 | P177: =PeakDayData!O41 -> 0.0005384742994 | Q177: =PeakDayData!P41 -> 0.0005228590061 | R177: =PeakDayData!Q41 -> 0.0005199312823 | S177: =PeakDayData!R41 -> 0.0005122988234 | T177: =PeakDayData!S41 -> 0.000494632291 | U177: =PeakDayData!T41 -> 0.0004794001561 | V177: =PeakDayData!U41 -> 0.0004476595906 | W177: =PeakDayData!V41 -> 0.0004331109145 | X177: =PeakDayData!W41 -> 0.0004177667626 | Y177: =PeakDayData!X41 -> 0.0004140242192 | Z177: =PeakDayData!Y41 -> 0.0004250109598 | AA177: =PeakDayData!Z41 -> 0.0004189054013
A178: Heating | B178: =PeakDayData!A42 -> 0 | C178: =PeakDayData!B42 -> Regular | D178: =PeakDayData!C42 -> 0.000281597369 | E178: =PeakDayData!D42 -> 0.0002880142244 | F178: =PeakDayData!E42 -> 0.0002980397025 | G178: =PeakDayData!F42 -> 0.0003101670345 | H178: =PeakDayData!G42 -> 0.0003509186185 | I178: =PeakDayData!H42 -> 0.0004316030952 | J178: =PeakDayData!I42 -> 0.0005415730558 | K178: =PeakDayData!J42 -> 0.0006200370521 | L178: =PeakDayData!K42 -> 0.0006642140571 | M178: =PeakDayData!L42 -> 0.0006137039281 | N178: =PeakDayData!M42 -> 0.0005897635249 | O178: =PeakDayData!N42 -> 0.0005653804132 | P178: =PeakDayData!O42 -> 0.0005425383582 | Q178: =PeakDayData!P42 -> 0.0005320211276 | R178: =PeakDayData!Q42 -> 0.0005110175533 | S178: =PeakDayData!R42 -> 0.0004968427603 | T178: =PeakDayData!S42 -> 0.0004765275676 | U178: =PeakDayData!T42 -> 0.0004373315359 | V178: =PeakDayData!U42 -> 0.0003793572632 | W178: =PeakDayData!V42 -> 0.0003261948 | X178: =PeakDayData!W42 -> 0.0003171178887 | Y178: =PeakDayData!X42 -> 0.0003110234021 | Z178: =PeakDayData!Y42 -> 0.0003033546567 | AA178: =PeakDayData!Z42 -> 0.0003032371975
A179: Heating | B179: =PeakDayData!A43 -> Hospital | C179: =PeakDayData!B43 -> Efficient | D179: =PeakDayData!C43 -> 0.0003784689874 | E179: =PeakDayData!D43 -> 0.0003812008547 | F179: =PeakDayData!E43 -> 0.000381781295 | G179: =PeakDayData!F43 -> 0.0003941136892 | H179: =PeakDayData!G43 -> 0.0003933116484 | I179: =PeakDayData!H43 -> 0.0004093967834 | J179: =PeakDayData!I43 -> 0.0004209404504 | K179: =PeakDayData!J43 -> 0.0004533361068 | L179: =PeakDayData!K43 -> 0.0004974442397 | M179: =PeakDayData!L43 -> 0.0004575658902 | N179: =PeakDayData!M43 -> 0.0004289422808 | O179: =PeakDayData!N43 -> 0.000396395484 | P179: =PeakDayData!O43 -> 0.0003761811976 | Q179: =PeakDayData!P43 -> 0.0003648364198 | R179: =PeakDayData!Q43 -> 0.0003556487834 | S179: =PeakDayData!R43 -> 0.000363185862 | T179: =PeakDayData!S43 -> 0.0003797268132 | U179: =PeakDayData!T43 -> 0.0004014494826 | V179: =PeakDayData!U43 -> 0.0004085980616 | W179: =PeakDayData!V43 -> 0.000421669177 | X179: =PeakDayData!W43 -> 0.0004364678035 | Y179: =PeakDayData!X43 -> 0.0004354744707 | Z179: =PeakDayData!Y43 -> 0.0004150622313 | AA179: =PeakDayData!Z43 -> 0.0004202021469
A180: Heating | B180: =PeakDayData!A44 -> 0 | C180: =PeakDayData!B44 -> Regular | D180: =PeakDayData!C44 -> 0.0003784689874 | E180: =PeakDayData!D44 -> 0.0003812008547 | F180: =PeakDayData!E44 -> 0.000381781295 | G180: =PeakDayData!F44 -> 0.0003941136892 | H180: =PeakDayData!G44 -> 0.0003933116484 | I180: =PeakDayData!H44 -> 0.0004093967834 | J180: =PeakDayData!I44 -> 0.0004209404504 | K180: =PeakDayData!J44 -> 0.0004533361068 | L180: =PeakDayData!K44 -> 0.0004974442397 | M180: =PeakDayData!L44 -> 0.0004575658902 | N180: =PeakDayData!M44 -> 0.0004289422808 | O180: =PeakDayData!N44 -> 0.000396395484 | P180: =PeakDayData!O44 -> 0.0003761811976 | Q180: =PeakDayData!P44 -> 0.0003648364198 | R180: =PeakDayData!Q44 -> 0.0003556487834 | S180: =PeakDayData!R44 -> 0.000363185862 | T180: =PeakDayData!S44 -> 0.0003797268132 | U180: =PeakDayData!T44 -> 0.0004014494826 | V180: =PeakDayData!U44 -> 0.0004085980616 | W180: =PeakDayData!V44 -> 0.000421669177 | X180: =PeakDayData!W44 -> 0.0004364678035 | Y180: =PeakDayData!X44 -> 0.0004354744707 | Z180: =PeakDayData!Y44 -> 0.0004150622313 | AA180: =PeakDayData!Z44 -> 0.0004202021469
A181: Heating | B181: =PeakDayData!A45 -> Nursing home | C181: =PeakDayData!B45 -> Efficient | D181: =PeakDayData!C45 -> 0.000319897532 | E181: =PeakDayData!D45 -> 0.0003240773915 | F181: =PeakDayData!E45 -> 0.0003408524234 | G181: =PeakDayData!F45 -> 0.0003610200811 | H181: =PeakDayData!G45 -> 0.0003676357803 | I181: =PeakDayData!H45 -> 0.0004277483256 | J181: =PeakDayData!I45 -> 0.000445361439 | K181: =PeakDayData!J45 -> 0.0004376507949 | L181: =PeakDayData!K45 -> 0.0004901599934 | M181: =PeakDayData!L45 -> 0.0004465742723 | N181: =PeakDayData!M45 -> 0.000423170324 | O181: =PeakDayData!N45 -> 0.0004131825144 | P181: =PeakDayData!O45 -> 0.0003989302697 | Q181: =PeakDayData!P45 -> 0.000402901243 | R181: =PeakDayData!Q45 -> 0.0003898036547 | S181: =PeakDayData!R45 -> 0.000383342411 | T181: =PeakDayData!S45 -> 0.0003886541337 | U181: =PeakDayData!T45 -> 0.0003892019687 | V181: =PeakDayData!U45 -> 0.0003727180974 | W181: =PeakDayData!V45 -> 0.000364450154 | X181: =PeakDayData!W45 -> 0.00033061845 | Y181: =PeakDayData!X45 -> 0.0003334264499 | Z181: =PeakDayData!Y45 -> 0.0003479684003 | AA181: =PeakDayData!Z45 -> 0.0003485742574
A182: Heating | B182: =PeakDayData!A46 -> 0 | C182: =PeakDayData!B46 -> Regular | D182: =PeakDayData!C46 -> 0.000319897532 | E182: =PeakDayData!D46 -> 0.0003240773915 | F182: =PeakDayData!E46 -> 0.0003408524234 | G182: =PeakDayData!F46 -> 0.0003610200811 | H182: =PeakDayData!G46 -> 0.0003676357803 | I182: =PeakDayData!H46 -> 0.0004277483256 | J182: =PeakDayData!I46 -> 0.000445361439 | K182: =PeakDayData!J46 -> 0.0004376507949 | L182: =PeakDayData!K46 -> 0.0004901599934 | M182: =PeakDayData!L46 -> 0.0004465742723 | N182: =PeakDayData!M46 -> 0.000423170324 | O182: =PeakDayData!N46 -> 0.0004131825144 | P182: =PeakDayData!O46 -> 0.0003989302697 | Q182: =PeakDayData!P46 -> 0.000402901243 | R182: =PeakDayData!Q46 -> 0.0003898036547 | S182: =PeakDayData!R46 -> 0.000383342411 | T182: =PeakDayData!S46 -> 0.0003886541337 | U182: =PeakDayData!T46 -> 0.0003892019687 | V182: =PeakDayData!U46 -> 0.0003727180974 | W182: =PeakDayData!V46 -> 0.000364450154 | X182: =PeakDayData!W46 -> 0.00033061845 | Y182: =PeakDayData!X46 -> 0.0003334264499 | Z182: =PeakDayData!Y46 -> 0.0003479684003 | AA182: =PeakDayData!Z46 -> 0.0003485742574
A183: Heating | B183: =PeakDayData!A47 -> Hotel | C183: =PeakDayData!B47 -> Efficient | D183: =PeakDayData!C47 -> 0.000397178722 | E183: =PeakDayData!D47 -> 0.0003993807151 | F183: =PeakDayData!E47 -> 0.000398568504 | G183: =PeakDayData!F47 -> 0.0004052833219 | H183: =PeakDayData!G47 -> 0.0004043738949 | I183: =PeakDayData!H47 -> 0.000422037136 | J183: =PeakDayData!I47 -> 0.000443449034 | K183: =PeakDayData!J47 -> 0.000453268079 | L183: =PeakDayData!K47 -> 0.0004769105339 | M183: =PeakDayData!L47 -> 0.0004471172542 | N183: =PeakDayData!M47 -> 0.0004309839744 | O183: =PeakDayData!N47 -> 0.000421070477 | P183: =PeakDayData!O47 -> 0.000407438946 | Q183: =PeakDayData!P47 -> 0.0004113628322 | R183: =PeakDayData!Q47 -> 0.0003976740428 | S183: =PeakDayData!R47 -> 0.0004056996642 | T183: =PeakDayData!S47 -> 0.0004207460709 | U183: =PeakDayData!T47 -> 0.0004395988605 | V183: =PeakDayData!U47 -> 0.0004402190709 | W183: =PeakDayData!V47 -> 0.0004353076371 | X183: =PeakDayData!W47 -> 0.0004390142585 | Y183: =PeakDayData!X47 -> 0.000438198482 | Z183: =PeakDayData!Y47 -> 0.0004343144383 | AA183: =PeakDayData!Z47 -> 0.000436982081
A184: Heating | B184: =PeakDayData!A48 -> 0 | C184: =PeakDayData!B48 -> Regular | D184: =PeakDayData!C48 -> 0.000397178722 | E184: =PeakDayData!D48 -> 0.0003993807151 | F184: =PeakDayData!E48 -> 0.000398568504 | G184: =PeakDayData!F48 -> 0.0004052833219 | H184: =PeakDayData!G48 -> 0.0004043738949 | I184: =PeakDayData!H48 -> 0.000422037136 | J184: =PeakDayData!I48 -> 0.000443449034 | K184: =PeakDayData!J48 -> 0.000453268079 | L184: =PeakDayData!K48 -> 0.0004769105339 | M184: =PeakDayData!L48 -> 0.0004471172542 | N184: =PeakDayData!M48 -> 0.0004309839744 | O184: =PeakDayData!N48 -> 0.000421070477 | P184: =PeakDayData!O48 -> 0.000407438946 | Q184: =PeakDayData!P48 -> 0.0004113628322 | R184: =PeakDayData!Q48 -> 0.0003976740428 | S184: =PeakDayData!R48 -> 0.0004056996642 | T184: =PeakDayData!S48 -> 0.0004207460709 | U184: =PeakDayData!T48 -> 0.0004395988605 | V184: =PeakDayData!U48 -> 0.0004402190709 | W184: =PeakDayData!V48 -> 0.0004353076371 | X184: =PeakDayData!W48 -> 0.0004390142585 | Y184: =PeakDayData!X48 -> 0.000438198482 | Z184: =PeakDayData!Y48 -> 0.0004343144383 | AA184: =PeakDayData!Z48 -> 0.000436982081
A185: Heating | B185: =PeakDayData!A49 -> Sports Facility | C185: =PeakDayData!B49 -> Efficient | D185: =PeakDayData!C49 -> 0.000319897532 | E185: =PeakDayData!D49 -> 0.0003240773915 | F185: =PeakDayData!E49 -> 0.0003408524234 | G185: =PeakDayData!F49 -> 0.0003610200811 | H185: =PeakDayData!G49 -> 0.0003676357803 | I185: =PeakDayData!H49 -> 0.0004277483256 | J185: =PeakDayData!I49 -> 0.000445361439 | K185: =PeakDayData!J49 -> 0.0004376507949 | L185: =PeakDayData!K49 -> 0.0004901599934 | M185: =PeakDayData!L49 -> 0.0004465742723 | N185: =PeakDayData!M49 -> 0.000423170324 | O185: =PeakDayData!N49 -> 0.0004131825144 | P185: =PeakDayData!O49 -> 0.0003989302697 | Q185: =PeakDayData!P49 -> 0.000402901243 | R185: =PeakDayData!Q49 -> 0.0003898036547 | S185: =PeakDayData!R49 -> 0.000383342411 | T185: =PeakDayData!S49 -> 0.0003886541337 | U185: =PeakDayData!T49 -> 0.0003892019687 | V185: =PeakDayData!U49 -> 0.0003727180974 | W185: =PeakDayData!V49 -> 0.000364450154 | X185: =PeakDayData!W49 -> 0.00033061845 | Y185: =PeakDayData!X49 -> 0.0003334264499 | Z185: =PeakDayData!Y49 -> 0.0003479684003 | AA185: =PeakDayData!Z49 -> 0.0003485742574
A186: Heating | B186: =PeakDayData!A50 -> 0 | C186: =PeakDayData!B50 -> Regular | D186: =PeakDayData!C50 -> 0.000319897532 | E186: =PeakDayData!D50 -> 0.0003240773915 | F186: =PeakDayData!E50 -> 0.0003408524234 | G186: =PeakDayData!F50 -> 0.0003610200811 | H186: =PeakDayData!G50 -> 0.0003676357803 | I186: =PeakDayData!H50 -> 0.0004277483256 | J186: =PeakDayData!I50 -> 0.000445361439 | K186: =PeakDayData!J50 -> 0.0004376507949 | L186: =PeakDayData!K50 -> 0.0004901599934 | M186: =PeakDayData!L50 -> 0.0004465742723 | N186: =PeakDayData!M50 -> 0.000423170324 | O186: =PeakDayData!N50 -> 0.0004131825144 | P186: =PeakDayData!O50 -> 0.0003989302697 | Q186: =PeakDayData!P50 -> 0.000402901243 | R186: =PeakDayData!Q50 -> 0.0003898036547 | S186: =PeakDayData!R50 -> 0.000383342411 | T186: =PeakDayData!S50 -> 0.0003886541337 | U186: =PeakDayData!T50 -> 0.0003892019687 | V186: =PeakDayData!U50 -> 0.0003727180974 | W186: =PeakDayData!V50 -> 0.000364450154 | X186: =PeakDayData!W50 -> 0.00033061845 | Y186: =PeakDayData!X50 -> 0.0003334264499 | Z186: =PeakDayData!Y50 -> 0.0003479684003 | AA186: =PeakDayData!Z50 -> 0.0003485742574
A187: Heating | B187: =PeakDayData!A51 -> Comercial building | C187: =PeakDayData!B51 -> Efficient | D187: =PeakDayData!C51 -> 0.0003617881372 | E187: =PeakDayData!D51 -> 0.0003706943881 | F187: =PeakDayData!E51 -> 0.0003666121448 | G187: =PeakDayData!F51 -> 0.000389120709 | H187: =PeakDayData!G51 -> 0.0003913805744 | I187: =PeakDayData!H51 -> 0.0004451027003 | J187: =PeakDayData!I51 -> 0.0005483557839 | K187: =PeakDayData!J51 -> 0.0005970362055 | L187: =PeakDayData!K51 -> 0.0006824544378 | M187: =PeakDayData!L51 -> 0.000636383875 | N187: =PeakDayData!M51 -> 0.0006268531888 | O187: =PeakDayData!N51 -> 0.0005999022894 | P187: =PeakDayData!O51 -> 0.0005743921878 | Q187: =PeakDayData!P51 -> 0.0005682280631 | R187: =PeakDayData!Q51 -> 0.0005486697071 | S187: =PeakDayData!R51 -> 0.0005494585472 | T187: =PeakDayData!S51 -> 0.0005150976155 | U187: =PeakDayData!T51 -> 0.0004870170465 | V187: =PeakDayData!U51 -> 0.0004688403359 | W187: =PeakDayData!V51 -> 0.0004523841886 | X187: =PeakDayData!W51 -> 0.0004110054039 | Y187: =PeakDayData!X51 -> 0.0003714805285 | Z187: =PeakDayData!Y51 -> 0.0003642629856 | AA187: =PeakDayData!Z51 -> 0.0003869512566
A188: Heating | B188: =PeakDayData!A52 -> 0 | C188: =PeakDayData!B52 -> Regular | D188: =PeakDayData!C52 -> 0.0003617881372 | E188: =PeakDayData!D52 -> 0.0003706943881 | F188: =PeakDayData!E52 -> 0.0003666121448 | G188: =PeakDayData!F52 -> 0.000389120709 | H188: =PeakDayData!G52 -> 0.0003913805744 | I188: =PeakDayData!H52 -> 0.0004451027003 | J188: =PeakDayData!I52 -> 0.0005483557839 | K188: =PeakDayData!J52 -> 0.0005970362055 | L188: =PeakDayData!K52 -> 0.0006824544378 | M188: =PeakDayData!L52 -> 0.000636383875 | N188: =PeakDayData!M52 -> 0.0006268531888 | O188: =PeakDayData!N52 -> 0.0005999022894 | P188: =PeakDayData!O52 -> 0.0005743921878 | Q188: =PeakDayData!P52 -> 0.0005682280631 | R188: =PeakDayData!Q52 -> 0.0005486697071 | S188: =PeakDayData!R52 -> 0.0005494585472 | T188: =PeakDayData!S52 -> 0.0005150976155 | U188: =PeakDayData!T52 -> 0.0004870170465 | V188: =PeakDayData!U52 -> 0.0004688403359 | W188: =PeakDayData!V52 -> 0.0004523841886 | X188: =PeakDayData!W52 -> 0.0004110054039 | Y188: =PeakDayData!X52 -> 0.0003714805285 | Z188: =PeakDayData!Y52 -> 0.0003642629856 | AA188: =PeakDayData!Z52 -> 0.0003869512566
A189: Heating | B189: =PeakDayData!A53 -> Cultural building | C189: =PeakDayData!B53 -> Efficient | D189: =PeakDayData!C53 -> 0.0003819736841 | E189: =PeakDayData!D53 -> 0.0003853387827 | F189: =PeakDayData!E53 -> 0.0003824641884 | G189: =PeakDayData!F53 -> 0.0003849481678 | H189: =PeakDayData!G53 -> 0.0003860196863 | I189: =PeakDayData!H53 -> 0.0004195909439 | J189: =PeakDayData!I53 -> 0.000464225736 | K189: =PeakDayData!J53 -> 0.0006035978407 | L189: =PeakDayData!K53 -> 0.0006980043361 | M189: =PeakDayData!L53 -> 0.0006370697267 | N189: =PeakDayData!M53 -> 0.0005810022334 | O189: =PeakDayData!N53 -> 0.0005587069302 | P189: =PeakDayData!O53 -> 0.0005384742994 | Q189: =PeakDayData!P53 -> 0.0005228590061 | R189: =PeakDayData!Q53 -> 0.0005199312823 | S189: =PeakDayData!R53 -> 0.0005122988234 | T189: =PeakDayData!S53 -> 0.000494632291 | U189: =PeakDayData!T53 -> 0.0004794001561 | V189: =PeakDayData!U53 -> 0.0004476595906 | W189: =PeakDayData!V53 -> 0.0004331109145 | X189: =PeakDayData!W53 -> 0.0004177667626 | Y189: =PeakDayData!X53 -> 0.0004140242192 | Z189: =PeakDayData!Y53 -> 0.0004250109598 | AA189: =PeakDayData!Z53 -> 0.0004189054013
A190: Heating | B190: =PeakDayData!A54 -> 0 | C190: =PeakDayData!B54 -> Regular | D190: =PeakDayData!C54 -> 0.000281597369 | E190: =PeakDayData!D54 -> 0.0002880142244 | F190: =PeakDayData!E54 -> 0.0002980397025 | G190: =PeakDayData!F54 -> 0.0003101670345 | H190: =PeakDayData!G54 -> 0.0003509186185 | I190: =PeakDayData!H54 -> 0.0004316030952 | J190: =PeakDayData!I54 -> 0.0005415730558 | K190: =PeakDayData!J54 -> 0.0006200370521 | L190: =PeakDayData!K54 -> 0.0006642140571 | M190: =PeakDayData!L54 -> 0.0006137039281 | N190: =PeakDayData!M54 -> 0.0005897635249 | O190: =PeakDayData!N54 -> 0.0005653804132 | P190: =PeakDayData!O54 -> 0.0005425383582 | Q190: =PeakDayData!P54 -> 0.0005320211276 | R190: =PeakDayData!Q54 -> 0.0005110175533 | S190: =PeakDayData!R54 -> 0.0004968427603 | T190: =PeakDayData!S54 -> 0.0004765275676 | U190: =PeakDayData!T54 -> 0.0004373315359 | V190: =PeakDayData!U54 -> 0.0003793572632 | W190: =PeakDayData!V54 -> 0.0003261948 | X190: =PeakDayData!W54 -> 0.0003171178887 | Y190: =PeakDayData!X54 -> 0.0003110234021 | Z190: =PeakDayData!Y54 -> 0.0003033546567 | AA190: =PeakDayData!Z54 -> 0.0003032371975
A191: Heating | B191: =PeakDayData!A55 -> Industry/Workshop | C191: =PeakDayData!B55 -> Efficient | D191: =PeakDayData!C55 -> 0.0003819736841 | E191: =PeakDayData!D55 -> 0.0003853387827 | F191: =PeakDayData!E55 -> 0.0003824641884 | G191: =PeakDayData!F55 -> 0.0003849481678 | H191: =PeakDayData!G55 -> 0.0003860196863 | I191: =PeakDayData!H55 -> 0.0004195909439 | J191: =PeakDayData!I55 -> 0.000464225736 | K191: =PeakDayData!J55 -> 0.0006035978407 | L191: =PeakDayData!K55 -> 0.0006980043361 | M191: =PeakDayData!L55 -> 0.0006370697267 | N191: =PeakDayData!M55 -> 0.0005810022334 | O191: =PeakDayData!N55 -> 0.0005587069302 | P191: =PeakDayData!O55 -> 0.0005384742994 | Q191: =PeakDayData!P55 -> 0.0005228590061 | R191: =PeakDayData!Q55 -> 0.0005199312823 | S191: =PeakDayData!R55 -> 0.0005122988234 | T191: =PeakDayData!S55 -> 0.000494632291 | U191: =PeakDayData!T55 -> 0.0004794001561 | V191: =PeakDayData!U55 -> 0.0004476595906 | W191: =PeakDayData!V55 -> 0.0004331109145 | X191: =PeakDayData!W55 -> 0.0004177667626 | Y191: =PeakDayData!X55 -> 0.0004140242192 | Z191: =PeakDayData!Y55 -> 0.0004250109598 | AA191: =PeakDayData!Z55 -> 0.0004189054013
A192: Heating | B192: =PeakDayData!A56 -> 0 | C192: =PeakDayData!B56 -> Regular | D192: =PeakDayData!C56 -> 0.000281597369 | E192: =PeakDayData!D56 -> 0.0002880142244 | F192: =PeakDayData!E56 -> 0.0002980397025 | G192: =PeakDayData!F56 -> 0.0003101670345 | H192: =PeakDayData!G56 -> 0.0003509186185 | I192: =PeakDayData!H56 -> 0.0004316030952 | J192: =PeakDayData!I56 -> 0.0005415730558 | K192: =PeakDayData!J56 -> 0.0006200370521 | L192: =PeakDayData!K56 -> 0.0006642140571 | M192: =PeakDayData!L56 -> 0.0006137039281 | N192: =PeakDayData!M56 -> 0.0005897635249 | O192: =PeakDayData!N56 -> 0.0005653804132 | P192: =PeakDayData!O56 -> 0.0005425383582 | Q192: =PeakDayData!P56 -> 0.0005320211276 | R192: =PeakDayData!Q56 -> 0.0005110175533 | S192: =PeakDayData!R56 -> 0.0004968427603 | T192: =PeakDayData!S56 -> 0.0004765275676 | U192: =PeakDayData!T56 -> 0.0004373315359 | V192: =PeakDayData!U56 -> 0.0003793572632 | W192: =PeakDayData!V56 -> 0.0003261948 | X192: =PeakDayData!W56 -> 0.0003171178887 | Y192: =PeakDayData!X56 -> 0.0003110234021 | Z192: =PeakDayData!Y56 -> 0.0003033546567 | AA192: =PeakDayData!Z56 -> 0.0003032371975
A193: Heating | B193: =PeakDayData!A57 -> 0 | C193: =PeakDayData!B57 -> 0 | D193: =PeakDayData!C57 -> 0 | E193: =PeakDayData!D57 -> 0 | F193: =PeakDayData!E57 -> 0 | G193: =PeakDayData!F57 -> 0 | H193: =PeakDayData!G57 -> 0 | I193: =PeakDayData!H57 -> 0 | J193: =PeakDayData!I57 -> 0 | K193: =PeakDayData!J57 -> 0 | L193: =PeakDayData!K57 -> 0 | M193: =PeakDayData!L57 -> 0 | N193: =PeakDayData!M57 -> 0 | O193: =PeakDayData!N57 -> 0 | P193: =PeakDayData!O57 -> 0 | Q193: =PeakDayData!P57 -> 0 | R193: =PeakDayData!Q57 -> 0 | S193: =PeakDayData!R57 -> 0 | T193: =PeakDayData!S57 -> 0 | U193: =PeakDayData!T57 -> 0 | V193: =PeakDayData!U57 -> 0 | W193: =PeakDayData!V57 -> 0 | X193: =PeakDayData!W57 -> 0 | Y193: =PeakDayData!X57 -> 0 | Z193: =PeakDayData!Y57 -> 0 | AA193: =PeakDayData!Z57 -> 0
C194: =PeakDayData!B58 -> 0 | D194: =PeakDayData!C58 -> 3.469446952e-17 | E194: =PeakDayData!D58 -> 0.04166666667 | F194: =PeakDayData!E58 -> 0.08333333333 | G194: =PeakDayData!F58 -> 0.125 | H194: =PeakDayData!G58 -> 0.1666666667 | I194: =PeakDayData!H58 -> 0.2083333333 | J194: =PeakDayData!I58 -> 0.25 | K194: =PeakDayData!J58 -> 0.2916666667 | L194: =PeakDayData!K58 -> 0.3333333333 | M194: =PeakDayData!L58 -> 0.375 | N194: =PeakDayData!M58 -> 0.4166666667 | O194: =PeakDayData!N58 -> 0.4583333333 | P194: =PeakDayData!O58 -> 0.5 | Q194: =PeakDayData!P58 -> 0.5416666667 | R194: =PeakDayData!Q58 -> 0.5833333333 | S194: =PeakDayData!R58 -> 0.625 | T194: =PeakDayData!S58 -> 0.6666666667 | U194: =PeakDayData!T58 -> 0.7083333333 | V194: =PeakDayData!U58 -> 0.75 | W194: =PeakDayData!V58 -> 0.7916666667 | X194: =PeakDayData!W58 -> 0.8333333333 | Y194: =PeakDayData!X58 -> 0.875 | Z194: =PeakDayData!Y58 -> 0.9166666667 | AA194: =PeakDayData!Z58 -> 0.9583333333
A195: Hot water | B195: =PeakDayData!A59 -> Residential individual housing | C195: =PeakDayData!B59 -> Efficient | D195: =PeakDayData!C59 -> 0.0001061376088 | E195: =PeakDayData!D59 -> 5.224059419e-05 | F195: =PeakDayData!E59 -> 5.476701675e-05 | G195: =PeakDayData!F59 -> 6.739912954e-05 | H195: =PeakDayData!G59 -> 7.076769295e-05 | I195: =PeakDayData!H59 -> 0.0001608767642 | J195: =PeakDayData!I59 -> 0.0001608767642 | K195: =PeakDayData!J59 -> 0.0001709824545 | L195: =PeakDayData!K59 -> 0.0001457182289 | M195: =PeakDayData!L59 -> 0.0001617189051 | N195: =PeakDayData!M59 -> 0.0001271911301 | O195: =PeakDayData!N59 -> 0.0001052954679 | P195: =PeakDayData!O59 -> 0.0001010847637 | Q195: =PeakDayData!P59 -> 9.940048195e-05 | R195: =PeakDayData!Q59 -> 0.000128033271 | S195: =PeakDayData!R59 -> 0.0001474025106 | T195: =PeakDayData!S59 -> 0.0001364546795 | U195: =PeakDayData!T59 -> 0.0001154011582 | V195: =PeakDayData!U59 -> 0.000138981102 | W195: =PeakDayData!V59 -> 0.000110348313 | X195: =PeakDayData!W59 -> 0.0001069797496 | Y195: =PeakDayData!X59 -> 0.0001036111862 | Z195: =PeakDayData!Y59 -> 0.0001347703978 | AA195: =PeakDayData!Z59 -> 9.687405939e-05
A196: Hot water | B196: =PeakDayData!A60 -> 0 | C196: =PeakDayData!B60 -> Regular | D196: =PeakDayData!C60 -> 0.0001093146227 | E196: =PeakDayData!D60 -> 7.677445597e-05 | F196: =PeakDayData!E60 -> 7.829977629e-05 | G196: =PeakDayData!F60 -> 8.592637787e-05 | H196: =PeakDayData!G60 -> 8.79601383e-05 | I196: =PeakDayData!H60 -> 0.0001423632296 | J196: =PeakDayData!I60 -> 0.0001423632296 | K196: =PeakDayData!J60 -> 0.0001484645109 | L196: =PeakDayData!K60 -> 0.0001332113077 | M196: =PeakDayData!L60 -> 0.0001428716697 | N196: =PeakDayData!M60 -> 0.0001220256254 | O196: =PeakDayData!N60 -> 0.0001088061826 | P196: =PeakDayData!O60 -> 0.0001062639821 | Q196: =PeakDayData!P60 -> 0.0001052471019 | R196: =PeakDayData!Q60 -> 0.0001225340655 | S196: =PeakDayData!R60 -> 0.0001342281879 | T196: =PeakDayData!S60 -> 0.0001276184665 | U196: =PeakDayData!T60 -> 0.0001149074639 | V196: =PeakDayData!U60 -> 0.0001291437869 | W196: =PeakDayData!V60 -> 0.0001118568233 | X196: =PeakDayData!W60 -> 0.0001098230628 | Y196: =PeakDayData!X60 -> 0.0001077893024 | Z196: =PeakDayData!Y60 -> 0.0001266015863 | AA196: =PeakDayData!Z60 -> 0.0001037217816
A197: Hot water | B197: =PeakDayData!A61 -> Residential apartment building | C197: =PeakDayData!B61 -> Efficient | D197: =PeakDayData!C61 -> 9.141940142e-05 | E197: =PeakDayData!D61 -> 9.119458678e-05 | F197: =PeakDayData!E61 -> 9.399020386e-05 | G197: =PeakDayData!F61 -> 9.894938526e-05 | H197: =PeakDayData!G61 -> 0.000100368618 | I197: =PeakDayData!H61 -> 0.0001186872415 | J197: =PeakDayData!I61 -> 0.0001533501293 | K197: =PeakDayData!J61 -> 0.0001516211428 | L197: =PeakDayData!K61 -> 0.0001585415944 | M197: =PeakDayData!L61 -> 0.0001509803027 | N197: =PeakDayData!M61 -> 0.0001338293717 | O197: =PeakDayData!N61 -> 0.00011813903 | P197: =PeakDayData!O61 -> 0.0001051173721 | Q197: =PeakDayData!P61 -> 0.0001038213247 | R197: =PeakDayData!Q61 -> 0.0001034012544 | S197: =PeakDayData!R61 -> 0.0001112654049 | T197: =PeakDayData!S61 -> 0.0001154695685 | U197: =PeakDayData!T61 -> 0.0001119939875 | V197: =PeakDayData!U61 -> 0.0001145575545 | W197: =PeakDayData!V61 -> 0.000111727636 | X197: =PeakDayData!W61 -> 0.0001091931875 | Y197: =PeakDayData!X61 -> 0.0001066213571 | Z197: =PeakDayData!Y61 -> 0.0001093145673 | AA197: =PeakDayData!Z61 -> 9.875576493e-05
A198: Hot water | B198: =PeakDayData!A62 -> 0 | C198: =PeakDayData!B62 -> Regular | D198: =PeakDayData!C62 -> 0.0001061376088 | E198: =PeakDayData!D62 -> 7.677445597e-05 | F198: =PeakDayData!E62 -> 7.829977629e-05 | G198: =PeakDayData!F62 -> 8.592637787e-05 | H198: =PeakDayData!G62 -> 8.79601383e-05 | I198: =PeakDayData!H62 -> 0.0001423632296 | J198: =PeakDayData!I62 -> 0.0001423632296 | K198: =PeakDayData!J62 -> 0.0001484645109 | L198: =PeakDayData!K62 -> 0.0001332113077 | M198: =PeakDayData!L62 -> 0.0001428716697 | N198: =PeakDayData!M62 -> 0.0001220256254 | O198: =PeakDayData!N62 -> 0.0001088061826 | P198: =PeakDayData!O62 -> 0.0001062639821 | Q198: =PeakDayData!P62 -> 0.0001052471019 | R198: =PeakDayData!Q62 -> 0.0001225340655 | S198: =PeakDayData!R62 -> 0.0001342281879 | T198: =PeakDayData!S62 -> 0.0001276184665 | U198: =PeakDayData!T62 -> 0.0001149074639 | V198: =PeakDayData!U62 -> 0.0001291437869 | W198: =PeakDayData!V62 -> 0.0001118568233 | X198: =PeakDayData!W62 -> 0.0001098230628 | Y198: =PeakDayData!X62 -> 0.0001077893024 | Z198: =PeakDayData!Y62 -> 0.0001266015863 | AA198: =PeakDayData!Z62 -> 0.0001037217816
A199: Hot water | B199: =PeakDayData!A63 -> Office building | C199: =PeakDayData!B63 -> Efficient | D199: =PeakDayData!C63 -> 7.251221265e-05 | E199: =PeakDayData!D63 -> 7.000258489e-05 | F199: =PeakDayData!E63 -> 7.56107609e-05 | G199: =PeakDayData!F63 -> 7.889550278e-05 | H199: =PeakDayData!G63 -> 9.272080417e-05 | I199: =PeakDayData!H63 -> 0.0001007988187 | J199: =PeakDayData!I63 -> 0.000138096692 | K199: =PeakDayData!J63 -> 0.0002182224305 | L199: =PeakDayData!K63 -> 0.0002275542222 | M199: =PeakDayData!L63 -> 0.0002003138051 | N199: =PeakDayData!M63 -> 0.0001965278221 | O199: =PeakDayData!N63 -> 0.0001978563611 | P199: =PeakDayData!O63 -> 0.0002069905371 | Q199: =PeakDayData!P63 -> 0.0002230836485 | R199: =PeakDayData!Q63 -> 0.0002045485061 | S199: =PeakDayData!R63 -> 0.0001615051625 | T199: =PeakDayData!S63 -> 0.0001202944341 | U199: =PeakDayData!T63 -> 8.607989801e-05 | V199: =PeakDayData!U63 -> 6.898396491e-05 | W199: =PeakDayData!V63 -> 5.828744129e-05 | X199: =PeakDayData!W63 -> 5.973478828e-05 | Y199: =PeakDayData!X63 -> 6.866472471e-05 | Z199: =PeakDayData!Y63 -> 7.896547563e-05 | AA199: =PeakDayData!Z63 -> 7.317316104e-05
A200: Hot water | B200: =PeakDayData!A64 -> 0 | C200: =PeakDayData!B64 -> Regular | D200: =PeakDayData!C64 -> 8.459570958e-05 | E200: =PeakDayData!D64 -> 8.471517511e-05 | F200: =PeakDayData!E64 -> 8.365257172e-05 | G200: =PeakDayData!F64 -> 9.174841752e-05 | H200: =PeakDayData!G64 -> 9.938854579e-05 | I200: =PeakDayData!H64 -> 0.0001101950185 | J200: =PeakDayData!I64 -> 0.0001429112495 | K200: =PeakDayData!J64 -> 0.0001481937651 | L200: =PeakDayData!K64 -> 0.0001697303328 | M200: =PeakDayData!L64 -> 0.0001689554186 | N200: =PeakDayData!M64 -> 0.0001643126247 | O200: =PeakDayData!N64 -> 0.000171606176 | P200: =PeakDayData!O64 -> 0.0001686063018 | Q200: =PeakDayData!P64 -> 0.0001650292714 | R200: =PeakDayData!Q64 -> 0.0001588438289 | S200: =PeakDayData!R64 -> 0.0001501393536 | T200: =PeakDayData!S64 -> 0.0001366059995 | U200: =PeakDayData!T64 -> 0.0001268441615 | V200: =PeakDayData!U64 -> 0.000115933071 | W200: =PeakDayData!V64 -> 0.0001092803502 | X200: =PeakDayData!W64 -> 0.000101036291 | Y200: =PeakDayData!X64 -> 9.267006037e-05 | Z200: =PeakDayData!Y64 -> 8.984916958e-05 | AA200: =PeakDayData!Z64 -> 8.269744335e-05
A201: Hot water | B201: =PeakDayData!A65 -> Kindergarten | C201: =PeakDayData!B65 -> Efficient | D201: =PeakDayData!C65 -> 8.388099133e-05 | E201: =PeakDayData!D65 -> 8.697880143e-05 | F201: =PeakDayData!E65 -> 8.989742566e-05 | G201: =PeakDayData!F65 -> 9.837527562e-05 | H201: =PeakDayData!G65 -> 0.0001044000618 | I201: =PeakDayData!H65 -> 0.000126554491 | J201: =PeakDayData!I65 -> 0.0001517310739 | K201: =PeakDayData!J65 -> 0.000165326124 | L201: =PeakDayData!K65 -> 0.0001905994261 | M201: =PeakDayData!L65 -> 0.0002046831331 | N201: =PeakDayData!M65 -> 0.0002115188258 | O201: =PeakDayData!N65 -> 0.0001770727347 | P201: =PeakDayData!O65 -> 0.0001985746885 | Q201: =PeakDayData!P65 -> 0.0001925669045 | R201: =PeakDayData!Q65 -> 0.0001627280701 | S201: =PeakDayData!R65 -> 0.000171331016 | T201: =PeakDayData!S65 -> 0.0001469659226 | U201: =PeakDayData!T65 -> 0.0001130360326 | V201: =PeakDayData!U65 -> 9.097722404e-05 | W201: =PeakDayData!V65 -> 7.745071926e-05 | X201: =PeakDayData!W65 -> 7.642087808e-05 | Y201: =PeakDayData!X65 -> 7.832828196e-05 | Z201: =PeakDayData!Y65 -> 7.880243916e-05 | AA201: =PeakDayData!Z65 -> 8.040895474e-05
A202: Hot water | B202: =PeakDayData!A66 -> 0 | C202: =PeakDayData!B66 -> Regular | D202: =PeakDayData!C66 -> 8.388099133e-05 | E202: =PeakDayData!D66 -> 8.697880143e-05 | F202: =PeakDayData!E66 -> 8.989742566e-05 | G202: =PeakDayData!F66 -> 9.837527562e-05 | H202: =PeakDayData!G66 -> 0.0001044000618 | I202: =PeakDayData!H66 -> 0.000126554491 | J202: =PeakDayData!I66 -> 0.0001517310739 | K202: =PeakDayData!J66 -> 0.000165326124 | L202: =PeakDayData!K66 -> 0.0001905994261 | M202: =PeakDayData!L66 -> 0.0002046831331 | N202: =PeakDayData!M66 -> 0.0002115188258 | O202: =PeakDayData!N66 -> 0.0001770727347 | P202: =PeakDayData!O66 -> 0.0001985746885 | Q202: =PeakDayData!P66 -> 0.0001925669045 | R202: =PeakDayData!Q66 -> 0.0001627280701 | S202: =PeakDayData!R66 -> 0.000171331016 | T202: =PeakDayData!S66 -> 0.0001469659226 | U202: =PeakDayData!T66 -> 0.0001130360326 | V202: =PeakDayData!U66 -> 9.097722404e-05 | W202: =PeakDayData!V66 -> 7.745071926e-05 | X202: =PeakDayData!W66 -> 7.642087808e-05 | Y202: =PeakDayData!X66 -> 7.832828196e-05 | Z202: =PeakDayData!Y66 -> 7.880243916e-05 | AA202: =PeakDayData!Z66 -> 8.040895474e-05
A203: Hot water | B203: =PeakDayData!A67 -> School | C203: =PeakDayData!B67 -> Efficient | D203: =PeakDayData!C67 -> 0.000102368043 | E203: =PeakDayData!D67 -> 9.727809601e-05 | F203: =PeakDayData!E67 -> 8.484388052e-05 | G203: =PeakDayData!F67 -> 6.925435342e-05 | H203: =PeakDayData!G67 -> 5.7779634e-05 | I203: =PeakDayData!H67 -> 7.084796537e-05 | J203: =PeakDayData!I67 -> 7.718374302e-05 | K203: =PeakDayData!J67 -> 0.0001404778012 | L203: =PeakDayData!K67 -> 0.0001690407176 | M203: =PeakDayData!L67 -> 0.000174613122 | N203: =PeakDayData!M67 -> 0.0001867556217 | O203: =PeakDayData!N67 -> 0.0001800087262 | P203: =PeakDayData!O67 -> 0.0001890586187 | Q203: =PeakDayData!P67 -> 0.0001763988835 | R203: =PeakDayData!Q67 -> 0.0001824184417 | S203: =PeakDayData!R67 -> 0.0001779681608 | T203: =PeakDayData!S67 -> 0.0001480199008 | U203: =PeakDayData!T67 -> 0.0001296828323 | V203: =PeakDayData!U67 -> 0.0001141223391 | W203: =PeakDayData!V67 -> 0.0001108158508 | X203: =PeakDayData!W67 -> 0.0001153252446 | Y203: =PeakDayData!X67 -> 0.0001130099144 | Z203: =PeakDayData!Y67 -> 0.0001020125026 | AA203: =PeakDayData!Z67 -> 9.849539328e-05
A204: Hot water | B204: =PeakDayData!A68 -> 0 | C204: =PeakDayData!B68 -> Regular | D204: =PeakDayData!C68 -> 8.57920434e-05 | E204: =PeakDayData!D68 -> 8.887554234e-05 | F204: =PeakDayData!E68 -> 9.359422898e-05 | G204: =PeakDayData!F68 -> 9.866515148e-05 | H204: =PeakDayData!G68 -> 0.0001033103245 | I204: =PeakDayData!H68 -> 0.0001341625719 | J204: =PeakDayData!I68 -> 0.0001802278832 | K204: =PeakDayData!J68 -> 0.0001928808207 | L204: =PeakDayData!K68 -> 0.0001945113791 | M204: =PeakDayData!L68 -> 0.000190156372 | N204: =PeakDayData!M68 -> 0.0001895284507 | O204: =PeakDayData!N68 -> 0.0001816043103 | P204: =PeakDayData!O68 -> 0.0001755708591 | Q204: =PeakDayData!P68 -> 0.0001708889478 | R204: =PeakDayData!Q68 -> 0.0001607568429 | S204: =PeakDayData!R68 -> 0.0001471605606 | T204: =PeakDayData!S68 -> 0.0001257792027 | U204: =PeakDayData!T68 -> 0.0001137606305 | V204: =PeakDayData!U68 -> 0.0001075087494 | W204: =PeakDayData!V68 -> 0.0001015535523 | X204: =PeakDayData!W68 -> 9.677838789e-05 | Y204: =PeakDayData!X68 -> 9.223772647e-05 | Z204: =PeakDayData!Y68 -> 8.546432443e-05 | AA204: =PeakDayData!Z68 -> 8.474144651e-05
A205: Hot water | B205: =PeakDayData!A69 -> University/Collage | C205: =PeakDayData!B69 -> Efficient | D205: =PeakDayData!C69 -> 7.251221265e-05 | E205: =PeakDayData!D69 -> 7.000258489e-05 | F205: =PeakDayData!E69 -> 7.56107609e-05 | G205: =PeakDayData!F69 -> 7.889550278e-05 | H205: =PeakDayData!G69 -> 9.272080417e-05 | I205: =PeakDayData!H69 -> 0.0001007988187 | J205: =PeakDayData!I69 -> 0.000138096692 | K205: =PeakDayData!J69 -> 0.0002182224305 | L205: =PeakDayData!K69 -> 0.0002275542222 | M205: =PeakDayData!L69 -> 0.0002003138051 | N205: =PeakDayData!M69 -> 0.0001965278221 | O205: =PeakDayData!N69 -> 0.0001978563611 | P205: =PeakDayData!O69 -> 0.0002069905371 | Q205: =PeakDayData!P69 -> 0.0002230836485 | R205: =PeakDayData!Q69 -> 0.0002045485061 | S205: =PeakDayData!R69 -> 0.0001615051625 | T205: =PeakDayData!S69 -> 0.0001202944341 | U205: =PeakDayData!T69 -> 8.607989801e-05 | V205: =PeakDayData!U69 -> 6.898396491e-05 | W205: =PeakDayData!V69 -> 5.828744129e-05 | X205: =PeakDayData!W69 -> 5.973478828e-05 | Y205: =PeakDayData!X69 -> 6.866472471e-05 | Z205: =PeakDayData!Y69 -> 7.896547563e-05 | AA205: =PeakDayData!Z69 -> 7.317316104e-05
A206: Hot water | B206: =PeakDayData!A70 -> 0 | C206: =PeakDayData!B70 -> Regular | D206: =PeakDayData!C70 -> 8.459570958e-05 | E206: =PeakDayData!D70 -> 8.471517511e-05 | F206: =PeakDayData!E70 -> 8.365257172e-05 | G206: =PeakDayData!F70 -> 9.174841752e-05 | H206: =PeakDayData!G70 -> 9.938854579e-05 | I206: =PeakDayData!H70 -> 0.0001101950185 | J206: =PeakDayData!I70 -> 0.0001429112495 | K206: =PeakDayData!J70 -> 0.0001481937651 | L206: =PeakDayData!K70 -> 0.0001697303328 | M206: =PeakDayData!L70 -> 0.0001689554186 | N206: =PeakDayData!M70 -> 0.0001643126247 | O206: =PeakDayData!N70 -> 0.000171606176 | P206: =PeakDayData!O70 -> 0.0001686063018 | Q206: =PeakDayData!P70 -> 0.0001650292714 | R206: =PeakDayData!Q70 -> 0.0001588438289 | S206: =PeakDayData!R70 -> 0.0001501393536 | T206: =PeakDayData!S70 -> 0.0001366059995 | U206: =PeakDayData!T70 -> 0.0001268441615 | V206: =PeakDayData!U70 -> 0.000115933071 | W206: =PeakDayData!V70 -> 0.0001092803502 | X206: =PeakDayData!W70 -> 0.000101036291 | Y206: =PeakDayData!X70 -> 9.267006037e-05 | Z206: =PeakDayData!Y70 -> 8.984916958e-05 | AA206: =PeakDayData!Z70 -> 8.269744335e-05
A207: Hot water | B207: =PeakDayData!A71 -> Hospital | C207: =PeakDayData!B71 -> Efficient | D207: =PeakDayData!C71 -> 0.0001031939073 | E207: =PeakDayData!D71 -> 0.0001077712738 | F207: =PeakDayData!E71 -> 0.0001096850457 | G207: =PeakDayData!F71 -> 0.0001132413818 | H207: =PeakDayData!G71 -> 0.0001169713662 | I207: =PeakDayData!H71 -> 0.0001226098167 | J207: =PeakDayData!I71 -> 0.000129980471 | K207: =PeakDayData!J71 -> 0.0001277862325 | L207: =PeakDayData!K71 -> 0.0001290670784 | M207: =PeakDayData!L71 -> 0.0001410046697 | N207: =PeakDayData!M71 -> 0.0001390569692 | O207: =PeakDayData!N71 -> 0.0001347914231 | P207: =PeakDayData!O71 -> 0.0001317843033 | Q207: =PeakDayData!P71 -> 0.0001281142564 | R207: =PeakDayData!Q71 -> 0.000129992123 | S207: =PeakDayData!R71 -> 0.0001239667776 | T207: =PeakDayData!S71 -> 0.0001219139103 | U207: =PeakDayData!T71 -> 0.0001157476618 | V207: =PeakDayData!U71 -> 0.0001078858169 | W207: =PeakDayData!V71 -> 0.0001072760389 | X207: =PeakDayData!W71 -> 0.0001073550538 | Y207: =PeakDayData!X71 -> 0.0001117718935 | Z207: =PeakDayData!Y71 -> 0.000113807751 | AA207: =PeakDayData!Z71 -> 0.0001089045064
A208: Hot water | B208: =PeakDayData!A72 -> 0 | C208: =PeakDayData!B72 -> Regular | D208: =PeakDayData!C72 -> 0.0001031939073 | E208: =PeakDayData!D72 -> 0.0001077712738 | F208: =PeakDayData!E72 -> 0.0001096850457 | G208: =PeakDayData!F72 -> 0.0001132413818 | H208: =PeakDayData!G72 -> 0.0001169713662 | I208: =PeakDayData!H72 -> 0.0001226098167 | J208: =PeakDayData!I72 -> 0.000129980471 | K208: =PeakDayData!J72 -> 0.0001277862325 | L208: =PeakDayData!K72 -> 0.0001290670784 | M208: =PeakDayData!L72 -> 0.0001410046697 | N208: =PeakDayData!M72 -> 0.0001390569692 | O208: =PeakDayData!N72 -> 0.0001347914231 | P208: =PeakDayData!O72 -> 0.0001317843033 | Q208: =PeakDayData!P72 -> 0.0001281142564 | R208: =PeakDayData!Q72 -> 0.000129992123 | S208: =PeakDayData!R72 -> 0.0001239667776 | T208: =PeakDayData!S72 -> 0.0001219139103 | U208: =PeakDayData!T72 -> 0.0001157476618 | V208: =PeakDayData!U72 -> 0.0001078858169 | W208: =PeakDayData!V72 -> 0.0001072760389 | X208: =PeakDayData!W72 -> 0.0001073550538 | Y208: =PeakDayData!X72 -> 0.0001117718935 | Z208: =PeakDayData!Y72 -> 0.000113807751 | AA208: =PeakDayData!Z72 -> 0.0001089045064
A209: Hot water | B209: =PeakDayData!A73 -> Nursing home | C209: =PeakDayData!B73 -> Efficient | D209: =PeakDayData!C73 -> 9.038384616e-05 | E209: =PeakDayData!D73 -> 9.220436428e-05 | F209: =PeakDayData!E73 -> 9.461067565e-05 | G209: =PeakDayData!F73 -> 0.0001050094987 | H209: =PeakDayData!G73 -> 0.0001222738872 | I209: =PeakDayData!H73 -> 0.0001283312745 | J209: =PeakDayData!I73 -> 0.0001417666187 | K209: =PeakDayData!J73 -> 0.0001457272999 | L209: =PeakDayData!K73 -> 0.0001468391508 | M209: =PeakDayData!L73 -> 0.0001558062156 | N209: =PeakDayData!M73 -> 0.0001577590127 | O209: =PeakDayData!N73 -> 0.0001547849109 | P209: =PeakDayData!O73 -> 0.0001468961825 | Q209: =PeakDayData!P73 -> 0.0001345007623 | R209: =PeakDayData!Q73 -> 0.0001296804974 | S209: =PeakDayData!R73 -> 0.0001240888471 | T209: =PeakDayData!S73 -> 0.0001124642987 | U209: =PeakDayData!T73 -> 0.0001090999457 | V209: =PeakDayData!U73 -> 0.0001051871241 | W209: =PeakDayData!V73 -> 0.0001029090743 | X209: =PeakDayData!W73 -> 9.438104856e-05 | Y209: =PeakDayData!X73 -> 8.970879995e-05 | Z209: =PeakDayData!Y73 -> 8.970489084e-05 | AA209: =PeakDayData!Z73 -> 8.921807105e-05
A210: Hot water | B210: =PeakDayData!A74 -> 0 | C210: =PeakDayData!B74 -> Regular | D210: =PeakDayData!C74 -> 9.038384616e-05 | E210: =PeakDayData!D74 -> 9.220436428e-05 | F210: =PeakDayData!E74 -> 9.461067565e-05 | G210: =PeakDayData!F74 -> 0.0001050094987 | H210: =PeakDayData!G74 -> 0.0001222738872 | I210: =PeakDayData!H74 -> 0.0001283312745 | J210: =PeakDayData!I74 -> 0.0001417666187 | K210: =PeakDayData!J74 -> 0.0001457272999 | L210: =PeakDayData!K74 -> 0.0001468391508 | M210: =PeakDayData!L74 -> 0.0001558062156 | N210: =PeakDayData!M74 -> 0.0001577590127 | O210: =PeakDayData!N74 -> 0.0001547849109 | P210: =PeakDayData!O74 -> 0.0001468961825 | Q210: =PeakDayData!P74 -> 0.0001345007623 | R210: =PeakDayData!Q74 -> 0.0001296804974 | S210: =PeakDayData!R74 -> 0.0001240888471 | T210: =PeakDayData!S74 -> 0.0001124642987 | U210: =PeakDayData!T74 -> 0.0001090999457 | V210: =PeakDayData!U74 -> 0.0001051871241 | W210: =PeakDayData!V74 -> 0.0001029090743 | X210: =PeakDayData!W74 -> 9.438104856e-05 | Y210: =PeakDayData!X74 -> 8.970879995e-05 | Z210: =PeakDayData!Y74 -> 8.970489084e-05 | AA210: =PeakDayData!Z74 -> 8.921807105e-05
A211: Hot water | B211: =PeakDayData!A75 -> Hotel | C211: =PeakDayData!B75 -> Efficient | D211: =PeakDayData!C75 -> 8.202709387e-05 | E211: =PeakDayData!D75 -> 6.120743464e-05 | F211: =PeakDayData!E75 -> 5.220726609e-05 | G211: =PeakDayData!F75 -> 5.821429402e-05 | H211: =PeakDayData!G75 -> 6.192784599e-05 | I211: =PeakDayData!H75 -> 7.336507334e-05 | J211: =PeakDayData!I75 -> 0.0001403079146 | K211: =PeakDayData!J75 -> 0.0002043142993 | L211: =PeakDayData!K75 -> 0.0002201954991 | M211: =PeakDayData!L75 -> 0.000177957898 | N211: =PeakDayData!M75 -> 0.0001535183278 | O211: =PeakDayData!N75 -> 0.0001271421578 | P211: =PeakDayData!O75 -> 0.0001102483035 | Q211: =PeakDayData!P75 -> 0.0001043882295 | R211: =PeakDayData!Q75 -> 9.932019386e-05 | S211: =PeakDayData!R75 -> 9.715198875e-05 | T211: =PeakDayData!S75 -> 9.881767261e-05 | U211: =PeakDayData!T75 -> 0.0001036286554 | V211: =PeakDayData!U75 -> 0.0001162349177 | W211: =PeakDayData!V75 -> 0.0001151796877 | X211: =PeakDayData!W75 -> 0.0001128371231 | Y211: =PeakDayData!X75 -> 0.0001278485438 | Z211: =PeakDayData!Y75 -> 0.0001321430653 | AA211: =PeakDayData!Z75 -> 0.0001095425417
A212: Hot water | B212: =PeakDayData!A76 -> 0 | C212: =PeakDayData!B76 -> Regular | D212: =PeakDayData!C76 -> 8.202709387e-05 | E212: =PeakDayData!D76 -> 6.120743464e-05 | F212: =PeakDayData!E76 -> 5.220726609e-05 | G212: =PeakDayData!F76 -> 5.821429402e-05 | H212: =PeakDayData!G76 -> 6.192784599e-05 | I212: =PeakDayData!H76 -> 7.336507334e-05 | J212: =PeakDayData!I76 -> 0.0001403079146 | K212: =PeakDayData!J76 -> 0.0002043142993 | L212: =PeakDayData!K76 -> 0.0002201954991 | M212: =PeakDayData!L76 -> 0.000177957898 | N212: =PeakDayData!M76 -> 0.0001535183278 | O212: =PeakDayData!N76 -> 0.0001271421578 | P212: =PeakDayData!O76 -> 0.0001102483035 | Q212: =PeakDayData!P76 -> 0.0001043882295 | R212: =PeakDayData!Q76 -> 9.932019386e-05 | S212: =PeakDayData!R76 -> 9.715198875e-05 | T212: =PeakDayData!S76 -> 9.881767261e-05 | U212: =PeakDayData!T76 -> 0.0001036286554 | V212: =PeakDayData!U76 -> 0.0001162349177 | W212: =PeakDayData!V76 -> 0.0001151796877 | X212: =PeakDayData!W76 -> 0.0001128371231 | Y212: =PeakDayData!X76 -> 0.0001278485438 | Z212: =PeakDayData!Y76 -> 0.0001321430653 | AA212: =PeakDayData!Z76 -> 0.0001095425417
A213: Hot water | B213: =PeakDayData!A77 -> Sports Facility | C213: =PeakDayData!B77 -> Efficient | D213: =PeakDayData!C77 -> 9.038384616e-05 | E213: =PeakDayData!D77 -> 9.220436428e-05 | F213: =PeakDayData!E77 -> 9.461067565e-05 | G213: =PeakDayData!F77 -> 0.0001050094987 | H213: =PeakDayData!G77 -> 0.0001222738872 | I213: =PeakDayData!H77 -> 0.0001283312745 | J213: =PeakDayData!I77 -> 0.0001417666187 | K213: =PeakDayData!J77 -> 0.0001457272999 | L213: =PeakDayData!K77 -> 0.0001468391508 | M213: =PeakDayData!L77 -> 0.0001558062156 | N213: =PeakDayData!M77 -> 0.0001577590127 | O213: =PeakDayData!N77 -> 0.0001547849109 | P213: =PeakDayData!O77 -> 0.0001468961825 | Q213: =PeakDayData!P77 -> 0.0001345007623 | R213: =PeakDayData!Q77 -> 0.0001296804974 | S213: =PeakDayData!R77 -> 0.0001240888471 | T213: =PeakDayData!S77 -> 0.0001124642987 | U213: =PeakDayData!T77 -> 0.0001090999457 | V213: =PeakDayData!U77 -> 0.0001051871241 | W213: =PeakDayData!V77 -> 0.0001029090743 | X213: =PeakDayData!W77 -> 9.438104856e-05 | Y213: =PeakDayData!X77 -> 8.970879995e-05 | Z213: =PeakDayData!Y77 -> 8.970489084e-05 | AA213: =PeakDayData!Z77 -> 8.921807105e-05
A214: Hot water | B214: =PeakDayData!A78 -> 0 | C214: =PeakDayData!B78 -> Regular | D214: =PeakDayData!C78 -> 9.038384616e-05 | E214: =PeakDayData!D78 -> 9.220436428e-05 | F214: =PeakDayData!E78 -> 9.461067565e-05 | G214: =PeakDayData!F78 -> 0.0001050094987 | H214: =PeakDayData!G78 -> 0.0001222738872 | I214: =PeakDayData!H78 -> 0.0001283312745 | J214: =PeakDayData!I78 -> 0.0001417666187 | K214: =PeakDayData!J78 -> 0.0001457272999 | L214: =PeakDayData!K78 -> 0.0001468391508 | M214: =PeakDayData!L78 -> 0.0001558062156 | N214: =PeakDayData!M78 -> 0.0001577590127 | O214: =PeakDayData!N78 -> 0.0001547849109 | P214: =PeakDayData!O78 -> 0.0001468961825 | Q214: =PeakDayData!P78 -> 0.0001345007623 | R214: =PeakDayData!Q78 -> 0.0001296804974 | S214: =PeakDayData!R78 -> 0.0001240888471 | T214: =PeakDayData!S78 -> 0.0001124642987 | U214: =PeakDayData!T78 -> 0.0001090999457 | V214: =PeakDayData!U78 -> 0.0001051871241 | W214: =PeakDayData!V78 -> 0.0001029090743 | X214: =PeakDayData!W78 -> 9.438104856e-05 | Y214: =PeakDayData!X78 -> 8.970879995e-05 | Z214: =PeakDayData!Y78 -> 8.970489084e-05 | AA214: =PeakDayData!Z78 -> 8.921807105e-05
A215: Hot water | B215: =PeakDayData!A79 -> Comercial building | C215: =PeakDayData!B79 -> Efficient | D215: =PeakDayData!C79 -> 0.0001015805489 | E215: =PeakDayData!D79 -> 0.0001018214093 | F215: =PeakDayData!E79 -> 0.0001036339358 | G215: =PeakDayData!F79 -> 0.0001061076255 | H215: =PeakDayData!G79 -> 0.0001076687496 | I215: =PeakDayData!H79 -> 0.0001165135993 | J215: =PeakDayData!I79 -> 0.0001264656509 | K215: =PeakDayData!J79 -> 0.0001401850259 | L215: =PeakDayData!K79 -> 0.0001459999153 | M215: =PeakDayData!L79 -> 0.0001475339053 | N215: =PeakDayData!M79 -> 0.0001446358109 | O215: =PeakDayData!N79 -> 0.0001431855834 | P215: =PeakDayData!O79 -> 0.000139146255 | Q215: =PeakDayData!P79 -> 0.0001395864728 | R215: =PeakDayData!Q79 -> 0.0001372258111 | S215: =PeakDayData!R79 -> 0.0001346452125 | T215: =PeakDayData!S79 -> 0.0001330201263 | U215: =PeakDayData!T79 -> 0.0001223210864 | V215: =PeakDayData!U79 -> 0.0001183456513 | W215: =PeakDayData!V79 -> 0.0001125123136 | X215: =PeakDayData!W79 -> 0.0001088822188 | Y215: =PeakDayData!X79 -> 0.0001037425637 | Z215: =PeakDayData!Y79 -> 9.938438736e-05 | AA215: =PeakDayData!Z79 -> 9.845898819e-05
A216: Hot water | B216: =PeakDayData!A80 -> 0 | C216: =PeakDayData!B80 -> Regular | D216: =PeakDayData!C80 -> 0.0001015805489 | E216: =PeakDayData!D80 -> 0.0001018214093 | F216: =PeakDayData!E80 -> 0.0001036339358 | G216: =PeakDayData!F80 -> 0.0001061076255 | H216: =PeakDayData!G80 -> 0.0001076687496 | I216: =PeakDayData!H80 -> 0.0001165135993 | J216: =PeakDayData!I80 -> 0.0001264656509 | K216: =PeakDayData!J80 -> 0.0001401850259 | L216: =PeakDayData!K80 -> 0.0001459999153 | M216: =PeakDayData!L80 -> 0.0001475339053 | N216: =PeakDayData!M80 -> 0.0001446358109 | O216: =PeakDayData!N80 -> 0.0001431855834 | P216: =PeakDayData!O80 -> 0.000139146255 | Q216: =PeakDayData!P80 -> 0.0001395864728 | R216: =PeakDayData!Q80 -> 0.0001372258111 | S216: =PeakDayData!R80 -> 0.0001346452125 | T216: =PeakDayData!S80 -> 0.0001330201263 | U216: =PeakDayData!T80 -> 0.0001223210864 | V216: =PeakDayData!U80 -> 0.0001183456513 | W216: =PeakDayData!V80 -> 0.0001125123136 | X216: =PeakDayData!W80 -> 0.0001088822188 | Y216: =PeakDayData!X80 -> 0.0001037425637 | Z216: =PeakDayData!Y80 -> 9.938438736e-05 | AA216: =PeakDayData!Z80 -> 9.845898819e-05
A217: Hot water | B217: =PeakDayData!A81 -> Cultural building | C217: =PeakDayData!B81 -> Efficient | D217: =PeakDayData!C81 -> 7.251221265e-05 | E217: =PeakDayData!D81 -> 7.000258489e-05 | F217: =PeakDayData!E81 -> 7.56107609e-05 | G217: =PeakDayData!F81 -> 7.889550278e-05 | H217: =PeakDayData!G81 -> 9.272080417e-05 | I217: =PeakDayData!H81 -> 0.0001007988187 | J217: =PeakDayData!I81 -> 0.000138096692 | K217: =PeakDayData!J81 -> 0.0002182224305 | L217: =PeakDayData!K81 -> 0.0002275542222 | M217: =PeakDayData!L81 -> 0.0002003138051 | N217: =PeakDayData!M81 -> 0.0001965278221 | O217: =PeakDayData!N81 -> 0.0001978563611 | P217: =PeakDayData!O81 -> 0.0002069905371 | Q217: =PeakDayData!P81 -> 0.0002230836485 | R217: =PeakDayData!Q81 -> 0.0002045485061 | S217: =PeakDayData!R81 -> 0.0001615051625 | T217: =PeakDayData!S81 -> 0.0001202944341 | U217: =PeakDayData!T81 -> 8.607989801e-05 | V217: =PeakDayData!U81 -> 6.898396491e-05 | W217: =PeakDayData!V81 -> 5.828744129e-05 | X217: =PeakDayData!W81 -> 5.973478828e-05 | Y217: =PeakDayData!X81 -> 6.866472471e-05 | Z217: =PeakDayData!Y81 -> 7.896547563e-05 | AA217: =PeakDayData!Z81 -> 7.317316104e-05
A218: Hot water | B218: =PeakDayData!A82 -> 0 | C218: =PeakDayData!B82 -> Regular | D218: =PeakDayData!C82 -> 8.459570958e-05 | E218: =PeakDayData!D82 -> 8.471517511e-05 | F218: =PeakDayData!E82 -> 8.365257172e-05 | G218: =PeakDayData!F82 -> 9.174841752e-05 | H218: =PeakDayData!G82 -> 9.938854579e-05 | I218: =PeakDayData!H82 -> 0.0001101950185 | J218: =PeakDayData!I82 -> 0.0001429112495 | K218: =PeakDayData!J82 -> 0.0001481937651 | L218: =PeakDayData!K82 -> 0.0001697303328 | M218: =PeakDayData!L82 -> 0.0001689554186 | N218: =PeakDayData!M82 -> 0.0001643126247 | O218: =PeakDayData!N82 -> 0.000171606176 | P218: =PeakDayData!O82 -> 0.0001686063018 | Q218: =PeakDayData!P82 -> 0.0001650292714 | R218: =PeakDayData!Q82 -> 0.0001588438289 | S218: =PeakDayData!R82 -> 0.0001501393536 | T218: =PeakDayData!S82 -> 0.0001366059995 | U218: =PeakDayData!T82 -> 0.0001268441615 | V218: =PeakDayData!U82 -> 0.000115933071 | W218: =PeakDayData!V82 -> 0.0001092803502 | X218: =PeakDayData!W82 -> 0.000101036291 | Y218: =PeakDayData!X82 -> 9.267006037e-05 | Z218: =PeakDayData!Y82 -> 8.984916958e-05 | AA218: =PeakDayData!Z82 -> 8.269744335e-05
A219: Hot water | B219: =PeakDayData!A83 -> Industry/Workshop | C219: =PeakDayData!B83 -> Efficient | D219: =PeakDayData!C83 -> 7.251221265e-05 | E219: =PeakDayData!D83 -> 7.000258489e-05 | F219: =PeakDayData!E83 -> 7.56107609e-05 | G219: =PeakDayData!F83 -> 7.889550278e-05 | H219: =PeakDayData!G83 -> 9.272080417e-05 | I219: =PeakDayData!H83 -> 0.0001007988187 | J219: =PeakDayData!I83 -> 0.000138096692 | K219: =PeakDayData!J83 -> 0.0002182224305 | L219: =PeakDayData!K83 -> 0.0002275542222 | M219: =PeakDayData!L83 -> 0.0002003138051 | N219: =PeakDayData!M83 -> 0.0001965278221 | O219: =PeakDayData!N83 -> 0.0001978563611 | P219: =PeakDayData!O83 -> 0.0002069905371 | Q219: =PeakDayData!P83 -> 0.0002230836485 | R219: =PeakDayData!Q83 -> 0.0002045485061 | S219: =PeakDayData!R83 -> 0.0001615051625 | T219: =PeakDayData!S83 -> 0.0001202944341 | U219: =PeakDayData!T83 -> 8.607989801e-05 | V219: =PeakDayData!U83 -> 6.898396491e-05 | W219: =PeakDayData!V83 -> 5.828744129e-05 | X219: =PeakDayData!W83 -> 5.973478828e-05 | Y219: =PeakDayData!X83 -> 6.866472471e-05 | Z219: =PeakDayData!Y83 -> 7.896547563e-05 | AA219: =PeakDayData!Z83 -> 7.317316104e-05
B220: =PeakDayData!A84 -> 0 | C220: =PeakDayData!B84 -> Regular | D220: =PeakDayData!C84 -> 8.459570958e-05 | E220: =PeakDayData!D84 -> 8.471517511e-05 | F220: =PeakDayData!E84 -> 8.365257172e-05 | G220: =PeakDayData!F84 -> 9.174841752e-05 | H220: =PeakDayData!G84 -> 9.938854579e-05 | I220: =PeakDayData!H84 -> 0.0001101950185 | J220: =PeakDayData!I84 -> 0.0001429112495 | K220: =PeakDayData!J84 -> 0.0001481937651 | L220: =PeakDayData!K84 -> 0.0001697303328 | M220: =PeakDayData!L84 -> 0.0001689554186 | N220: =PeakDayData!M84 -> 0.0001643126247 | O220: =PeakDayData!N84 -> 0.000171606176 | P220: =PeakDayData!O84 -> 0.0001686063018 | Q220: =PeakDayData!P84 -> 0.0001650292714 | R220: =PeakDayData!Q84 -> 0.0001588438289 | S220: =PeakDayData!R84 -> 0.0001501393536 | T220: =PeakDayData!S84 -> 0.0001366059995 | U220: =PeakDayData!T84 -> 0.0001268441615 | V220: =PeakDayData!U84 -> 0.000115933071 | W220: =PeakDayData!V84 -> 0.0001092803502 | X220: =PeakDayData!W84 -> 0.000101036291 | Y220: =PeakDayData!X84 -> 9.267006037e-05 | Z220: =PeakDayData!Y84 -> 8.984916958e-05 | AA220: =PeakDayData!Z84 -> 8.269744335e-05
A221: Electric (only elspesific, not cooling since it is the coldest day) | B221: =PeakDayData!A2 -> Electric (only elspesific, not cooling since it is the coldest day) | C221: =PeakDayData!B2 -> 0 | D221: =PeakDayData!C2 -> 3.469446952e-17 | E221: =PeakDayData!D2 -> 0.04166666667 | F221: =PeakDayData!E2 -> 0.08333333333 | G221: =PeakDayData!F2 -> 0.125 | H221: =PeakDayData!G2 -> 0.1666666667 | I221: =PeakDayData!H2 -> 0.2083333333 | J221: =PeakDayData!I2 -> 0.25 | K221: =PeakDayData!J2 -> 0.2916666667 | L221: =PeakDayData!K2 -> 0.3333333333 | M221: =PeakDayData!L2 -> 0.375 | N221: =PeakDayData!M2 -> 0.4166666667 | O221: =PeakDayData!N2 -> 0.4583333333 | P221: =PeakDayData!O2 -> 0.5 | Q221: =PeakDayData!P2 -> 0.5416666667 | R221: =PeakDayData!Q2 -> 0.5833333333 | S221: =PeakDayData!R2 -> 0.625 | T221: =PeakDayData!S2 -> 0.6666666667 | U221: =PeakDayData!T2 -> 0.7083333333 | V221: =PeakDayData!U2 -> 0.75 | W221: =PeakDayData!V2 -> 0.7916666667 | X221: =PeakDayData!W2 -> 0.8333333333 | Y221: =PeakDayData!X2 -> 0.875 | Z221: =PeakDayData!Y2 -> 0.9166666667 | AA221: =PeakDayData!Z2 -> 0.9583333333
A222: Electric (only elspesific, not cooling since it is the coldest day) | B222: =PeakDayData!A3 -> Residential individual housing | C222: =PeakDayData!B3 -> Efficient | D222: =PeakDayData!C3 -> 8.501375293e-05 | E222: =PeakDayData!D3 -> 6.912097419e-05 | F222: =PeakDayData!E3 -> 6.508471293e-05 | G222: =PeakDayData!F3 -> 6.420178077e-05 | H222: =PeakDayData!G3 -> 6.369724811e-05 | I222: =PeakDayData!H3 -> 6.432791394e-05 | J222: =PeakDayData!I3 -> 7.731962989e-05 | K222: =PeakDayData!J3 -> 0.0001021678633 | L222: =PeakDayData!K3 -> 0.0001173038431 | M222: =PeakDayData!L3 -> 0.0001246195666 | N222: =PeakDayData!M3 -> 0.0001200787727 | O222: =PeakDayData!N3 -> 0.0001170515767 | P222: =PeakDayData!O3 -> 0.0001146550466 | Q222: =PeakDayData!P3 -> 0.0001140243808 | R222: =PeakDayData!Q3 -> 0.0001205833053 | S222: =PeakDayData!R3 -> 0.0001456838051 | T222: =PeakDayData!S3 -> 0.0001799920259 | U222: =PeakDayData!T3 -> 0.0001918485433 | V222: =PeakDayData!U3 -> 0.0001962632041 | W222: =PeakDayData!V3 -> 0.0001995426664 | X222: =PeakDayData!W3 -> 0.0002026959955 | Y222: =PeakDayData!X3 -> 0.0001937405408 | Z222: =PeakDayData!Y3 -> 0.0001695229732 | AA222: =PeakDayData!Z3 -> 0.000128781961
A223: Electric (only elspesific, not cooling since it is the coldest day) | B223: =PeakDayData!A4 -> 0 | C223: =PeakDayData!B4 -> Regular | D223: =PeakDayData!C4 -> 8.501375293e-05 | E223: =PeakDayData!D4 -> 6.912097419e-05 | F223: =PeakDayData!E4 -> 6.508471293e-05 | G223: =PeakDayData!F4 -> 6.420178077e-05 | H223: =PeakDayData!G4 -> 6.369724811e-05 | I223: =PeakDayData!H4 -> 6.432791394e-05 | J223: =PeakDayData!I4 -> 7.731962989e-05 | K223: =PeakDayData!J4 -> 0.0001021678633 | L223: =PeakDayData!K4 -> 0.0001173038431 | M223: =PeakDayData!L4 -> 0.0001246195666 | N223: =PeakDayData!M4 -> 0.0001200787727 | O223: =PeakDayData!N4 -> 0.0001170515767 | P223: =PeakDayData!O4 -> 0.0001146550466 | Q223: =PeakDayData!P4 -> 0.0001140243808 | R223: =PeakDayData!Q4 -> 0.0001205833053 | S223: =PeakDayData!R4 -> 0.0001456838051 | T223: =PeakDayData!S4 -> 0.0001799920259 | U223: =PeakDayData!T4 -> 0.0001918485433 | V223: =PeakDayData!U4 -> 0.0001962632041 | W223: =PeakDayData!V4 -> 0.0001995426664 | X223: =PeakDayData!W4 -> 0.0002026959955 | Y223: =PeakDayData!X4 -> 0.0001937405408 | Z223: =PeakDayData!Y4 -> 0.0001695229732 | AA223: =PeakDayData!Z4 -> 0.000128781961
A224: Electric (only elspesific, not cooling since it is the coldest day) | B224: =PeakDayData!A5 -> Residential apartment building | C224: =PeakDayData!B5 -> Efficient | D224: =PeakDayData!C5 -> 8.501375293e-05 | E224: =PeakDayData!D5 -> 6.912097419e-05 | F224: =PeakDayData!E5 -> 6.508471293e-05 | G224: =PeakDayData!F5 -> 6.420178077e-05 | H224: =PeakDayData!G5 -> 6.369724811e-05 | I224: =PeakDayData!H5 -> 6.432791394e-05 | J224: =PeakDayData!I5 -> 7.731962989e-05 | K224: =PeakDayData!J5 -> 0.0001021678633 | L224: =PeakDayData!K5 -> 0.0001173038431 | M224: =PeakDayData!L5 -> 0.0001246195666 | N224: =PeakDayData!M5 -> 0.0001200787727 | O224: =PeakDayData!N5 -> 0.0001170515767 | P224: =PeakDayData!O5 -> 0.0001146550466 | Q224: =PeakDayData!P5 -> 0.0001140243808 | R224: =PeakDayData!Q5 -> 0.0001205833053 | S224: =PeakDayData!R5 -> 0.0001456838051 | T224: =PeakDayData!S5 -> 0.0001799920259 | U224: =PeakDayData!T5 -> 0.0001918485433 | V224: =PeakDayData!U5 -> 0.0001962632041 | W224: =PeakDayData!V5 -> 0.0001995426664 | X224: =PeakDayData!W5 -> 0.0002026959955 | Y224: =PeakDayData!X5 -> 0.0001937405408 | Z224: =PeakDayData!Y5 -> 0.0001695229732 | AA224: =PeakDayData!Z5 -> 0.000128781961
A225: Electric (only elspesific, not cooling since it is the coldest day) | B225: =PeakDayData!A6 -> 0 | C225: =PeakDayData!B6 -> Regular | D225: =PeakDayData!C6 -> 8.501375293e-05 | E225: =PeakDayData!D6 -> 6.912097419e-05 | F225: =PeakDayData!E6 -> 6.508471293e-05 | G225: =PeakDayData!F6 -> 6.420178077e-05 | H225: =PeakDayData!G6 -> 6.369724811e-05 | I225: =PeakDayData!H6 -> 6.432791394e-05 | J225: =PeakDayData!I6 -> 7.731962989e-05 | K225: =PeakDayData!J6 -> 0.0001021678633 | L225: =PeakDayData!K6 -> 0.0001173038431 | M225: =PeakDayData!L6 -> 0.0001246195666 | N225: =PeakDayData!M6 -> 0.0001200787727 | O225: =PeakDayData!N6 -> 0.0001170515767 | P225: =PeakDayData!O6 -> 0.0001146550466 | Q225: =PeakDayData!P6 -> 0.0001140243808 | R225: =PeakDayData!Q6 -> 0.0001205833053 | S225: =PeakDayData!R6 -> 0.0001456838051 | T225: =PeakDayData!S6 -> 0.0001799920259 | U225: =PeakDayData!T6 -> 0.0001918485433 | V225: =PeakDayData!U6 -> 0.0001962632041 | W225: =PeakDayData!V6 -> 0.0001995426664 | X225: =PeakDayData!W6 -> 0.0002026959955 | Y225: =PeakDayData!X6 -> 0.0001937405408 | Z225: =PeakDayData!Y6 -> 0.0001695229732 | AA225: =PeakDayData!Z6 -> 0.000128781961
A226: Electric (only elspesific, not cooling since it is the coldest day) | B226: =PeakDayData!A7 -> Office building | C226: =PeakDayData!B7 -> Efficient | D226: =PeakDayData!C7 -> 9.054349884e-05 | E226: =PeakDayData!D7 -> 8.961924687e-05 | F226: =PeakDayData!E7 -> 8.955691222e-05 | G226: =PeakDayData!F7 -> 8.964144434e-05 | H226: =PeakDayData!G7 -> 9.078267138e-05 | I226: =PeakDayData!H7 -> 9.448826935e-05 | J226: =PeakDayData!I7 -> 0.0001085909913 | K226: =PeakDayData!J7 -> 0.0001449964452 | L226: =PeakDayData!K7 -> 0.0001660135465 | M226: =PeakDayData!L7 -> 0.0001722447187 | N226: =PeakDayData!M7 -> 0.0001709706309 | O226: =PeakDayData!N7 -> 0.0001696592215 | P226: =PeakDayData!O7 -> 0.0001674746268 | Q226: =PeakDayData!P7 -> 0.0001652308255 | R226: =PeakDayData!Q7 -> 0.0001600931588 | S226: =PeakDayData!R7 -> 0.0001484583135 | T226: =PeakDayData!S7 -> 0.0001302716695 | U226: =PeakDayData!T7 -> 0.0001128336646 | V226: =PeakDayData!U7 -> 0.0001043254018 | W226: =PeakDayData!V7 -> 0.0001003256417 | X226: =PeakDayData!W7 -> 9.769842283e-05 | Y226: =PeakDayData!X7 -> 9.48162579e-05 | Z226: =PeakDayData!Y7 -> 9.323067839e-05 | AA226: =PeakDayData!Z7 -> 9.190378327e-05
A227: Electric (only elspesific, not cooling since it is the coldest day) | B227: =PeakDayData!A8 -> 0 | C227: =PeakDayData!B8 -> Regular | D227: =PeakDayData!C8 -> 8.10242918e-05 | E227: =PeakDayData!D8 -> 8.026903843e-05 | F227: =PeakDayData!E8 -> 8.00847653e-05 | G227: =PeakDayData!F8 -> 8.014513789e-05 | H227: =PeakDayData!G8 -> 8.091139997e-05 | I227: =PeakDayData!H8 -> 8.733406879e-05 | J227: =PeakDayData!I8 -> 0.0001116751538 | K227: =PeakDayData!J8 -> 0.0001418274756 | L227: =PeakDayData!K8 -> 0.0001640971497 | M227: =PeakDayData!L8 -> 0.000174506527 | N227: =PeakDayData!M8 -> 0.0001775804594 | O227: =PeakDayData!N8 -> 0.0001792298441 | P227: =PeakDayData!O8 -> 0.0001790827762 | Q227: =PeakDayData!P8 -> 0.0001771961644 | R227: =PeakDayData!Q8 -> 0.0001736754958 | S227: =PeakDayData!R8 -> 0.0001661728028 | T227: =PeakDayData!S8 -> 0.0001511508461 | U227: =PeakDayData!T8 -> 0.0001330961898 | V227: =PeakDayData!U8 -> 0.000117130585 | W227: =PeakDayData!V8 -> 0.0001068207769 | X227: =PeakDayData!W8 -> 9.779461905e-05 | Y227: =PeakDayData!X8 -> 9.112769016e-05 | Z227: =PeakDayData!Y8 -> 8.657246963e-05 | AA227: =PeakDayData!Z8 -> 8.318305011e-05
A228: Electric (only elspesific, not cooling since it is the coldest day) | B228: =PeakDayData!A9 -> Kindergarten | C228: =PeakDayData!B9 -> Efficient | D228: =PeakDayData!C9 -> 6.250370027e-05 | E228: =PeakDayData!D9 -> 6.218917118e-05 | F228: =PeakDayData!E9 -> 6.186117653e-05 | G228: =PeakDayData!F9 -> 6.187535557e-05 | H228: =PeakDayData!G9 -> 6.234572159e-05 | I228: =PeakDayData!H9 -> 6.542061831e-05 | J228: =PeakDayData!I9 -> 8.767939196e-05 | K228: =PeakDayData!J9 -> 0.0001581957495 | L228: =PeakDayData!K9 -> 0.0002233242175 | M228: =PeakDayData!L9 -> 0.0002429136102 | N228: =PeakDayData!M9 -> 0.0002503298325 | O228: =PeakDayData!N9 -> 0.0002459941504 | P228: =PeakDayData!O9 -> 0.000246833797 | Q228: =PeakDayData!P9 -> 0.0002426023822 | R228: =PeakDayData!Q9 -> 0.0002384019197 | S228: =PeakDayData!R9 -> 0.0002341569961 | T228: =PeakDayData!S9 -> 0.0001889914992 | U228: =PeakDayData!T9 -> 0.0001171084667 | V228: =PeakDayData!U9 -> 7.713584683e-05 | W228: =PeakDayData!V9 -> 7.137688776e-05 | X228: =PeakDayData!W9 -> 6.783246047e-05 | Y228: =PeakDayData!X9 -> 6.651784306e-05 | Z228: =PeakDayData!Y9 -> 6.58697243e-05 | AA228: =PeakDayData!Z9 -> 6.530963072e-05
A229: Electric (only elspesific, not cooling since it is the coldest day) | B229: =PeakDayData!A10 -> 0 | C229: =PeakDayData!B10 -> Regular | D229: =PeakDayData!C10 -> 6.250370027e-05 | E229: =PeakDayData!D10 -> 6.218917118e-05 | F229: =PeakDayData!E10 -> 6.186117653e-05 | G229: =PeakDayData!F10 -> 6.187535557e-05 | H229: =PeakDayData!G10 -> 6.234572159e-05 | I229: =PeakDayData!H10 -> 6.542061831e-05 | J229: =PeakDayData!I10 -> 8.767939196e-05 | K229: =PeakDayData!J10 -> 0.0001581957495 | L229: =PeakDayData!K10 -> 0.0002233242175 | M229: =PeakDayData!L10 -> 0.0002429136102 | N229: =PeakDayData!M10 -> 0.0002503298325 | O229: =PeakDayData!N10 -> 0.0002459941504 | P229: =PeakDayData!O10 -> 0.000246833797 | Q229: =PeakDayData!P10 -> 0.0002426023822 | R229: =PeakDayData!Q10 -> 0.0002384019197 | S229: =PeakDayData!R10 -> 0.0002341569961 | T229: =PeakDayData!S10 -> 0.0001889914992 | U229: =PeakDayData!T10 -> 0.0001171084667 | V229: =PeakDayData!U10 -> 7.713584683e-05 | W229: =PeakDayData!V10 -> 7.137688776e-05 | X229: =PeakDayData!W10 -> 6.783246047e-05 | Y229: =PeakDayData!X10 -> 6.651784306e-05 | Z229: =PeakDayData!Y10 -> 6.58697243e-05 | AA229: =PeakDayData!Z10 -> 6.530963072e-05
A230: Electric (only elspesific, not cooling since it is the coldest day) | B230: =PeakDayData!A11 -> School | C230: =PeakDayData!B11 -> Efficient | D230: =PeakDayData!C11 -> 5.788102504e-05 | E230: =PeakDayData!D11 -> 5.192030506e-05 | F230: =PeakDayData!E11 -> 5.19706875e-05 | G230: =PeakDayData!F11 -> 5.211636307e-05 | H230: =PeakDayData!G11 -> 5.269387336e-05 | I230: =PeakDayData!H11 -> 5.33672191e-05 | J230: =PeakDayData!I11 -> 6.923161479e-05 | K230: =PeakDayData!J11 -> 0.0001399613793 | L230: =PeakDayData!K11 -> 0.0001855972697 | M230: =PeakDayData!L11 -> 0.0002274728541 | N230: =PeakDayData!M11 -> 0.000234444009 | O230: =PeakDayData!N11 -> 0.0002314682494 | P230: =PeakDayData!O11 -> 0.0002294301698 | Q230: =PeakDayData!P11 -> 0.000232580843 | R230: =PeakDayData!Q11 -> 0.0002270443011 | S230: =PeakDayData!R11 -> 0.0002021634737 | T230: =PeakDayData!S11 -> 0.0001777523931 | U230: =PeakDayData!T11 -> 0.0001323184988 | V230: =PeakDayData!U11 -> 0.0001239167554 | W230: =PeakDayData!V11 -> 0.0001063437489 | X230: =PeakDayData!W11 -> 0.0001032022989 | Y230: =PeakDayData!X11 -> 9.748113648e-05 | Z230: =PeakDayData!Y11 -> 8.684905877e-05 | AA230: =PeakDayData!Z11 -> 6.948781221e-05
A231: Electric (only elspesific, not cooling since it is the coldest day) | B231: =PeakDayData!A12 -> 0 | C231: =PeakDayData!B12 -> Regular | D231: =PeakDayData!C12 -> 8.9467439e-05 | E231: =PeakDayData!D12 -> 9.103432745e-05 | F231: =PeakDayData!E12 -> 9.122147454e-05 | G231: =PeakDayData!F12 -> 9.362497072e-05 | H231: =PeakDayData!G12 -> 9.590149641e-05 | I231: =PeakDayData!H12 -> 0.0001061913177 | J231: =PeakDayData!I12 -> 0.0001407754694 | K231: =PeakDayData!J12 -> 0.0001940817166 | L231: =PeakDayData!K12 -> 0.0002755447238 | M231: =PeakDayData!L12 -> 0.000284298874 | N231: =PeakDayData!M12 -> 0.0002851815946 | O231: =PeakDayData!N12 -> 0.0002737704531 | P231: =PeakDayData!O12 -> 0.0002787543361 | Q231: =PeakDayData!P12 -> 0.0002721287154 | R231: =PeakDayData!Q12 -> 0.0002371215233 | S231: =PeakDayData!R12 -> 0.0002032137119 | T231: =PeakDayData!S12 -> 0.0001587740493 | U231: =PeakDayData!T12 -> 0.0001312389912 | V231: =PeakDayData!U12 -> 0.0001273261138 | W231: =PeakDayData!V12 -> 0.000119331222 | X231: =PeakDayData!W12 -> 0.0001085524443 | Y231: =PeakDayData!X12 -> 9.989669277e-05 | Z231: =PeakDayData!Y12 -> 9.129594071e-05 | AA231: =PeakDayData!Z12 -> 9.161186378e-05
A232: Electric (only elspesific, not cooling since it is the coldest day) | B232: =PeakDayData!A13 -> University/Collage | C232: =PeakDayData!B13 -> Efficient | D232: =PeakDayData!C13 -> 9.054349884e-05 | E232: =PeakDayData!D13 -> 8.961924687e-05 | F232: =PeakDayData!E13 -> 8.955691222e-05 | G232: =PeakDayData!F13 -> 8.964144434e-05 | H232: =PeakDayData!G13 -> 9.078267138e-05 | I232: =PeakDayData!H13 -> 9.448826935e-05 | J232: =PeakDayData!I13 -> 0.0001085909913 | K232: =PeakDayData!J13 -> 0.0001449964452 | L232: =PeakDayData!K13 -> 0.0001660135465 | M232: =PeakDayData!L13 -> 0.0001722447187 | N232: =PeakDayData!M13 -> 0.0001709706309 | O232: =PeakDayData!N13 -> 0.0001696592215 | P232: =PeakDayData!O13 -> 0.0001674746268 | Q232: =PeakDayData!P13 -> 0.0001652308255 | R232: =PeakDayData!Q13 -> 0.0001600931588 | S232: =PeakDayData!R13 -> 0.0001484583135 | T232: =PeakDayData!S13 -> 0.0001302716695 | U232: =PeakDayData!T13 -> 0.0001128336646 | V232: =PeakDayData!U13 -> 0.0001043254018 | W232: =PeakDayData!V13 -> 0.0001003256417 | X232: =PeakDayData!W13 -> 9.769842283e-05 | Y232: =PeakDayData!X13 -> 9.48162579e-05 | Z232: =PeakDayData!Y13 -> 9.323067839e-05 | AA232: =PeakDayData!Z13 -> 9.190378327e-05
A233: Electric (only elspesific, not cooling since it is the coldest day) | B233: =PeakDayData!A14 -> 0 | C233: =PeakDayData!B14 -> Regular | D233: =PeakDayData!C14 -> 8.10242918e-05 | E233: =PeakDayData!D14 -> 8.026903843e-05 | F233: =PeakDayData!E14 -> 8.00847653e-05 | G233: =PeakDayData!F14 -> 8.014513789e-05 | H233: =PeakDayData!G14 -> 8.091139997e-05 | I233: =PeakDayData!H14 -> 8.733406879e-05 | J233: =PeakDayData!I14 -> 0.0001116751538 | K233: =PeakDayData!J14 -> 0.0001418274756 | L233: =PeakDayData!K14 -> 0.0001640971497 | M233: =PeakDayData!L14 -> 0.000174506527 | N233: =PeakDayData!M14 -> 0.0001775804594 | O233: =PeakDayData!N14 -> 0.0001792298441 | P233: =PeakDayData!O14 -> 0.0001790827762 | Q233: =PeakDayData!P14 -> 0.0001771961644 | R233: =PeakDayData!Q14 -> 0.0001736754958 | S233: =PeakDayData!R14 -> 0.0001661728028 | T233: =PeakDayData!S14 -> 0.0001511508461 | U233: =PeakDayData!T14 -> 0.0001330961898 | V233: =PeakDayData!U14 -> 0.000117130585 | W233: =PeakDayData!V14 -> 0.0001068207769 | X233: =PeakDayData!W14 -> 9.779461905e-05 | Y233: =PeakDayData!X14 -> 9.112769016e-05 | Z233: =PeakDayData!Y14 -> 8.657246963e-05 | AA233: =PeakDayData!Z14 -> 8.318305011e-05
A234: Electric (only elspesific, not cooling since it is the coldest day) | B234: =PeakDayData!A15 -> Hospital | C234: =PeakDayData!B15 -> Efficient | D234: =PeakDayData!C15 -> 9.886264821e-05 | E234: =PeakDayData!D15 -> 9.778707753e-05 | F234: =PeakDayData!E15 -> 9.690482479e-05 | G234: =PeakDayData!F15 -> 9.655506053e-05 | H234: =PeakDayData!G15 -> 9.682860493e-05 | I234: =PeakDayData!H15 -> 9.753604286e-05 | J234: =PeakDayData!I15 -> 0.0001018199003 | K234: =PeakDayData!J15 -> 0.0001152663207 | L234: =PeakDayData!K15 -> 0.000131502954 | M234: =PeakDayData!L15 -> 0.000141207311 | N234: =PeakDayData!M15 -> 0.0001444039515 | O234: =PeakDayData!N15 -> 0.0001451303157 | P234: =PeakDayData!O15 -> 0.0001451728101 | Q234: =PeakDayData!P15 -> 0.0001456593844 | R234: =PeakDayData!Q15 -> 0.0001444343486 | S234: =PeakDayData!R15 -> 0.0001392498932 | T234: =PeakDayData!S15 -> 0.000130207754 | U234: =PeakDayData!T15 -> 0.0001220284011 | V234: =PeakDayData!U15 -> 0.0001171913618 | W234: =PeakDayData!V15 -> 0.0001136316669 | X234: =PeakDayData!W15 -> 0.0001106563845 | Y234: =PeakDayData!X15 -> 0.0001079373092 | Z234: =PeakDayData!Y15 -> 0.0001047798904 | AA234: =PeakDayData!Z15 -> 0.0001012255191
A235: Electric (only elspesific, not cooling since it is the coldest day) | B235: =PeakDayData!A16 -> 0 | C235: =PeakDayData!B16 -> Regular | D235: =PeakDayData!C16 -> 9.886264821e-05 | E235: =PeakDayData!D16 -> 9.778707753e-05 | F235: =PeakDayData!E16 -> 9.690482479e-05 | G235: =PeakDayData!F16 -> 9.655506053e-05 | H235: =PeakDayData!G16 -> 9.682860493e-05 | I235: =PeakDayData!H16 -> 9.753604286e-05 | J235: =PeakDayData!I16 -> 0.0001018199003 | K235: =PeakDayData!J16 -> 0.0001152663207 | L235: =PeakDayData!K16 -> 0.000131502954 | M235: =PeakDayData!L16 -> 0.000141207311 | N235: =PeakDayData!M16 -> 0.0001444039515 | O235: =PeakDayData!N16 -> 0.0001451303157 | P235: =PeakDayData!O16 -> 0.0001451728101 | Q235: =PeakDayData!P16 -> 0.0001456593844 | R235: =PeakDayData!Q16 -> 0.0001444343486 | S235: =PeakDayData!R16 -> 0.0001392498932 | T235: =PeakDayData!S16 -> 0.000130207754 | U235: =PeakDayData!T16 -> 0.0001220284011 | V235: =PeakDayData!U16 -> 0.0001171913618 | W235: =PeakDayData!V16 -> 0.0001136316669 | X235: =PeakDayData!W16 -> 0.0001106563845 | Y235: =PeakDayData!X16 -> 0.0001079373092 | Z235: =PeakDayData!Y16 -> 0.0001047798904 | AA235: =PeakDayData!Z16 -> 0.0001012255191
A236: Electric (only elspesific, not cooling since it is the coldest day) | B236: =PeakDayData!A17 -> Nursing home | C236: =PeakDayData!B17 -> Efficient | D236: =PeakDayData!C17 -> 8.785924476e-05 | E236: =PeakDayData!D17 -> 8.656734506e-05 | F236: =PeakDayData!E17 -> 8.690658907e-05 | G236: =PeakDayData!F17 -> 8.739801288e-05 | H236: =PeakDayData!G17 -> 8.898150562e-05 | I236: =PeakDayData!H17 -> 9.750460696e-05 | J236: =PeakDayData!I17 -> 0.0001103142788 | K236: =PeakDayData!J17 -> 0.0001228940897 | L236: =PeakDayData!K17 -> 0.0001390091337 | M236: =PeakDayData!L17 -> 0.0001483115487 | N236: =PeakDayData!M17 -> 0.0001522531992 | O236: =PeakDayData!N17 -> 0.0001532930182 | P236: =PeakDayData!O17 -> 0.0001524505552 | Q236: =PeakDayData!P17 -> 0.0001436130941 | R236: =PeakDayData!Q17 -> 0.000137823988 | S236: =PeakDayData!R17 -> 0.0001308457067 | T236: =PeakDayData!S17 -> 0.0001242129502 | U236: =PeakDayData!T17 -> 0.000123421058 | V236: =PeakDayData!U17 -> 0.0001184068002 | W236: =PeakDayData!V17 -> 0.00011380097 | X236: =PeakDayData!W17 -> 0.0001075244248 | Y236: =PeakDayData!X17 -> 0.0001002161291 | Z236: =PeakDayData!Y17 -> 9.536253851e-05 | AA236: =PeakDayData!Z17 -> 9.043692872e-05
A237: Electric (only elspesific, not cooling since it is the coldest day) | B237: =PeakDayData!A18 -> 0 | C237: =PeakDayData!B18 -> Regular | D237: =PeakDayData!C18 -> 8.785924476e-05 | E237: =PeakDayData!D18 -> 8.656734506e-05 | F237: =PeakDayData!E18 -> 8.690658907e-05 | G237: =PeakDayData!F18 -> 8.739801288e-05 | H237: =PeakDayData!G18 -> 8.898150562e-05 | I237: =PeakDayData!H18 -> 9.750460696e-05 | J237: =PeakDayData!I18 -> 0.0001103142788 | K237: =PeakDayData!J18 -> 0.0001228940897 | L237: =PeakDayData!K18 -> 0.0001390091337 | M237: =PeakDayData!L18 -> 0.0001483115487 | N237: =PeakDayData!M18 -> 0.0001522531992 | O237: =PeakDayData!N18 -> 0.0001532930182 | P237: =PeakDayData!O18 -> 0.0001524505552 | Q237: =PeakDayData!P18 -> 0.0001436130941 | R237: =PeakDayData!Q18 -> 0.000137823988 | S237: =PeakDayData!R18 -> 0.0001308457067 | T237: =PeakDayData!S18 -> 0.0001242129502 | U237: =PeakDayData!T18 -> 0.000123421058 | V237: =PeakDayData!U18 -> 0.0001184068002 | W237: =PeakDayData!V18 -> 0.00011380097 | X237: =PeakDayData!W18 -> 0.0001075244248 | Y237: =PeakDayData!X18 -> 0.0001002161291 | Z237: =PeakDayData!Y18 -> 9.536253851e-05 | AA237: =PeakDayData!Z18 -> 9.043692872e-05
A238: Electric (only elspesific, not cooling since it is the coldest day) | B238: =PeakDayData!A19 -> Hotel | C238: =PeakDayData!B19 -> Efficient | D238: =PeakDayData!C19 -> 9.768395371e-05 | E238: =PeakDayData!D19 -> 9.290026215e-05 | F238: =PeakDayData!E19 -> 9.057503241e-05 | G238: =PeakDayData!F19 -> 8.917441862e-05 | H238: =PeakDayData!G19 -> 9.322942674e-05 | I238: =PeakDayData!H19 -> 9.744317965e-05 | J238: =PeakDayData!I19 -> 0.0001070105797 | K238: =PeakDayData!J19 -> 0.0001233666135 | L238: =PeakDayData!K19 -> 0.0001318791408 | M238: =PeakDayData!L19 -> 0.0001291954406 | N238: =PeakDayData!M19 -> 0.0001273013165 | O238: =PeakDayData!N19 -> 0.0001240427069 | P238: =PeakDayData!O19 -> 0.0001225882977 | Q238: =PeakDayData!P19 -> 0.0001204240751 | R238: =PeakDayData!Q19 -> 0.0001210597419 | S238: =PeakDayData!R19 -> 0.000120026076 | T238: =PeakDayData!S19 -> 0.0001191924314 | U238: =PeakDayData!T19 -> 0.0001195832802 | V238: =PeakDayData!U19 -> 0.0001211018412 | W238: =PeakDayData!V19 -> 0.0001212958113 | X238: =PeakDayData!W19 -> 0.0001211762471 | Y238: =PeakDayData!X19 -> 0.000116949269 | Z238: =PeakDayData!Y19 -> 0.0001144939929 | AA238: =PeakDayData!Z19 -> 0.000107375876
A239: Electric (only elspesific, not cooling since it is the coldest day) | B239: =PeakDayData!A20 -> 0 | C239: =PeakDayData!B20 -> Regular | D239: =PeakDayData!C20 -> 9.768395371e-05 | E239: =PeakDayData!D20 -> 9.290026215e-05 | F239: =PeakDayData!E20 -> 9.057503241e-05 | G239: =PeakDayData!F20 -> 8.917441862e-05 | H239: =PeakDayData!G20 -> 9.322942674e-05 | I239: =PeakDayData!H20 -> 9.744317965e-05 | J239: =PeakDayData!I20 -> 0.0001070105797 | K239: =PeakDayData!J20 -> 0.0001233666135 | L239: =PeakDayData!K20 -> 0.0001318791408 | M239: =PeakDayData!L20 -> 0.0001291954406 | N239: =PeakDayData!M20 -> 0.0001273013165 | O239: =PeakDayData!N20 -> 0.0001240427069 | P239: =PeakDayData!O20 -> 0.0001225882977 | Q239: =PeakDayData!P20 -> 0.0001204240751 | R239: =PeakDayData!Q20 -> 0.0001210597419 | S239: =PeakDayData!R20 -> 0.000120026076 | T239: =PeakDayData!S20 -> 0.0001191924314 | U239: =PeakDayData!T20 -> 0.0001195832802 | V239: =PeakDayData!U20 -> 0.0001211018412 | W239: =PeakDayData!V20 -> 0.0001212958113 | X239: =PeakDayData!W20 -> 0.0001211762471 | Y239: =PeakDayData!X20 -> 0.000116949269 | Z239: =PeakDayData!Y20 -> 0.0001144939929 | AA239: =PeakDayData!Z20 -> 0.000107375876
A240: Electric (only elspesific, not cooling since it is the coldest day) | B240: =PeakDayData!A21 -> Sports Facility | C240: =PeakDayData!B21 -> Efficient | D240: =PeakDayData!C21 -> 8.785924476e-05 | E240: =PeakDayData!D21 -> 8.656734506e-05 | F240: =PeakDayData!E21 -> 8.690658907e-05 | G240: =PeakDayData!F21 -> 8.739801288e-05 | H240: =PeakDayData!G21 -> 8.898150562e-05 | I240: =PeakDayData!H21 -> 9.750460696e-05 | J240: =PeakDayData!I21 -> 0.0001103142788 | K240: =PeakDayData!J21 -> 0.0001228940897 | L240: =PeakDayData!K21 -> 0.0001390091337 | M240: =PeakDayData!L21 -> 0.0001483115487 | N240: =PeakDayData!M21 -> 0.0001522531992 | O240: =PeakDayData!N21 -> 0.0001532930182 | P240: =PeakDayData!O21 -> 0.0001524505552 | Q240: =PeakDayData!P21 -> 0.0001436130941 | R240: =PeakDayData!Q21 -> 0.000137823988 | S240: =PeakDayData!R21 -> 0.0001308457067 | T240: =PeakDayData!S21 -> 0.0001242129502 | U240: =PeakDayData!T21 -> 0.000123421058 | V240: =PeakDayData!U21 -> 0.0001184068002 | W240: =PeakDayData!V21 -> 0.00011380097 | X240: =PeakDayData!W21 -> 0.0001075244248 | Y240: =PeakDayData!X21 -> 0.0001002161291 | Z240: =PeakDayData!Y21 -> 9.536253851e-05 | AA240: =PeakDayData!Z21 -> 9.043692872e-05
A241: Electric (only elspesific, not cooling since it is the coldest day) | B241: =PeakDayData!A22 -> 0 | C241: =PeakDayData!B22 -> Regular | D241: =PeakDayData!C22 -> 8.785924476e-05 | E241: =PeakDayData!D22 -> 8.656734506e-05 | F241: =PeakDayData!E22 -> 8.690658907e-05 | G241: =PeakDayData!F22 -> 8.739801288e-05 | H241: =PeakDayData!G22 -> 8.898150562e-05 | I241: =PeakDayData!H22 -> 9.750460696e-05 | J241: =PeakDayData!I22 -> 0.0001103142788 | K241: =PeakDayData!J22 -> 0.0001228940897 | L241: =PeakDayData!K22 -> 0.0001390091337 | M241: =PeakDayData!L22 -> 0.0001483115487 | N241: =PeakDayData!M22 -> 0.0001522531992 | O241: =PeakDayData!N22 -> 0.0001532930182 | P241: =PeakDayData!O22 -> 0.0001524505552 | Q241: =PeakDayData!P22 -> 0.0001436130941 | R241: =PeakDayData!Q22 -> 0.000137823988 | S241: =PeakDayData!R22 -> 0.0001308457067 | T241: =PeakDayData!S22 -> 0.0001242129502 | U241: =PeakDayData!T22 -> 0.000123421058 | V241: =PeakDayData!U22 -> 0.0001184068002 | W241: =PeakDayData!V22 -> 0.00011380097 | X241: =PeakDayData!W22 -> 0.0001075244248 | Y241: =PeakDayData!X22 -> 0.0001002161291 | Z241: =PeakDayData!Y22 -> 9.536253851e-05 | AA241: =PeakDayData!Z22 -> 9.043692872e-05
A242: Electric (only elspesific, not cooling since it is the coldest day) | B242: =PeakDayData!A23 -> Comercial building | C242: =PeakDayData!B23 -> Efficient | D242: =PeakDayData!C23 -> 6.966188101e-05 | E242: =PeakDayData!D23 -> 6.774204817e-05 | F242: =PeakDayData!E23 -> 6.720204443e-05 | G242: =PeakDayData!F23 -> 6.700269638e-05 | H242: =PeakDayData!G23 -> 6.866579801e-05 | I242: =PeakDayData!H23 -> 7.446715269e-05 | J242: =PeakDayData!I23 -> 9.708332682e-05 | K242: =PeakDayData!J23 -> 0.0001297444777 | L242: =PeakDayData!K23 -> 0.0001507470498 | M242: =PeakDayData!L23 -> 0.0001675571752 | N242: =PeakDayData!M23 -> 0.0001803926964 | O242: =PeakDayData!N23 -> 0.0001818270603 | P242: =PeakDayData!O23 -> 0.0001826841522 | Q242: =PeakDayData!P23 -> 0.0001824040455 | R242: =PeakDayData!Q23 -> 0.0001811949568 | S242: =PeakDayData!R23 -> 0.0001798406541 | T242: =PeakDayData!S23 -> 0.0001695665174 | U242: =PeakDayData!T23 -> 0.0001539968745 | V242: =PeakDayData!U23 -> 0.0001430100715 | W242: =PeakDayData!V23 -> 0.000132682458 | X242: =PeakDayData!W23 -> 0.0001161390431 | Y242: =PeakDayData!X23 -> 9.71375706e-05 | Z242: =PeakDayData!Y23 -> 8.346484738e-05 | AA242: =PeakDayData!Z23 -> 7.520319238e-05
A243: Electric (only elspesific, not cooling since it is the coldest day) | B243: =PeakDayData!A24 -> 0 | C243: =PeakDayData!B24 -> Regular | D243: =PeakDayData!C24 -> 6.966188101e-05 | E243: =PeakDayData!D24 -> 6.774204817e-05 | F243: =PeakDayData!E24 -> 6.720204443e-05 | G243: =PeakDayData!F24 -> 6.700269638e-05 | H243: =PeakDayData!G24 -> 6.866579801e-05 | I243: =PeakDayData!H24 -> 7.446715269e-05 | J243: =PeakDayData!I24 -> 9.708332682e-05 | K243: =PeakDayData!J24 -> 0.0001297444777 | L243: =PeakDayData!K24 -> 0.0001507470498 | M243: =PeakDayData!L24 -> 0.0001675571752 | N243: =PeakDayData!M24 -> 0.0001803926964 | O243: =PeakDayData!N24 -> 0.0001818270603 | P243: =PeakDayData!O24 -> 0.0001826841522 | Q243: =PeakDayData!P24 -> 0.0001824040455 | R243: =PeakDayData!Q24 -> 0.0001811949568 | S243: =PeakDayData!R24 -> 0.0001798406541 | T243: =PeakDayData!S24 -> 0.0001695665174 | U243: =PeakDayData!T24 -> 0.0001539968745 | V243: =PeakDayData!U24 -> 0.0001430100715 | W243: =PeakDayData!V24 -> 0.000132682458 | X243: =PeakDayData!W24 -> 0.0001161390431 | Y243: =PeakDayData!X24 -> 9.71375706e-05 | Z243: =PeakDayData!Y24 -> 8.346484738e-05 | AA243: =PeakDayData!Z24 -> 7.520319238e-05
A244: Electric (only elspesific, not cooling since it is the coldest day) | B244: =PeakDayData!A25 -> Cultural building | C244: =PeakDayData!B25 -> Efficient | D244: =PeakDayData!C25 -> 9.054349884e-05 | E244: =PeakDayData!D25 -> 8.961924687e-05 | F244: =PeakDayData!E25 -> 8.955691222e-05 | G244: =PeakDayData!F25 -> 8.964144434e-05 | H244: =PeakDayData!G25 -> 9.078267138e-05 | I244: =PeakDayData!H25 -> 9.448826935e-05 | J244: =PeakDayData!I25 -> 0.0001085909913 | K244: =PeakDayData!J25 -> 0.0001449964452 | L244: =PeakDayData!K25 -> 0.0001660135465 | M244: =PeakDayData!L25 -> 0.0001722447187 | N244: =PeakDayData!M25 -> 0.0001709706309 | O244: =PeakDayData!N25 -> 0.0001696592215 | P244: =PeakDayData!O25 -> 0.0001674746268 | Q244: =PeakDayData!P25 -> 0.0001652308255 | R244: =PeakDayData!Q25 -> 0.0001600931588 | S244: =PeakDayData!R25 -> 0.0001484583135 | T244: =PeakDayData!S25 -> 0.0001302716695 | U244: =PeakDayData!T25 -> 0.0001128336646 | V244: =PeakDayData!U25 -> 0.0001043254018 | W244: =PeakDayData!V25 -> 0.0001003256417 | X244: =PeakDayData!W25 -> 9.769842283e-05 | Y244: =PeakDayData!X25 -> 9.48162579e-05 | Z244: =PeakDayData!Y25 -> 9.323067839e-05 | AA244: =PeakDayData!Z25 -> 9.190378327e-05
A245: Electric (only elspesific, not cooling since it is the coldest day) | B245: =PeakDayData!A26 -> 0 | C245: =PeakDayData!B26 -> Regular | D245: =PeakDayData!C26 -> 8.10242918e-05 | E245: =PeakDayData!D26 -> 8.026903843e-05 | F245: =PeakDayData!E26 -> 8.00847653e-05 | G245: =PeakDayData!F26 -> 8.014513789e-05 | H245: =PeakDayData!G26 -> 8.091139997e-05 | I245: =PeakDayData!H26 -> 8.733406879e-05 | J245: =PeakDayData!I26 -> 0.0001116751538 | K245: =PeakDayData!J26 -> 0.0001418274756 | L245: =PeakDayData!K26 -> 0.0001640971497 | M245: =PeakDayData!L26 -> 0.000174506527 | N245: =PeakDayData!M26 -> 0.0001775804594 | O245: =PeakDayData!N26 -> 0.0001792298441 | P245: =PeakDayData!O26 -> 0.0001790827762 | Q245: =PeakDayData!P26 -> 0.0001771961644 | R245: =PeakDayData!Q26 -> 0.0001736754958 | S245: =PeakDayData!R26 -> 0.0001661728028 | T245: =PeakDayData!S26 -> 0.0001511508461 | U245: =PeakDayData!T26 -> 0.0001330961898 | V245: =PeakDayData!U26 -> 0.000117130585 | W245: =PeakDayData!V26 -> 0.0001068207769 | X245: =PeakDayData!W26 -> 9.779461905e-05 | Y245: =PeakDayData!X26 -> 9.112769016e-05 | Z245: =PeakDayData!Y26 -> 8.657246963e-05 | AA245: =PeakDayData!Z26 -> 8.318305011e-05
A246: Electric (only elspesific, not cooling since it is the coldest day) | B246: =PeakDayData!A27 -> Industry/Workshop | C246: =PeakDayData!B27 -> Efficient | D246: =PeakDayData!C27 -> 9.054349884e-05 | E246: =PeakDayData!D27 -> 8.961924687e-05 | F246: =PeakDayData!E27 -> 8.955691222e-05 | G246: =PeakDayData!F27 -> 8.964144434e-05 | H246: =PeakDayData!G27 -> 9.078267138e-05 | I246: =PeakDayData!H27 -> 9.448826935e-05 | J246: =PeakDayData!I27 -> 0.0001085909913 | K246: =PeakDayData!J27 -> 0.0001449964452 | L246: =PeakDayData!K27 -> 0.0001660135465 | M246: =PeakDayData!L27 -> 0.0001722447187 | N246: =PeakDayData!M27 -> 0.0001709706309 | O246: =PeakDayData!N27 -> 0.0001696592215 | P246: =PeakDayData!O27 -> 0.0001674746268 | Q246: =PeakDayData!P27 -> 0.0001652308255 | R246: =PeakDayData!Q27 -> 0.0001600931588 | S246: =PeakDayData!R27 -> 0.0001484583135 | T246: =PeakDayData!S27 -> 0.0001302716695 | U246: =PeakDayData!T27 -> 0.0001128336646 | V246: =PeakDayData!U27 -> 0.0001043254018 | W246: =PeakDayData!V27 -> 0.0001003256417 | X246: =PeakDayData!W27 -> 9.769842283e-05 | Y246: =PeakDayData!X27 -> 9.48162579e-05 | Z246: =PeakDayData!Y27 -> 9.323067839e-05 | AA246: =PeakDayData!Z27 -> 9.190378327e-05
A247: Electric (only elspesific, not cooling since it is the coldest day) | B247: =PeakDayData!A28 -> 0 | C247: =PeakDayData!B28 -> Regular | D247: =PeakDayData!C28 -> 8.10242918e-05 | E247: =PeakDayData!D28 -> 8.026903843e-05 | F247: =PeakDayData!E28 -> 8.00847653e-05 | G247: =PeakDayData!F28 -> 8.014513789e-05 | H247: =PeakDayData!G28 -> 8.091139997e-05 | I247: =PeakDayData!H28 -> 8.733406879e-05 | J247: =PeakDayData!I28 -> 0.0001116751538 | K247: =PeakDayData!J28 -> 0.0001418274756 | L247: =PeakDayData!K28 -> 0.0001640971497 | M247: =PeakDayData!L28 -> 0.000174506527 | N247: =PeakDayData!M28 -> 0.0001775804594 | O247: =PeakDayData!N28 -> 0.0001792298441 | P247: =PeakDayData!O28 -> 0.0001790827762 | Q247: =PeakDayData!P28 -> 0.0001771961644 | R247: =PeakDayData!Q28 -> 0.0001736754958 | S247: =PeakDayData!R28 -> 0.0001661728028 | T247: =PeakDayData!S28 -> 0.0001511508461 | U247: =PeakDayData!T28 -> 0.0001330961898 | V247: =PeakDayData!U28 -> 0.000117130585 | W247: =PeakDayData!V28 -> 0.0001068207769 | X247: =PeakDayData!W28 -> 9.779461905e-05 | Y247: =PeakDayData!X28 -> 9.112769016e-05 | Z247: =PeakDayData!Y28 -> 8.657246963e-05 | AA247: =PeakDayData!Z28 -> 8.318305011e-05

Sheet Lists (hidden)
A1: Building Categories | B1: Building performance data | C1: Energy Certificates | D1: Ownership | E1: PV input | F1: Energy technology | G1: Building performance coverage data | H1: Building sector list
A2: Residential individual housing | B2: Passivhouse | C2: A | D2: Public | E2: Auto | F2: Fossile | G2: Regular | H2: Residential
A3: Residential apartment building | B3: Low energy | C3: B | D3: Private | E3: Manual | F3: Renewable/electric | G3: Efficient | H3: Service
A4: Office building | B4: TEK 17 | C4: C | D4: Housing cooperative
A5: Kindergarten | B5: TEK 10 | C5: D
A6: School | B6: TEK 07 | C6: E
A7: University/Collage | B7: TEK 97 | C7: F
A8: Hospital | B8: TEK 87 | C8: G
A9: Nursing home | B9: TEK 69
A10: Hotel | B10: TEK 49
A11: Sports Facility | B11: Older
A12: Comercial building | B12: Simulation
A13: Cultural building | B13: Measurements
A14: Industry/Workshop
A17: Local energy plant list
A18: CHP
A19: Solar PV
A20: Solar Thermal
A21: Boiler
A22: Heat Pump
A23: Direct connection
A25: Goal Catergory List | B25: Unit List | C25: Comparison
A26: Energy Consumption | B26: Absolute | C26: Absolute
A27: Energy Generation | B27: /m2 BRA | C27: % Increase
A28: Mismatch | B28: /inhabitant | C28: % Reduction
B29: /person
A30: Mobility
A31: Carbon Emission
A33: Goal List | B33: # KPIs | C33: CO2-reduction | D33: Increased use of renewable energy | E33: Increased energy efficiency | F33: Increased use of local energy sources | G33: Green mobility | H33: Grid interaction
A34: CO2-reduction | C34: =COUNTA(C35:C44) -> 3 | D34: =COUNTA(D35:D42) -> 6 | E34: =COUNTA(E35:E43) -> 4 | F34: =COUNTA(F35:F43) -> 4 | G34: =COUNTA(G35:G42) -> 2 | H34: =COUNTA(H35:H42) -> 2
A35: Increased use of renewable energy | C35: CO2 emissions | D35: % of energy sources delivering to district heating system | E35: Energy Use | F35: Installed capacity of RES | G35: Modal Split | H35: Peak energy use
A36: Increased energy efficiency | C36: # fossil free construction sites | D36: # fossil free construction sites | E36: % of buildings with Energy Certificate at each of the grades | F36: Generated energy by RES | G36: Energy Use | H36: Peak energy demand
A37: Increased use of local energy sources | C37: # of registered oil tanks | D37: Installed capacity of RES | E37: % of buildings with measurement values for energy performance | F37: # of buildings with installed solar energy system
A38: Green mobility | D38: Generated energy by RES | E38: Net energy demand in buildings | F38: # of buildings connected to a district thermal energy system
A39: Grid interaction | D39: # of buildings with installed solar energy system
D40: # of buildings connected to a district thermal energy system
A46: Location List
A47: Oslo og Akershus
A48: Bergen, Trondheim og Stavanger area
A49: Other Cities

Sheet KPIs summary list (hidden)
A1: KPI | B1: Goal s | C1: Sub-categories | E1: Sectors | F1: Unit
A2: Name | B2: Name | C2: 1 | D2: 2
A3: CO2 emissions | B3: CO2-reduction | C3: Stationary Energy | D3: Electricity | E3: Public buildings | F3: Tonnes CO2 eqv.
D4: Biofuel | E4: Residential buildings
D5: Fossile fuel | E5: Private buildings
D6: District heating | E6: Infrastructure
C7: Mobility | E7: Private cars
E8: Taxi
E9: Public transport
E10: Goods transport
E11: Freight transportation
E12: Construction machines
C13: Materials | E13: Public buildings
E14: Residential buildings
E15: Private buildings
A16: Energy Use | B16: Increased energy efficiency | C16: Electric | D16: Buildings | E16: Public buildings | F16: MWh
E17: Residential buildings
E18: Private buildings
D19: Infrastructure | E19: Outdoor lighting
E20: Transport
E21: Other
C22: Thermal | D22: Solar | E22: Public buildings
D23: Biofuel | E23: Residential buildings
D24: Oil | E24: Private buildings
D25: Gas | E25: Infrastructure
D26: District heating
A27: District Heating share of renewables | B27: Increased use of renewable energy | C27: Electricity | F27: %
C28: Heat pump
C29: Solar
C30: Biofuel
C31: Waste
C32: Oil
C33: Gas
A34: Energy Certificate | B34: Increased energy efficiency | C34: Certificate A | E34: Public buildings | F34: %
C35: Certificate B | E35: Residential buildings
C36: Certificate C | E36: Private buildings
C37: Certificate D
C38: Certificate E
C39: Certificate F
C40: Certificate G
C41: Not registered
A42: Use of energy related incentive | B42: Increased energy efficiency | C42: Futurebuildt | E42: Public buildings | F42: #
C43: Enova | E43: Residential buildings
C44: Local | E44: Private buildings
A45: Buildings benchmarked and measuring energy performance | B45: Increased energy efficiency | E45: Public buildings | F45: %
E46: Residential buildings
E47: Private buildings
A48: # fossile free construction sites | B48: CO2-reduction | C48: Construction Machines | E48: Public buildings | F48: #
B49: Increased use of renewable energy | C49: Energy production | E49: Residential buildings
E50: Private buildings
A51: Modal Split | B51: Green mobility (reduced CO2 emissions and better air quality) | C51: Fossil free Car | F51: %
C52: Fossil fuel Car
C53: Fossil free Public transport
C54: Fossil fuel Public transport
C55: Bike
C56: Walk
A57: # filling stations with RES fuel / area/innh. | B57: Green mobility (reduced CO2 emissions and better air quality) | C57: Electric | F57: #
C58: Hydrogen
C59: Biofuel
A60: % fossil free cars of new car registerred | B60: Green mobility (reduced CO2 emissions and better air quality) | C60: Electric | F60: %
C61: Hydrogen
A62: % of berths with power connection | B62: Green mobility (reduced CO2 emissions and better air quality)
A63: RES installed capacity | B63: Increased use of local energy sources | C63: Electric | D63: Solar | F63: kW
B64: Increased use of renewable energy | C64: Thermal | D64: CHP Waste
D65: CHP Biomass
A66: RES generated energy | B66: Increased use of local energy sources | C66: Electric | D66: Solar | F66: MWh
B67: Increased use of renewable energy | C67: Thermal | D67: CHP Waste
D68: CHP Biomass
A69: Buildings with installed RES | B69: Increased use of local energy sources | C69: Electric | D69: Solar | F69: %
B70: Increased use of renewable energy | C70: Thermal
A71: Use of secondary heat | B71: Increased use of local energy sources | F71: MWh
A72: Buildings connected to a district thermal energy | B72: Increased use of local energy sources | F72: %
B73: Increased use of renewable energy
A74: Identification of available resources of renewable energy | B74: Increased use of local energy sources | F74: MWh
B75: Increased use of renewable energy
A76: Number of registered oil tanks | B76: Increased use of renewable energy | F76: #
B77: CO2-reduction
A78: Peak Load Consumption | C78: Electric | F78: kW
C79: Thermal
A80: Peak Load Production | B80: Increased use of local energy sources | C80: Electric | F80: kW
C81: Thermal
A82: Energy Storage | B82: Increased use of local energy sources | C82: Electric | F82: MWh
B83: Increased use of renewable energy | C83: Thermal

Sheet KPI 1
